Workbook

Sheet comparison
B2: choosen global path: | D2: ='global path'!C2 -> 3 | F2: macro is to be used EPM? | H2: =EPM!AM101 -> 0.06435536661
BP20: free input weigthing population (spk): | BS20: ='SPF-spk'!W8 -> 0.5 | BV20: solver is used?
BV38: eq: weigthing population 100%
B41: =RF!A2 -> RF | C41: Regensburg Model resp. Regensburg Formula
B42: =GQWF!A2 -> GQWF | C42: =GQWF!A1 -> General Quadratic Weigthing Formula
B43: ='C&C-exp'!A2 -> C&C-exp | C43: ='C&C-exp'!A1 -> C&C: exponential approach
B44: ='C&C-lin'!A2 -> C&C-lin | C44: ='C&C-lin'!A1 -> C&C: linear aproach
B45: =LIMITS!A1 -> LIMITS | C45: =B45 -> LIMITS
B46: ='pc20'!A2 -> pc20 | C46: ='pc20'!A1 -> Allocation per capita starting 2020
B47: ='SPF-eq'!A2 -> SPF-eq | C47: ='SPF-eq'!A1 -> Smooth Pathways Formula - equity (spk = 100%)
B48: ='SPF-in'!A2 -> SPF-in | C48: ='SPF-in'!A1 -> Smooth Pathways Formula - inertia (spk = 0%)
B49: ='SPF-spk'!A2 -> SPF-50 | C49: =CONCATENATE("Smooth Pathways Formula (spk = ",RIGHT(B49,2),"%)") -> Smooth Pathways Formula (spk = 50%)
B50: =EPM!B3 -> EPM | C50: =EPM!B2 -> Cap Model
B51: =CDC!A2 -> CDC | C51: =CDC!A1 -> Common but Differentiated Convergence
BV53: in: weigthing population 0%

Sheet input data
B2: input fields
I3: original input data
B4: input data countries | C4: country | H4: input data countries | I4: country
C5: A | D5: B | E5: C | F5: global | I5: A | J5: B | K5: C | L5: global
B6: population 2019 bn | C6: 1.2 | D6: 4 | E6: =F6-D6-C6 -> 1.7 | F6: 6.9 | H6: population 2019 bn | I6: 1.2 | J6: 4 | K6: =L6-J6-I6 -> 1.7 | L6: 6.9
B7: population 2050 bn | C7: 1.3 | D7: 4.3 | E7: =F7-D7-C7 -> 4 | F7: 9.6 | H7: population 2050 bn | I7: 1.3 | J7: 4.3 | K7: =L7-J7-I7 -> 4 | L7: 9.6
B8: emissions 2019 Gt | C8: 21 | D8: 19.5 | E8: =F8-D8-C8 -> 1.227717101 | F8: ='global path'!C7 -> 41.7277171 | H8: emissions 2019 Gt | I8: 21 | J8: 19.5 | K8: =L8-J8-I8 -> 1.227717101 | L8: ='global path'!C7 -> 41.7277171
B9: per capita emissions 2019 | C9: =C8/C6 -> 17.5 | D9: =D8/D6 -> 4.875 | E9: =E8/E6 -> 0.7221865302 | F9: =F8/F6 -> 6.047495232 | H9: per capita emissions 2019 | I9: =I8/I6 -> 17.5 | J9: =J8/J6 -> 4.875 | K9: =K8/K6 -> 0.7221865302 | L9: =L8/L6 -> 6.047495232
B10: emissions key 2019 | C10: =C8/$F$8 -> 0.5032626144 | D10: =D8/$F$8 -> 0.4673152848 | E10: =E8/$F$8 -> 0.02942210086 | F10: =F8/$F$8 -> 1
B11: population key | C11: =C6/$F$6 -> 0.1739130435 | D11: =D6/$F$6 -> 0.5797101449 | E11: =E6/$F$6 -> 0.2463768116 | F11: =F6/$F$6 -> 1
B12: population growth | C12: =C7/C6-1 -> 0.08333333333 | D12: =D7/D6-1 -> 0.075 | E12: =E7/E6-1 -> 1.352941176 | F12: =F7/F6-1 -> 0.3913043478
B14: Which population size is to be used for the convergence year 2050? | G14: frozen
C16: Country
C17: A | D17: B | E17: C | F17: global
B18: population 2050 bn | C18: =IF($G$14="forecast",C7,C6) -> 1.2 | D18: =IF($G$14="forecast",D7,D6) -> 4 | E18: =IF($G$14="forecast",E7,E6) -> 1.7 | F18: =IF($G$14="forecast",F7,F6) -> 6.9
B20: input data models
B21: ='C&C-exp'!A2 -> C&C-exp | C21: 4 | D21: parameter a of the weighting formula C_t | F21: The author of the model recommends a = 4.
B22: =CDC!A2 -> CDC | F22: Percentage threshold | H22: change rates BAU
B23: =LEFT('SPF-eq'!A2,LEN('SPF-eq'!A2)-3) -> SPF | C23: Reduction rate at the beginnging of 2020 for each country | H23: share population key (spk)
B24: EPM | C24: Input of the quantiles of the Lorenz curve possible.
B25: =GQWF!A2 -> GQWF | C25: C2020 | D25: weighting of per capita in 2020

Sheet _xltb_storage_ (hidden)
A1: XL Toolbox Settings
B2: export_preset | C2: <?xml version="1.0" encoding="utf-16"?> <Preset xmlns:xsi="http://www.w3.org/2001/XMLSchema-instance" xmlns:xsd="http://www.w3.org/2001/XMLSchema"> <Name>Png, 600 dpi, RGB, Transparente Leinwand</Name> <Dpi>600</Dpi> <FileType>Png</FileType> <ColorSpace>Rgb</ColorSpace> <Transparency>TransparentCanvas</Transparency> <UseColorProfile>false</UseColorProfile> <ColorProfile>sRGB Color Space Profile</ColorProfile> </Preset>
B3: export_path | C3: E:\Klima\Veröffentlichungen\Website\GP.png

Sheet global path
B2: Which global path will you select? | C2: 3 | E2: input fields
B4: GtCO2 | C4: number: | D4: 1 | F4: 2 | H4: 3 | J4: 4 | L4: 5 | N4: 6
B5: year | D5: E_t | E5: change rates | F5: =D5 -> E_t | G5: change rates | H5: =F5 -> E_t | I5: change rates | J5: =H5 -> E_t | K5: change rates | L5: =J5 -> E_t | M5: change rates | N5: =L5 -> E_t | O5: change rates
B6: 2018 | C6: =IF($C$2=1,D6,IF($C$2=2,F6,IF($C$2=3,H6,IF($C$2=4,J6,IF($C$2=5,L6,N6))))) -> 41.5 | D6: 41.5 | F6: 41.5 | H6: 41.5 | J6: 41.5 | L6: 41.5 | N6: 41.5
C7: 41.7277171 | D7: 41.7277171 | F7: 41.7277171 | H7: 41.7277171 | J7: 41.7277171 | L7: 41.7277171 | N7: 41.7277171
B8: 2020 | C8: 40.89316276 | D8: 39.41038005 | E8: =IF(AND(D7<>0,D8>0),D8/D7-1,"") -> -0.05553471921 | F8: 41.10180134 | G8: -0.015 | H8: 40.89316276 | I8: =IF(AND(H7<>0,H8>0),H8/H7-1,"") -> -0.02 | J8: 40.47588559 | K8: =IF(AND(J7<>0,J8>0),J8/J7-1,"") -> -0.03 | L8: 41.1226652 | M8: =IF(AND(L7<>0,L8>0),L8/L7-1,"") -> -0.0145 | N8: 41.72250025 | O8: =IF(AND(N7<>0,N8>0),N8/N7-1,"") -> -0.0001250211591
C9: 39.94112655 | D9: 37.22173566 | E9: -0.05553471921 | F9: 40.41877166 | G9: -0.01661799886 | H9: 39.94112655 | I9: -0.02328106093 | J9: 39.25601465 | K9: -0.03013821481 | L9: 40.51680256 | M9: -0.01473305884 | N9: 41.32484684 | O9: -0.00953091041
C10: 38.88020548 | D10: 35.15463702 | E10: -0.05553471921 | F10: 39.67464082 | G10: -0.01841052573 | H10: 38.88020548 | I10: -0.02656212185 | J10: 38.05663116 | K10: -0.03055285924 | L10: 39.89153772 | M10: -0.01543223535 | N10: 40.44885506 | O10: -0.02119770178
C11: 37.7198964 | D11: 33.20233413 | E11: -0.05553471921 | F11: 38.86542072 | G11: -0.02039640637 | H11: 37.7198964 | I11: -0.02984318278 | J11: 36.86759232 | K11: -0.03124393328 | L11: 39.22943675 | M11: -0.01659752954 | N11: 39.21192883 | O11: -0.03058000613
C12: 36.47045336 | D12: 31.35845182 | E12: -0.05553471921 | F12: 37.98719835 | G12: -0.02259649718 | H12: 36.47045336 | I12: -0.03312424371 | J12: 35.68003419 | K12: -0.03221143695 | L12: 38.51432564 | M12: -0.01822894141 | N12: 37.71054408 | O12: -0.03828897968
C13: 35.14273539 | D13: 29.61696901 | E13: -0.05553471921 | F13: 37.03623047 | G13: -0.02503390429 | H13: 35.14273539 | I13: -0.03640530464 | J13: 34.48634544 | K13: -0.03345537024 | L13: 37.73146532 | M13: -0.02032647095 | N13: 36.02353921 | O13: -0.04473562805
C14: 33.74804795 | D14: 27.97219895 | E14: -0.05553471921 | F14: 36.00905927 | G14: -0.02773422619 | H14: 33.74804795 | I14: -0.03968636556 | J14: 33.28016022 | K14: -0.03497573314 | L14: 36.86778762 | M14: -0.02289011817 | N14: 34.21492191 | O14: -0.05020654096
C15: 32.29798118 | D15: 26.41877073 | E15: -0.05553471921 | F15: 34.90265131 | G15: -0.0307258226 | H15: 32.29798118 | I15: -0.04296742649 | J15: 32.05636468 | K15: -0.03677252566 | L15: 35.91217888 | M15: -0.02591988306 | N15: 32.33626069 | O15: -0.05490765773
C16: 30.8042484 | D16: 24.95161172 | E16: -0.05553471921 | F16: 33.71456114 | G16: -0.03404011232 | H16: 30.8042484 | I16: -0.04624848742 | J16: 30.81111122 | K16: -0.0388457478 | L16: 34.85579464 | M16: -0.02941576563 | N16: 30.42871968 | O16: -0.05899077273
C17: 29.27852789 | D17: 23.56593097 | E17: -0.05553471921 | F17: 32.44312087 | G17: -0.03771190317 | H17: 29.27852789 | I17: -0.04952954835 | J17: 29.54183518 | K17: -0.04119539956 | L17: 33.69238609 | M17: -0.03337776588 | N17: 28.52478762 | O17: -0.06257023244
B18: 2030 | C18: 27.73231099 | D18: 22.25720361 | E18: -0.05553471921 | F18: 31.08765515 | G18: -0.04177975759 | H18: 27.73231099 | I18: -0.05281060927 | J18: 28.24726822 | K18: -0.04382148094 | L18: 32.41861566 | M18: -0.0378058838 | N18: 26.64974457 | O18: -0.06573381263
C19: 26.17675935 | D19: 21.02115606 | E19: -0.05553471921 | F19: 29.64871958 | G19: -0.04628639759 | H19: 26.17675935 | I19: -0.0560916702 | J19: 26.92744308 | K19: -0.04672399194 | L19: 31.0343369 | M19: -0.0427001194 | N19: 24.82290425 | O19: -0.06855001246
C20: 24.62257366 | D20: 19.85375206 | E20: -0.05553471921 | F20: 28.12835834 | G20: -0.05127915347 | H20: 24.62257366 | I20: -0.05937273113 | J20: 25.58368471 | K20: -0.04990293256 | L20: 29.542812 | M20: -0.04806047267 | N20: 23.05866422 | O20: -0.07107307077
C21: 23.07987605 | D21: 18.75117951 | E21: -0.05553471921 | F21: 26.53037334 | G21: -0.05681046092 | H21: 23.07987605 | I21: -0.06265379206 | J21: 24.21858271 | K21: -0.0533583028 | L21: 27.95084015 | M21: -0.05388694362 | N21: 21.36739206 | O21: -0.07334649343
C22: 21.55810781 | D22: 17.70983802 | E22: -0.05553471921 | F22: 24.86059378 | G22: -0.06293841163 | H22: 21.55810781 | I22: -0.06593485298 | J22: 22.83594134 | K22: -0.05709010265 | L22: 26.26877167 | M22: -0.06017953225 | N22: 19.7561714 | O22: -0.07540558306
C23: 20.06594368 | D23: 16.72632714 | E23: -0.05553471921 | F23: 23.12713012 | G23: -0.0697273635 | H23: 20.06594368 | I23: -0.06921591391 | J23: 21.44070341 | K23: -0.06109833212 | L23: 24.51038636 | M23: -0.06693823855 | N23: 18.22942859 | O23: -0.07727928541
C24: 18.61122347 | D24: 15.79743526 | E24: -0.05553471921 | F24: 21.34059131 | G24: -0.07724861646 | H24: 18.61122347 | I24: -0.07249697484 | J24: 20.03884609 | K24: -0.06538299122 | L24: 22.69262104 | M24: -0.07416306253 | N24: 16.78945762 | O24: -0.0789915586
C25: 17.20090151 | D25: 14.92012913 | E25: -0.05553471921 | F25: 19.51423873 | G25: -0.08558116133 | H25: 17.20090151 | I25: -0.07577803576 | J25: 18.63724744 | K25: -0.06994407993 | L25: 20.83513915 | M25: -0.08185400418 | N25: 15.43685857 | O25: -0.080562403
C26: 15.84101377 | D26: 14.09154395 | E26: -0.05553471921 | F26: 17.66404478 | G26: -0.0948125094 | H26: 15.84101377 | I26: -0.07905909669 | J26: 17.24352428 | K26: -0.07478159826 | L26: 18.95974611 | M26: -0.09001106352 | N26: 14.17090269 | O26: -0.08200864607
C27: 14.5366622 | D27: 13.30897401 | E27: -0.05553471921 | F27: 15.80862038 | G27: -0.1050396115 | H27: 14.5366622 | I27: -0.08234015762 | J27: 15.86584349 | K27: -0.07989554621 | L27: 17.08966596 | M27: -0.09863424052 | N27: 12.98983522 | O27: -0.08334454756
B28: 2040 | C28: 13.29201547 | D28: 12.56986388 | E28: -0.05553471921 | F28: 13.96897318 | G28: -0.1163698763 | H28: 13.29201547 | I28: -0.08562121855 | J28: 14.51271037 | K28: -0.08528592378 | L28: 15.24870672 | M28: -0.1077235352 | N28: 11.89112545 | O28: -0.08458227126
C29: 12.110325 | D29: 11.87180002 | E29: -0.05553471921 | F29: 12.16806106 | G29: -0.128922298 | H29: 12.110325 | I29: -0.08890227947 | J29: 13.19273973 | K29: -0.09095273096 | L29: 13.46035445 | M29: -0.1172789476 | N29: 10.87167244 | O29: -0.08573225647
C30: 10.99395478 | D30: 11.21250294 | E30: -0.05553471921 | F30: 10.43011263 | G30: -0.1428287068 | H30: 10.99395478 | I30: -0.0921833404 | J30: 11.91441645 | K30: -0.09689596777 | L30: 11.7468449 | M30: -0.1273004776 | N30: 9.927973076 | O30: -0.08680351312
C31: 9.944423473 | D31: 10.58981973 | E31: -0.05553471921 | F31: 8.779702173 | G31: -0.1582351524 | H31: 9.944423473 | I31: -0.09546440133 | J31: 10.68585384 | K31: -0.1031156342 | L31: 10.12826916 | M31: -0.1377881253 | N31: 9.056258735 | O31: -0.08780385832
C32: 8.96245678 | D32: 10.00171707 | E32: -0.05553471921 | F32: 7.240590191 | G32: -0.1753034387 | H32: 8.96245678 | I32: -0.09874546226 | J32: 9.514558912 | K32: -0.1096117302 | L32: 8.621771256 | M32: -0.1487418907 | N32: 8.252605362 | O32: -0.08874010744
C33: 8.048048476 | D33: 9.446274519 | E33: -0.05553471921 | F33: 5.83437473 | G33: -0.194212823 | H33: 8.048048476 | I33: -0.1020265232 | J33: 8.407214053 | K33: -0.1163842559 | L33: 7.240893079 | M33: -0.1601617738 | N33: 7.51302148 | O33: -0.08961822958
C34: 7.200527934 | D34: 8.921678316 | E34: -0.05553471921 | F34: 4.57903959 | G34: -0.215161898 | H34: 7.200527934 | I34: -0.1053075841 | J34: 7.369484625 | K34: -0.1234332112 | L34: 5.995113539 | M34: -0.1720477745 | N34: 6.83351771 | O34: -0.09044347498
C35: 6.418632362 | D35: 8.426215416 | E35: -0.05553471921 | F35: 3.487530817 | G35: -0.2383706783 | H35: 6.418632362 | I35: -0.108588645 | J35: 6.405861162 | K35: -0.1307585961 | L35: 4.889615245 | M35: -0.1843998929 | N35: 6.210160944 | O35: -0.09122048005
C36: 5.700581847 | D36: 7.958267909 | E36: -0.05553471921 | F36: 2.566533528 | G36: -0.2640829106 | H36: 5.700581847 | I36: -0.111869706 | J36: 5.519543581 | K36: -0.1383604106 | L36: 3.925294475 | M36: -0.197218129 | N36: 5.639115813 | O36: -0.09195335457
C37: 5.044155476 | D37: 7.516307735 | E37: -0.05553471921 | F37: 1.81564632 | G37: -0.2925686338 | H37: 5.044155476 | I37: -0.1151507669 | J37: 4.712372953 | K37: -0.1462386547 | L37: 3.099010242 | M37: -0.2105024828 | N37: 5.116675674 | O37: -0.09264575436
B38: 2050 | C38: 4.446766923 | D38: 7.098891696 | E38: -0.05553471921 | F38: 1.227146299 | G38: -0.3241270147 | H38: 4.446766923 | I38: -0.1184318278 | J38: 3.984814008 | K38: -0.1543933285 | L38: 2.40404804 | M38: -0.2242529542 | N38: 4.639285012 | O38: -0.09330094228
C39: 3.905538075 | D39: 6.704656739 | E39: -0.05553471921 | F39: 0.7864909592 | G39: -0.3590894907 | H39: 3.905538075 | I39: -0.1217128887 | J39: 3.335988931 | K39: -0.1628244319 | L39: 1.830755802 | M39: -0.2384695433 | N39: 4.203554829 | O39: -0.09392183967
C40: 3.417369445 | D40: 6.332315509 | E40: =IF(AND(D39<>0,D40>0),D40/D39-1,"") -> -0.05553471921 | F40: 0.47360657 | G40: =IF(AND(F39<>0,F40>0),F40/F39-1,"") -> -0.3978232497 | H40: 3.417369445 | I40: -0.1249939497 | J40: 2.763760195 | K40: -0.1715319649 | L40: 1.367295851 | M40: -0.2531522501 | N40: 3.806272365 | O40: -0.09451106987
C41: 2.979006344 | D41: 5.980652145 | E41: -0.05553471921 | F41: 0.2648715371 | G41: -0.4407350872 | H41: 2.979006344 | I41: -0.1282750106 | J41: 2.26485746 | K41: -0.1805159275 | L41: 1.000448905 | M41: -0.2683010746 | N41: 3.444406263 | O41: -0.09507099529
C42: 2.587099972 | D42: 5.648518308 | E42: -0.05553471921 | F42: 0.1355412076 | G42: -0.4882756783 | H42: 2.587099972 | I42: -0.1315560715 | J42: 1.835041146 | K42: -0.1897763197 | L42: 0.716405437 | M42: -0.2839160167 | N42: 3.115108111 | O42: -0.09560374905
C43: 2.23826283 | D43: 5.33482943 | E43: -0.05553471921 | F43: 0.06222096248 | G43: -0.5409443109 | H43: 2.23826283 | I43: -0.1348371325 | J43: 1.469293331 | K43: -0.1993131416 | L43: 0.5014859003 | M43: -0.2999970766 | N43: 2.815711139 | O43: -0.09611126215
C44: 1.929118012 | D44: 5.038561175 | E44: -0.05553471921 | F44: 0 | H44: 1.929118012 | I44: -0.1381181934 | J44: 1.162025316 | K44: -0.209126393 | L44: 0.34274342 | M44: -0.3165442541 | N44: 2.543726714 | O44: -0.09659528684
C45: 1.656342164 | D45: 4.758746095 | E45: -0.05553471921 | F45: 0 | H45: 1.656342164 | I45: -0.1413992543 | J45: 0.9072906883 | K45: -0.2192160741 | L45: 0.2284187648 | M45: -0.3335575492 | N45: 2.29683917 | O45: -0.09705741686
C46: 1.416702057 | D46: 4.494470467 | E46: -0.05553471921 | F46: 0 | H46: 1.416702057 | I46: -0.1446803152 | J46: 0.6989929098 | K46: -0.2295821848 | L46: 0.1482353355 | M46: -0.3510369621 | N46: 2.072899406 | O46: -0.09749910494
C47: 1.207084871 | D47: 4.244871312 | E47: -0.05553471921 | F47: 0 | H47: 1.207084871 | I47: -0.1479613762 | J47: 0.5310775302 | K47: -0.2402247252 | L47: 0.09353909194 | M47: -0.3689824926 | N47: 1.869917618 | O47: -0.09792167809
B48: 2060 | C48: 1.024522414 | D48: 4.009133575 | E48: -0.05553471921 | F48: 0 | H48: 1.024522414 | I48: -0.1512424371 | J48: 0.3977007568 | K48: -0.2511436951 | L48: 0.03884284834 | M48: -0.5847420845 | N48: 1.686055442 | O48: -0.09832635089
C49: 0.8662096264 | D49: 3.786487468 | E49: -0.05553471921 | F49: 0 | H49: 0.8662096264 | I49: -0.154523498 | J49: 0.2933683003 | K49: -0.2623390947 | L49: -0.01585339526 | N49: 1.519617765 | O49: -0.09871423713
C50: 0.7295177983 | D50: 3.57620595 | E50: -0.05553471921 | F50: 0 | H50: 0.7295177983 | I50: -0.1578045589 | J50: 0.213040855 | K50: -0.2738109238 | L50: -0.07054963886 | N50: 1.369044372 | O50: -0.09908636009
C51: 0.6120029716 | D51: 3.377602356 | E51: -0.05553471921 | F51: 0 | H51: 0.6120029716 | I51: -0.1610856199 | J51: 0.1522050826 | K51: -0.2855591827 | L51: -0.1252458825 | N51: 1.232901587 | O51: -0.09944366156
C52: 0.5114100745 | D52: 3.190028158 | E52: -0.05553471921 | F52: 0 | H52: 0.5114100745 | I52: -0.1643666808 | J52: 0.1069113049 | K52: -0.2975838711 | L52: -0.1799421261 | N52: 1.109874024 | O52: -0.09978700973
C53: 0.4256733304 | D53: 3.01287084 | E53: -0.05553471921 | F53: 0 | H53: 0.4256733304 | I53: -0.1676477417 | J53: 0.07378109635 | K53: -0.3098849891 | L53: -0.2346383697 | N53: 0.9987565378 | O53: -0.1001172063
C54: 0.3529134977 | D54: 2.845551904 | E54: -0.05553471921 | F54: 0 | H54: 0.3529134977 | I54: -0.1709288027 | J54: 0.04065088779 | K54: -0.4490338338 | L54: -0.2893346133 | N54: 0.8984464322 | O54: -0.1004349927
C55: 0.2914324854 | D55: 2.678232968 | E55: -0.05880017014 | F55: 0 | H55: 0.2914324854 | I55: -0.1742098636 | J55: 0.007520679236 | K55: -0.8149934812 | L55: -0.3440308569 | N55: 0.8079359901 | O55: -0.1007410557
C56: 0.2397058642 | D56: 2.510914032 | E56: -0.06247363023 | F56: 0 | H56: 0.2397058642 | I56: -0.1774909245 | J56: 0 | L56: -0.3987271005 | N56: 0.7263053433 | O56: -0.1010360323
C57: 0.1963737592 | D57: 2.343595096 | E57: -0.06663666457 | F57: 0 | H57: 0.1963737592 | I57: -0.1807719854 | J57: 0 | L57: -0.4534233441 | N57: 0.6527157126 | O57: -0.101320514
B58: 2070 | C58: 0.1602305706 | D58: 2.176276159 | E58: -0.07139413136 | F58: 0 | H58: 0.1602305706 | I58: -0.1840530464 | J58: 0 | L58: -0.5081195877 | N58: 0.5864030262 | O58: -0.1015950513
C59: 0.1302139197 | D59: 2.008957223 | E59: -0.07688313607 | F59: 0 | H59: 0.1302139197 | I59: -0.1873341073 | J59: 0 | L59: -0.5628158313 | N59: 0.5266719222 | O59: -0.1018601566
C60: 0.1053931715 | D60: 1.841638287 | E60: -0.08328646034 | F60: 0 | H60: 0.1053931715 | I60: -0.1906151682 | J60: 0 | L60: -0.6175120749 | N60: 0.4728901301 | O60: -0.1021163077
C61: 0.08495783294 | D61: 1.674319351 | E61: -0.09085331102 | F61: 0 | H61: 0.08495783294 | I61: -0.1938962291 | J61: 0 | L61: -0.6722083185 | N61: 0.4244832281 | O61: -0.1023639508
C62: 0.06452249442 | D62: 1.507000415 | E62: -0.09993251048 | F62: 0 | H62: 0.06452249442 | I62: -0.2405350727 | J62: 0 | L62: -0.7269045621 | N62: 0.380929762 | O62: -0.1026035028
C63: 0.04408715589 | D63: 1.339681479 | E63: -0.111027797 | F63: 0 | H63: 0.04408715589 | I63: -0.3167164988 | J63: 0 | L63: -0.7816008057 | N63: 0.3417567152 | O63: -0.1028353539
C64: 0.02365181737 | D64: 1.172362543 | E64: -0.1248945654 | F64: 0 | H64: 0.02365181737 | I64: -0.4635213616 | J64: 0 | L64: -0.8362970493 | N64: 0.3065353127 | O64: -0.1030598695
C65: =IF($C$2=1,D65,IF($C$2=2,F65,IF($C$2=3,H65,IF($C$2=4,J65,IF($C$2=5,L65,N65))))) -> 0.00321647884 | D65: 1.005043607 | E65: -0.142719449 | F65: 0 | H65: 0.00321647884 | I65: -0.8640071166 | J65: 0 | L65: -0.8909932929 | N65: 0.2748771449 | O65: -0.1032773924
C66: 0 | D66: 0.8377246706 | E66: -0.1664792801 | F66: 0 | H66: 0 | J66: 0 | L66: -0.9456895365 | N66: 0.2464305918 | O66: -0.1034882443
C67: 0 | D67: 0.6704057345 | E67: -0.199730224 | F67: 0 | H67: 0 | J67: 0 | L67: -1.00038578 | N67: 0.2208775316 | O67: -0.1036927273
B68: 2080 | C68: 0 | D68: 0.5030867984 | E68: -0.2495786171 | F68: 0 | H68: 0 | J68: 0 | L68: -1.055082024 | N68: 0.1979303162 | O68: -0.1038911258
C69: 0 | D69: 0.3357678623 | E69: -0.3325846288 | F69: 0 | H69: 0 | J69: 0 | L69: -1.109778267 | N69: 0.1773289951 | O69: -0.1040837074
C70: 0 | D70: 0.1684489262 | E70: -0.4983173045 | F70: 0 | H70: 0 | J70: 0 | L70: -1.164474511 | N70: 0.1588387724 | O70: -0.1042707241
C71: 0 | D71: 0.001129990136 | E71: -0.9932917938 | F71: 0 | H71: 0 | J71: 0 | L71: -1.219170754 | N71: 0.1422476792 | O71: -0.1044524138
C72: 0 | D72: 0 | F72: 0 | H72: 0 | I72: =IF(AND(H71<>0,H72>0),H72/H71-1,"") ->  | J72: 0 | K72: =IF(AND(J71<>0,J72>0),J72/J71-1,"") ->  | L72: -1.273866998 | M72: =IF(AND(L71<>0,L72>0),L72/L71-1,"") ->  | N72: 0.1273644467 | O72: =IF(AND(N71<>0,N72>0),N72/N71-1,"") -> -0.1046290008
C73: 0 | D73: 0 | F73: 0 | H73: 0 | J73: 0 | L73: -1.328563242 | N73: 0.1140165638 | O73: -0.1048006972
C74: 0 | D74: 0 | F74: 0 | H74: 0 | J74: 0 | L74: -1.383259485 | N74: 0.102048507 | O74: -0.1049677033
C75: 0 | D75: 0 | F75: 0 | H75: 0 | J75: 0 | L75: -1.437955729 | N75: 0.09132012617 | O75: -0.1051302087
C76: 0 | D76: 0 | F76: 0 | H76: 0 | J76: 0 | L76: -1.492651972 | N76: 0.08170517684 | O76: -0.105288393
C77: 0 | D77: 0 | F77: 0 | H77: 0 | J77: 0 | L77: -1.5 | N77: 0.07308998476 | O77: -0.1054424262
B78: 2090 | C78: 0 | D78: 0 | F78: 0 | H78: 0 | J78: 0 | L78: -1.5 | N78: 0.06537223276 | O78: -0.1055924696
C79: 0 | D79: 0 | F79: 0 | H79: 0 | J79: 0 | L79: -1.5 | N79: 0.0584598594 | O79: -0.1057386763
C80: 0 | D80: 0 | F80: 0 | H80: 0 | J80: 0 | L80: -1.5 | N80: 0.05227005982 | O80: -0.1058811916
C81: 0 | D81: 0 | F81: 0 | H81: 0 | J81: 0 | L81: -1.5 | N81: 0.04672838006 | O81: -0.1060201535
C82: 0 | D82: 0 | F82: 0 | H82: 0 | J82: 0 | L82: -1.5 | N82: 0.04176789648 | O82: -0.1061556932
C83: 0 | D83: 0 | F83: 0 | H83: 0 | J83: 0 | L83: -1.5 | N83: 0.03732847298 | O83: -0.1062879358
C84: 0 | D84: 0 | F84: 0 | H84: 0 | J84: 0 | L84: -1.5 | N84: 0.03335608888 | O84: -0.1064169999
C85: 0 | D85: 0 | F85: 0 | H85: 0 | J85: 0 | L85: -1.5 | N85: 0.02980223114 | O85: -0.1065429989
C86: 0 | D86: 0 | F86: 0 | H86: 0 | J86: 0 | L86: -1.5 | N86: 0.02662334514 | O86: -0.1066660406
C87: 0 | D87: 0 | F87: 0 | H87: 0 | J87: 0 | L87: -1.5 | N87: 0.02378033853 | O87: -0.1067862281
B88: 2100 | C88: 0 | D88: 0 | F88: 0 | H88: 0 | J88: 0 | L88: -1.5 | N88: 0.02123813332 | O88: -0.1069036593
B89: Sum 2020 - 2100 | C89: =SUM(C8:C88) -> 683.9662054 | D89: =SUM(D8:D88) -> 684.0339846 | F89: =SUM(F8:F88) -> 683.6842232 | H89: =SUM(H8:H88) -> 683.9662054 | J89: =SUM(J8:J88) -> 684.0241356 | L89: =SUM(L8:L88) -> 683.5463327 | N89: =SUM(N8:N88) -> 683.8242369
B90: Sum 2020 - 2050 | C90: =SUM(C8:C38) -> 656.7636464 | D90: =SUM(D8:D38) -> 588.923898 | F90: =SUM(F8:F38) -> 681.961492 | H90: =SUM(H8:H38) -> 656.7636464 | J90: =SUM(J8:J38) -> 667.7706291 | L90: =SUM(L8:L38) -> 716.3972365 | N90: =SUM(N8:N38) -> 641.1696751
B91: Sum 2018 - 2100 | C91: =SUM(C6:C88) -> 767.1939225 | D91: =SUM(D6:D88) -> 767.2617017 | F91: =SUM(F6:F88) -> 766.9119403 | H91: =SUM(H6:H88) -> 767.1939225 | J91: =SUM(J6:J88) -> 767.2518527 | L91: =SUM(L6:L88) -> 766.7740498 | N91: =SUM(N6:N88) -> 767.051954

Sheet RF
A1: Regensburg Formula | G1: source: | I1: www.save-the-climate.info | O1: Climate Policy, Volume 17, 2017 - Issue 5: The Regensburg Model: reference values for the (I)NDCs based on converging per capita emissions
A2: RF | G2: convergence period: 2020 - 2050
A3: Sargl/Wolfsteiner/Wittmann
B5: Country A | E5: Country B | H5: Country C | K5: Global
A6: 2050 | B6: EACY | C6: ='global path'!$C$38/$K40*B40 -> 0.7733507692 | D6: Gt | E6: EBCY | F6: ='global path'!$C$38/$K40*E40 -> 2.577835897 | G6: Gt | H6: ECCY | I6: ='global path'!$C$38/$K40*H40 -> 1.095580256 | J6: Gt | K6: ECY | L6: =C6+F6+I6 -> 4.446766923 | M6: Gt
A7: Year t | B7: Popu-lation Pit | C7: Eit | D7: Per capita | E7: Popu-lation Pit | F7: Eit | G7: Per capita | H7: Popu-lation Pit | I7: Eit | J7: Per capita | K7: Popu-lation Pt | L7: Et | M7: Per capita | N7: Ct
B8: bn | C8: Gt | D8: t | E8: bn | F8: Gt | G8: t | H8: bn | I8: Gt | J8: t | K8: bn | L8: Gt | M8: t
B9: ='input data'!C6 -> 1.2 | C9: ='input data'!C8 -> 21 | D9: =C9/B9 -> 17.5 | E9: ='input data'!D6 -> 4 | F9: ='input data'!D8 -> 19.5 | G9: =F9/E9 -> 4.875 | H9: =K9-E9-B9 -> 1.7 | I9: ='global path'!$C$7-C9-F9 -> 1.227717101 | J9: =I9/H9 -> 0.7221865302 | K9: ='input data'!F6 -> 6.9 | L9: =I9+F9+C9 -> 41.7277171 | M9: =L9/K9 -> 6.047495232 | N9: =('global path'!$C$7-'global path'!C7)/('global path'!$C$7-'global path'!$C$38) -> 0
A10: 2020 | B10: =B$9*(B$40/B$9)^(($A10-2019)/31) -> 1.2 | C10: =(1-$N10)*C$9+$N10*C$6 -> 20.54721546 | D10: =C10/B10 -> 17.12267955 | E10: =E$9*(E$40/E$9)^(($A10-2019)/31) -> 4 | F10: =(1-$N10)*F$9+$N10*F$6 -> 19.12118815 | G10: =F10/E10 -> 4.780297039 | H10: =H$9*(H$40/H$9)^(($A10-2019)/31) -> 1.7 | I10: =(1-$N10)*I$9+$N10*I$6 -> 1.224759146 | J10: =I10/H10 -> 0.7204465566 | K10: =B10+E10+H10 -> 6.9 | L10: =I10+F10+C10 -> 40.89316276 | M10: =L10/K10 -> 5.926545327 | N10: =('global path'!$C$7-'global path'!C8)/('global path'!$C$7-'global path'!$C$38) -> 0.02238554377
B11: 1.2 | C11: =(1-N11)*$C$9+N11*$C$6 -> 20.03069154 | D11: 16.69224295 | E11: 4 | F11: =(1-$N11)*F$9+$N11*F$6 -> 18.68905021 | G11: 4.672262554 | H11: 1.7 | I11: =(1-$N11)*I$9+$N11*I$6 -> 1.221384794 | J11: 0.7184616434 | K11: =B11+E11+H11 -> 6.9 | L11: =I11+F11+C11 -> 39.94112655 | M11: 5.788569065 | N11: =('global path'!$C$7-'global path'!C9)/('global path'!$C$7-'global path'!$C$38) -> 0.04792234498
B12: 1.2 | C12: 19.45509252 | D12: 16.2125771 | E12: 4 | F12: 18.20748844 | G12: 4.55187211 | H12: 1.7 | I12: 1.217624515 | J12: 0.7162497148 | K12: 6.9 | L12: 38.88020548 | M12: 5.634812388 | N12: =('global path'!$C$7-'global path'!C10)/('global path'!$C$7-'global path'!$C$38) -> 0.07637980289
B13: 1.2 | C13: 18.82557088 | D13: 15.68797574 | E13: 4 | F13: 17.68081354 | G13: 4.420203386 | H13: 1.7 | I13: 1.21351197 | J13: 0.7138305707 | K13: 6.9 | L13: 37.7198964 | M13: 5.466651652 | N13: =('global path'!$C$7-'global path'!C11)/('global path'!$C$7-'global path'!$C$38) -> 0.1075031802
B14: 1.2 | C14: 18.14768993 | D14: 15.12307494 | E14: 4 | F14: 17.11367992 | G14: 4.278419981 | H14: 1.7 | I14: 1.209083503 | J14: 0.7112255901 | K14: 6.9 | L14: 36.47045336 | M14: 5.28557295 | N14: =('global path'!$C$7-'global path'!C12)/('global path'!$C$7-'global path'!$C$38) -> 0.141017429
A15: 2025 | B15: 1.2 | C15: 17.42734119 | D15: 14.52278432 | E15: 4 | F15: 16.5110166 | G15: 4.127754151 | H15: 1.7 | I15: 1.204377602 | J15: 0.708457413 | K15: 6.9 | L15: 35.14273539 | M15: 5.093150057 | N15: =('global path'!$C$7-'global path'!C13)/('global path'!$C$7-'global path'!$C$38) -> 0.1766312736
B16: 1.2 | C16: 16.67065839 | D16: 13.89221532 | E16: 4 | F16: 15.87795522 | G16: 3.969488806 | H16: 1.7 | I16: 1.199434338 | J16: 0.7055496103 | K16: 6.9 | L16: 33.74804795 | M16: 4.891021442 | N16: =('global path'!$C$7-'global path'!C14)/('global path'!$C$7-'global path'!$C$38) -> 0.214041464
B17: 1.2 | C17: 15.88392973 | D17: 13.23660811 | E17: 4 | F17: 15.21975666 | G17: 3.804939165 | H17: 1.7 | I17: 1.194294789 | J17: 0.7025263466 | K17: 6.9 | L17: 32.29798118 | M17: 4.680866837 | N17: =('global path'!$C$7-'global path'!C15)/('global path'!$C$7-'global path'!$C$38) -> 0.2529371134
B18: 1.2 | C18: 15.07351023 | D18: 12.56125853 | E18: 4 | F18: 14.5417377 | G18: 3.635434424 | H18: 1.7 | I18: 1.189000473 | J18: 0.699412043 | K18: 6.9 | L18: 30.8042484 | M18: 4.464383826 | N18: =('global path'!$C$7-'global path'!C16)/('global path'!$C$7-'global path'!$C$38) -> 0.2930040315
B19: 1.2 | C19: 14.2457359 | D19: 11.87144658 | E19: 4 | F19: 13.84919921 | G19: 3.462299802 | H19: 1.7 | I19: 1.183592781 | J19: 0.6962310477 | K19: 6.9 | L19: 29.27852789 | M19: 4.243264912 | N19: =('global path'!$C$7-'global path'!C17)/('global path'!$C$7-'global path'!$C$38) -> 0.3339289678
A20: 2030 | B20: 1.2 | C20: 13.40684133 | D20: 11.17236777 | E20: 4 | F20: 13.14735722 | G20: 3.286839306 | H20: 1.7 | I20: 1.178112443 | J20: 0.6930073192 | K20: 6.9 | L20: 27.73231099 | M20: 4.019175506 | N20: =('global path'!$C$7-'global path'!C18)/('global path'!$C$7-'global path'!$C$38) -> 0.3754036858
B21: 1.2 | C21: 12.56288222 | D21: 10.46906852 | E21: 4 | F21: 12.44127811 | G21: 3.110319528 | H21: 1.7 | I21: 1.172599019 | J21: 0.6897641286 | K21: 6.9 | L21: 26.17675935 | M21: 3.79373324 | N21: =('global path'!$C$7-'global path'!C19)/('global path'!$C$7-'global path'!$C$38) -> 0.417128793
B22: 1.2 | C22: 11.7196642 | D22: 9.766386836 | E22: 4 | F22: 11.73581902 | G22: 2.933954755 | H22: 1.7 | I22: 1.167090436 | J22: 0.6865237859 | K22: 6.9 | L22: 24.62257366 | M22: 3.568488936 | N22: =('global path'!$C$7-'global path'!C20)/('global path'!$C$7-'global path'!$C$38) -> 0.4588172609
B23: 1.2 | C23: 10.88267901 | D23: 9.068899172 | E23: 4 | F23: 11.03557447 | G23: 2.758893618 | H23: 1.7 | I23: 1.161622571 | J23: 0.6833073949 | K23: 6.9 | L23: 23.07987605 | M23: 3.344909572 | N23: =('global path'!$C$7-'global path'!C21)/('global path'!$C$7-'global path'!$C$38) -> 0.5001975798
B24: 1.2 | C24: 10.05704897 | D24: 8.380874141 | E24: 4 | F24: 10.34482996 | G24: 2.586207489 | H24: 1.7 | I24: 1.156228888 | J24: 0.6801346397 | K24: 6.9 | L24: 21.55810781 | M24: 3.124363451 | N24: =('global path'!$C$7-'global path'!C22)/('global path'!$C$7-'global path'!$C$38) -> 0.5410165028
A25: 2035 | B25: 1.2 | C25: 9.247480533 | D25: 7.706233777 | E25: 4 | F25: 9.667523015 | G25: 2.416880754 | H25: 1.7 | I25: 1.150940131 | J25: 0.6770236066 | K25: 6.9 | L25: 20.06594368 | M25: 2.90810778 | N25: =('global path'!$C$7-'global path'!C23)/('global path'!$C$7-'global path'!$C$38) -> 0.5810413447
B26: 1.2 | C26: 8.458227165 | D26: 7.048522637 | E26: 4 | F26: 9.007212211 | G26: 2.251803053 | H26: 1.7 | I26: 1.145784089 | J26: 0.6739906408 | K26: 6.9 | L26: 18.61122347 | M26: 2.697278763 | N26: =('global path'!$C$7-'global path'!C24)/('global path'!$C$7-'global path'!$C$38) -> 0.6200618151
B27: 1.2 | C27: 7.693061916 | D27: 6.41088493 | E27: 4 | F27: 8.367054182 | G27: 2.091763545 | H27: 1.7 | I27: 1.140785411 | J27: 0.6710502415 | K27: 6.9 | L27: 17.20090151 | M27: 2.492884277 | N27: =('global path'!$C$7-'global path'!C25)/('global path'!$C$7-'global path'!$C$38) -> 0.6578913755
B28: 1.2 | C28: 6.955259577 | D28: 5.796049648 | E28: 4 | F28: 7.749788707 | G28: 1.937447177 | H28: 1.7 | I28: 1.135965489 | J28: 0.6682149933 | K28: 6.9 | L28: 15.84101377 | M28: 2.295799097 | N28: =('global path'!$C$7-'global path'!C26)/('global path'!$C$7-'global path'!$C$38) -> 0.6943681211
B29: 1.2 | C29: 6.247588191 | D29: 5.206323492 | E29: 4 | F29: 7.157731605 | G29: 1.789432901 | H29: 1.7 | I29: 1.131342406 | J29: 0.6654955331 | K29: 6.9 | L29: 14.5366622 | M29: 2.106762638 | N29: =('global path'!$C$7-'global path'!C27)/('global path'!$C$7-'global path'!$C$38) -> 0.7293552007
A30: 2040 | B30: 1.2 | C30: 5.572309456 | D30: 4.643591214 | E30: 4 | F30: 6.592775075 | G30: 1.648193769 | H30: 1.7 | I30: 1.126930939 | J30: 0.6629005523 | K30: 6.9 | L30: 13.29201547 | M30: 1.926379054 | N30: =('global path'!$C$7-'global path'!C28)/('global path'!$C$7-'global path'!$C$38) -> 0.7627407964
B31: 1.2 | C31: 4.931187419 | D31: 4.10932285 | E31: 4 | F31: 6.056394966 | G31: 1.514098741 | H31: 1.7 | I31: 1.122742611 | J31: 0.6604368299 | K31: 6.9 | L31: 12.110325 | M31: 1.755119565 | N31: =('global path'!$C$7-'global path'!C29)/('global path'!$C$7-'global path'!$C$38) -> 0.7944376944
B32: 1.2 | C32: 4.325504663 | D32: 3.604587219 | E32: 4 | F32: 5.549664321 | G32: 1.38741608 | H32: 1.7 | I32: 1.118785801 | J32: 0.6581092946 | K32: 6.9 | L32: 10.99395478 | M32: 1.59332678 | N32: =('global path'!$C$7-'global path'!C30)/('global path'!$C$7-'global path'!$C$38) -> 0.8243824841
B33: 1.2 | C33: 3.756085117 | D33: 3.130070931 | E33: 4 | F33: 5.073272464 | G33: 1.268318116 | H33: 1.7 | I33: 1.115065891 | J33: 0.6559211126 | K33: 6.9 | L33: 9.944423473 | M33: 1.441220793 | N33: =('global path'!$C$7-'global path'!C31)/('global path'!$C$7-'global path'!$C$38) -> 0.8525344305
B34: 1.2 | C34: 3.22332252 | D34: 2.6861021 | E34: 4 | F34: 4.627548805 | G34: 1.156887201 | H34: 1.7 | I34: 1.111585455 | J34: 0.653873797 | K34: 6.9 | L34: 8.96245678 | M34: 1.29890678 | N34: =('global path'!$C$7-'global path'!C32)/('global path'!$C$7-'global path'!$C$38) -> 0.8788740674
A35: 2045 | B35: 1.2 | C35: 2.72721349 | D35: 2.272677908 | E35: 4 | F35: 4.212490517 | G35: 1.053122629 | H35: 1.7 | I35: 1.108344469 | J35: 0.6519673348 | K35: 6.9 | L35: 8.048048476 | M35: 1.166383837 | N35: =('global path'!$C$7-'global path'!C33)/('global path'!$C$7-'global path'!$C$38) -> 0.903401562
B36: 1.2 | C36: 2.267394182 | D36: 1.889495152 | E36: 4 | F36: 3.827793195 | G36: 0.9569482987 | H36: 1.7 | I36: 1.105340557 | J36: 0.6502003278 | K36: 6.9 | L36: 7.200527934 | M36: 1.043554773 | N36: =('global path'!$C$7-'global path'!C34)/('global path'!$C$7-'global path'!$C$38) -> 0.9261349027
B37: 1.2 | C37: 1.843179472 | D37: 1.535982893 | E37: 4 | F37: 3.472883647 | G37: 0.8682209117 | H37: 1.7 | I37: 1.102569243 | J37: 0.6485701432 | K37: 6.9 | L37: 6.418632362 | M37: 0.9302365742 | N37: =('global path'!$C$7-'global path'!C35)/('global path'!$C$7-'global path'!$C$38) -> 0.9471079618
B38: 1.2 | C38: 1.453603675 | D38: 1.211336395 | E38: 4 | F38: 3.146953954 | G38: 0.7867384884 | H38: 1.7 | I38: 1.100024219 | J38: 0.64707307 | K38: 6.9 | L38: 5.700581847 | M38: 0.8261712822 | N38: =('global path'!$C$7-'global path'!C36)/('global path'!$C$7-'global path'!$C$38) -> 0.9663684826
B39: 1.2 | C39: 1.097461841 | D39: 0.914551534 | E39: 4 | F39: 2.848996023 | G39: 0.7122490057 | H39: 1.7 | I39: 1.097697612 | J39: 0.6457044778 | K39: 6.9 | L39: 5.044155476 | M39: 0.7310370255 | N39: =('global path'!$C$7-'global path'!C37)/('global path'!$C$7-'global path'!$C$38) -> 0.9839760374
A40: 2050 | B40: ='input data'!C18 -> 1.2 | C40: 0.7733507692 | D40: 0.6444589743 | E40: ='input data'!D18 -> 4 | F40: 2.577835897 | G40: 0.6444589743 | H40: =K40-E40-B40 -> 1.7 | I40: 1.095580256 | J40: 0.6444589743 | K40: ='input data'!F18 -> 6.9 | L40: 4.446766923 | M40: 0.6444589743 | N40: =('global path'!$C$7-'global path'!C38)/('global path'!$C$7-'global path'!$C$38) -> 1
A41: ∑ | C41: =SUM(C10:C40) -> 305.5087815 | F41: =SUM(F10:F40) -> 315.452663 | I41: =SUM(I10:I40) -> 35.80220185 | L41: =SUM(L10:L40) -> 656.7636464
A43: pop. growth | B43: =B40/B9-1 -> 0 | E43: =E40/E9-1 -> 0 | H43: =H40/H9-1 -> 0 | J43: global path: | L43: ='global path'!C89 -> 683.9662054
L44: =L41-L43 -> -27.20255903
A46: =A40+1 -> 2051 | B46: =B40 -> 1.2 | C46: =B46/$K46*$L46 -> 0.6792240131 | D46: =C46/B46 -> 0.5660200109 | E46: =E40 -> 4 | F46: =E46/$K46*$L46 -> 2.264080044 | G46: =F46/E46 -> 0.5660200109 | H46: =H40 -> 1.7 | I46: =H46/$K46*$L46 -> 0.9622340185 | J46: =I46/H46 -> 0.5660200109 | K46: =B46+E46+H46 -> 6.9 | L46: ='global path'!C39 -> 3.905538075 | M46: =L46/K46 -> 0.5660200109
A47: =A46+1 -> 2052 | B47: =B46 -> 1.2 | C47: =B47/$K47*$L47 -> 0.594325121 | D47: =C47/B47 -> 0.4952709341 | E47: =E46 -> 4 | F47: =E47/$K47*$L47 -> 1.981083737 | G47: =F47/E47 -> 0.4952709341 | H47: =H46 -> 1.7 | I47: =H47/$K47*$L47 -> 0.841960588 | J47: =I47/H47 -> 0.4952709341 | K47: =B47+E47+H47 -> 6.9 | L47: ='global path'!C40 -> 3.417369445 | M47: =L47/K47 -> 0.4952709341
A48: =A47+1 -> 2053 | B48: =B47 -> 1.2 | C48: 0.5180880598 | D48: 0.4317400498 | E48: =E47 -> 4 | F48: 1.726960199 | G48: 0.4317400498 | H48: =H47 -> 1.7 | I48: 0.7339580847 | J48: 0.4317400498 | K48: 6.9 | L48: ='global path'!C41 -> 2.979006344 | M48: 0.4317400498
A49: 2054 | B49: 1.2 | C49: 0.4499304299 | D49: 0.3749420249 | E49: 4 | F49: 1.4997681 | G49: 0.3749420249 | H49: 1.7 | I49: 0.6374014424 | J49: 0.3749420249 | K49: 6.9 | L49: ='global path'!C42 -> 2.587099972 | M49: 0.3749420249
A50: 2055 | B50: 1.2 | C50: 0.3892631009 | D50: 0.3243859174 | E50: 4 | F50: 1.29754367 | G50: 0.3243859174 | H50: 1.7 | I50: 0.5514560597 | J50: 0.3243859174 | K50: 6.9 | L50: ='global path'!C43 -> 2.23826283 | M50: 0.3243859174
A51: 2056 | B51: 1.2 | C51: 0.3354987847 | D51: 0.2795823206 | E51: 4 | F51: 1.118329282 | G51: 0.2795823206 | H51: 1.7 | I51: 0.475289945 | J51: 0.2795823206 | K51: 6.9 | L51: ='global path'!C44 -> 1.929118012 | M51: 0.2795823206
A52: 2057 | B52: 1.2 | C52: 0.2880595067 | D52: 0.2400495889 | E52: 4 | F52: 0.9601983557 | G52: 0.2400495889 | H52: 1.7 | I52: 0.4080843012 | J52: 0.2400495889 | K52: 6.9 | L52: ='global path'!C45 -> 1.656342164 | M52: 0.2400495889
A53: 2058 | B53: 1.2 | C53: 0.2463829665 | D53: 0.2053191387 | E53: 4 | F53: 0.8212765549 | G53: 0.2053191387 | H53: 1.7 | I53: 0.3490425358 | J53: 0.2053191387 | K53: 6.9 | L53: ='global path'!C46 -> 1.416702057 | M53: 0.2053191387
A54: 2059 | B54: 1.2 | C54: 0.2099278037 | D54: 0.1749398364 | E54: 4 | F54: 0.6997593456 | G54: 0.1749398364 | H54: 1.7 | I54: 0.2973977219 | J54: 0.1749398364 | K54: 6.9 | L54: ='global path'!C47 -> 1.207084871 | M54: 0.1749398364
A55: 2060 | B55: 1.2 | C55: 0.178177811 | D55: 0.1484815092 | E55: 4 | F55: 0.5939260368 | G55: 0.1484815092 | H55: 1.7 | I55: 0.2524185656 | J55: 0.1484815092 | K55: 6.9 | L55: ='global path'!C48 -> 1.024522414 | M55: 0.1484815092
A56: 2061 | B56: 1.2 | C56: 0.1506451524 | D56: 0.125537627 | E56: 4 | F56: 0.502150508 | G56: 0.125537627 | H56: 1.7 | I56: 0.2134139659 | J56: 0.125537627 | K56: 6.9 | L56: ='global path'!C49 -> 0.8662096264 | M56: 0.125537627
A57: 2062 | B57: 1.2 | C57: 0.1268726606 | D57: 0.1057272171 | E57: 4 | F57: 0.4229088686 | G57: 0.1057272171 | H57: 1.7 | I57: 0.1797362692 | J57: 0.1057272171 | K57: 6.9 | L57: ='global path'!C50 -> 0.7295177983 | M57: 0.1057272171
A58: 2063 | B58: 1.2 | C58: 0.1064352994 | D58: 0.08869608284 | E58: 4 | F58: 0.3547843313 | G58: 0.08869608284 | H58: 1.7 | I58: 0.1507833408 | J58: 0.08869608284 | K58: 6.9 | L58: ='global path'!C51 -> 0.6120029716 | M58: 0.08869608284
A59: 2064 | B59: 1.2 | C59: 0.08894088252 | D59: 0.0741174021 | E59: 4 | F59: 0.2964696084 | G59: 0.0741174021 | H59: 1.7 | I59: 0.1259995836 | J59: 0.0741174021 | K59: 6.9 | L59: ='global path'!C52 -> 0.5114100745 | M59: 0.0741174021
A60: 2065 | B60: 1.2 | C60: 0.07403014442 | D60: 0.06169178702 | E60: 4 | F60: 0.2467671481 | G60: 0.06169178702 | H60: 1.7 | I60: 0.1048760379 | J60: 0.06169178702 | K60: 6.9 | L60: ='global path'!C53 -> 0.4256733304 | M60: 0.06169178702
A61: 2066 | B61: 1.2 | C61: 0.06137626047 | D61: 0.05114688373 | E61: 4 | F61: 0.2045875349 | G61: 0.05114688373 | H61: 1.7 | I61: 0.08694970234 | J61: 0.05114688373 | K61: 6.9 | L61: ='global path'!C54 -> 0.3529134977 | M61: 0.05114688373
A62: 2067 | B62: 1.2 | C62: 0.05068391051 | D62: 0.04223659209 | E62: 4 | F62: 0.1689463684 | G62: 0.04223659209 | H62: 1.7 | I62: 0.07180220655 | J62: 0.04223659209 | K62: 6.9 | L62: ='global path'!C55 -> 0.2914324854 | M62: 0.04223659209
A63: 2068 | B63: 1.2 | C63: 0.04168797637 | D63: 0.03473998031 | E63: 4 | F63: 0.1389599212 | G63: 0.03473998031 | H63: 1.7 | I63: 0.05905796653 | J63: 0.03473998031 | K63: 6.9 | L63: ='global path'!C56 -> 0.2397058642 | M63: 0.03473998031
A64: 2069 | B64: 1.2 | C64: 0.03415195812 | D64: 0.0284599651 | E64: 4 | F64: 0.1138398604 | G64: 0.0284599651 | H64: 1.7 | I64: 0.04838194066 | J64: 0.0284599651 | K64: 6.9 | L64: ='global path'!C57 -> 0.1963737592 | M64: 0.0284599651
A65: 2070 | B65: 1.2 | C65: 0.02786618619 | D65: 0.02322182182 | E65: 4 | F65: 0.09288728729 | G65: 0.02322182182 | H65: 1.7 | I65: 0.0394770971 | J65: 0.02322182182 | K65: 6.9 | L65: ='global path'!C58 -> 0.1602305706 | M65: 0.02322182182
A66: 2071 | B66: 1.2 | C66: 0.02264589907 | D66: 0.01887158256 | E66: 4 | F66: 0.07548633024 | G66: 0.01887158256 | H66: 1.7 | I66: 0.03208169035 | J66: 0.01887158256 | K66: 6.9 | L66: ='global path'!C59 -> 0.1302139197 | M66: 0.01887158256
A67: 2072 | B67: 1.2 | C67: 0.01832924721 | D67: 0.01527437268 | E67: 4 | F67: 0.06109749071 | G67: 0.01527437268 | H67: 1.7 | I67: 0.02596643355 | J67: 0.01527437268 | K67: 6.9 | L67: ='global path'!C60 -> 0.1053931715 | M67: 0.01527437268
A68: 2073 | B68: 1.2 | C68: 0.01477527529 | D68: 0.01231272941 | E68: 4 | F68: 0.04925091765 | G68: 0.01231272941 | H68: 1.7 | I68: 0.02093164 | J68: 0.01231272941 | K68: 6.9 | L68: ='global path'!C61 -> 0.08495783294 | M68: 0.01231272941
A69: 2074 | B69: 1.2 | C69: 0.01122130338 | D69: 0.009351086147 | E69: 4 | F69: 0.03740434459 | G69: 0.009351086147 | H69: 1.7 | I69: 0.01589684645 | J69: 0.009351086147 | K69: 6.9 | L69: ='global path'!C62 -> 0.06452249442 | M69: 0.009351086147
A70: 2075 | B70: 1.2 | C70: 0.007667331459 | D70: 0.006389442883 | E70: 4 | F70: 0.02555777153 | G70: 0.006389442883 | H70: 1.7 | I70: 0.0108620529 | J70: 0.006389442883 | K70: 6.9 | L70: ='global path'!C63 -> 0.04408715589 | M70: 0.006389442883
A71: 2076 | B71: 1.2 | C71: 0.004113359542 | D71: 0.003427799618 | E71: 4 | F71: 0.01371119847 | G71: 0.003427799618 | H71: 1.7 | I71: 0.005827259351 | J71: 0.003427799618 | K71: 6.9 | L71: ='global path'!C64 -> 0.02365181737 | M71: 0.003427799618
A72: 2077 | B72: 1.2 | C72: 0.0005593876244 | D72: 0.0004661563536 | E72: 4 | F72: 0.001864625415 | G72: 0.0004661563536 | H72: 1.7 | I72: 0.0007924658012 | J72: 0.0004661563536 | K72: 6.9 | L72: ='global path'!C65 -> 0.00321647884 | M72: 0.0004661563536
A73: 2078 | B73: 1.2 | C73: 0 | D73: 0 | E73: 4 | F73: 0 | G73: 0 | H73: 1.7 | I73: 0 | J73: 0 | K73: 6.9 | L73: ='global path'!C66 -> 0 | M73: 0
A74: 2079 | B74: 1.2 | C74: 0 | D74: 0 | E74: 4 | F74: 0 | G74: 0 | H74: 1.7 | I74: 0 | J74: 0 | K74: 6.9 | L74: ='global path'!C67 -> 0 | M74: 0
A75: 2080 | B75: 1.2 | C75: 0 | D75: 0 | E75: 4 | F75: 0 | G75: 0 | H75: 1.7 | I75: 0 | J75: 0 | K75: 6.9 | L75: ='global path'!C68 -> 0 | M75: 0
A76: 2081 | B76: 1.2 | C76: 0 | D76: 0 | E76: 4 | F76: 0 | G76: 0 | H76: 1.7 | I76: 0 | J76: 0 | K76: 6.9 | L76: ='global path'!C69 -> 0 | M76: 0
A77: 2082 | B77: 1.2 | C77: 0 | D77: 0 | E77: 4 | F77: 0 | G77: 0 | H77: 1.7 | I77: 0 | J77: 0 | K77: 6.9 | L77: ='global path'!C70 -> 0 | M77: 0
A78: 2083 | B78: 1.2 | C78: 0 | D78: 0 | E78: 4 | F78: 0 | G78: 0 | H78: 1.7 | I78: 0 | J78: 0 | K78: 6.9 | L78: ='global path'!C71 -> 0 | M78: 0
A79: 2084 | B79: 1.2 | C79: 0 | D79: 0 | E79: 4 | F79: 0 | G79: 0 | H79: 1.7 | I79: 0 | J79: 0 | K79: 6.9 | L79: ='global path'!C72 -> 0 | M79: 0
A80: 2085 | B80: 1.2 | C80: 0 | D80: 0 | E80: 4 | F80: 0 | G80: 0 | H80: 1.7 | I80: 0 | J80: 0 | K80: 6.9 | L80: ='global path'!C73 -> 0 | M80: 0
A81: 2086 | B81: 1.2 | C81: 0 | D81: 0 | E81: 4 | F81: 0 | G81: 0 | H81: 1.7 | I81: 0 | J81: 0 | K81: 6.9 | L81: ='global path'!C74 -> 0 | M81: 0
A82: 2087 | B82: 1.2 | C82: 0 | D82: 0 | E82: 4 | F82: 0 | G82: 0 | H82: 1.7 | I82: 0 | J82: 0 | K82: 6.9 | L82: ='global path'!C75 -> 0 | M82: 0
A83: 2088 | B83: 1.2 | C83: 0 | D83: 0 | E83: 4 | F83: 0 | G83: 0 | H83: 1.7 | I83: 0 | J83: 0 | K83: 6.9 | L83: ='global path'!C76 -> 0 | M83: 0
A84: 2089 | B84: 1.2 | C84: 0 | D84: 0 | E84: 4 | F84: 0 | G84: 0 | H84: 1.7 | I84: 0 | J84: 0 | K84: 6.9 | L84: ='global path'!C77 -> 0 | M84: 0
A85: 2090 | B85: 1.2 | C85: 0 | D85: 0 | E85: 4 | F85: 0 | G85: 0 | H85: 1.7 | I85: 0 | J85: 0 | K85: 6.9 | L85: ='global path'!C78 -> 0 | M85: 0
A86: 2091 | B86: 1.2 | C86: 0 | D86: 0 | E86: 4 | F86: 0 | G86: 0 | H86: 1.7 | I86: 0 | J86: 0 | K86: 6.9 | L86: ='global path'!C79 -> 0 | M86: 0
A87: 2092 | B87: 1.2 | C87: 0 | D87: 0 | E87: 4 | F87: 0 | G87: 0 | H87: 1.7 | I87: 0 | J87: 0 | K87: 6.9 | L87: ='global path'!C80 -> 0 | M87: 0
A88: 2093 | B88: 1.2 | C88: 0 | D88: 0 | E88: 4 | F88: 0 | G88: 0 | H88: 1.7 | I88: 0 | J88: 0 | K88: 6.9 | L88: ='global path'!C81 -> 0 | M88: 0
A89: 2094 | B89: 1.2 | C89: 0 | D89: 0 | E89: 4 | F89: 0 | G89: 0 | H89: 1.7 | I89: 0 | J89: 0 | K89: 6.9 | L89: ='global path'!C82 -> 0 | M89: 0
A90: 2095 | B90: 1.2 | C90: 0 | D90: 0 | E90: 4 | F90: 0 | G90: 0 | H90: 1.7 | I90: 0 | J90: 0 | K90: 6.9 | L90: ='global path'!C83 -> 0 | M90: 0
A91: 2096 | B91: 1.2 | C91: 0 | D91: 0 | E91: 4 | F91: 0 | G91: 0 | H91: 1.7 | I91: 0 | J91: 0 | K91: 6.9 | L91: ='global path'!C84 -> 0 | M91: 0
A92: 2097 | B92: 1.2 | C92: 0 | D92: 0 | E92: 4 | F92: 0 | G92: 0 | H92: 1.7 | I92: 0 | J92: 0 | K92: 6.9 | L92: ='global path'!C85 -> 0 | M92: 0
A93: 2098 | B93: 1.2 | C93: 0 | D93: 0 | E93: 4 | F93: 0 | G93: 0 | H93: 1.7 | I93: 0 | J93: 0 | K93: 6.9 | L93: ='global path'!C86 -> 0 | M93: 0
A94: 2099 | B94: 1.2 | C94: 0 | D94: 0 | E94: 4 | F94: 0 | G94: 0 | H94: 1.7 | I94: 0 | J94: 0 | K94: 6.9 | L94: ='global path'!C87 -> 0 | M94: 0
A95: 2100 | B95: 1.2 | C95: 0 | D95: 0 | E95: 4 | F95: 0 | G95: 0 | H95: 1.7 | I95: 0 | J95: 0 | K95: 6.9 | L95: ='global path'!C88 -> 0 | M95: 0
A96: ∑ | C96: =SUM(C46:C95) -> 4.730879832 | F96: =SUM(F46:F95) -> 15.76959944 | I96: =SUM(I46:I95) -> 6.702079762 | L96: =SUM(L46:L95) -> 27.20255903
A98: 2020-2100 | C98: =C96+C41 -> 310.2396613 | F98: =F96+F41 -> 331.2222625 | I98: =I96+I41 -> 42.50428161 | L98: =L96+L41 -> 683.9662054
J100: global path: | L100: ='global path'!C89 -> 683.9662054
J101: control: | L101: =L98-L100 -> 0
A102: global path: | B102: ='global path'!C2 -> 3 | C102: A | F102: B | I102: C
A103: 2 | C103: 337.4021208 | F103: 321.7725134 | I103: 24.50958905 | L103: =SUM(B103:I103) -> 683.6842232 | M103: RM
A104: 1 | C104: 265.349757 | F104: 346.584846 | I104: 72.0993816 | L104: =SUM(B104:I104) -> 684.0339846 | M104: RM
A105: 3 | C105: 310.2396613 | F105: 331.2222625 | I105: 42.50428161 | L105: =SUM(B105:I105) -> 683.9662054 | M105: RM
A106: 6 | C106: 303.2181659 | F106: 333.5277134 | I106: 47.07835752 | L106: =SUM(B106:I106) -> 683.8242369 | M106: RM
A108: 2 | C108: =$L108*'input data'!$C$11*$L$98+(1-$L108)*'input data'!$C$10*$L$98 -> 337.5412806 | F108: =$L108*'input data'!$D$11*$L$98+(1-$L108)*'input data'!$D$10*$L$98 -> 321.9052268 | I108: =$L108*'input data'!$E$11*$L$98+(1-$L108)*'input data'!$E$10*$L$98 -> 24.51969791 | L108: 0.0296245327 | M108: share population key | O108: solver
A109: 1 | C109: =$L109*'input data'!$C$11*$L$98+(1-$L109)*'input data'!$C$10*$L$98 -> 265.3234642 | F109: =$L109*'input data'!$D$11*$L$98+(1-$L109)*'input data'!$D$10*$L$98 -> 346.5505038 | I109: =$L109*'input data'!$E$11*$L$98+(1-$L109)*'input data'!$E$10*$L$98 -> 72.09223745 | L109: 0.3502164786 | M109: share population key | O109: solver
A110: 3 | C110: =$L110*'input data'!$C$11*$L$98+(1-$L110)*'input data'!$C$10*$L$98 -> 310.2396613 | F110: =$L110*'input data'!$D$11*$L$98+(1-$L110)*'input data'!$D$10*$L$98 -> 331.2222625 | I110: =$L110*'input data'!$E$11*$L$98+(1-$L110)*'input data'!$E$10*$L$98 -> 42.50428161 | L110: 0.1508228698 | M110: share population key | O110: solver
A111: 6 | C111: =$L111*'input data'!$C$11*$L$98+(1-$L111)*'input data'!$C$10*$L$98 -> 303.2695615 | F111: =$L111*'input data'!$D$11*$L$98+(1-$L111)*'input data'!$D$10*$L$98 -> 333.6009004 | I111: =$L111*'input data'!$E$11*$L$98+(1-$L111)*'input data'!$E$10*$L$98 -> 47.09574345 | L111: 0.1817647892 | M111: share population key | O111: solver
A113: 2 | C113: =(C103-C108)^2/C103^2 -> 1.701109142e-07 | F113: =(F103-F108)^2/F103^2 -> 1.701109142e-07 | I113: =(I103-I108)^2/I103^2 -> 1.701109142e-07 | L113: =C113+F113+I113 -> 5.103327427e-07 | M113: square deviation
A114: 1 | C114: =(C104-C109)^2/C104^2 -> 9.818329279e-09 | F114: =(F104-F109)^2/F104^2 -> 9.818329279e-09 | I114: =(I104-I109)^2/I104^2 -> 9.818329279e-09 | L114: =C114+F114+I114 -> 2.945498784e-08 | M114: square deviation
A115: 3 | C115: =(C105-C110)^2/C105^2 -> 0 | F115: =(F105-F110)^2/F105^2 -> 2.945244427e-32 | I115: =(I105-I110)^2/I105^2 -> 0 | L115: =C115+F115+I115 -> 2.945244427e-32 | M115: square deviation
A116: 6 | C116: =(C106-C111)^2/C106^2 -> 2.873034973e-08 | F116: =(F106-F111)^2/F106^2 -> 4.815090417e-08 | I116: =(I106-I111)^2/I106^2 -> 1.363808002e-07 | L116: =C116+F116+I116 -> 2.132620541e-07 | M116: square deviation
L118: A | M118: B | N118: C
A119: 2 | C119: =$L119*'input data'!$C$11*$L$98+(1-$L119)*'input data'!$C$10*$L$98 -> 337.4721687 | F119: =M119*'input data'!$D$11*$L$98+(1-M119)*'input data'!$D$10*$L$98 -> 321.8393165 | I119: =N119*'input data'!$E$11*$L$98+(1-N119)*'input data'!$E$10*$L$98 -> 24.51467748 | L119: 0.02993133669 | M119: 0.02876715383 | N119: 0.02959069996 | O119: share population key | Q119: solver
A120: 1 | C120: =$L120*'input data'!$C$11*$L$98+(1-$L120)*'input data'!$C$10*$L$98 -> 265.4048462 | F120: =M120*'input data'!$D$11*$L$98+(1-M120)*'input data'!$D$10*$L$98 -> 346.6568004 | I120: =N120*'input data'!$E$11*$L$98+(1-N120)*'input data'!$E$10*$L$98 -> 72.11435013 | L120: 0.3498552046 | M120: 0.3515992113 | N120: 0.3503654962 | O120: share population key | Q120: solver
A121: 3 | C121: =$L121*'input data'!$C$11*$L$98+(1-$L121)*'input data'!$C$10*$L$98 -> 310.3040701 | F121: =M121*'input data'!$D$11*$L$98+(1-M121)*'input data'!$D$10*$L$98 -> 331.2910274 | I121: =N121*'input data'!$E$11*$L$98+(1-N121)*'input data'!$E$10*$L$98 -> 42.51310591 | L121: 0.1505369441 | M121: 0.1517173815 | N121: 0.1508823369 | O121: share population key | Q121: solver
A122: 6 | C122: =$L122*'input data'!$C$11*$L$98+(1-$L122)*'input data'!$C$10*$L$98 -> 303.281117 | F122: =M122*'input data'!$D$11*$L$98+(1-M122)*'input data'!$D$10*$L$98 -> 333.596957 | I122: =N122*'input data'!$E$11*$L$98+(1-N122)*'input data'!$E$10*$L$98 -> 47.08813144 | L122: 0.1817134918 | M122: 0.1817134918 | N122: 0.1817134918 | O122: share population key | Q122: solver
A124: 2 | C124: =(C103-C119)^2/C103^2 -> 4.31017801e-08 | F124: =(F103-F119)^2/F103^2 -> 4.31017801e-08 | I124: 4.31017801e-08 | L124: =C124+F124+I124 -> 1.293053403e-07 | M124: square deviation
A125: 1 | C125: =(C104-C120)^2/C104^2 -> 4.31017801e-08 | F125: 4.31017801e-08 | I125: 4.31017801e-08 | L125: =C125+F125+I125 -> 1.293053403e-07 | M125: square deviation
A126: 3 | C126: 4.31017801e-08 | F126: 4.31017801e-08 | I126: 4.31017801e-08 | L126: =C126+F126+I126 -> 1.293053403e-07 | M126: square deviation
A127: 6 | C127: 4.31017801e-08 | F127: 4.31017801e-08 | I127: 4.31017801e-08 | L127: =C127+F127+I127 -> 1.293053403e-07 | M127: square deviation

Sheet C&C-exp
A1: C&C: exponential approach | G1: source: | H1: www.gci.org.uk | L1: convergence period: 2020 - 2050
A2: C&C-exp
B5: Parameter a: | E5: ='input data'!C21 -> 4 | G5: Input value sheet "input data": | L5: parameter a of the weighting formula Ct
B7: Country A | E7: Country B | H7: Country C | K7: Global
A9: Year t | B9: Popu-lation Pit | C9: Eit | D9: Per capita | E9: Popu-lation Pit | F9: Eit | G9: Per capita | H9: Popu-lation Pit | I9: Eit | J9: Per capita | K9: Popu-lation Pt | L9: Et | M9: Per capita | N9: Ct
B10: bn | C10: Gt | D10: t | E10: bn | F10: Gt | G10: t | H10: bn | I10: Gt | J10: t | K10: bn | L10: Gt | M10: t
A11: 2019 | B11: =RF!B9 -> 1.2 | C11: =RF!C9 -> 21 | D11: =C11/B11 -> 17.5 | E11: =RF!E9 -> 4 | F11: =RF!F9 -> 19.5 | G11: =F11/E11 -> 4.875 | H11: =K11-E11-B11 -> 1.7 | I11: ='global path'!$C$7-C11-F11 -> 1.227717101 | J11: =I11/H11 -> 0.7221865302 | K11: =RF!K9 -> 6.9 | L11: =I11+F11+C11 -> 41.7277171 | M11: =L11/K11 -> 6.047495232 | N11: =EXP(-$E$5*(1-((A11-2019)/(2050-2019)))) -> 0.01831563889 | AB11: a | AC11: CBY = exp(-a)
A12: =A11+1 -> 2020 | B12: =B$11*(B$42/B$11)^(($A12-2019)/31) -> 1.2 | C12: =((1-$N12)*(C11/$L11)+$N12*(B12/$K12))*'global path'!$C8 -> 20.29934817 | D12: =C12/B12 -> 16.91612348 | E12: =E$11*(E$42/E$11)^(($A12-2019)/31) -> 4 | F12: =((1-$N12)*(F11/$L11)+$N12*(E12/$K12))*'global path'!$C8 -> 19.20577612 | G12: =F12/E12 -> 4.801444029 | H12: =H$11*(H$42/H$11)^(($A12-2019)/31) -> 1.7 | I12: =((1-$N12)*(I11/$L11)+$N12*(H12/$K12))*'global path'!$C8 -> 1.38803847 | J12: =I12/H12 -> 0.8164932174 | K12: =B12+E12+H12 -> 6.9 | L12: =I12+F12+C12 -> 40.89316276 | M12: =L12/K12 -> 5.926545327 | N12: 0.02083819367 | AB12: 0 | AC12: =EXP(-AB12) -> 1
A13: =A12+1 -> 2021 | B13: =B$11*(B$42/B$11)^(($A13-2019)/31) -> 1.2 | C13: =((1-$N13)*(C12/$L12)+$N13*(B13/$K13))*'global path'!$C9 -> 19.5213853 | D13: 16.26782108 | E13: =E$11*(E$42/E$11)^(($A13-2019)/31) -> 4 | F13: =((1-$N13)*(F12/$L12)+$N13*(E13/$K13))*'global path'!$C9 -> 18.86285765 | G13: 4.715714412 | H13: =H$11*(H$42/H$11)^(($A13-2019)/31) -> 1.7 | I13: =((1-$N13)*(I12/$L12)+$N13*(H13/$K13))*'global path'!$C9 -> 1.5568836 | J13: 0.9158138826 | K13: =B13+E13+H13 -> 6.9 | L13: =I13+F13+C13 -> 39.94112655 | M13: 5.788569065 | N13: 0.02370817191 | AB13: =AB12+0.1 -> 0.1 | AC13: =EXP(-AB13) -> 0.904837418
A14: 2022 | B14: 1.2 | C14: =((1-$N14)*(C13/$L13)+$N14*(B14/$K14))*'global path'!$C10 -> 18.67267202 | D14: 15.56056002 | E14: 4 | F14: =((1-$N14)*(F13/$L13)+$N14*(E14/$K14))*'global path'!$C10 -> 18.4744997 | G14: 4.618624924 | H14: 1.7 | I14: =((1-$N14)*(I13/$L13)+$N14*(H14/$K14))*'global path'!$C10 -> 1.733033755 | J14: 1.019431621 | K14: 6.9 | L14: 38.88020548 | M14: 5.634812388 | N14: 0.02697342314 | AB14: =AB13+0.1 -> 0.2 | AC14: =EXP(-AB14) -> 0.8187307531
A15: 2023 | B15: 1.2 | C15: =((1-$N15)*(C14/$L14)+$N15*(B15/$K15))*'global path'!$C11 -> 17.7608023 | D15: 14.80066859 | E15: 4 | F15: =((1-$N15)*(F14/$L14)+$N15*(E15/$K15))*'global path'!$C11 -> 18.04417978 | G15: 4.511044946 | H15: 1.7 | I15: =((1-$N15)*(I14/$L14)+$N15*(H15/$K15))*'global path'!$C11 -> 1.914914308 | J15: 1.126420181 | K15: 6.9 | L15: 37.7198964 | M15: 5.466651652 | N15: 0.03068838706 | AB15: 0.3 | AC15: 0.7408182207
A16: 2024 | B16: 1.2 | C16: =((1-$N16)*(C15/$L15)+$N16*(B16/$K16))*'global path'!$C12 -> 16.79436662 | D16: 13.99530552 | E16: 4 | F16: =((1-$N16)*(F15/$L15)+$N16*(E16/$K16))*'global path'!$C12 -> 17.57551925 | G16: 4.393879812 | H16: 1.7 | I16: =((1-$N16)*(I15/$L15)+$N16*(H16/$K16))*'global path'!$C12 -> 2.100567482 | J16: 1.235627931 | K16: 6.9 | L16: 36.47045336 | M16: 5.28557295 | N16: 0.03491500115 | AB16: 0.4 | AC16: 0.670320046
A17: 2025 | B17: 1.2 | C17: =((1-$N17)*(C16/$L16)+$N17*(B17/$K17))*'global path'!$C13 -> 15.78289762 | D17: 13.15241468 | E17: 4 | F17: =((1-$N17)*(F16/$L16)+$N17*(E17/$K17))*'global path'!$C13 -> 17.07220453 | G17: 4.268051134 | H17: 1.7 | I17: =((1-$N17)*(I16/$L16)+$N17*(H17/$K17))*'global path'!$C13 -> 2.287633235 | J17: 1.345666609 | K17: 6.9 | L17: 35.14273539 | M17: 5.093150057 | N17: 0.03972373339 | AB17: 0.5 | AC17: 0.6065306597
A18: 2026 | B18: 1.2 | C18: =((1-$N18)*(C17/$L17)+$N18*(B18/$K18))*'global path'!$C14 -> 14.73679424 | D18: 12.28066186 | E18: 4 | F18: =((1-$N18)*(F17/$L17)+$N18*(E18/$K18))*'global path'!$C14 -> 16.53791172 | G18: 4.134477931 | H18: 1.7 | I18: =((1-$N18)*(I17/$L17)+$N18*(H18/$K18))*'global path'!$C14 -> 2.473341986 | J18: 1.454907051 | K18: 6.9 | L18: 33.74804795 | M18: 4.891021442 | N18: 0.04519475704 | AB18: 0.6 | AC18: 0.5488116361
A19: 2027 | B19: 1.2 | C19: =((1-$N19)*(C18/$L18)+$N19*(B19/$K19))*'global path'!$C15 -> 13.66721966 | D19: 11.38934972 | E19: 4 | F19: =((1-$N19)*(F18/$L18)+$N19*(E19/$K19))*'global path'!$C15 -> 15.97623804 | G19: 3.99405951 | H19: 1.7 | I19: =((1-$N19)*(I18/$L18)+$N19*(H19/$K19))*'global path'!$C15 -> 2.654523476 | J19: 1.561484398 | K19: 6.9 | L19: 32.29798118 | M19: 4.680866837 | N19: 0.05141928741 | AB19: 0.7 | AC19: 0.4965853038
A20: 2028 | B20: 1.2 | C20: =((1-$N20)*(C19/$L19)+$N20*(B20/$K20))*'global path'!$C16 -> 12.58596752 | D20: 10.48830626 | E20: 4 | F20: =((1-$N20)*(F19/$L19)+$N20*(E20/$K20))*'global path'!$C16 -> 15.39064427 | G20: 3.847661068 | H20: 1.7 | I20: =((1-$N20)*(I19/$L19)+$N20*(H20/$K20))*'global path'!$C16 -> 2.827636616 | J20: 1.663315656 | K20: 6.9 | L20: 30.8042484 | M20: 4.464383826 | N20: 0.05850110258 | AB20: 0.8 | AC20: 0.4493289641
A21: 2029 | B21: 1.2 | C21: =((1-$N21)*(C20/$L20)+$N21*(B21/$K21))*'global path'!$C17 -> 11.50529014 | D21: 9.587741783 | E21: 4 | F21: =((1-$N21)*(F20/$L20)+$N21*(E21/$K21))*'global path'!$C17 -> 14.78441226 | G21: 3.696103066 | H21: 1.7 | I21: =((1-$N21)*(I20/$L20)+$N21*(H21/$K21))*'global path'!$C17 -> 2.988825488 | J21: 1.75813264 | K21: 6.9 | L21: 29.27852789 | M21: 4.243264912 | N21: 0.06655827366 | AB21: 0.9 | AC21: 0.4065696597
A22: 2030 | B22: 1.2 | C22: =((1-$N22)*(C21/$L21)+$N22*(B22/$K22))*'global path'!$C18 -> 10.43768294 | D22: 8.698069121 | E22: 4 | F22: =((1-$N22)*(F21/$L21)+$N22*(E22/$K22))*'global path'!$C18 -> 14.16062146 | G22: 3.540155365 | H22: 1.7 | I22: =((1-$N22)*(I21/$L21)+$N22*(H22/$K22))*'global path'!$C18 -> 3.13400659 | J22: 1.843533288 | K22: 6.9 | L22: 27.73231099 | M22: 4.019175506 | N22: 0.07572513334 | AB22: 1 | AC22: 0.3678794412
A23: 2031 | B23: 1.2 | C23: =((1-$N23)*(C22/$L22)+$N23*(B23/$K23))*'global path'!$C19 -> 9.395619689 | D23: 7.829683074 | E23: 4 | F23: =((1-$N23)*(F22/$L22)+$N23*(E23/$K23))*'global path'!$C19 -> 13.52214799 | G23: 3.380536997 | H23: 1.7 | I23: =((1-$N23)*(I22/$L22)+$N23*(H23/$K23))*'global path'!$C19 -> 3.258991676 | J23: 1.917053927 | K23: 6.9 | L23: 26.17675935 | M23: 3.79373324 | N23: 0.08615451548 | AB23: 1.1 | AC23: 0.3328710837
A24: 2032 | B24: 1.2 | C24: =((1-$N24)*(C23/$L23)+$N24*(B24/$K24))*'global path'!$C20 -> 8.391235836 | D24: 6.99269653 | E24: 4 | F24: =((1-$N24)*(F23/$L23)+$N24*(E24/$K24))*'global path'!$C20 -> 12.87168885 | G24: 3.217922212 | H24: 1.7 | I24: =((1-$N24)*(I23/$L23)+$N24*(H24/$K24))*'global path'!$C20 -> 3.359648974 | J24: 1.976264102 | K24: 6.9 | L24: 24.62257366 | M24: 3.568488936 | N24: 0.09802030331 | AB24: 1.2 | AC24: 0.3011942119
A25: 2033 | B25: 1.2 | C25: =((1-$N25)*(C24/$L24)+$N25*(B25/$K25))*'global path'!$C21 -> 7.435961215 | D25: 6.196634346 | E25: 4 | F25: =((1-$N25)*(F24/$L24)+$N25*(E25/$K25))*'global path'!$C21 -> 12.21181212 | G25: 3.052953029 | H25: 1.7 | I25: =((1-$N25)*(I24/$L24)+$N25*(H25/$K25))*'global path'!$C21 -> 3.432102716 | J25: 2.018883951 | K25: 6.9 | L25: 23.07987605 | M25: 3.344909572 | N25: 0.1115203284 | AB25: 1.3 | AC25: 0.272531793
A26: 2034 | B26: 1.2 | C26: =((1-$N26)*(C25/$L25)+$N26*(B26/$K26))*'global path'!$C22 -> 6.540109456 | D26: 5.450091213 | E26: 4 | F26: =((1-$N26)*(F25/$L25)+$N26*(E26/$K26))*'global path'!$C22 -> 11.54503169 | G26: 2.886257922 | H26: 1.7 | I26: =((1-$N26)*(I25/$L25)+$N26*(H26/$K26))*'global path'!$C22 -> 3.472966671 | J26: 2.042921571 | K26: 6.9 | L26: 21.55810781 | M26: 3.124363451 | N26: 0.1268796691 | AB26: 1.4 | AC26: 0.2465969639
A27: 2035 | B27: 1.2 | C27: =((1-$N27)*(C26/$L26)+$N27*(B27/$K27))*'global path'!$C23 -> 5.712440302 | D27: 4.760366919 | E27: 4 | F27: =((1-$N27)*(F26/$L26)+$N27*(E27/$K27))*'global path'!$C23 -> 10.87390185 | G27: 2.718475463 | H27: 1.7 | I27: =((1-$N27)*(I26/$L26)+$N27*(H27/$K27))*'global path'!$C23 -> 3.479601525 | J27: 2.046824426 | K27: 6.9 | L27: 20.06594368 | M27: 2.90810778 | N27: 0.144354403 | AB27: 1.5 | AC27: 0.2231301601
A28: 2036 | B28: 1.2 | C28: =((1-$N28)*(C27/$L27)+$N28*(B28/$K28))*'global path'!$C24 -> 4.959721717 | D28: 4.133101431 | E28: 4 | F28: =((1-$N28)*(F27/$L27)+$N28*(E28/$K28))*'global path'!$C24 -> 10.20112307 | G28: 2.550280769 | H28: 1.7 | I28: =((1-$N28)*(I27/$L27)+$N28*(H28/$K28))*'global path'!$C24 -> 3.450378673 | J28: 2.029634514 | K28: 6.9 | L28: 18.61122347 | M28: 2.697278763 | N28: 0.1642358765 | AB28: 1.6 | AC28: 0.201896518
A29: 2037 | B29: 1.2 | C29: =((1-$N29)*(C28/$L28)+$N29*(B29/$K29))*'global path'!$C25 -> 4.286330724 | D29: 3.57194227 | E29: 4 | F29: =((1-$N29)*(F28/$L28)+$N29*(E29/$K29))*'global path'!$C25 -> 9.529645877 | G29: 2.382411469 | H29: 1.7 | I29: =((1-$N29)*(I28/$L28)+$N29*(H29/$K29))*'global path'!$C25 -> 3.384924907 | J29: 1.991132298 | K29: 6.9 | L29: 17.20090151 | M29: 2.492884277 | N29: 0.1868555623 | AB29: 1.7 | AC29: 0.1826835241
A30: 2038 | B30: 1.2 | C30: =((1-$N30)*(C29/$L29)+$N30*(B30/$K30))*'global path'!$C26 -> 3.693943362 | D30: 3.078286135 | E30: 4 | F30: =((1-$N30)*(F29/$L29)+$N30*(E30/$K30))*'global path'!$C26 -> 8.862755634 | G30: 2.215688909 | H30: 1.7 | I30: =((1-$N30)*(I29/$L29)+$N30*(H30/$K30))*'global path'!$C26 -> 3.284314776 | J30: 1.931949868 | K30: 6.9 | L30: 15.84101377 | M30: 2.295799097 | N30: 0.2125905855 | AB30: 1.8 | AC30: 0.1652988882
A31: 2039 | B31: 1.2 | C31: =((1-$N31)*(C30/$L30)+$N31*(B31/$K31))*'global path'!$C27 -> 3.181371757 | D31: 2.651143131 | E31: 4 | F31: =((1-$N31)*(F30/$L30)+$N31*(E31/$K31))*'global path'!$C27 -> 8.204118173 | G31: 2.051029543 | H31: 1.7 | I31: =((1-$N31)*(I30/$L30)+$N31*(H31/$K31))*'global path'!$C27 -> 3.151172271 | J31: 1.853630748 | K31: 6.9 | L31: 14.5366622 | M31: 2.106762638 | N31: 0.2418700117 | AB31: 1.9 | AC31: 0.1495686192
A32: 2040 | B32: 1.2 | C32: =((1-$N32)*(C31/$L31)+$N32*(B32/$K32))*'global path'!$C28 -> 2.744606027 | D32: 2.287171689 | E32: 4 | F32: =((1-$N32)*(F31/$L31)+$N32*(E32/$K32))*'global path'!$C28 -> 7.557765953 | G32: 1.889441488 | H32: 1.7 | I32: =((1-$N32)*(I31/$L31)+$N32*(H32/$K32))*'global path'!$C28 -> 2.989643491 | J32: 1.758613818 | K32: 6.9 | L32: 13.29201547 | M32: 1.926379054 | N32: 0.2751820004 | AB32: 2 | AC32: 0.1353352832
A33: 2041 | B33: 1.2 | C33: =((1-$N33)*(C32/$L32)+$N33*(B33/$K33))*'global path'!$C29 -> 2.377105736 | D33: 1.980921446 | E33: 4 | F33: =((1-$N33)*(F32/$L32)+$N33*(E33/$K33))*'global path'!$C29 -> 6.928008835 | G33: 1.732002209 | H33: 1.7 | I33: =((1-$N33)*(I32/$L32)+$N33*(H33/$K33))*'global path'!$C29 -> 2.805210426 | J33: 1.65012378 | K33: 6.9 | L33: 12.110325 | M33: 1.755119565 | N33: 0.3130819434 | AB33: 2.1 | AC33: 0.1224564283
A34: 2042 | B34: 1.2 | C34: =((1-$N34)*(C33/$L33)+$N34*(B34/$K34))*'global path'!$C30 -> 2.070356245 | D34: 1.725296871 | E34: 4 | F34: =((1-$N34)*(F33/$L33)+$N34*(E34/$K34))*'global path'!$C30 -> 6.319263293 | G34: 1.579815823 | H34: 1.7 | I34: =((1-$N34)*(I33/$L33)+$N34*(H34/$K34))*'global path'!$C30 -> 2.604335247 | J34: 1.53196191 | K34: 6.9 | L34: 10.99395478 | M34: 1.59332678 | N34: 0.3562017253 | AB34: 2.2 | AC34: 0.1108031584
A35: 2043 | B35: 1.2 | C35: =((1-$N35)*(C34/$L34)+$N35*(B35/$K35))*'global path'!$C31 -> 1.814659025 | D35: 1.512215854 | E35: 4 | F35: =((1-$N35)*(F34/$L34)+$N35*(E35/$K35))*'global path'!$C31 -> 5.735809578 | G35: 1.433952394 | H35: 1.7 | I35: =((1-$N35)*(I34/$L34)+$N35*(H35/$K35))*'global path'!$C31 -> 2.39395487 | J35: 1.408208747 | K35: 6.9 | L35: 9.944423473 | M35: 1.441220793 | N35: 0.4052602578 | AB35: 2.3 | AC35: 0.1002588437
A36: 2044 | B36: 1.2 | C36: =((1-$N36)*(C35/$L35)+$N36*(B36/$K36))*'global path'!$C32 -> 1.600067594 | D36: 1.333389662 | E36: 4 | F36: =((1-$N36)*(F35/$L35)+$N36*(E36/$K36))*'global path'!$C32 -> 5.181505836 | G36: 1.295376459 | H36: 1.7 | I36: =((1-$N36)*(I35/$L35)+$N36*(H36/$K36))*'global path'!$C32 -> 2.18088335 | J36: 1.282872559 | K36: 6.9 | L36: 8.96245678 | M36: 1.29890678 | N36: 0.4610754662 | AB36: 2.4 | AC36: 0.09071795329
A37: 2045 | B37: 1.2 | C37: =((1-$N37)*(C36/$L36)+$N37*(B37/$K37))*'global path'!$C33 -> 1.417326174 | D37: 1.181105145 | E37: 4 | F37: =((1-$N37)*(F36/$L36)+$N37*(E37/$K37))*'global path'!$C33 -> 4.659506741 | G37: 1.164876685 | H37: 1.7 | I37: =((1-$N37)*(I36/$L36)+$N37*(H37/$K37))*'global path'!$C33 -> 1.97121556 | J37: 1.159538565 | K37: 6.9 | L37: 8.048048476 | M37: 1.166383837 | N37: 0.5245779259 | AB37: =AB36+0.1 -> 2.5 | AC37: 0.08208499862
A38: 2046 | B38: 1.2 | C38: =((1-$N38)*(C37/$L37)+$N38*(B38/$K38))*'global path'!$C34 -> 1.258637988 | D38: 1.04886499 | E38: 4 | F38: =((1-$N38)*(F37/$L37)+$N38*(E38/$K38))*'global path'!$C34 -> 4.172044475 | G38: 1.043011119 | H38: 1.7 | I38: =((1-$N38)*(I37/$L37)+$N38*(H38/$K38))*'global path'!$C34 -> 1.769845471 | J38: 1.041085571 | K38: 6.9 | L38: 7.200527934 | M38: 1.043554773 | N38: 0.5968263779 | AB38: 2.6 | AC38: 0.07427357821
A39: 2047 | B39: 1.2 | C39: =((1-$N39)*(C38/$L38)+$N39*(B39/$K39))*'global path'!$C35 -> 1.118107123 | D39: 0.9317559358 | E39: 4 | F39: =((1-$N39)*(F38/$L38)+$N39*(E39/$K39))*'global path'!$C35 -> 3.720324094 | G39: 0.9300810236 | H39: 1.7 | I39: =((1-$N39)*(I38/$L38)+$N39*(H39/$K39))*'global path'!$C35 -> 1.580201145 | J39: 0.9295300852 | K39: 6.9 | L39: 6.418632362 | M39: 0.9302365742 | N39: 0.6790253796 | AB39: 2.7 | AC39: 0.06720551274
A40: 2048 | B40: 1.2 | C40: =((1-$N40)*(C39/$L39)+$N40*(B40/$K40))*'global path'!$C36 -> 0.9917738489 | D40: 0.8264782074 | E40: 4 | F40: =((1-$N40)*(F39/$L39)+$N40*(E40/$K40))*'global path'!$C36 -> 3.304559438 | G40: 0.8261398595 | H40: 1.7 | I40: =((1-$N40)*(I39/$L39)+$N40*(H40/$K40))*'global path'!$C36 -> 1.40424856 | J40: 0.8260285648 | K40: 6.9 | L40: 5.700581847 | M40: 0.8261712822 | N40: 0.7725453889 | AB40: 2.8 | AC40: 0.06081006263
A41: 2049 | B41: 1.2 | C41: =((1-$N41)*(C40/$L40)+$N41*(B41/$K41))*'global path'!$C37 -> 0.8772838821 | D41: 0.7310699017 | E41: 4 | F41: =((1-$N41)*(F40/$L40)+$N41*(E41/$K41))*'global path'!$C37 -> 2.924134638 | G41: 0.7310336596 | H41: 1.7 | I41: =((1-$N41)*(I40/$L40)+$N41*(H41/$K41))*'global path'!$C37 -> 1.242736955 | J41: 0.7310217383 | K41: 6.9 | L41: 5.044155476 | M41: 0.7310370255 | N41: 0.878945612 | AB41: 2.9 | AC41: 0.05502322006
A42: 2050 | B42: =RF!B40 -> 1.2 | C42: =((1-$N42)*(C41/$L41)+$N42*(B42/$K42))*'global path'!$C38 -> 0.7733507692 | D42: 0.6444589743 | E42: =RF!E40 -> 4 | F42: =((1-$N42)*(F41/$L41)+$N42*(E42/$K42))*'global path'!$C38 -> 2.577835897 | G42: 0.6444589743 | H42: =K42-E42-B42 -> 1.7 | I42: =((1-$N42)*(I41/$L41)+$N42*(H42/$K42))*'global path'!$C38 -> 1.095580256 | J42: 0.6444589743 | K42: =RF!K40 -> 6.9 | L42: 4.446766923 | M42: 0.6444589743 | N42: 1 | AB42: 3 | AC42: 0.04978706837
A43: ∑ | C43: =SUM(C12:C42) -> 242.404435 | F43: =SUM(F12:F42) -> 336.9878488 | I43: =SUM(I12:I42) -> 77.37136253 | L43: =SUM(L12:L42) -> 656.7636464 | AB43: 3.1 | AC43: 0.04504920239
AB44: 3.2 | AC44: 0.04076220398
J45: global path: | L45: ='global path'!C90 -> 656.7636464 | AB45: 3.3 | AC45: 0.0368831674
J46: control: | L46: =L43-L45 -> 0 | AB46: 3.4 | AC46: 0.03337326996
AB47: 3.5 | AC47: 0.03019738342
A48: =A42+1 -> 2051 | B48: =B42 -> 1.2 | C48: =B48/$K48*$L48 -> 0.6792240131 | D48: =C48/B48 -> 0.5660200109 | E48: =E42 -> 4 | F48: =E48/$K48*$L48 -> 2.264080044 | G48: =F48/E48 -> 0.5660200109 | H48: =H42 -> 1.7 | I48: =H48/$K48*$L48 -> 0.9622340185 | J48: =I48/H48 -> 0.5660200109 | K48: =B48+E48+H48 -> 6.9 | L48: ='global path'!C39 -> 3.905538075 | M48: =L48/K48 -> 0.5660200109 | AB48: 3.6 | AC48: 0.02732372245
A49: =A48+1 -> 2052 | B49: =B48 -> 1.2 | C49: =B49/$K49*$L49 -> 0.594325121 | D49: =C49/B49 -> 0.4952709341 | E49: =E48 -> 4 | F49: =E49/$K49*$L49 -> 1.981083737 | G49: =F49/E49 -> 0.4952709341 | H49: =H48 -> 1.7 | I49: =H49/$K49*$L49 -> 0.841960588 | J49: =I49/H49 -> 0.4952709341 | K49: =B49+E49+H49 -> 6.9 | L49: ='global path'!C40 -> 3.417369445 | M49: =L49/K49 -> 0.4952709341 | AB49: 3.7 | AC49: 0.02472352647
A50: =A49+1 -> 2053 | B50: =B49 -> 1.2 | C50: 0.5180880598 | D50: 0.4317400498 | E50: =E49 -> 4 | F50: 1.726960199 | G50: 0.4317400498 | H50: =H49 -> 1.7 | I50: 0.7339580847 | J50: 0.4317400498 | K50: 6.9 | L50: ='global path'!C41 -> 2.979006344 | M50: 0.4317400498 | AB50: 3.8 | AC50: 0.02237077186
A51: 2054 | B51: 1.2 | C51: 0.4499304299 | D51: 0.3749420249 | E51: 4 | F51: 1.4997681 | G51: 0.3749420249 | H51: 1.7 | I51: 0.6374014424 | J51: 0.3749420249 | K51: 6.9 | L51: ='global path'!C42 -> 2.587099972 | M51: 0.3749420249 | AB51: 3.9 | AC51: 0.02024191145
A52: 2055 | B52: 1.2 | C52: 0.3892631009 | D52: 0.3243859174 | E52: 4 | F52: 1.29754367 | G52: 0.3243859174 | H52: 1.7 | I52: 0.5514560597 | J52: 0.3243859174 | K52: 6.9 | L52: ='global path'!C43 -> 2.23826283 | M52: 0.3243859174 | AB52: 4 | AC52: 0.01831563889
A53: 2056 | B53: 1.2 | C53: 0.3354987847 | D53: 0.2795823206 | E53: 4 | F53: 1.118329282 | G53: 0.2795823206 | H53: 1.7 | I53: 0.475289945 | J53: 0.2795823206 | K53: 6.9 | L53: ='global path'!C44 -> 1.929118012 | M53: 0.2795823206 | AB53: 4.1 | AC53: 0.0165726754
A54: 2057 | B54: 1.2 | C54: 0.2880595067 | D54: 0.2400495889 | E54: 4 | F54: 0.9601983557 | G54: 0.2400495889 | H54: 1.7 | I54: 0.4080843012 | J54: 0.2400495889 | K54: 6.9 | L54: ='global path'!C45 -> 1.656342164 | M54: 0.2400495889 | AB54: 4.2 | AC54: 0.01499557682
A55: 2058 | B55: 1.2 | C55: 0.2463829665 | D55: 0.2053191387 | E55: 4 | F55: 0.8212765549 | G55: 0.2053191387 | H55: 1.7 | I55: 0.3490425358 | J55: 0.2053191387 | K55: 6.9 | L55: ='global path'!C46 -> 1.416702057 | M55: 0.2053191387 | AB55: 4.3 | AC55: 0.01356855901
A56: 2059 | B56: 1.2 | C56: 0.2099278037 | D56: 0.1749398364 | E56: 4 | F56: 0.6997593456 | G56: 0.1749398364 | H56: 1.7 | I56: 0.2973977219 | J56: 0.1749398364 | K56: 6.9 | L56: ='global path'!C47 -> 1.207084871 | M56: 0.1749398364 | AB56: 4.4 | AC56: 0.0122773399
A57: 2060 | B57: 1.2 | C57: 0.178177811 | D57: 0.1484815092 | E57: 4 | F57: 0.5939260368 | G57: 0.1484815092 | H57: 1.7 | I57: 0.2524185656 | J57: 0.1484815092 | K57: 6.9 | L57: ='global path'!C48 -> 1.024522414 | M57: 0.1484815092 | AB57: 4.5 | AC57: 0.01110899654
A58: 2061 | B58: 1.2 | C58: 0.1506451524 | D58: 0.125537627 | E58: 4 | F58: 0.502150508 | G58: 0.125537627 | H58: 1.7 | I58: 0.2134139659 | J58: 0.125537627 | K58: 6.9 | L58: ='global path'!C49 -> 0.8662096264 | M58: 0.125537627 | AB58: 4.6 | AC58: 0.01005183574
A59: 2062 | B59: 1.2 | C59: 0.1268726606 | D59: 0.1057272171 | E59: 4 | F59: 0.4229088686 | G59: 0.1057272171 | H59: 1.7 | I59: 0.1797362692 | J59: 0.1057272171 | K59: 6.9 | L59: ='global path'!C50 -> 0.7295177983 | M59: 0.1057272171 | AB59: 4.7 | AC59: 0.009095277102
A60: 2063 | B60: 1.2 | C60: 0.1064352994 | D60: 0.08869608284 | E60: 4 | F60: 0.3547843313 | G60: 0.08869608284 | H60: 1.7 | I60: 0.1507833408 | J60: 0.08869608284 | K60: 6.9 | L60: ='global path'!C51 -> 0.6120029716 | M60: 0.08869608284 | AB60: 4.8 | AC60: 0.008229747049
A61: 2064 | B61: 1.2 | C61: 0.08894088252 | D61: 0.0741174021 | E61: 4 | F61: 0.2964696084 | G61: 0.0741174021 | H61: 1.7 | I61: 0.1259995836 | J61: 0.0741174021 | K61: 6.9 | L61: ='global path'!C52 -> 0.5114100745 | M61: 0.0741174021 | AB61: =AB60+0.1 -> 4.9 | AC61: 0.007446583071
A62: 2065 | B62: 1.2 | C62: 0.07403014442 | D62: 0.06169178702 | E62: 4 | F62: 0.2467671481 | G62: 0.06169178702 | H62: 1.7 | I62: 0.1048760379 | J62: 0.06169178702 | K62: 6.9 | L62: ='global path'!C53 -> 0.4256733304 | M62: 0.06169178702 | AB62: 5 | AC62: 0.006737946999
A63: 2066 | B63: 1.2 | C63: 0.06137626047 | D63: 0.05114688373 | E63: 4 | F63: 0.2045875349 | G63: 0.05114688373 | H63: 1.7 | I63: 0.08694970234 | J63: 0.05114688373 | K63: 6.9 | L63: ='global path'!C54 -> 0.3529134977 | M63: 0.05114688373 | AB63: 5.1 | AC63: 0.006096746566
A64: 2067 | B64: 1.2 | C64: 0.05068391051 | D64: 0.04223659209 | E64: 4 | F64: 0.1689463684 | G64: 0.04223659209 | H64: 1.7 | I64: 0.07180220655 | J64: 0.04223659209 | K64: 6.9 | L64: ='global path'!C55 -> 0.2914324854 | M64: 0.04223659209 | AB64: 5.2 | AC64: 0.005516564421
A65: 2068 | B65: 1.2 | C65: 0.04168797637 | D65: 0.03473998031 | E65: 4 | F65: 0.1389599212 | G65: 0.03473998031 | H65: 1.7 | I65: 0.05905796653 | J65: 0.03473998031 | K65: 6.9 | L65: ='global path'!C56 -> 0.2397058642 | M65: 0.03473998031 | AB65: 5.3 | AC65: 0.004991593907
A66: 2069 | B66: 1.2 | C66: 0.03415195812 | D66: 0.0284599651 | E66: 4 | F66: 0.1138398604 | G66: 0.0284599651 | H66: 1.7 | I66: 0.04838194066 | J66: 0.0284599651 | K66: 6.9 | L66: ='global path'!C57 -> 0.1963737592 | M66: 0.0284599651 | AB66: 5.4 | AC66: 0.004516580943
A67: 2070 | B67: 1.2 | C67: 0.02786618619 | D67: 0.02322182182 | E67: 4 | F67: 0.09288728729 | G67: 0.02322182182 | H67: 1.7 | I67: 0.0394770971 | J67: 0.02322182182 | K67: 6.9 | L67: ='global path'!C58 -> 0.1602305706 | M67: 0.02322182182 | AB67: 5.5 | AC67: 0.004086771438
A68: 2071 | B68: 1.2 | C68: 0.02264589907 | D68: 0.01887158256 | E68: 4 | F68: 0.07548633024 | G68: 0.01887158256 | H68: 1.7 | I68: 0.03208169035 | J68: 0.01887158256 | K68: 6.9 | L68: ='global path'!C59 -> 0.1302139197 | M68: 0.01887158256 | AB68: 5.6 | AC68: 0.003697863716
A69: 2072 | B69: 1.2 | C69: 0.01832924721 | D69: 0.01527437268 | E69: 4 | F69: 0.06109749071 | G69: 0.01527437268 | H69: 1.7 | I69: 0.02596643355 | J69: 0.01527437268 | K69: 6.9 | L69: ='global path'!C60 -> 0.1053931715 | M69: 0.01527437268 | AB69: 5.7 | AC69: 0.003345965457
A70: 2073 | B70: 1.2 | C70: 0.01477527529 | D70: 0.01231272941 | E70: 4 | F70: 0.04925091765 | G70: 0.01231272941 | H70: 1.7 | I70: 0.02093164 | J70: 0.01231272941 | K70: 6.9 | L70: ='global path'!C61 -> 0.08495783294 | M70: 0.01231272941 | AB70: 5.8 | AC70: 0.003027554745
A71: 2074 | B71: 1.2 | C71: 0.01122130338 | D71: 0.009351086147 | E71: 4 | F71: 0.03740434459 | G71: 0.009351086147 | H71: 1.7 | I71: 0.01589684645 | J71: 0.009351086147 | K71: 6.9 | L71: ='global path'!C62 -> 0.06452249442 | M71: 0.009351086147 | AB71: 5.9 | AC71: 0.002739444819
A72: 2075 | B72: 1.2 | C72: 0.007667331459 | D72: 0.006389442883 | E72: 4 | F72: 0.02555777153 | G72: 0.006389442883 | H72: 1.7 | I72: 0.0108620529 | J72: 0.006389442883 | K72: 6.9 | L72: ='global path'!C63 -> 0.04408715589 | M72: 0.006389442883 | AB72: 6 | AC72: 0.002478752177
A73: 2076 | B73: 1.2 | C73: 0.004113359542 | D73: 0.003427799618 | E73: 4 | F73: 0.01371119847 | G73: 0.003427799618 | H73: 1.7 | I73: 0.005827259351 | J73: 0.003427799618 | K73: 6.9 | L73: ='global path'!C64 -> 0.02365181737 | M73: 0.003427799618 | AB73: 6.1 | AC73: 0.002242867719
A74: 2077 | B74: 1.2 | C74: 0.0005593876244 | D74: 0.0004661563536 | E74: 4 | F74: 0.001864625415 | G74: 0.0004661563536 | H74: 1.7 | I74: 0.0007924658012 | J74: 0.0004661563536 | K74: 6.9 | L74: ='global path'!C65 -> 0.00321647884 | M74: 0.0004661563536 | AB74: 6.2 | AC74: 0.002029430636
A75: 2078 | B75: 1.2 | C75: 0 | D75: 0 | E75: 4 | F75: 0 | G75: 0 | H75: 1.7 | I75: 0 | J75: 0 | K75: 6.9 | L75: ='global path'!C66 -> 0 | M75: 0 | AB75: 6.3 | AC75: 0.001836304777
A76: 2079 | B76: 1.2 | C76: 0 | D76: 0 | E76: 4 | F76: 0 | G76: 0 | H76: 1.7 | I76: 0 | J76: 0 | K76: 6.9 | L76: ='global path'!C67 -> 0 | M76: 0 | AB76: 6.4 | AC76: 0.001661557273
A77: 2080 | B77: 1.2 | C77: 0 | D77: 0 | E77: 4 | F77: 0 | G77: 0 | H77: 1.7 | I77: 0 | J77: 0 | K77: 6.9 | L77: ='global path'!C68 -> 0 | M77: 0 | AB77: 6.5 | AC77: 0.001503439193
A78: 2081 | B78: 1.2 | C78: 0 | D78: 0 | E78: 4 | F78: 0 | G78: 0 | H78: 1.7 | I78: 0 | J78: 0 | K78: 6.9 | L78: ='global path'!C69 -> 0 | M78: 0 | AB78: 6.6 | AC78: =EXP(-AB78) -> 0.001360368038
A79: 2082 | B79: 1.2 | C79: 0 | D79: 0 | E79: 4 | F79: 0 | G79: 0 | H79: 1.7 | I79: 0 | J79: 0 | K79: 6.9 | L79: ='global path'!C70 -> 0 | M79: 0 | AB79: 6.7 | AC79: =EXP(-AB79) -> 0.001230911903
A80: 2083 | B80: 1.2 | C80: 0 | D80: 0 | E80: 4 | F80: 0 | G80: 0 | H80: 1.7 | I80: 0 | J80: 0 | K80: 6.9 | L80: ='global path'!C71 -> 0 | M80: 0 | AB80: 6.8 | AC80: =EXP(-AB80) -> 0.001113775148
A81: 2084 | B81: 1.2 | C81: 0 | D81: 0 | E81: 4 | F81: 0 | G81: 0 | H81: 1.7 | I81: 0 | J81: 0 | K81: 6.9 | L81: ='global path'!C72 -> 0 | M81: 0
A82: 2085 | B82: 1.2 | C82: 0 | D82: 0 | E82: 4 | F82: 0 | G82: 0 | H82: 1.7 | I82: 0 | J82: 0 | K82: 6.9 | L82: ='global path'!C73 -> 0 | M82: 0
A83: 2086 | B83: 1.2 | C83: 0 | D83: 0 | E83: 4 | F83: 0 | G83: 0 | H83: 1.7 | I83: 0 | J83: 0 | K83: 6.9 | L83: ='global path'!C74 -> 0 | M83: 0
A84: 2087 | B84: 1.2 | C84: 0 | D84: 0 | E84: 4 | F84: 0 | G84: 0 | H84: 1.7 | I84: 0 | J84: 0 | K84: 6.9 | L84: ='global path'!C75 -> 0 | M84: 0
A85: 2088 | B85: 1.2 | C85: 0 | D85: 0 | E85: 4 | F85: 0 | G85: 0 | H85: 1.7 | I85: 0 | J85: 0 | K85: 6.9 | L85: ='global path'!C76 -> 0 | M85: 0
A86: 2089 | B86: 1.2 | C86: 0 | D86: 0 | E86: 4 | F86: 0 | G86: 0 | H86: 1.7 | I86: 0 | J86: 0 | K86: 6.9 | L86: ='global path'!C77 -> 0 | M86: 0
A87: 2090 | B87: 1.2 | C87: 0 | D87: 0 | E87: 4 | F87: 0 | G87: 0 | H87: 1.7 | I87: 0 | J87: 0 | K87: 6.9 | L87: ='global path'!C78 -> 0 | M87: 0
A88: 2091 | B88: 1.2 | C88: 0 | D88: 0 | E88: 4 | F88: 0 | G88: 0 | H88: 1.7 | I88: 0 | J88: 0 | K88: 6.9 | L88: ='global path'!C79 -> 0 | M88: 0
A89: 2092 | B89: 1.2 | C89: 0 | D89: 0 | E89: 4 | F89: 0 | G89: 0 | H89: 1.7 | I89: 0 | J89: 0 | K89: 6.9 | L89: ='global path'!C80 -> 0 | M89: 0
A90: 2093 | B90: 1.2 | C90: 0 | D90: 0 | E90: 4 | F90: 0 | G90: 0 | H90: 1.7 | I90: 0 | J90: 0 | K90: 6.9 | L90: ='global path'!C81 -> 0 | M90: 0
A91: 2094 | B91: 1.2 | C91: 0 | D91: 0 | E91: 4 | F91: 0 | G91: 0 | H91: 1.7 | I91: 0 | J91: 0 | K91: 6.9 | L91: ='global path'!C82 -> 0 | M91: 0
A92: 2095 | B92: 1.2 | C92: 0 | D92: 0 | E92: 4 | F92: 0 | G92: 0 | H92: 1.7 | I92: 0 | J92: 0 | K92: 6.9 | L92: ='global path'!C83 -> 0 | M92: 0
A93: 2096 | B93: 1.2 | C93: 0 | D93: 0 | E93: 4 | F93: 0 | G93: 0 | H93: 1.7 | I93: 0 | J93: 0 | K93: 6.9 | L93: ='global path'!C84 -> 0 | M93: 0
A94: 2097 | B94: 1.2 | C94: 0 | D94: 0 | E94: 4 | F94: 0 | G94: 0 | H94: 1.7 | I94: 0 | J94: 0 | K94: 6.9 | L94: ='global path'!C85 -> 0 | M94: 0
A95: 2098 | B95: 1.2 | C95: 0 | D95: 0 | E95: 4 | F95: 0 | G95: 0 | H95: 1.7 | I95: 0 | J95: 0 | K95: 6.9 | L95: ='global path'!C86 -> 0 | M95: 0
A96: 2099 | B96: 1.2 | C96: 0 | D96: 0 | E96: 4 | F96: 0 | G96: 0 | H96: 1.7 | I96: 0 | J96: 0 | K96: 6.9 | L96: ='global path'!C87 -> 0 | M96: 0
A97: 2100 | B97: 1.2 | C97: 0 | D97: 0 | E97: 4 | F97: 0 | G97: 0 | H97: 1.7 | I97: 0 | J97: 0 | K97: 6.9 | L97: ='global path'!C88 -> 0 | M97: 0
A98: ∑ | C98: =SUM(C48:C97) -> 4.730879832 | F98: =SUM(F48:F97) -> 15.76959944 | I98: =SUM(I48:I97) -> 6.702079762 | L98: =SUM(L48:L97) -> 27.20255903
A100: ∑ | C100: =C98+C43 -> 247.1353148 | F100: =F98+F43 -> 352.7574483 | I100: =I98+I43 -> 84.07344229 | L100: =L98+L43 -> 683.9662054
J102: global path: | L102: ='global path'!C89 -> 683.9662054
J103: control: | L103: =L100-L102 -> 0
A104: global path: | C104: ='global path'!C2 -> 3
A105: 2 | C105: 255.2287458 | F105: 349.8152552 | I105: 78.64022223 | L105: =SUM(C105:I105) -> 683.6842232 | M105: C&Cexp
A106: 1 | C106: 229.7672775 | F106: 358.7278338 | I106: 95.53887337 | L106: =SUM(C106:I106) -> 684.0339846 | M106: C&Cexp
A107: 3 | C107: 247.1353148 | F107: 352.7574483 | I107: 84.07344229 | L107: =SUM(C107:I107) -> 683.9662054 | M107: C&Cexp
A108: 6 | C108: 247.2217258 | F108: 352.6372329 | I108: 83.96527811 | L108: =SUM(C108:I108) -> 683.8242369 | M108: C&Cexp
A110: 2 | C110: =$L110*'input data'!$C$11*$L$100+(1-$L110)*'input data'!$C$10*$L$100 -> 255.3212381 | F110: =$L110*'input data'!$D$11*$L$100+(1-$L110)*'input data'!$D$10*$L$100 -> 349.9638946 | I110: =$L110*'input data'!$E$11*$L$100+(1-$L110)*'input data'!$E$10*$L$100 -> 78.68107272 | L110: 0.3946187228 | M110: share population key | O110: solver
A111: 1 | C111: =$L111*'input data'!$C$11*$L$100+(1-$L111)*'input data'!$C$10*$L$100 -> 229.7445104 | F111: =$L111*'input data'!$D$11*$L$100+(1-$L111)*'input data'!$D$10*$L$100 -> 358.6922883 | I111: =$L111*'input data'!$E$11*$L$100+(1-$L111)*'input data'!$E$10*$L$100 -> 95.52940666 | L111: 0.5081598584 | M111: share population key | O111: solver
A112: =A107 -> 3 | C112: =$L112*'input data'!$C$11*$L$100+(1-$L112)*'input data'!$C$10*$L$100 -> 247.1103884 | F112: =$L112*'input data'!$D$11*$L$100+(1-$L112)*'input data'!$D$10*$L$100 -> 352.7659547 | I112: =$L112*'input data'!$E$11*$L$100+(1-$L112)*'input data'!$E$10*$L$100 -> 84.08986224 | L112: 0.4310686238 | M112: share population key | O112: solver
A113: =A108 -> 6 | C113: =$L113*'input data'!$C$11*$L$100+(1-$L113)*'input data'!$C$10*$L$100 -> 247.2730514 | F113: =$L113*'input data'!$D$11*$L$100+(1-$L113)*'input data'!$D$10*$L$100 -> 352.7104438 | I113: =$L113*'input data'!$E$11*$L$100+(1-$L113)*'input data'!$E$10*$L$100 -> 83.98271011 | L113: 0.4303465243 | M113: share population key | O113: solver
A115: 2 | C115: =(C105-C110)^2/C105^2 -> 1.313263714e-07 | F115: =(F105-F110)^2/F105^2 -> 1.805470196e-07 | I115: =(I105-I110)^2/I105^2 -> 2.698391755e-07 | L115: =C115+F115+I115 -> 5.817125664e-07 | M115: square deviation
A116: 1 | C116: =(C106-C111)^2/C106^2 -> 9.818329279e-09 | F116: =(F106-F111)^2/F106^2 -> 9.818329279e-09 | I116: =(I106-I111)^2/I106^2 -> 9.818329279e-09 | L116: =C116+F116+I116 -> 2.945498784e-08 | M116: square deviation
A117: =A107 -> 3 | C117: =(C107-C112)^2/C107^2 -> 1.01730284e-08 | F117: =(F107-F112)^2/F107^2 -> 5.814952737e-10 | I117: =(I107-I112)^2/I107^2 -> 3.814399539e-08 | L117: =C117+F117+I117 -> 4.889851906e-08 | M117: square deviation
A118: =A108 -> 6 | C118: =(C108-C113)^2/C108^2 -> 4.31017801e-08 | F118: =(F108-F113)^2/F108^2 -> 4.31017801e-08 | I118: =(I108-I113)^2/I108^2 -> 4.31017801e-08 | L118: =C118+F118+I118 -> 1.293053403e-07 | M118: square deviation

Sheet C&C-lin
A1: C&C: linear aproach | F1: source: | G1: www.gci.org.uk | K1: convergence period: 2020 - 2050
A2: C&C-lin
B4: Country A | E4: Country B | H4: Country C | K4: Global
A6: Year t | B6: Popu-lation Pit | C6: Eit | D6: Per capita | E6: Popu-lation Pit | F6: Eit | G6: Per capita | H6: Popu-lation Pit | I6: Eit | J6: Per capita | K6: Popu-lation Pt | L6: Et | M6: Per capita | N6: Ct
B7: bn | C7: Gt | D7: t | E7: bn | F7: Gt | G7: t | H7: bn | I7: Gt | J7: t | K7: bn | L7: Gt | M7: t
A8: 2019 | B8: =RF!B9 -> 1.2 | C8: =RF!C9 -> 21 | D8: =C8/B8 -> 17.5 | E8: =RF!E9 -> 4 | F8: =RF!F9 -> 19.5 | G8: =F8/E8 -> 4.875 | H8: =K8-E8-B8 -> 1.7 | I8: ='global path'!$C$7-C8-F8 -> 1.227717101 | J8: =I8/H8 -> 0.7221865302 | K8: =RF!K9 -> 6.9 | L8: =I8+F8+C8 -> 41.7277171 | M8: =L8/K8 -> 6.047495232 | N8: =(A8-2019)/(2050-2019) -> 0
A9: =A8+1 -> 2020 | B9: =B$8*(B$39/B$8)^(($A9-2019)/31) -> 1.2 | C9: =((1-$N9)*(C8/$L8)+$N9*(B9/$K9))*'global path'!$C8 -> 20.14554369 | D9: =C9/B9 -> 16.78795308 | E9: =E$8*(E$39/E$8)^(($A9-2019)/31) -> 4 | F9: =((1-$N9)*(F8/$L8)+$N9*(E9/$K9))*'global path'!$C8 -> 19.25826391 | G9: =F9/E9 -> 4.814565978 | H9: =H$8*(H$39/H$8)^(($A9-2019)/31) -> 1.7 | I9: =((1-$N9)*(I8/$L8)+$N9*(H9/$K9))*'global path'!$C8 -> 1.489355156 | J9: =I9/H9 -> 0.8760912682 | K9: =B9+E9+H9 -> 6.9 | L9: =I9+F9+C9 -> 40.89316276 | M9: =L9/K9 -> 5.926545327 | N9: =(A9-2019)/(2050-2019) -> 0.03225806452
A10: =A9+1 -> 2021 | B10: =B$8*(B$39/B$8)^(($A10-2019)/31) -> 1.2 | C10: =((1-$N10)*(C9/$L9)+$N10*(B10/$K10))*'global path'!$C9 -> 18.85522753 | D10: 15.71268961 | E10: =E$8*(E$39/E$8)^(($A10-2019)/31) -> 4 | F10: =((1-$N10)*(F9/$L9)+$N10*(E10/$K10))*'global path'!$C9 -> 19.09019272 | G10: 4.77254818 | H10: =H$8*(H$39/H$8)^(($A10-2019)/31) -> 1.7 | I10: =((1-$N10)*(I9/$L9)+$N10*(H10/$K10))*'global path'!$C9 -> 1.995706292 | J10: 1.173944878 | K10: =B10+E10+H10 -> 6.9 | L10: =I10+F10+C10 -> 39.94112655 | M10: 5.788569065 | N10: =(A10-2019)/(2050-2019) -> 0.06451612903
A11: 2022 | B11: 1.2 | C11: =((1-$N11)*(C10/$L10)+$N11*(B11/$K11))*'global path'!$C10 -> 17.23252644 | D11: 14.3604387 | E11: 4 | F11: =((1-$N11)*(F10/$L10)+$N11*(E11/$K11))*'global path'!$C10 -> 18.96596826 | G11: 4.741492066 | H11: 1.7 | I11: =((1-$N11)*(I10/$L10)+$N11*(H11/$K11))*'global path'!$C10 -> 2.681710772 | J11: 1.577476925 | K11: 6.9 | L11: 38.88020548 | M11: 5.634812388 | N11: 0.09677419355
A12: 2023 | B12: 1.2 | C12: =((1-$N12)*(C11/$L11)+$N12*(B12/$K12))*'global path'!$C11 -> 15.40750836 | D12: 12.8395903 | E12: 4 | F12: =((1-$N12)*(F11/$L11)+$N12*(E12/$K12))*'global path'!$C11 -> 18.84727221 | G12: 4.711818051 | H12: 1.7 | I12: =((1-$N12)*(I11/$L11)+$N12*(H12/$K12))*'global path'!$C11 -> 3.465115835 | J12: 2.038303433 | K12: 6.9 | L12: 37.7198964 | M12: 5.466651652 | N12: 0.1290322581
A13: 2024 | B13: 1.2 | C13: =((1-$N13)*(C12/$L12)+$N13*(B13/$K13))*'global path'!$C12 -> 13.51739488 | D13: 11.26449574 | E13: 4 | F13: =((1-$N13)*(F12/$L12)+$N13*(E13/$K13))*'global path'!$C12 -> 18.69382883 | G13: 4.673457208 | H13: 1.7 | I13: =((1-$N13)*(I12/$L12)+$N13*(H13/$K13))*'global path'!$C12 -> 4.259229643 | J13: 2.505429201 | K13: 6.9 | L13: 36.47045336 | M13: 5.28557295 | N13: 0.1612903226
A14: 2025 | B14: 1.2 | C14: =((1-$N14)*(C13/$L13)+$N14*(B14/$K14))*'global path'!$C13 -> 11.68719131 | D14: 9.739326089 | E14: 4 | F14: =((1-$N14)*(F13/$L13)+$N14*(E14/$K14))*'global path'!$C13 -> 18.46991803 | G14: 4.617479506 | H14: 1.7 | I14: =((1-$N14)*(I13/$L13)+$N14*(H14/$K14))*'global path'!$C13 -> 4.985626059 | J14: 2.932721211 | K14: 6.9 | L14: 35.14273539 | M14: 5.093150057 | N14: 0.1935483871
A15: 2026 | B15: 1.2 | C15: =((1-$N15)*(C14/$L14)+$N15*(B15/$K15))*'global path'!$C14 -> 10.01436903 | D15: 8.345307526 | E15: 4 | F15: =((1-$N15)*(F14/$L14)+$N15*(E15/$K15))*'global path'!$C14 -> 18.14950126 | G15: 4.537375314 | H15: 1.7 | I15: =((1-$N15)*(I14/$L14)+$N15*(H15/$K15))*'global path'!$C14 -> 5.584177661 | J15: 3.284810389 | K15: 6.9 | L15: 33.74804795 | M15: 4.891021442 | N15: 0.2258064516
A16: 2027 | B16: 1.2 | C16: =((1-$N16)*(C15/$L15)+$N16*(B16/$K16))*'global path'!$C15 -> 8.56032584 | D16: 7.133604867 | E16: 4 | F16: =((1-$N16)*(F15/$L15)+$N16*(E16/$K16))*'global path'!$C15 -> 17.71903253 | G16: 4.429758132 | H16: 1.7 | I16: =((1-$N16)*(I15/$L15)+$N16*(H16/$K16))*'global path'!$C15 -> 6.01862281 | J16: 3.540366359 | K16: 6.9 | L16: 32.29798118 | M16: 4.680866837 | N16: 0.2580645161
A17: 2028 | B17: 1.2 | C17: =((1-$N17)*(C16/$L16)+$N17*(B17/$K17))*'global path'!$C16 -> 7.349440875 | D17: 6.124534063 | E17: 4 | F17: =((1-$N17)*(F16/$L16)+$N17*(E17/$K17))*'global path'!$C16 -> 17.17767766 | G17: 4.294419415 | H17: 1.7 | I17: =((1-$N17)*(I16/$L16)+$N17*(H17/$K17))*'global path'!$C16 -> 6.277129869 | J17: 3.692429334 | K17: 6.9 | L17: 30.8042484 | M17: 4.464383826 | N17: 0.2903225806
A18: 2029 | B18: 1.2 | C18: =((1-$N18)*(C17/$L17)+$N18*(B18/$K18))*'global path'!$C17 -> 6.374617196 | D18: 5.312180997 | E18: 4 | F18: =((1-$N18)*(F17/$L17)+$N18*(E18/$K18))*'global path'!$C17 -> 16.53532169 | G18: 4.133830422 | H18: 1.7 | I18: =((1-$N18)*(I17/$L17)+$N18*(H18/$K18))*'global path'!$C17 -> 6.368589006 | J18: 3.746228827 | K18: 6.9 | L18: 29.27852789 | M18: 4.243264912 | N18: 0.3225806452
A19: 2030 | B19: 1.2 | C19: =((1-$N19)*(C18/$L18)+$N19*(B19/$K19))*'global path'!$C18 -> 5.606855234 | D19: 4.672379362 | E19: 4 | F19: =((1-$N19)*(F18/$L18)+$N19*(E19/$K19))*'global path'!$C18 -> 15.80920477 | G19: 3.952301192 | H19: 1.7 | I19: =((1-$N19)*(I18/$L18)+$N19*(H19/$K19))*'global path'!$C18 -> 6.316250993 | J19: 3.715441761 | K19: 6.9 | L19: 27.73231099 | M19: 4.019175506 | N19: 0.3548387097
A20: 2031 | B20: 1.2 | C20: =((1-$N20)*(C19/$L19)+$N20*(B20/$K20))*'global path'!$C19 -> 5.005953177 | D20: 4.171627647 | E20: 4 | F20: =((1-$N20)*(F19/$L19)+$N20*(E20/$K20))*'global path'!$C19 -> 15.02017925 | G20: 3.755044813 | H20: 1.7 | I20: =((1-$N20)*(I19/$L19)+$N20*(H20/$K20))*'global path'!$C19 -> 6.150626925 | J20: 3.618015838 | K20: 6.9 | L20: 26.17675935 | M20: 3.79373324 | N20: 0.3870967742
A21: 2032 | B21: 1.2 | C21: =((1-$N21)*(C20/$L20)+$N21*(B21/$K21))*'global path'!$C20 -> 4.529860534 | D21: 3.774883779 | E21: 4 | F21: =((1-$N21)*(F20/$L20)+$N21*(E21/$K21))*'global path'!$C20 -> 14.18943381 | G21: 3.547358452 | H21: 1.7 | I21: =((1-$N21)*(I20/$L20)+$N21*(H21/$K21))*'global path'!$C20 -> 5.903279316 | J21: 3.472517245 | K21: 6.9 | L21: 24.62257366 | M21: 3.568488936 | N21: 0.4193548387
A22: 2033 | B22: 1.2 | C22: =((1-$N22)*(C21/$L21)+$N22*(B22/$K22))*'global path'!$C21 -> 4.141202901 | D22: 3.451002417 | E22: 4 | F22: =((1-$N22)*(F21/$L21)+$N22*(E22/$K22))*'global path'!$C21 -> 13.3361916 | G22: 3.3340479 | H22: 1.7 | I22: =((1-$N22)*(I21/$L21)+$N22*(H22/$K22))*'global path'!$C21 -> 5.602481548 | J22: 3.295577381 | K22: 6.9 | L22: 23.07987605 | M22: 3.344909572 | N22: 0.4516129032
A23: 2034 | B23: 1.2 | C23: =((1-$N23)*(C22/$L22)+$N23*(B23/$K23))*'global path'!$C22 -> 3.810612737 | D23: 3.175510615 | E23: 4 | F23: =((1-$N23)*(F22/$L22)+$N23*(E23/$K23))*'global path'!$C22 -> 12.47650824 | G23: 3.119127059 | H23: 1.7 | I23: =((1-$N23)*(I22/$L22)+$N23*(H23/$K23))*'global path'!$C22 -> 5.27098684 | J23: 3.100580494 | K23: 6.9 | L23: 21.55810781 | M23: 3.124363451 | N23: 0.4838709677
A24: 2035 | B24: 1.2 | C24: =((1-$N24)*(C23/$L23)+$N24*(B24/$K24))*'global path'!$C23 -> 3.51737209 | D24: 2.931143408 | E24: 4 | F24: =((1-$N24)*(F23/$L23)+$N24*(E24/$K24))*'global path'!$C23 -> 11.62299767 | G24: 2.905749417 | H24: 1.7 | I24: =((1-$N24)*(I23/$L23)+$N24*(H24/$K24))*'global path'!$C23 -> 4.925573924 | J24: 2.897396426 | K24: 6.9 | L24: 20.06594368 | M24: 2.90810778 | N24: 0.5161290323
A25: 2036 | B25: 1.2 | C25: =((1-$N25)*(C24/$L24)+$N25*(B25/$K25))*'global path'!$C24 -> 3.248313301 | D25: 2.706927751 | E25: 4 | F25: =((1-$N25)*(F24/$L24)+$N25*(E25/$K25))*'global path'!$C24 -> 10.78516364 | G25: 2.69629091 | H25: 1.7 | I25: =((1-$N25)*(I24/$L24)+$N25*(H25/$K25))*'global path'!$C24 -> 4.577746525 | J25: 2.692792073 | K25: 6.9 | L25: 18.61122347 | M25: 2.697278763 | N25: 0.5483870968
A26: 2037 | B26: 1.2 | C26: =((1-$N26)*(C25/$L25)+$N26*(B26/$K26))*'global path'!$C25 -> 2.995948802 | D26: 2.496624002 | E26: 4 | F26: =((1-$N26)*(F25/$L25)+$N26*(E26/$K26))*'global path'!$C25 -> 9.97000563 | G26: 2.492501407 | H26: 1.7 | I26: =((1-$N26)*(I25/$L25)+$N26*(H26/$K26))*'global path'!$C25 -> 4.234947076 | J26: 2.491145339 | K26: 6.9 | L26: 17.20090151 | M26: 2.492884277 | N26: 0.5806451613
A27: 2038 | B27: 1.2 | C27: =((1-$N27)*(C26/$L26)+$N27*(B27/$K27))*'global path'!$C26 -> 2.756558741 | D27: 2.297132284 | E27: 4 | F27: =((1-$N27)*(F26/$L26)+$N27*(E27/$K27))*'global path'!$C26 -> 9.182650429 | G27: 2.295662607 | H27: 1.7 | I27: =((1-$N27)*(I26/$L26)+$N27*(H27/$K27))*'global path'!$C26 -> 3.901804603 | J27: 2.295179178 | K27: 6.9 | L27: 15.84101377 | M27: 2.295799097 | N27: 0.6129032258
A28: 2039 | B28: 1.2 | C28: =((1-$N28)*(C27/$L27)+$N28*(B28/$K28))*'global path'!$C27 -> 2.528636102 | D28: 2.107196752 | E28: 4 | F28: =((1-$N28)*(F27/$L27)+$N28*(E28/$K28))*'global path'!$C27 -> 8.426872775 | G28: 2.106718194 | H28: 1.7 | I28: =((1-$N28)*(I27/$L27)+$N28*(H28/$K28))*'global path'!$C27 -> 3.581153324 | J28: 2.106560779 | K28: 6.9 | L28: 14.5366622 | M28: 2.106762638 | N28: 0.6451612903
A29: 2040 | B29: 1.2 | C29: =((1-$N29)*(C28/$L28)+$N29*(B29/$K29))*'global path'!$C28 -> 2.31180852 | D29: 1.9265071 | E29: 4 | F29: =((1-$N29)*(F28/$L28)+$N29*(E29/$K29))*'global path'!$C28 -> 7.705463778 | G29: 1.926365944 | H29: 1.7 | I29: =((1-$N29)*(I28/$L28)+$N29*(H29/$K29))*'global path'!$C28 -> 3.274743172 | J29: 1.926319513 | K29: 6.9 | L29: 13.29201547 | M29: 1.926379054 | N29: 0.6774193548
A30: 2041 | B30: 1.2 | C30: =((1-$N30)*(C29/$L29)+$N30*(B30/$K30))*'global path'!$C29 -> 2.106184121 | D30: 1.755153435 | E30: 4 | F30: =((1-$N30)*(F29/$L29)+$N30*(E30/$K30))*'global path'!$C29 -> 7.020464388 | G30: 1.755116097 | H30: 1.7 | I30: =((1-$N30)*(I29/$L29)+$N30*(H30/$K30))*'global path'!$C29 -> 2.983676486 | J30: 1.755103815 | K30: 6.9 | L30: 12.110325 | M30: 1.755119565 | N30: 0.7096774194
A31: 2042 | B31: 1.2 | C31: =((1-$N31)*(C30/$L30)+$N31*(B31/$K31))*'global path'!$C30 -> 1.912001658 | D31: 1.593334715 | E31: 4 | F31: =((1-$N31)*(F30/$L30)+$N31*(E31/$K31))*'global path'!$C30 -> 6.373303872 | G31: 1.593325968 | H31: 1.7 | I31: =((1-$N31)*(I30/$L30)+$N31*(H31/$K31))*'global path'!$C30 -> 2.708649254 | J31: 1.593323091 | K31: 6.9 | L31: 10.99395478 | M31: 1.59332678 | N31: 0.7419354839
A32: 2043 | B32: 1.2 | C32: =((1-$N32)*(C31/$L31)+$N32*(B32/$K32))*'global path'!$C31 -> 1.729466897 | D32: 1.441222414 | E32: 4 | F32: =((1-$N32)*(F31/$L31)+$N32*(E32/$K32))*'global path'!$C31 -> 5.764882509 | G32: 1.441220627 | H32: 1.7 | I32: =((1-$N32)*(I31/$L31)+$N32*(H32/$K32))*'global path'!$C31 -> 2.450074067 | J32: 1.44122004 | K32: 6.9 | L32: 9.944423473 | M32: 1.441220793 | N32: 0.7741935484
A33: 2044 | B33: 1.2 | C33: =((1-$N33)*(C32/$L32)+$N33*(B33/$K33))*'global path'!$C32 -> 1.558688475 | D33: 1.298907062 | E33: 4 | F33: =((1-$N33)*(F32/$L32)+$N33*(E33/$K33))*'global path'!$C32 -> 5.195627003 | G33: 1.298906751 | H33: 1.7 | I33: =((1-$N33)*(I32/$L32)+$N33*(H33/$K33))*'global path'!$C32 -> 2.208141302 | J33: 1.298906648 | K33: 6.9 | L33: 8.96245678 | M33: 1.29890678 | N33: 0.8064516129
A34: 2045 | B34: 1.2 | C34: =((1-$N34)*(C33/$L33)+$N34*(B34/$K34))*'global path'!$C33 -> 1.399660654 | D34: 1.166383878 | E34: 4 | F34: =((1-$N34)*(F33/$L33)+$N34*(E34/$K34))*'global path'!$C33 -> 4.665535332 | G34: 1.166383833 | H34: 1.7 | I34: =((1-$N34)*(I33/$L33)+$N34*(H34/$K34))*'global path'!$C33 -> 1.982852491 | J34: 1.166383818 | K34: 6.9 | L34: 8.048048476 | M34: 1.166383837 | N34: 0.8387096774
A35: 2046 | B35: 1.2 | C35: =((1-$N35)*(C34/$L34)+$N35*(B35/$K35))*'global path'!$C34 -> 1.252265733 | D35: 1.043554778 | E35: 4 | F35: =((1-$N35)*(F34/$L34)+$N35*(E35/$K35))*'global path'!$C34 -> 4.17421909 | G35: 1.043554773 | H35: 1.7 | I35: =((1-$N35)*(I34/$L34)+$N35*(H35/$K35))*'global path'!$C34 -> 1.77404311 | J35: 1.043554771 | K35: 6.9 | L35: 7.200527934 | M35: 1.043554773 | N35: 0.8709677419
A36: 2047 | B36: 1.2 | C36: =((1-$N36)*(C35/$L35)+$N36*(B36/$K36))*'global path'!$C35 -> 1.11628389 | D36: 0.9302365746 | E36: 4 | F36: =((1-$N36)*(F35/$L35)+$N36*(E36/$K36))*'global path'!$C35 -> 3.720946297 | G36: 0.9302365742 | H36: 1.7 | I36: =((1-$N36)*(I35/$L35)+$N36*(H36/$K36))*'global path'!$C35 -> 1.581402176 | J36: 0.930236574 | K36: 6.9 | L36: 6.418632362 | M36: 0.9302365742 | N36: 0.9032258065
A37: 2048 | B37: 1.2 | C37: =((1-$N37)*(C36/$L36)+$N37*(B37/$K37))*'global path'!$C36 -> 0.9914055386 | D37: 0.8261712822 | E37: 4 | F37: =((1-$N37)*(F36/$L36)+$N37*(E37/$K37))*'global path'!$C36 -> 3.304685129 | G37: 0.8261712822 | H37: 1.7 | I37: =((1-$N37)*(I36/$L36)+$N37*(H37/$K37))*'global path'!$C36 -> 1.40449118 | J37: 0.8261712822 | K37: 6.9 | L37: 5.700581847 | M37: 0.8261712822 | N37: 0.935483871
A38: 2049 | B38: 1.2 | C38: =((1-$N38)*(C37/$L37)+$N38*(B38/$K38))*'global path'!$C37 -> 0.8772444305 | D38: 0.7310370255 | E38: 4 | F38: =((1-$N38)*(F37/$L37)+$N38*(E38/$K38))*'global path'!$C37 -> 2.924148102 | G38: 0.7310370255 | H38: 1.7 | I38: =((1-$N38)*(I37/$L37)+$N38*(H38/$K38))*'global path'!$C37 -> 1.242762943 | J38: 0.7310370255 | K38: 6.9 | L38: 5.044155476 | M38: 0.7310370255 | N38: 0.9677419355
A39: 2050 | B39: =RF!B40 -> 1.2 | C39: =((1-$N39)*(C38/$L38)+$N39*(B39/$K39))*'global path'!$C38 -> 0.7733507692 | D39: 0.6444589743 | E39: =RF!E40 -> 4 | F39: =((1-$N39)*(F38/$L38)+$N39*(E39/$K39))*'global path'!$C38 -> 2.577835897 | G39: 0.6444589743 | H39: =K39-E39-B39 -> 1.7 | I39: =((1-$N39)*(I38/$L38)+$N39*(H39/$K39))*'global path'!$C38 -> 1.095580256 | J39: 0.6444589743 | K39: =RF!K40 -> 6.9 | L39: 4.446766923 | M39: 0.6444589743 | N39: 1
A40: ∑ | C40: =SUM(C9:C39) -> 183.3138195 | F40: =SUM(F9:F39) -> 357.1532963 | I40: =SUM(I9:I39) -> 116.2965306 | L40: =SUM(L9:L39) -> 656.7636464
J42: global path: | L42: ='global path'!C90 -> 656.7636464
J43: control: | L43: =L40-L42 -> 0
A45: =A39+1 -> 2051 | B45: =B39 -> 1.2 | C45: =B45/$K45*$L45 -> 0.6792240131 | D45: =C45/B45 -> 0.5660200109 | E45: =E39 -> 4 | F45: =E45/$K45*$L45 -> 2.264080044 | G45: =F45/E45 -> 0.5660200109 | H45: =H39 -> 1.7 | I45: =H45/$K45*$L45 -> 0.9622340185 | J45: =I45/H45 -> 0.5660200109 | K45: =B45+E45+H45 -> 6.9 | L45: ='global path'!C39 -> 3.905538075 | M45: =L45/K45 -> 0.5660200109
A46: =A45+1 -> 2052 | B46: =B45 -> 1.2 | C46: =B46/$K46*$L46 -> 0.594325121 | D46: =C46/B46 -> 0.4952709341 | E46: =E45 -> 4 | F46: =E46/$K46*$L46 -> 1.981083737 | G46: =F46/E46 -> 0.4952709341 | H46: =H45 -> 1.7 | I46: =H46/$K46*$L46 -> 0.841960588 | J46: =I46/H46 -> 0.4952709341 | K46: =B46+E46+H46 -> 6.9 | L46: ='global path'!C40 -> 3.417369445 | M46: =L46/K46 -> 0.4952709341
A47: =A46+1 -> 2053 | B47: =B46 -> 1.2 | C47: 0.5180880598 | D47: 0.4317400498 | E47: =E46 -> 4 | F47: 1.726960199 | G47: 0.4317400498 | H47: =H46 -> 1.7 | I47: 0.7339580847 | J47: 0.4317400498 | K47: 6.9 | L47: ='global path'!C41 -> 2.979006344 | M47: 0.4317400498
A48: 2054 | B48: 1.2 | C48: 0.4499304299 | D48: 0.3749420249 | E48: 4 | F48: 1.4997681 | G48: 0.3749420249 | H48: 1.7 | I48: 0.6374014424 | J48: 0.3749420249 | K48: 6.9 | L48: ='global path'!C42 -> 2.587099972 | M48: 0.3749420249
A49: 2055 | B49: 1.2 | C49: 0.3892631009 | D49: 0.3243859174 | E49: 4 | F49: 1.29754367 | G49: 0.3243859174 | H49: 1.7 | I49: 0.5514560597 | J49: 0.3243859174 | K49: 6.9 | L49: ='global path'!C43 -> 2.23826283 | M49: 0.3243859174
A50: 2056 | B50: 1.2 | C50: 0.3354987847 | D50: 0.2795823206 | E50: 4 | F50: 1.118329282 | G50: 0.2795823206 | H50: 1.7 | I50: 0.475289945 | J50: 0.2795823206 | K50: 6.9 | L50: ='global path'!C44 -> 1.929118012 | M50: 0.2795823206
A51: 2057 | B51: 1.2 | C51: 0.2880595067 | D51: 0.2400495889 | E51: 4 | F51: 0.9601983557 | G51: 0.2400495889 | H51: 1.7 | I51: 0.4080843012 | J51: 0.2400495889 | K51: 6.9 | L51: ='global path'!C45 -> 1.656342164 | M51: 0.2400495889
A52: 2058 | B52: 1.2 | C52: 0.2463829665 | D52: 0.2053191387 | E52: 4 | F52: 0.8212765549 | G52: 0.2053191387 | H52: 1.7 | I52: 0.3490425358 | J52: 0.2053191387 | K52: 6.9 | L52: ='global path'!C46 -> 1.416702057 | M52: 0.2053191387
A53: 2059 | B53: 1.2 | C53: 0.2099278037 | D53: 0.1749398364 | E53: 4 | F53: 0.6997593456 | G53: 0.1749398364 | H53: 1.7 | I53: 0.2973977219 | J53: 0.1749398364 | K53: 6.9 | L53: ='global path'!C47 -> 1.207084871 | M53: 0.1749398364
A54: 2060 | B54: 1.2 | C54: 0.178177811 | D54: 0.1484815092 | E54: 4 | F54: 0.5939260368 | G54: 0.1484815092 | H54: 1.7 | I54: 0.2524185656 | J54: 0.1484815092 | K54: 6.9 | L54: ='global path'!C48 -> 1.024522414 | M54: 0.1484815092
A55: 2061 | B55: 1.2 | C55: 0.1506451524 | D55: 0.125537627 | E55: 4 | F55: 0.502150508 | G55: 0.125537627 | H55: 1.7 | I55: 0.2134139659 | J55: 0.125537627 | K55: 6.9 | L55: ='global path'!C49 -> 0.8662096264 | M55: 0.125537627
A56: 2062 | B56: 1.2 | C56: 0.1268726606 | D56: 0.1057272171 | E56: 4 | F56: 0.4229088686 | G56: 0.1057272171 | H56: 1.7 | I56: 0.1797362692 | J56: 0.1057272171 | K56: 6.9 | L56: ='global path'!C50 -> 0.7295177983 | M56: 0.1057272171
A57: 2063 | B57: 1.2 | C57: 0.1064352994 | D57: 0.08869608284 | E57: 4 | F57: 0.3547843313 | G57: 0.08869608284 | H57: 1.7 | I57: 0.1507833408 | J57: 0.08869608284 | K57: 6.9 | L57: ='global path'!C51 -> 0.6120029716 | M57: 0.08869608284
A58: 2064 | B58: 1.2 | C58: 0.08894088252 | D58: 0.0741174021 | E58: 4 | F58: 0.2964696084 | G58: 0.0741174021 | H58: 1.7 | I58: 0.1259995836 | J58: 0.0741174021 | K58: 6.9 | L58: ='global path'!C52 -> 0.5114100745 | M58: 0.0741174021
A59: 2065 | B59: 1.2 | C59: 0.07403014442 | D59: 0.06169178702 | E59: 4 | F59: 0.2467671481 | G59: 0.06169178702 | H59: 1.7 | I59: 0.1048760379 | J59: 0.06169178702 | K59: 6.9 | L59: ='global path'!C53 -> 0.4256733304 | M59: 0.06169178702
A60: 2066 | B60: 1.2 | C60: 0.06137626047 | D60: 0.05114688373 | E60: 4 | F60: 0.2045875349 | G60: 0.05114688373 | H60: 1.7 | I60: 0.08694970234 | J60: 0.05114688373 | K60: 6.9 | L60: ='global path'!C54 -> 0.3529134977 | M60: 0.05114688373
A61: 2067 | B61: 1.2 | C61: 0.05068391051 | D61: 0.04223659209 | E61: 4 | F61: 0.1689463684 | G61: 0.04223659209 | H61: 1.7 | I61: 0.07180220655 | J61: 0.04223659209 | K61: 6.9 | L61: ='global path'!C55 -> 0.2914324854 | M61: 0.04223659209
A62: 2068 | B62: 1.2 | C62: 0.04168797637 | D62: 0.03473998031 | E62: 4 | F62: 0.1389599212 | G62: 0.03473998031 | H62: 1.7 | I62: 0.05905796653 | J62: 0.03473998031 | K62: 6.9 | L62: ='global path'!C56 -> 0.2397058642 | M62: 0.03473998031
A63: 2069 | B63: 1.2 | C63: 0.03415195812 | D63: 0.0284599651 | E63: 4 | F63: 0.1138398604 | G63: 0.0284599651 | H63: 1.7 | I63: 0.04838194066 | J63: 0.0284599651 | K63: 6.9 | L63: ='global path'!C57 -> 0.1963737592 | M63: 0.0284599651
A64: 2070 | B64: 1.2 | C64: 0.02786618619 | D64: 0.02322182182 | E64: 4 | F64: 0.09288728729 | G64: 0.02322182182 | H64: 1.7 | I64: 0.0394770971 | J64: 0.02322182182 | K64: 6.9 | L64: ='global path'!C58 -> 0.1602305706 | M64: 0.02322182182
A65: 2071 | B65: 1.2 | C65: 0.02264589907 | D65: 0.01887158256 | E65: 4 | F65: 0.07548633024 | G65: 0.01887158256 | H65: 1.7 | I65: 0.03208169035 | J65: 0.01887158256 | K65: 6.9 | L65: ='global path'!C59 -> 0.1302139197 | M65: 0.01887158256
A66: 2072 | B66: 1.2 | C66: 0.01832924721 | D66: 0.01527437268 | E66: 4 | F66: 0.06109749071 | G66: 0.01527437268 | H66: 1.7 | I66: 0.02596643355 | J66: 0.01527437268 | K66: 6.9 | L66: ='global path'!C60 -> 0.1053931715 | M66: 0.01527437268
A67: 2073 | B67: 1.2 | C67: 0.01477527529 | D67: 0.01231272941 | E67: 4 | F67: 0.04925091765 | G67: 0.01231272941 | H67: 1.7 | I67: 0.02093164 | J67: 0.01231272941 | K67: 6.9 | L67: ='global path'!C61 -> 0.08495783294 | M67: 0.01231272941
A68: 2074 | B68: 1.2 | C68: 0.01122130338 | D68: 0.009351086147 | E68: 4 | F68: 0.03740434459 | G68: 0.009351086147 | H68: 1.7 | I68: 0.01589684645 | J68: 0.009351086147 | K68: 6.9 | L68: ='global path'!C62 -> 0.06452249442 | M68: 0.009351086147
A69: 2075 | B69: 1.2 | C69: 0.007667331459 | D69: 0.006389442883 | E69: 4 | F69: 0.02555777153 | G69: 0.006389442883 | H69: 1.7 | I69: 0.0108620529 | J69: 0.006389442883 | K69: 6.9 | L69: ='global path'!C63 -> 0.04408715589 | M69: 0.006389442883
A70: 2076 | B70: 1.2 | C70: 0.004113359542 | D70: 0.003427799618 | E70: 4 | F70: 0.01371119847 | G70: 0.003427799618 | H70: 1.7 | I70: 0.005827259351 | J70: 0.003427799618 | K70: 6.9 | L70: ='global path'!C64 -> 0.02365181737 | M70: 0.003427799618
A71: 2077 | B71: 1.2 | C71: 0.0005593876244 | D71: 0.0004661563536 | E71: 4 | F71: 0.001864625415 | G71: 0.0004661563536 | H71: 1.7 | I71: 0.0007924658012 | J71: 0.0004661563536 | K71: 6.9 | L71: ='global path'!C65 -> 0.00321647884 | M71: 0.0004661563536
A72: 2078 | B72: 1.2 | C72: 0 | D72: 0 | E72: 4 | F72: 0 | G72: 0 | H72: 1.7 | I72: 0 | J72: 0 | K72: 6.9 | L72: ='global path'!C66 -> 0 | M72: 0
A73: 2079 | B73: 1.2 | C73: 0 | D73: 0 | E73: 4 | F73: 0 | G73: 0 | H73: 1.7 | I73: 0 | J73: 0 | K73: 6.9 | L73: ='global path'!C67 -> 0 | M73: 0
A74: 2080 | B74: 1.2 | C74: 0 | D74: 0 | E74: 4 | F74: 0 | G74: 0 | H74: 1.7 | I74: 0 | J74: 0 | K74: 6.9 | L74: ='global path'!C68 -> 0 | M74: 0
A75: 2081 | B75: 1.2 | C75: 0 | D75: 0 | E75: 4 | F75: 0 | G75: 0 | H75: 1.7 | I75: 0 | J75: 0 | K75: 6.9 | L75: ='global path'!C69 -> 0 | M75: 0
A76: 2082 | B76: 1.2 | C76: 0 | D76: 0 | E76: 4 | F76: 0 | G76: 0 | H76: 1.7 | I76: 0 | J76: 0 | K76: 6.9 | L76: ='global path'!C70 -> 0 | M76: 0
A77: 2083 | B77: 1.2 | C77: 0 | D77: 0 | E77: 4 | F77: 0 | G77: 0 | H77: 1.7 | I77: 0 | J77: 0 | K77: 6.9 | L77: ='global path'!C71 -> 0 | M77: 0
A78: 2084 | B78: 1.2 | C78: 0 | D78: 0 | E78: 4 | F78: 0 | G78: 0 | H78: 1.7 | I78: 0 | J78: 0 | K78: 6.9 | L78: ='global path'!C72 -> 0 | M78: 0
A79: 2085 | B79: 1.2 | C79: 0 | D79: 0 | E79: 4 | F79: 0 | G79: 0 | H79: 1.7 | I79: 0 | J79: 0 | K79: 6.9 | L79: ='global path'!C73 -> 0 | M79: 0
A80: 2086 | B80: 1.2 | C80: 0 | D80: 0 | E80: 4 | F80: 0 | G80: 0 | H80: 1.7 | I80: 0 | J80: 0 | K80: 6.9 | L80: ='global path'!C74 -> 0 | M80: 0
A81: 2087 | B81: 1.2 | C81: 0 | D81: 0 | E81: 4 | F81: 0 | G81: 0 | H81: 1.7 | I81: 0 | J81: 0 | K81: 6.9 | L81: ='global path'!C75 -> 0 | M81: 0
A82: 2088 | B82: 1.2 | C82: 0 | D82: 0 | E82: 4 | F82: 0 | G82: 0 | H82: 1.7 | I82: 0 | J82: 0 | K82: 6.9 | L82: ='global path'!C76 -> 0 | M82: 0
A83: 2089 | B83: 1.2 | C83: 0 | D83: 0 | E83: 4 | F83: 0 | G83: 0 | H83: 1.7 | I83: 0 | J83: 0 | K83: 6.9 | L83: ='global path'!C77 -> 0 | M83: 0
A84: 2090 | B84: 1.2 | C84: 0 | D84: 0 | E84: 4 | F84: 0 | G84: 0 | H84: 1.7 | I84: 0 | J84: 0 | K84: 6.9 | L84: ='global path'!C78 -> 0 | M84: 0
A85: 2091 | B85: 1.2 | C85: 0 | D85: 0 | E85: 4 | F85: 0 | G85: 0 | H85: 1.7 | I85: 0 | J85: 0 | K85: 6.9 | L85: ='global path'!C79 -> 0 | M85: 0
A86: 2092 | B86: 1.2 | C86: 0 | D86: 0 | E86: 4 | F86: 0 | G86: 0 | H86: 1.7 | I86: 0 | J86: 0 | K86: 6.9 | L86: ='global path'!C80 -> 0 | M86: 0
A87: 2093 | B87: 1.2 | C87: 0 | D87: 0 | E87: 4 | F87: 0 | G87: 0 | H87: 1.7 | I87: 0 | J87: 0 | K87: 6.9 | L87: ='global path'!C81 -> 0 | M87: 0
A88: 2094 | B88: 1.2 | C88: 0 | D88: 0 | E88: 4 | F88: 0 | G88: 0 | H88: 1.7 | I88: 0 | J88: 0 | K88: 6.9 | L88: ='global path'!C82 -> 0 | M88: 0
A89: 2095 | B89: 1.2 | C89: 0 | D89: 0 | E89: 4 | F89: 0 | G89: 0 | H89: 1.7 | I89: 0 | J89: 0 | K89: 6.9 | L89: ='global path'!C83 -> 0 | M89: 0
A90: 2096 | B90: 1.2 | C90: 0 | D90: 0 | E90: 4 | F90: 0 | G90: 0 | H90: 1.7 | I90: 0 | J90: 0 | K90: 6.9 | L90: ='global path'!C84 -> 0 | M90: 0
A91: 2097 | B91: 1.2 | C91: 0 | D91: 0 | E91: 4 | F91: 0 | G91: 0 | H91: 1.7 | I91: 0 | J91: 0 | K91: 6.9 | L91: ='global path'!C85 -> 0 | M91: 0
A92: 2098 | B92: 1.2 | C92: 0 | D92: 0 | E92: 4 | F92: 0 | G92: 0 | H92: 1.7 | I92: 0 | J92: 0 | K92: 6.9 | L92: ='global path'!C86 -> 0 | M92: 0
A93: 2099 | B93: 1.2 | C93: 0 | D93: 0 | E93: 4 | F93: 0 | G93: 0 | H93: 1.7 | I93: 0 | J93: 0 | K93: 6.9 | L93: ='global path'!C87 -> 0 | M93: 0
A94: 2100 | B94: 1.2 | C94: 0 | D94: 0 | E94: 4 | F94: 0 | G94: 0 | H94: 1.7 | I94: 0 | J94: 0 | K94: 6.9 | L94: ='global path'!C88 -> 0 | M94: 0
A95: ∑ | C95: =SUM(C45:C94) -> 4.730879832 | F95: =SUM(F45:F94) -> 15.76959944 | I95: =SUM(I45:I94) -> 6.702079762 | L95: =SUM(L45:L94) -> 27.20255903
A97: ∑ | C97: =C95+C40 -> 188.0446993 | F97: =F95+F40 -> 372.9228957 | I97: =I95+I40 -> 122.9986104 | L97: =L95+L40 -> 683.9662054
J99: global path: | L99: ='C&C-exp'!L102 -> 683.9662054
J100: control: | L100: =L97-L99 -> 0
A101: global path: | C101: ='global path'!C2 -> 3
A102: 2 | C102: 190.3533716 | F102: 371.9548274 | I102: 121.3760242 | L102: =SUM(C102:I102) -> 683.6842232 | M102: C&Clin
A103: 1 | C103: 180.6197663 | F103: 375.5000665 | I103: 127.9141518 | L103: =SUM(C103:I103) -> 684.0339846 | M103: C&Clin
A104: 3 | C104: 188.0446993 | F104: 372.9228957 | I104: 122.9986104 | L104: =SUM(C104:I104) -> 683.9662054 | M104: C&Clin
A105: 6 | C105: 189.7678275 | F105: 372.2441292 | I105: 121.8122802 | L105: =SUM(C105:I105) -> 683.8242369 | M105: C&Clin
A107: 2 | C107: =$L107*'input data'!$C$11*$L$97+(1-$L107)*'input data'!$C$10*$L$97 -> 190.4396567 | F107: =$L107*'input data'!$D$11*$L$97+(1-$L107)*'input data'!$D$10*$L$97 -> 372.1055851 | I107: =$L107*'input data'!$E$11*$L$97+(1-$L107)*'input data'!$E$10*$L$97 -> 121.4209636 | L107: 0.6826433883 | M107: share population key | O107: solver
A108: 1 | C108: =$L108*'input data'!$C$11*$L$97+(1-$L108)*'input data'!$C$10*$L$97 -> 180.6009771 | F108: =$L108*'input data'!$D$11*$L$97+(1-$L108)*'input data'!$D$10*$L$97 -> 375.4631636 | I108: =$L108*'input data'!$E$11*$L$97+(1-$L108)*'input data'!$E$10*$L$97 -> 127.9020648 | L108: 0.726319611 | M108: share population key | O108: solver
A109: =A104 -> 3 | C109: =$L109*'input data'!$C$11*$L$97+(1-$L109)*'input data'!$C$10*$L$97 -> 188.0446993 | F109: =$L109*'input data'!$D$11*$L$97+(1-$L109)*'input data'!$D$10*$L$97 -> 372.9228957 | I109: =$L109*'input data'!$E$11*$L$97+(1-$L109)*'input data'!$E$10*$L$97 -> 122.9986104 | L109: 0.6932751698 | M109: share population key | O109: solver
A110: =A105 -> 6 | C110: =$L110*'input data'!$C$11*$L$97+(1-$L110)*'input data'!$C$10*$L$97 -> 189.811011 | F110: =$L110*'input data'!$D$11*$L$97+(1-$L110)*'input data'!$D$10*$L$97 -> 372.3201187 | I110: =$L110*'input data'!$E$11*$L$97+(1-$L110)*'input data'!$E$10*$L$97 -> 121.8350757 | L110: 0.6854340951 | M110: share population key | O110: solver
A112: 2 | C112: =(C102-C107)^2/C102^2 -> 2.054707243e-07 | F112: =(F102-F107)^2/F102^2 -> 1.642776794e-07 | I112: =(I102-I107)^2/I102^2 -> 1.370847934e-07 | L112: =C112+F112+I112 -> 5.068331971e-07 | M112: square deviation
A113: 1 | C113: =(C103-C108)^2/C103^2 -> 1.082150666e-08 | F113: =(F103-F108)^2/F103^2 -> 9.658317848e-09 | I113: =(I103-I108)^2/I103^2 -> 8.929007043e-09 | L113: =C113+F113+I113 -> 2.940883155e-08 | M113: square deviation
A114: =A104 -> 3 | C114: =(C104-C109)^2/C104^2 -> 2.284431809e-32 | F114: =(F104-F109)^2/F104^2 -> 2.32339091e-32 | I114: =(I104-I109)^2/I104^2 -> 1.334873124e-32 | L114: =C114+F114+I114 -> 5.942695843e-32 | M114: square deviation
A115: =A105 -> 6 | C115: =(C105-C110)^2/C105^2 -> 5.178333499e-08 | F115: =(F105-F110)^2/F105^2 -> 4.167270324e-08 | I115: =(I105-I110)^2/I105^2 -> 3.502011357e-08 | L115: =C115+F115+I115 -> 1.284761518e-07 | M115: square deviation

Sheet CDC
A1: Common but Differentiated Convergence
A2: CDC | B2: Niklas Höhne, Michel den Elzen, Martin Weiss | J2: Climate Policy, Volume 6, 2006 - Issue 2: Common but differentiated convergence (CDC): a new conceptual approach to long-term climate policy
A4: Percentage threshold (PT): | G4: 0.95 | K4: input values
A5: Parameter a (Ct := C&C exp): | G5: ='C&C-exp'!E5 -> 4
B7: business as usual | T7: CDC
B8: Country A | F8: Country B | J8: Country C | N8: Global | T8: Country A | W8: Country B | Z8: Country C | AC8: over threshold | AG8: Global
A9: change rate (CRi) | C9: 0 | G9: 0.03 | K9: 0.02
A10: Year t | B10: Popu-lation Pit | C10: Ei_baut | D10: o TH | E10: Per capita | F10: Popu-lation Pit | G10: Ei_baut | H10: o TH | I10: Per capita | J10: Popu-lation Pit | K10: Ei_baut | L10: o TH | M10: Per capita | N10: Popu-lation Pt | O10: Et | P10: Per capita | Q10: thres-hold THt | S10: Year t | T10: Popu-lation Pit | U10: Eit | V10: Per capita | W10: Popu-lation Pit | X10: Eit | Y10: Per capita | Z10: Popu-lation Pit | AA10: Eit | AB10: Per capita | AC10: Popu-lation PoTH | AD10: EoTHt | AE10: EPoTHt-1 | AF10: Per capita | AG10: Et | AH10: Ct | AI10: differ-ence
B11: bn | C11: Gt | E11: t | F11: bn | G11: Gt | I11: t | J11: bn | K11: Gt | M11: t | N11: bn | O11: Gt | P11: t | Q11: t | T11: bn | U11: Gt | V11: t | W11: bn | X11: Gt | Y11: t | Z11: bn | AA11: Gt | AB11: t | AC11: bn | AD11: Gt | AE11: Gt | AF11: t | AG11: Gt | AI11: Gt
A12: 2019 | B12: =RF!B9 -> 1.2 | C12: =RF!C9 -> 21 | D12: =IF(E12>$Q12,1,0) -> 1 | E12: =C12/B12 -> 17.5 | F12: =RF!E9 -> 4 | G12: =RF!F9 -> 19.5 | H12: =IF(I12>$Q12,1,0) -> 0 | I12: =G12/F12 -> 4.875 | J12: =N12-F12-B12 -> 1.7 | K12: ='global path'!$C$7-C12-G12 -> 1.227717101 | L12: =IF(M12>$Q12,1,0) -> 0 | M12: =K12/J12 -> 0.7221865302 | N12: =RF!K9 -> 6.9 | O12: ='global path'!C7 -> 41.7277171 | P12: =O12/N12 -> 6.047495232 | Q12: =P12*G4 -> 5.74512047 | S12: 2019 | T12: =B12 -> 1.2 | U12: =C12 -> 21 | V12: =U12/T12 -> 17.5 | W12: =F12 -> 4 | X12: =G12 -> 19.5 | Y12: =X12/W12 -> 4.875 | Z12: =J12 -> 1.7 | AA12: =K12 -> 1.227717101 | AB12: =IF(Z12<>0,AA12/Z12,AA12/J12) -> 0.7221865302 | AC12: =N12-((1-D12)*B12+(1-H12)*F12+(1-L12)*J12) -> 1.2 | AD12: =O12-((1-D12)*C12+(1-H12)*G12+(1-L12)*K12) -> 21 | AF12: =AD12/AC12 -> 17.5 | AG12: =U12+X12+AA12 -> 41.7277171 | AH12: =EXP(-$G$5*(1-((A12-2019)/(2050-2019)))) -> 0.01831563889 | AI12: =O12-AG12 -> 0
A13: =A12+1 -> 2020 | B13: =B$12*(B$43/B$12)^(($A13-2019)/31) -> 1.2 | C13: =C12*(1+C$9) -> 21 | D13: =IF(E13>$Q13,1,0) -> 1 | E13: =C13/B13 -> 17.5 | F13: =F$12*(F$43/F$12)^(($A13-2019)/31) -> 4 | G13: =G12*(1+G$9) -> 20.085 | H13: =IF(I13>$Q13,1,0) -> 0 | I13: =G13/F13 -> 5.02125 | J13: =J$12*(J$43/J$12)^(($A13-2019)/31) -> 1.7 | K13: =K12*(1+K$9) -> 1.252271443 | L13: =IF(M13>$Q13,1,0) -> 0 | M13: =K13/J13 -> 0.7366302608 | N13: =B13+F13+J13 -> 6.9 | O13: ='global path'!C8 -> 40.89316276 | P13: =O13/N13 -> 5.926545327 | Q13: =P13*$G$4 -> 5.630218061 | S13: =S12+1 -> 2020 | T13: =B13 -> 1.2 | U13: =IF(D13=1,((1-$AH13)*(U12/AE13)+$AH13*(T13/$AC13))*AD13,C13) -> 19.55589132 | V13: =IF(T13<>0,U13/T13,U13/B13) -> 16.2965761 | W13: =F13 -> 4 | X13: =IF(H13=1,((1-$AH13)*(X12/AE13)+$AH13*(W13/AC13))*AD13,G13) -> 20.085 | Y13: =IF(W13<>0,X13/W13,X13/F13) -> 5.02125 | Z13: =J13 -> 1.7 | AA13: =IF(L13=1,((1-$AH13)*(AA12/AE13)+$AH13*(Z13/AC13))*AD13,K13) -> 1.252271443 | AB13: 0.7366302608 | AC13: =N13-((1-D13)*B13+(1-H13)*F13+(1-L13)*J13) -> 1.2 | AD13: =O13-((1-D13)*C13+(1-H13)*G13+(1-L13)*K13) -> 19.55589132 | AE13: =U12*D13+X12*H13+AA12*L13 -> 21 | AF13: =AD13/AC13 -> 16.2965761 | AG13: =U13+X13+AA13 -> 40.89316276 | AH13: 0.02083819367 | AI13: 0
A14: =A13+1 -> 2021 | B14: =B$12*(B$43/B$12)^(($A14-2019)/31) -> 1.2 | C14: =C13*(1+$C$9) -> 21 | D14: 1 | E14: 17.5 | F14: =F$12*(F$43/F$12)^(($A14-2019)/31) -> 4 | G14: =G13*(1+G$9) -> 20.68755 | H14: 0 | I14: 5.1718875 | J14: =J$12*(J$43/J$12)^(($A14-2019)/31) -> 1.7 | K14: =K13*(1+K$9) -> 1.277316872 | L14: 0 | M14: 0.751362866 | N14: =B14+F14+J14 -> 6.9 | O14: ='global path'!C9 -> 39.94112655 | P14: 5.788569065 | Q14: =P14*$G$4 -> 5.499140611 | S14: =S13+1 -> 2021 | T14: 1.2 | U14: 17.97625967 | V14: 14.98021639 | W14: 4 | X14: 20.68755 | Y14: 5.1718875 | Z14: 1.7 | AA14: 1.277316872 | AB14: 0.751362866 | AC14: 1.2 | AD14: 17.97625967 | AE14: =U13*D14+X13*H14+AA13*L14 -> 19.55589132 | AF14: 14.98021639 | AG14: 39.94112655 | AH14: 0.02370817191 | AI14: 0
A15: 2022 | B15: 1.2 | C15: 21 | D15: 1 | E15: 17.5 | F15: 4 | G15: 21.3081765 | H15: 0 | I15: 5.327044125 | J15: 1.7 | K15: 1.30286321 | L15: 0 | M15: 0.7663901233 | N15: 6.9 | O15: ='global path'!C10 -> 38.88020548 | P15: 5.634812388 | Q15: 5.353071768 | S15: 2022 | T15: 1.2 | U15: 16.26916577 | V15: 13.55763814 | W15: 4 | X15: 21.3081765 | Y15: 5.327044125 | Z15: 1.7 | AA15: 1.30286321 | AB15: 0.7663901233 | AC15: 1.2 | AD15: 16.26916577 | AE15: 17.97625967 | AF15: 13.55763814 | AG15: 38.88020548 | AH15: 0.02697342314 | AI15: 0
A16: 2023 | B16: 1.2 | C16: 21 | D16: 1 | E16: 17.5 | F16: 4 | G16: 21.9474218 | H16: 1 | I16: 5.486855449 | J16: 1.7 | K16: 1.328920474 | L16: 0 | M16: 0.7817179258 | N16: 6.9 | O16: ='global path'!C11 -> 37.7198964 | P16: 5.466651652 | Q16: 5.193319069 | S16: 2023 | T16: 1.2 | U16: 15.52973355 | V16: 12.94144462 | W16: 4 | X16: 20.86124237 | Y16: 5.215310593 | Z16: 1.7 | AA16: 1.328920474 | AB16: 0.7817179258 | AC16: 5.2 | AD16: 36.39097592 | AE16: 37.57734227 | AF16: 6.998264601 | AG16: 37.7198964 | AH16: 0.03068838706 | AI16: 0
A17: 2024 | B17: 1.2 | C17: 21 | D17: 1 | E17: 17.5 | F17: 4 | G17: 22.60584445 | H17: 1 | I17: 5.651461112 | J17: 1.7 | K17: 1.355498883 | L17: 0 | M17: 0.7973522843 | N17: 6.9 | O17: ='global path'!C12 -> 36.47045336 | P17: 5.28557295 | Q17: 5.021294303 | S17: 2024 | T17: 1.2 | U17: 14.74491933 | V17: 12.28743277 | W17: 4 | X17: 20.37003514 | Y17: 5.092508786 | Z17: 1.7 | AA17: 1.355498883 | AB17: 0.7973522843 | AC17: 5.2 | AD17: 35.11495447 | AE17: 36.39097592 | AF17: 6.75287586 | AG17: 36.47045336 | AH17: 0.03491500115 | AI17: 0
A18: 2025 | B18: 1.2 | C18: 21 | D18: 1 | E18: 17.5 | F18: 4 | G18: 23.28401978 | H18: 1 | I18: 5.821004946 | J18: 1.7 | K18: 1.382608861 | L18: 0 | M18: 0.81329933 | N18: 6.9 | O18: ='global path'!C13 -> 35.14273539 | P18: 5.093150057 | Q18: 4.838492554 | S18: 2025 | T18: 1.2 | U18: 13.9223764 | V18: 11.60198033 | W18: 4 | X18: 19.83775013 | Y18: 4.959437533 | Z18: 1.7 | AA18: 1.382608861 | AB18: 0.81329933 | AC18: 5.2 | AD18: 33.76012653 | AE18: 35.11495447 | AF18: 6.492332025 | AG18: 35.14273539 | AH18: 0.03972373339 | AI18: 0
A19: 2026 | B19: 1.2 | C19: 21 | D19: 1 | E19: 17.5 | F19: 4 | G19: 23.98254038 | H19: 1 | I19: 5.995635094 | J19: 1.7 | K19: 1.410261038 | L19: 0 | M19: 0.8295653166 | N19: 6.9 | O19: ='global path'!C14 -> 33.74804795 | P19: 4.891021442 | Q19: 4.64647037 | S19: 2026 | T19: 1.2 | U19: 13.07037606 | V19: 10.89198005 | W19: 4 | X19: 19.26741084 | Y19: 4.816852711 | Z19: 1.7 | AA19: 1.410261038 | AB19: 0.8295653166 | AC19: 5.2 | AD19: 32.33778691 | AE19: 33.76012653 | AF19: 6.218805175 | AG19: 33.74804795 | AH19: 0.04519475704 | AI19: 0
A20: 2027 | B20: 1.2 | C20: 21 | D20: 1 | E20: 17.5 | F20: 4 | G20: 24.70201659 | H20: 1 | I20: 6.175504147 | J20: 1.7 | K20: 1.438466259 | L20: 0 | M20: 0.8461566229 | N20: 6.9 | O20: ='global path'!C15 -> 32.29798118 | P20: 4.680866837 | Q20: 4.446823496 | S20: 2027 | T20: 1.2 | U20: 12.19771588 | V20: 10.16476323 | W20: 4 | X20: 18.66179904 | Y20: 4.665449761 | Z20: 1.7 | AA20: 1.438466259 | AB20: 0.8461566229 | AC20: 5.2 | AD20: 30.85951492 | AE20: 32.33778691 | AF20: 5.9345221 | AG20: 32.29798118 | AH20: 0.05141928741 | AI20: 0
A21: 2028 | B21: 1.2 | C21: 21 | D21: 1 | E21: 17.5 | F21: 4 | G21: 25.44307708 | H21: 1 | I21: 6.360769271 | J21: 1.7 | K21: 1.467235584 | L21: 0 | M21: 0.8630797554 | N21: 6.9 | O21: ='global path'!C16 -> 30.8042484 | P21: 4.464383826 | Q21: 4.241164635 | S21: 2028 | T21: 1.2 | U21: 11.3136055 | V21: 9.428004581 | W21: 4 | X21: 18.02340732 | Y21: 4.50585183 | Z21: 1.7 | AA21: 1.467235584 | AB21: 0.8630797554 | AC21: 5.2 | AD21: 29.33701282 | AE21: 30.85951492 | AF21: 5.641733234 | AG21: 30.8042484 | AH21: 0.05850110258 | AI21: 0
A22: 2029 | B22: 1.2 | C22: 21 | D22: 1 | E22: 17.5 | F22: 4 | G22: 26.2063694 | H22: 1 | I22: 6.551592349 | J22: 1.7 | K22: 1.496580296 | L22: 0 | M22: 0.8803413505 | N22: 6.9 | O22: ='global path'!C17 -> 29.27852789 | P22: 4.243264912 | Q22: 4.031101666 | S22: 2029 | T22: 1.2 | U22: 10.42752648 | V22: 8.689605397 | W22: 4 | X22: 17.35442112 | Y22: 4.33860528 | Z22: 1.7 | AA22: 1.496580296 | AB22: 0.8803413505 | AC22: 5.2 | AD22: 27.7819476 | AE22: 29.33701282 | AF22: 5.34268223 | AG22: 29.27852789 | AH22: 0.06655827366 | AI22: 0
A23: 2030 | B23: 1.2 | C23: 21 | D23: 1 | E23: 17.5 | F23: 4 | G23: 26.99256048 | H23: 1 | I23: 6.74814012 | J23: 1.7 | K23: 1.526511902 | L23: 0 | M23: 0.8979481775 | N23: 6.9 | O23: ='global path'!C18 -> 27.73231099 | P23: 4.019175506 | Q23: 3.818216731 | S23: 2030 | T23: 1.2 | U23: 9.549062413 | V23: 7.957552011 | W23: 4 | X23: 16.65673668 | Y23: 4.16418417 | Z23: 1.7 | AA23: 1.526511902 | AB23: 0.8979481775 | AC23: 5.2 | AD23: 26.20579909 | AE23: 27.7819476 | AF23: 5.039576749 | AG23: 27.73231099 | AH23: 0.07572513334 | AI23: 0
A24: 2031 | B24: 1.2 | C24: 21 | D24: 1 | E24: 17.5 | F24: 4 | G24: 27.80233729 | H24: 1 | I24: 6.950584323 | J24: 1.7 | K24: 1.55704214 | L24: 0 | M24: 0.915907141 | N24: 6.9 | O24: ='global path'!C19 -> 26.17675935 | P24: 3.79373324 | Q24: 3.604046578 | S24: 2031 | T24: 1.2 | U24: 8.68769677 | V24: 7.239747308 | W24: 4 | X24: 15.93202044 | Y24: 3.983005111 | Z24: 1.7 | AA24: 1.55704214 | AB24: 0.915907141 | AC24: 5.2 | AD24: 24.61971721 | AE24: 26.20579909 | AF24: 4.734561002 | AG24: 26.17675935 | AH24: 0.08615451548 | AI24: 0
A25: 2032 | B25: 1.2 | C25: 21 | D25: 1 | E25: 17.5 | F25: 4 | G25: 28.63640741 | H25: 1 | I25: 7.159101853 | J25: 1.7 | K25: 1.588182983 | L25: 0 | M25: 0.9342252839 | N25: 6.9 | O25: ='global path'!C20 -> 24.62257366 | P25: 3.568488936 | Q25: 3.390064489 | S25: 2032 | T25: 1.2 | U25: 7.852577432 | V25: 6.543814527 | W25: 4 | X25: 15.18181324 | Y25: 3.795453311 | Z25: 1.7 | AA25: 1.588182983 | AB25: 0.9342252839 | AC25: 5.2 | AD25: 23.03439068 | AE25: 24.61971721 | AF25: 4.429690514 | AG25: 24.62257366 | AH25: 0.09802030331 | AI25: 0
A26: 2033 | B26: 1.2 | C26: 21 | D26: 1 | E26: 17.5 | F26: 4 | G26: 29.49549963 | H26: 1 | I26: 7.373874909 | J26: 1.7 | K26: 1.619946642 | L26: 0 | M26: 0.9529097895 | N26: 6.9 | O26: ='global path'!C21 -> 23.07987605 | P26: 3.344909572 | Q26: 3.177664094 | S26: 2033 | T26: 1.2 | U26: 7.052250139 | V26: 5.876875115 | W26: 4 | X26: 14.40767927 | Y26: 3.601919817 | Z26: 1.7 | AA26: 1.619946642 | AB26: 0.9529097895 | AC26: 5.2 | AD26: 21.45992941 | AE26: 23.03439068 | AF26: 4.126909501 | AG26: 23.07987605 | AH26: 0.1115203284 | AI26: 0
A27: 2034 | B27: 1.2 | C27: 21 | D27: 1 | E27: 17.5 | F27: 4 | G27: 30.38036462 | H27: 1 | I27: 7.595091156 | J27: 1.7 | K27: 1.652345575 | L27: 0 | M27: 0.9719679853 | N27: 6.9 | O27: ='global path'!C22 -> 21.55810781 | P27: 3.124363451 | Q27: 2.968145279 | S27: 2034 | T27: 1.2 | U27: 6.294367491 | V27: 5.245306243 | W27: 4 | X27: 13.61139475 | Y27: 3.402848687 | Z27: 1.7 | AA27: 1.652345575 | AB27: 0.9719679853 | AC27: 5.2 | AD27: 19.90576224 | AE27: 21.45992941 | AF27: 3.8280312 | AG27: 21.55810781 | AH27: 0.1268796691 | AI27: 0
A28: 2035 | B28: 1.2 | C28: 21 | D28: 1 | E28: 17.5 | F28: 4 | G28: 31.29177556 | H28: 1 | I28: 7.822943891 | J28: 1.7 | K28: 1.685392487 | L28: 0 | M28: 0.991407345 | N28: 6.9 | O28: ='global path'!C23 -> 20.06594368 | P28: 2.90810778 | Q28: 2.762702391 | S28: 2035 | T28: 1.2 | U28: 5.585386411 | V28: 4.654488676 | W28: 4 | X28: 12.79516478 | Y28: 3.198791196 | Z28: 1.7 | AA28: 1.685392487 | AB28: 0.991407345 | AC28: 5.2 | AD28: 18.38055119 | AE28: 19.90576224 | AF28: 3.534721383 | AG28: 20.06594368 | AH28: 0.144354403 | AI28: 0
A29: 2036 | B29: 1.2 | C29: 21 | D29: 1 | E29: 17.5 | F29: 4 | G29: 32.23052883 | H29: 1 | I29: 8.057632207 | J29: 1.7 | K29: 1.719100336 | L29: 0 | M29: 1.011235492 | N29: 6.9 | O29: ='global path'!C24 -> 18.61122347 | P29: 2.697278763 | Q29: 2.562414825 | S29: 2036 | T29: 1.2 | U29: 4.930274366 | V29: 4.108561971 | W29: 4 | X29: 11.96184876 | Y29: 2.990462191 | Z29: 1.7 | AA29: 1.719100336 | AB29: 1.011235492 | AC29: 5.2 | AD29: 16.89212313 | AE29: 18.38055119 | AF29: 3.248485217 | AG29: 18.61122347 | AH29: 0.1642358765 | AI29: 0
A30: 2037 | B30: 1.2 | C30: 21 | D30: 1 | E30: 17.5 | F30: 4 | G30: 33.19744469 | H30: 1 | I30: 8.299361174 | J30: 1.7 | K30: 1.753482343 | L30: 0 | M30: 1.031460202 | N30: 6.9 | O30: ='global path'!C25 -> 17.20090151 | P30: 2.492884277 | Q30: 2.368240063 | S30: 2037 | T30: 1.2 | U30: 4.33225274 | V30: 3.610210617 | W30: 4 | X30: 11.11516642 | Y30: 2.778791606 | Z30: 1.7 | AA30: 1.753482343 | AB30: 1.031460202 | AC30: 5.2 | AD30: 15.44741916 | AE30: 16.89212313 | AF30: 2.970657532 | AG30: 17.20090151 | AH30: 0.1868555623 | AI30: 0
A31: 2038 | B31: 1.2 | C31: 21 | D31: 1 | E31: 17.5 | F31: 4 | G31: 34.19336804 | H31: 1 | I31: 8.548342009 | J31: 1.7 | K31: 1.78855199 | L31: 0 | M31: 1.052089406 | N31: 6.9 | O31: ='global path'!C26 -> 15.84101377 | P31: 2.295799097 | Q31: 2.181009143 | S31: 2038 | T31: 1.2 | U31: 3.792612747 | V31: 3.160510622 | W31: 4 | X31: 10.25984904 | Y31: 2.564962259 | Z31: 1.7 | AA31: 1.78855199 | AB31: 1.052089406 | AC31: 5.2 | AD31: 14.05246178 | AE31: 15.44741916 | AF31: 2.702396497 | AG31: 15.84101377 | AH31: 0.2125905855 | AI31: 0
A32: 2039 | B32: 1.2 | C32: 21 | D32: 1 | E32: 17.5 | F32: 4 | G32: 35.21916908 | H32: 1 | I32: 8.804792269 | J32: 1.7 | K32: 1.82432303 | L32: 0 | M32: 1.073131194 | N32: 6.9 | O32: ='global path'!C27 -> 14.5366622 | P32: 2.106762638 | Q32: 2.001424506 | S32: 2039 | T32: 1.2 | U32: 3.310643047 | V32: 2.758869206 | W32: 4 | X32: 9.401696125 | Y32: 2.350424031 | Z32: 1.7 | AA32: 1.82432303 | AB32: 1.073131194 | AC32: 5.2 | AD32: 12.71233917 | AE32: 14.05246178 | AF32: 2.44468061 | AG32: 14.5366622 | AH32: 0.2418700117 | AI32: 0
A33: 2040 | B33: 1.2 | C33: 21 | D33: 1 | E33: 17.5 | F33: 4 | G33: 36.27574415 | H33: 1 | I33: 9.068936037 | J33: 1.7 | K33: 1.86080949 | L33: 0 | M33: 1.094593818 | N33: 6.9 | O33: ='global path'!C28 -> 13.29201547 | P33: 1.926379054 | Q33: 1.830060101 | S33: 2040 | T33: 1.2 | U33: 2.883705721 | V33: 2.403088101 | W33: 4 | X33: 8.547500259 | Y33: 2.136875065 | Z33: 1.7 | AA33: 1.86080949 | AB33: 1.094593818 | AC33: 5.2 | AD33: 11.43120598 | AE33: 12.71233917 | AF33: 2.198308842 | AG33: 13.29201547 | AH33: 0.2751820004 | AI33: 0
A34: 2041 | B34: 1.2 | C34: 21 | D34: 1 | E34: 17.5 | F34: 4 | G34: 37.36401647 | H34: 1 | I34: 9.341004118 | J34: 1.7 | K34: 1.89802568 | L34: 0 | M34: 1.116485694 | N34: 6.9 | O34: ='global path'!C29 -> 12.110325 | P34: 1.755119565 | Q34: 1.667363586 | S34: 2041 | T34: 1.2 | U34: 2.507485252 | V34: 2.089571043 | W34: 4 | X34: 7.704814064 | Y34: 1.926203516 | Z34: 1.7 | AA34: 1.89802568 | AB34: 1.116485694 | AC34: 5.2 | AD34: 10.21229932 | AE34: 11.43120598 | AF34: 1.963903715 | AG34: 12.110325 | AH34: 0.3130819434 | AI34: 0
A35: 2042 | B35: 1.2 | C35: 21 | D35: 1 | E35: 17.5 | F35: 4 | G35: 38.48493697 | H35: 1 | I35: 9.621234242 | J35: 1.7 | K35: 1.935986194 | L35: 0 | M35: 1.138815408 | N35: 6.9 | O35: ='global path'!C30 -> 10.99395478 | P35: 1.59332678 | Q35: 1.513660441 | S35: 2042 | T35: 1.2 | U35: 2.176411857 | V35: 1.813676547 | W35: 4 | X35: 6.881556734 | Y35: 1.720389184 | Z35: 1.7 | AA35: 1.935986194 | AB35: 1.138815408 | AC35: 5.2 | AD35: 9.057968591 | AE35: 10.21229932 | AF35: 1.741917037 | AG35: 10.99395478 | AH35: 0.3562017253 | AI35: 0
A36: 2043 | B36: 1.2 | C36: 21 | D36: 1 | E36: 17.5 | F36: 4 | G36: 39.63948508 | H36: 1 | I36: 9.909871269 | J36: 1.7 | K36: 1.974705918 | L36: 0 | M36: 1.161591716 | N36: 6.9 | O36: ='global path'!C31 -> 9.944423473 | P36: 1.441220793 | Q36: 1.369159754 | S36: 2043 | T36: 1.2 | U36: 1.884226483 | V36: 1.570188736 | W36: 4 | X36: 6.085491073 | Y36: 1.521372768 | Z36: 1.7 | AA36: 1.974705918 | AB36: 1.161591716 | AC36: 5.2 | AD36: 7.969717555 | AE36: 9.057968591 | AF36: 1.532637991 | AG36: 9.944423473 | AH36: 0.4052602578 | AI36: 0
A37: 2044 | B37: 1.2 | C37: 21 | D37: 1 | E37: 17.5 | F37: 4 | G37: 40.82866963 | H37: 1 | I37: 10.20716741 | J37: 1.7 | K37: 2.014200036 | L37: 0 | M37: 1.184823551 | N37: 6.9 | O37: ='global path'!C32 -> 8.96245678 | P37: 1.29890678 | Q37: 1.233961441 | S37: 2044 | T37: 1.2 | U37: 1.624615805 | V37: 1.353846504 | W37: 4 | X37: 5.323640939 | Y37: 1.330910235 | Z37: 1.7 | AA37: 2.014200036 | AB37: 1.184823551 | AC37: 5.2 | AD37: 6.948256744 | AE37: 7.969717555 | AF37: 1.33620322 | AG37: 8.96245678 | AH37: 0.4610754662 | AI37: 0
A38: 2045 | B38: 1.2 | C38: 21 | D38: 1 | E38: 17.5 | F38: 4 | G38: 42.05352972 | H38: 1 | I38: 10.51338243 | J38: 1.7 | K38: 2.054484037 | L38: 1 | M38: 1.208520022 | N38: 6.9 | O38: ='global path'!C33 -> 8.048048476 | P38: 1.166383837 | Q38: 1.108064645 | S38: 2045 | T38: 1.2 | U38: 1.427806209 | V38: 1.189838507 | W38: 4 | X38: 4.720186549 | Y38: 1.180046637 | Z38: 1.7 | AA38: 1.900055718 | AB38: 1.117679834 | AC38: 6.9 | AD38: 8.048048476 | AE38: 8.96245678 | AF38: 1.166383837 | AG38: 8.048048476 | AH38: 0.5245779259 | AI38: 0
A39: 2046 | B39: 1.2 | C39: 21 | D39: 1 | E39: 17.5 | F39: 4 | G39: 43.31513561 | H39: 1 | I39: 10.8287839 | J39: 1.7 | K39: 2.095573717 | L39: 1 | M39: 1.232690422 | N39: 6.9 | O39: ='global path'!C34 -> 7.200527934 | P39: 1.043554773 | Q39: 0.9913770344 | S39: 2046 | T39: 1.2 | U39: 1.262418308 | V39: 1.052015257 | W39: 4 | X39: 4.193932676 | Y39: 1.048483169 | Z39: 1.7 | AA39: 1.74417695 | AB39: 1.025986441 | AC39: 6.9 | AD39: 7.200527934 | AE39: 8.048048476 | AF39: 1.043554773 | AG39: 7.200527934 | AH39: 0.5968263779 | AI39: 0
A40: 2047 | B40: 1.2 | C40: 21 | D40: 1 | E40: 17.5 | F40: 4 | G40: 44.61458968 | H40: 1 | I40: 11.15364742 | J40: 1.7 | K40: 2.137485192 | L40: 1 | M40: 1.25734423 | N40: 6.9 | O40: ='global path'!C35 -> 6.418632362 | P40: 0.9302365742 | Q40: 0.8837247455 | S40: 2047 | T40: 1.2 | U40: 1.11918875 | V40: 0.9326572914 | W40: 4 | X40: 3.726586756 | Y40: 0.9316466889 | Z40: 1.7 | AA40: 1.572856857 | AB40: 0.9252099157 | AC40: 6.9 | AD40: 6.418632362 | AE40: 7.200527934 | AF40: 0.9302365742 | AG40: 6.418632362 | AH40: 0.6790253796 | AI40: 0
A41: 2048 | B41: 1.2 | C41: 21 | D41: 1 | E41: 17.5 | F41: 4 | G41: 45.95302737 | H41: 1 | I41: 11.48825684 | J41: 1.7 | K41: 2.180234896 | L41: 1 | M41: 1.282491115 | N41: 6.9 | O41: ='global path'!C36 -> 5.700581847 | P41: 0.8261712822 | Q41: 0.7848627181 | S41: 2048 | T41: 1.2 | U41: 0.9919923476 | V41: 0.8266602896 | W41: 4 | X41: 3.305824554 | Y41: 0.8264561385 | Z41: 1.7 | AA41: 1.402764945 | AB41: 0.8251558503 | AC41: 6.9 | AD41: 5.700581847 | AE41: 6.418632362 | AF41: 0.8261712822 | AG41: 5.700581847 | AH41: 0.7725453889 | AI41: 0
A42: 2049 | B42: 1.2 | C42: 21 | D42: 1 | E42: 17.5 | F42: 4 | G42: 47.33161819 | H42: 1 | I42: 11.83290455 | J42: 1.7 | K42: 2.223839593 | L42: 1 | M42: 1.308140937 | N42: 6.9 | O42: ='global path'!C37 -> 5.044155476 | P42: 0.7310370255 | Q42: 0.6944851742 | S42: 2049 | T42: 1.2 | U42: 0.8773072865 | V42: 0.7310894054 | W42: 4 | X42: 2.924270151 | Y42: 0.7310675378 | Z42: 1.7 | AA42: 1.242578038 | AB42: 0.7309282576 | AC42: 6.9 | AD42: 5.044155476 | AE42: 5.700581847 | AF42: 0.7310370255 | AG42: 5.044155476 | AH42: 0.878945612 | AI42: 0
A43: 2050 | B43: =RF!B40 -> 1.2 | C43: 21 | D43: 1 | E43: 17.5 | F43: =RF!E40 -> 4 | G43: 48.75156673 | H43: 1 | I43: 12.18789168 | J43: =N43-F43-B43 -> 1.7 | K43: 2.268316385 | L43: 1 | M43: 1.334303756 | N43: =RF!K40 -> 6.9 | O43: ='global path'!C38 -> 4.446766923 | P43: 0.6444589743 | Q43: 0.6122360256 | S43: 2050 | T43: 1.2 | U43: 0.7733507692 | V43: 0.6444589743 | W43: 4 | X43: 2.577835897 | Y43: 0.6444589743 | Z43: 1.7 | AA43: 1.095580256 | AB43: 0.6444589743 | AC43: 6.9 | AD43: 4.446766923 | AE43: 5.044155476 | AF43: 0.6444589743 | AG43: 4.446766923 | AH43: 1 | AI43: 0
A44: ∑ | O44: =ROUND(SUM(O13:O43),0) -> 657 | S44: ∑ | AD44: =ROUND(SUM(AD13:AD43),0) -> 555 | AG44: =ROUND(SUM(AG13:AG43),0) -> 657 | AI44: =ROUND(SUM(AI13:AI43),0) -> 0
A45: ∑ | C45: =SUM(C13:C43) -> 651 | G45: =SUM(G13:G43) -> 1004.303791 | K45: =SUM(K13:K43) -> 53.07056348 | O45: =ROUND(SUM(C45:K45),0) -> 1708 | S45: ∑ | U45: =SUM(U13:U43) -> 223.9232023 | X45: =SUM(X13:X43) -> 383.7718016 | AA45: =SUM(AA13:AA43) -> 49.06864243 | AG45: =ROUND(SUM(U45:AA45),0) -> 657
L46: difference | O46: =O45-O44 -> 1051
AD47: global path: | AG47: ='global path'!C90 -> 656.7636464
AD48: difference | AG48: =ROUND(AG45-AG47,0) -> 0

Sheet G-C&C
A1: Generalized C&C | M1: convergence period: 2020 - 2050
A2: G-C&C
B4: Country A | F4: Country B | J4: Country C | M4: Global
A6: Year t | B6: Popu-lation Pit | C6: Eit | E6: Per capita | F6: Popu-lation Pit | G6: Eit | I6: Per capita | J6: Popu-lation Pit | K6: Eit | L6: Per capita | M6: Popu-lation Pt | N6: Et | O6: Per capita | P6: Ct
B7: bn | C7: Gt | E7: t | F7: bn | G7: Gt | I7: t | J7: bn | K7: Gt | L7: t | M7: bn | N7: Gt | O7: t
A8: 2019 | B8: =RF!B9 -> 1.2 | C8: =RF!C9 -> 21 | E8: =C8/B8 -> 17.5 | F8: =RF!E9 -> 4 | G8: =RF!F9 -> 19.5 | I8: =G8/F8 -> 4.875 | J8: =M8-F8-B8 -> 1.7 | K8: ='global path'!$C$7-C8-G8 -> 1.227717101 | L8: =K8/J8 -> 0.7221865302 | M8: =RF!K9 -> 6.9 | N8: =K8+G8+C8 -> 41.7277171 | O8: =N8/M8 -> 6.047495232 | P8: =(A8-2019)/(2050-2019) -> 0
A9: =A8+1 -> 2020 | B9: =B$8*(B$39/B$8)^(($A9-2019)/31) -> 1.2 | C9: =((1-$P9)*(C8/$N8)+$P9*(B9/$M9))*'global path'!$C8 -> 19.90659272 | E9: =C9/B9 -> 16.58882727 | F9: =F$8*(F$39/F$8)^(($A9-2019)/31) -> 4 | G9: =((1-$P9)*(G8/$N8)+$P9*(F9/$M9))*'global path'!$C8 -> 19.33980907 | I9: =G9/F9 -> 4.834952266 | J9: =J$8*(J$39/J$8)^(($A9-2019)/31) -> 1.7 | K9: =((1-$P9)*(K8/$N8)+$P9*(J9/$M9))*'global path'!$C8 -> 1.646760974 | L9: =K9/J9 -> 0.968682926 | M9: =B9+F9+J9 -> 6.9 | N9: =K9+G9+C9 -> 40.89316276 | O9: =N9/M9 -> 5.926545327 | P9: 0.05
A10: =A9+1 -> 2021 | B10: =B$8*(B$39/B$8)^(($A10-2019)/31) -> 1.2 | C10: =((1-$P10)*(C9/$N9)+$P10*(B10/$M10))*'global path'!$C9 -> 18.63689688 | E10: 15.5307474 | F10: =F$8*(F$39/F$8)^(($A10-2019)/31) -> 4 | G10: =((1-$P10)*(G9/$N9)+$P10*(F10/$M10))*'global path'!$C9 -> 19.16470092 | I10: 4.79117523 | J10: =J$8*(J$39/J$8)^(($A10-2019)/31) -> 1.7 | K10: =((1-$P10)*(K9/$N9)+$P10*(J10/$M10))*'global path'!$C9 -> 2.139528746 | L10: 1.258546321 | M10: =B10+F10+J10 -> 6.9 | N10: =K10+G10+C10 -> 39.94112655 | O10: 5.788569065 | P10: =(A10-2019)/(2050-2019) -> 0.06451612903
A11: 2022 | B11: 1.2 | C11: =((1-$P11)*(C10/$N10)+$P11*(B11/$M11))*'global path'!$C10 -> 17.04056266 | E11: 14.20046888 | F11: 4 | G11: =((1-$P11)*(G10/$N10)+$P11*(F11/$M11))*'global path'!$C10 -> 19.03147842 | I11: 4.757869605 | J11: 1.7 | K11: =((1-$P11)*(K10/$N10)+$P11*(J11/$M11))*'global path'!$C10 -> 2.808164394 | L11: 1.651861408 | M11: 6.9 | N11: 38.88020548 | O11: 5.634812388 | P11: 0.09677419355
A12: 2023 | B12: 1.2 | C12: =((1-$P12)*(C11/$N11)+$P12*(B12/$M12))*'global path'!$C11 -> 15.24530371 | E12: 12.70441976 | F12: 4 | G12: =((1-$P12)*(G11/$N11)+$P12*(F12/$M12))*'global path'!$C11 -> 18.90262667 | I12: 4.725656667 | J12: 1.7 | K12: =((1-$P12)*(K11/$N11)+$P12*(J12/$M12))*'global path'!$C11 -> 3.571966022 | L12: 2.101156483 | M12: 6.9 | N12: 37.7198964 | O12: 5.466651652 | P12: 0.1290322581
A13: 2024 | B13: 1.2 | C13: =((1-$P13)*(C12/$N12)+$P13*(B13/$M13))*'global path'!$C12 -> 13.38585858 | E13: 11.15488215 | F13: 4 | G13: =((1-$P13)*(G12/$N12)+$P13*(F13/$M13))*'global path'!$C12 -> 18.73871732 | I13: 4.68467933 | J13: 1.7 | K13: =((1-$P13)*(K12/$N12)+$P13*(J13/$M13))*'global path'!$C12 -> 4.345877456 | L13: 2.556398504 | M13: 6.9 | N13: 36.47045336 | O13: 5.28557295 | P13: 0.1612903226
A14: 2025 | B14: 1.2 | C14: =((1-$P14)*(C13/$N13)+$P14*(B14/$M14))*'global path'!$C13 -> 11.58497543 | E14: 9.654146195 | F14: 4 | G14: =((1-$P14)*(G13/$N13)+$P14*(F14/$M14))*'global path'!$C13 -> 18.50480053 | I14: 4.626200133 | J14: 1.7 | K14: =((1-$P14)*(K13/$N13)+$P14*(J14/$M14))*'global path'!$C13 -> 5.052959425 | L14: 2.972329073 | M14: 6.9 | N14: 35.14273539 | O14: 5.093150057 | P14: 0.1935483871
A15: 2026 | B15: 1.2 | C15: =((1-$P15)*(C14/$N14)+$P15*(B15/$M15))*'global path'!$C14 -> 9.938374737 | E15: 8.281978947 | F15: 4 | G15: =((1-$P15)*(G14/$N14)+$P15*(F15/$M15))*'global path'!$C14 -> 18.17543531 | I15: 4.543858826 | J15: 1.7 | K15: =((1-$P15)*(K14/$N14)+$P15*(J15/$M15))*'global path'!$C14 -> 5.634237905 | L15: 3.314257591 | M15: 6.9 | N15: 33.74804795 | O15: 4.891021442 | P15: 0.2258064516
A16: 2027 | B16: 1.2 | C16: =((1-$P16)*(C15/$N15)+$P16*(B16/$M16))*'global path'!$C15 -> 8.506365604 | E16: 7.088638003 | F16: 4 | G16: =((1-$P16)*(G15/$N15)+$P16*(F16/$M16))*'global path'!$C15 -> 17.73744717 | I16: 4.434361792 | J16: 1.7 | K16: =((1-$P16)*(K15/$N15)+$P16*(J16/$M16))*'global path'!$C15 -> 6.054168408 | L16: 3.561275534 | M16: 6.9 | N16: 32.29798118 | O16: 4.680866837 | P16: 0.2580645161
A17: 2028 | B17: 1.2 | C17: =((1-$P17)*(C16/$N16)+$P17*(B17/$M17))*'global path'!$C16 -> 7.31291757 | E17: 6.094097975 | F17: 4 | G17: =((1-$P17)*(G16/$N16)+$P17*(F17/$M17))*'global path'!$C16 -> 17.19014172 | I17: 4.297535429 | J17: 1.7 | K17: =((1-$P17)*(K16/$N16)+$P17*(J17/$M17))*'global path'!$C16 -> 6.301189117 | L17: 3.706581833 | M17: 6.9 | N17: 30.8042484 | O17: 4.464383826 | P17: 0.2903225806
A18: 2029 | B18: 1.2 | C18: =((1-$P18)*(C17/$N17)+$P18*(B18/$M18))*'global path'!$C17 -> 6.351101042 | E18: 5.292584202 | F18: 4 | G18: =((1-$P18)*(G17/$N17)+$P18*(F18/$M18))*'global path'!$C17 -> 16.54334688 | I18: 4.135836721 | J18: 1.7 | K18: =((1-$P18)*(K17/$N17)+$P18*(J18/$M18))*'global path'!$C17 -> 6.384079964 | L18: 3.755341155 | M18: 6.9 | N18: 29.27852789 | O18: 4.243264912 | P18: 0.3225806452
A19: 2030 | B19: 1.2 | C19: =((1-$P19)*(C18/$N18)+$P19*(B19/$M19))*'global path'!$C18 -> 5.592484749 | E19: 4.660403958 | F19: 4 | G19: =((1-$P19)*(G18/$N18)+$P19*(F19/$M19))*'global path'!$C18 -> 15.81410888 | I19: 3.953527221 | J19: 1.7 | K19: =((1-$P19)*(K18/$N18)+$P19*(J19/$M19))*'global path'!$C18 -> 6.325717361 | L19: 3.721010213 | M19: 6.9 | N19: 27.73231099 | O19: 4.019175506 | P19: 0.3548387097
A20: 2031 | B20: 1.2 | C20: =((1-$P20)*(C19/$N19)+$P20*(B20/$M20))*'global path'!$C19 -> 4.9976395 | E20: 4.164699583 | F20: 4 | G20: =((1-$P20)*(G19/$N19)+$P20*(F20/$M20))*'global path'!$C19 -> 15.0230164 | I20: 3.755754101 | J20: 1.7 | K20: =((1-$P20)*(K19/$N19)+$P20*(J20/$M20))*'global path'!$C19 -> 6.15610345 | L20: 3.621237324 | M20: 6.9 | N20: 26.17675935 | O20: 3.79373324 | P20: 0.3870967742
A21: 2032 | B21: 1.2 | C21: =((1-$P21)*(C20/$N20)+$P21*(B21/$M21))*'global path'!$C20 -> 4.525319848 | E21: 3.771099873 | F21: 4 | G21: =((1-$P21)*(G20/$N20)+$P21*(F21/$M21))*'global path'!$C20 -> 14.19098338 | I21: 3.547745844 | J21: 1.7 | K21: =((1-$P21)*(K20/$N20)+$P21*(J21/$M21))*'global path'!$C20 -> 5.906270434 | L21: 3.474276726 | M21: 6.9 | N21: 24.62257366 | O21: 3.568488936 | P21: 0.4193548387
A22: 2033 | B22: 1.2 | C22: =((1-$P22)*(C21/$N21)+$P22*(B22/$M22))*'global path'!$C21 -> 4.138868858 | E22: 3.449057382 | F22: 4 | G22: =((1-$P22)*(G21/$N21)+$P22*(F22/$M22))*'global path'!$C21 -> 13.33698812 | I22: 3.33424703 | J22: 1.7 | K22: =((1-$P22)*(K21/$N21)+$P22*(J22/$M22))*'global path'!$C21 -> 5.604019068 | L22: 3.296481805 | M22: 6.9 | N22: 23.07987605 | O22: 3.344909572 | P22: 0.4516129032
A23: 2034 | B23: 1.2 | C23: =((1-$P23)*(C22/$N22)+$P23*(B23/$M23))*'global path'!$C22 -> 3.8094875 | E23: 3.174572917 | F23: 4 | G23: =((1-$P23)*(G22/$N22)+$P23*(F23/$M23))*'global path'!$C22 -> 12.47689224 | I23: 3.11922306 | J23: 1.7 | K23: =((1-$P23)*(K22/$N22)+$P23*(J23/$M23))*'global path'!$C22 -> 5.271728075 | L23: 3.101016515 | M23: 6.9 | N23: 21.55810781 | O23: 3.124363451 | P23: 0.4838709677
A24: 2035 | B24: 1.2 | C24: =((1-$P24)*(C23/$N23)+$P24*(B24/$M24))*'global path'!$C23 -> 3.516865306 | E24: 2.930721088 | F24: 4 | G24: =((1-$P24)*(G23/$N23)+$P24*(F24/$M24))*'global path'!$C23 -> 11.62317061 | I24: 2.905792653 | J24: 1.7 | K24: =((1-$P24)*(K23/$N23)+$P24*(J24/$M24))*'global path'!$C23 -> 4.925907761 | L24: 2.8975928 | M24: 6.9 | N24: 20.06594368 | O24: 2.90810778 | P24: 0.5161290323
A25: 2036 | B25: 1.2 | C25: =((1-$P25)*(C24/$N24)+$P25*(B25/$M25))*'global path'!$C24 -> 3.248101023 | E25: 2.706750852 | F25: 4 | G25: =((1-$P25)*(G24/$N24)+$P25*(F25/$M25))*'global path'!$C24 -> 10.78523608 | I25: 2.696309021 | J25: 1.7 | K25: =((1-$P25)*(K24/$N24)+$P25*(J25/$M25))*'global path'!$C24 -> 4.57788636 | L25: 2.692874329 | M25: 6.9 | N25: 18.61122347 | O25: 2.697278763 | P25: 0.5483870968
A26: 2037 | B26: 1.2 | C26: =((1-$P26)*(C25/$N25)+$P26*(B26/$M26))*'global path'!$C25 -> 2.995866528 | E26: 2.49655544 | F26: 4 | G26: =((1-$P26)*(G25/$N25)+$P26*(F26/$M26))*'global path'!$C25 -> 9.970033707 | I26: 2.492508427 | J26: 1.7 | K26: =((1-$P26)*(K25/$N25)+$P26*(J26/$M26))*'global path'!$C25 -> 4.235001273 | L26: 2.491177219 | M26: 6.9 | N26: 17.20090151 | O26: 2.492884277 | P26: 0.5806451613
A27: 2038 | B27: 1.2 | C27: =((1-$P27)*(C26/$N26)+$P27*(B27/$M27))*'global path'!$C26 -> 2.756529411 | E27: 2.297107842 | F27: 4 | G27: =((1-$P27)*(G26/$N26)+$P27*(F27/$M27))*'global path'!$C26 -> 9.182660438 | I27: 2.29566511 | J27: 1.7 | K27: =((1-$P27)*(K26/$N26)+$P27*(J27/$M27))*'global path'!$C26 -> 3.901823923 | L27: 2.295190543 | M27: 6.9 | N27: 15.84101377 | O27: 2.295799097 | P27: 0.6129032258
A28: 2039 | B28: 1.2 | C28: =((1-$P28)*(C27/$N27)+$P28*(B28/$M28))*'global path'!$C27 -> 2.528626552 | E28: 2.107188793 | F28: 4 | G28: =((1-$P28)*(G27/$N27)+$P28*(F28/$M28))*'global path'!$C27 -> 8.426876034 | I28: 2.106719009 | J28: 1.7 | K28: =((1-$P28)*(K27/$N27)+$P28*(J28/$M28))*'global path'!$C27 -> 3.581159615 | L28: 2.10656448 | M28: 6.9 | N28: 14.5366622 | O28: 2.106762638 | P28: 0.6451612903
A29: 2040 | B29: 1.2 | C29: =((1-$P29)*(C28/$N28)+$P29*(B29/$M29))*'global path'!$C28 -> 2.311805703 | E29: 1.926504753 | F29: 4 | G29: =((1-$P29)*(G28/$N28)+$P29*(F29/$M29))*'global path'!$C28 -> 7.705464739 | I29: 1.926366185 | J29: 1.7 | K29: =((1-$P29)*(K28/$N28)+$P29*(J29/$M29))*'global path'!$C28 -> 3.274745028 | L29: 1.926320605 | M29: 6.9 | N29: 13.29201547 | O29: 1.926379054 | P29: 0.6774193548
A30: 2041 | B30: 1.2 | C30: =((1-$P30)*(C29/$N29)+$P30*(B30/$M30))*'global path'!$C29 -> 2.106183376 | E30: 1.755152814 | F30: 4 | G30: =((1-$P30)*(G29/$N29)+$P30*(F30/$M30))*'global path'!$C29 -> 7.020464643 | I30: 1.755116161 | J30: 1.7 | K30: =((1-$P30)*(K29/$N29)+$P30*(J30/$M30))*'global path'!$C29 -> 2.983676977 | L30: 1.755104104 | M30: 6.9 | N30: 12.110325 | O30: 1.755119565 | P30: 0.7096774194
A31: 2042 | B31: 1.2 | C31: =((1-$P31)*(C30/$N30)+$P31*(B31/$M31))*'global path'!$C30 -> 1.912001484 | E31: 1.59333457 | F31: 4 | G31: =((1-$P31)*(G30/$N30)+$P31*(F31/$M31))*'global path'!$C30 -> 6.373303932 | I31: 1.593325983 | J31: 1.7 | K31: =((1-$P31)*(K30/$N30)+$P31*(J31/$M31))*'global path'!$C30 -> 2.708649369 | L31: 1.593323158 | M31: 6.9 | N31: 10.99395478 | O31: 1.59332678 | P31: 0.7419354839
A32: 2043 | B32: 1.2 | C32: =((1-$P32)*(C31/$N31)+$P32*(B32/$M32))*'global path'!$C31 -> 1.729466861 | E32: 1.441222384 | F32: 4 | G32: =((1-$P32)*(G31/$N31)+$P32*(F32/$M32))*'global path'!$C31 -> 5.764882521 | I32: 1.44122063 | J32: 1.7 | K32: =((1-$P32)*(K31/$N31)+$P32*(J32/$M32))*'global path'!$C31 -> 2.450074091 | L32: 1.441220053 | M32: 6.9 | N32: 9.944423473 | O32: 1.441220793 | P32: 0.7741935484
A33: 2044 | B33: 1.2 | C33: =((1-$P33)*(C32/$N32)+$P33*(B33/$M33))*'global path'!$C32 -> 1.558688469 | E33: 1.298907057 | F33: 4 | G33: =((1-$P33)*(G32/$N32)+$P33*(F33/$M33))*'global path'!$C32 -> 5.195627005 | I33: 1.298906751 | J33: 1.7 | K33: =((1-$P33)*(K32/$N32)+$P33*(J33/$M33))*'global path'!$C32 -> 2.208141306 | L33: 1.298906651 | M33: 6.9 | N33: 8.96245678 | O33: 1.29890678 | P33: 0.8064516129
A34: 2045 | B34: 1.2 | C34: =((1-$P34)*(C33/$N33)+$P34*(B34/$M34))*'global path'!$C33 -> 1.399660653 | E34: 1.166383877 | F34: 4 | G34: =((1-$P34)*(G33/$N33)+$P34*(F34/$M34))*'global path'!$C33 -> 4.665535332 | I34: 1.166383833 | J34: 1.7 | K34: =((1-$P34)*(K33/$N33)+$P34*(J34/$M34))*'global path'!$C33 -> 1.982852491 | L34: 1.166383818 | M34: 6.9 | N34: 8.048048476 | O34: 1.166383837 | P34: 0.8387096774
A35: 2046 | B35: 1.2 | C35: =((1-$P35)*(C34/$N34)+$P35*(B35/$M35))*'global path'!$C34 -> 1.252265733 | E35: 1.043554778 | F35: 4 | G35: =((1-$P35)*(G34/$N34)+$P35*(F35/$M35))*'global path'!$C34 -> 4.17421909 | I35: 1.043554773 | J35: 1.7 | K35: =((1-$P35)*(K34/$N34)+$P35*(J35/$M35))*'global path'!$C34 -> 1.774043111 | L35: 1.043554771 | M35: 6.9 | N35: 7.200527934 | O35: 1.043554773 | P35: 0.8709677419
A36: 2047 | B36: 1.2 | C36: =((1-$P36)*(C35/$N35)+$P36*(B36/$M36))*'global path'!$C35 -> 1.11628389 | E36: 0.9302365746 | F36: 4 | G36: =((1-$P36)*(G35/$N35)+$P36*(F36/$M36))*'global path'!$C35 -> 3.720946297 | I36: 0.9302365742 | J36: 1.7 | K36: =((1-$P36)*(K35/$N35)+$P36*(J36/$M36))*'global path'!$C35 -> 1.581402176 | L36: 0.930236574 | M36: 6.9 | N36: 6.418632362 | O36: 0.9302365742 | P36: 0.9032258065
A37: 2048 | B37: 1.2 | C37: =((1-$P37)*(C36/$N36)+$P37*(B37/$M37))*'global path'!$C36 -> 0.9914055386 | E37: 0.8261712822 | F37: 4 | G37: =((1-$P37)*(G36/$N36)+$P37*(F37/$M37))*'global path'!$C36 -> 3.304685129 | I37: 0.8261712822 | J37: 1.7 | K37: =((1-$P37)*(K36/$N36)+$P37*(J37/$M37))*'global path'!$C36 -> 1.40449118 | L37: 0.8261712822 | M37: 6.9 | N37: 5.700581847 | O37: 0.8261712822 | P37: 0.935483871
A38: 2049 | B38: 1.2 | C38: =((1-$P38)*(C37/$N37)+$P38*(B38/$M38))*'global path'!$C37 -> 0.8772444305 | E38: 0.7310370255 | F38: 4 | G38: =((1-$P38)*(G37/$N37)+$P38*(F38/$M38))*'global path'!$C37 -> 2.924148102 | I38: 0.7310370255 | J38: 1.7 | K38: =((1-$P38)*(K37/$N37)+$P38*(J38/$M38))*'global path'!$C37 -> 1.242762943 | L38: 0.7310370255 | M38: 6.9 | N38: 5.044155476 | O38: 0.7310370255 | P38: 0.9677419355
A39: 2050 | B39: =RF!B40 -> 1.2 | C39: =((1-$P39)*(C38/$N38)+$P39*(B39/$M39))*'global path'!$C38 -> 0.7733507692 | E39: 0.6444589743 | F39: =RF!E40 -> 4 | G39: =((1-$P39)*(G38/$N38)+$P39*(F39/$M39))*'global path'!$C38 -> 2.577835897 | I39: 0.6444589743 | J39: =M39-F39-B39 -> 1.7 | K39: =((1-$P39)*(K38/$N38)+$P39*(J39/$M39))*'global path'!$C38 -> 1.095580256 | L39: 0.6444589743 | M39: =RF!K40 -> 6.9 | N39: 4.446766923 | O39: 0.6444589743 | P39: 1
A40: ∑ | C40: =SUM(C9:C39) -> 182.0470951 | G40: =SUM(G9:G39) -> 357.5855826 | K40: =SUM(K9:K39) -> 117.1309687 | N40: =SUM(N9:N39) -> 656.7636464
L42: global path: | N42: ='global path'!C90 -> 656.7636464
N43: =N40-N42 -> 0

Sheet LIMITS
A1: LIMITS | D1: source: | F1: www.feem-project.net/limits/docs/ | L1: convergence period: 2020 - 2050
B4: Country A | E4: Country B | H4: Country C | K4: Global
A6: Year t | B6: Popu-lation Pit | C6: Eit | D6: Per capita | E6: Popu-lation Pit | F6: Eit | G6: Per capita | H6: Popu-lation Pit | I6: Eit | J6: Per capita | K6: Popu-lation Pt | L6: Et | M6: Per capita | N6: Ct
B7: bn | C7: Gt | D7: t | E7: bn | F7: Gt | G7: t | H7: bn | I7: Gt | J7: t | K7: bn | L7: Gt | M7: t
A8: 2019 | B8: =RF!B9 -> 1.2 | C8: =RF!C9 -> 21 | D8: =C8/B8 -> 17.5 | E8: =RF!E9 -> 4 | F8: =RF!F9 -> 19.5 | G8: =F8/E8 -> 4.875 | H8: =K8-E8-B8 -> 1.7 | I8: ='global path'!$C$7-C8-F8 -> 1.227717101 | J8: =I8/H8 -> 0.7221865302 | K8: =RF!K9 -> 6.9 | L8: =I8+F8+C8 -> 41.7277171 | M8: =L8/K8 -> 6.047495232 | N8: =(A8-2019)/(2050-2019) -> 0
A9: =A8+1 -> 2020 | B9: =B$8*(B$39/B$8)^(($A9-2019)/31) -> 1.2 | C9: =((1-$N9)*(C$8/$L$8)+$N9*(B9/$K9))*'global path'!$C8 -> 20.14554369 | D9: =C9/B9 -> 16.78795308 | E9: =E$8*(E$39/E$8)^(($A9-2019)/31) -> 4 | F9: =((1-$N9)*(F$8/$L$8)+$N9*(E9/$K9))*'global path'!$C8 -> 19.25826391 | G9: =F9/E9 -> 4.814565978 | H9: =H$8*(H$39/H$8)^(($A9-2019)/31) -> 1.7 | I9: =((1-$N9)*(I$8/$L$8)+$N9*(H9/$K9))*'global path'!$C8 -> 1.489355156 | J9: =I9/H9 -> 0.8760912682 | K9: =B9+E9+H9 -> 6.9 | L9: =I9+F9+C9 -> 40.89316276 | M9: =L9/K9 -> 5.926545327 | N9: =(A9-2019)/(2050-2019) -> 0.03225806452
A10: =A9+1 -> 2021 | B10: =B$8*(B$39/B$8)^(($A10-2019)/31) -> 1.2 | C10: =((1-$N10)*(C$8/$L$8)+$N10*(B10/$K10))*'global path'!$C9 -> 19.25219235 | D10: 16.04349363 | E10: =E$8*(E$39/E$8)^(($A10-2019)/31) -> 4 | F10: =((1-$N10)*(F$8/$L$8)+$N10*(E10/$K10))*'global path'!$C9 -> 18.95472327 | G10: 4.738680817 | H10: =H$8*(H$39/H$8)^(($A10-2019)/31) -> 1.7 | I10: =((1-$N10)*(I$8/$L$8)+$N10*(H10/$K10))*'global path'!$C9 -> 1.734210922 | J10: 1.020124072 | K10: =B10+E10+H10 -> 6.9 | L10: =I10+F10+C10 -> 39.94112655 | M10: 5.788569065 | N10: 0.06451612903
A11: 2022 | B11: 1.2 | C11: =((1-$N11)*(C$8/$L$8)+$N11*(B11/$K11))*'global path'!$C10 -> 18.32774298 | D11: 15.27311915 | E11: 4 | F11: =((1-$N11)*(F$8/$L$8)+$N11*(E11/$K11))*'global path'!$C10 -> 18.59221125 | G11: 4.648052813 | H11: 1.7 | I11: =((1-$N11)*(I$8/$L$8)+$N11*(H11/$K11))*'global path'!$C10 -> 1.960251237 | J11: 1.153088963 | K11: 6.9 | L11: 38.88020548 | M11: 5.634812388 | N11: 0.09677419355
A12: 2023 | B12: 1.2 | C12: =((1-$N12)*(C$8/$L$8)+$N12*(B12/$K12))*'global path'!$C11 -> 17.38004184 | D12: 14.4833682 | E12: 4 | F12: =((1-$N12)*(F$8/$L$8)+$N12*(E12/$K12))*'global path'!$C11 -> 18.17411928 | G12: 4.543529821 | H12: 1.7 | I12: =((1-$N12)*(I$8/$L$8)+$N12*(H12/$K12))*'global path'!$C11 -> 2.165735269 | J12: 1.273961923 | K12: 6.9 | L12: 37.7198964 | M12: 5.466651652 | N12: 0.1290322581
A13: 2024 | B13: 1.2 | C13: =((1-$N13)*(C$8/$L$8)+$N13*(B13/$K13))*'global path'!$C12 -> 16.41687245 | D13: 13.68072704 | E13: 4 | F13: =((1-$N13)*(F$8/$L$8)+$N13*(E13/$K13))*'global path'!$C12 -> 17.70434409 | G13: 4.426086022 | H13: 1.7 | I13: =((1-$N13)*(I$8/$L$8)+$N13*(H13/$K13))*'global path'!$C12 -> 2.349236818 | J13: 1.381904011 | K13: 6.9 | L13: 36.47045336 | M13: 5.28557295 | N13: 0.1612903226
A14: 2025 | B14: 1.2 | C14: =((1-$N14)*(C$8/$L$8)+$N14*(B14/$K14))*'global path'!$C13 -> 15.44584847 | D14: 12.87154039 | E14: 4 | F14: =((1-$N14)*(F$8/$L$8)+$N14*(E14/$K14))*'global path'!$C13 -> 17.18722698 | G14: 4.296806744 | H14: 1.7 | I14: =((1-$N14)*(I$8/$L$8)+$N14*(H14/$K14))*'global path'!$C13 -> 2.509659942 | J14: 1.476270554 | K14: 6.9 | L14: 35.14273539 | M14: 5.093150057 | N14: 0.1935483871
A15: 2026 | B15: 1.2 | C15: =((1-$N15)*(C$8/$L$8)+$N15*(B15/$K15))*'global path'!$C14 -> 14.47431356 | D15: 12.06192796 | E15: 4 | F15: =((1-$N15)*(F$8/$L$8)+$N15*(E15/$K15))*'global path'!$C14 -> 16.6274867 | G15: 4.156871675 | H15: 1.7 | I15: =((1-$N15)*(I$8/$L$8)+$N15*(H15/$K15))*'global path'!$C14 -> 2.646247692 | J15: 1.556616289 | K15: 6.9 | L15: 33.74804795 | M15: 4.891021442 | N15: 0.2258064516
A16: 2027 | B16: 1.2 | C16: =((1-$N16)*(C$8/$L$8)+$N16*(B16/$K16))*'global path'!$C15 -> 13.50925 | D16: 11.25770833 | E16: 4 | F16: =((1-$N16)*(F$8/$L$8)+$N16*(E16/$K16))*'global path'!$C15 -> 16.03014726 | G16: 4.007536815 | H16: 1.7 | I16: =((1-$N16)*(I$8/$L$8)+$N16*(H16/$K16))*'global path'!$C15 -> 2.758583921 | J16: 1.622696424 | K16: 6.9 | L16: 32.29798118 | M16: 4.680866837 | N16: 0.2580645161
A17: 2028 | B17: 1.2 | C17: =((1-$N17)*(C$8/$L$8)+$N17*(B17/$K17))*'global path'!$C16 -> 12.55719775 | D17: 10.46433146 | E17: 4 | F17: =((1-$N17)*(F$8/$L$8)+$N17*(E17/$K17))*'global path'!$C16 -> 15.40046233 | G17: 3.850115583 | H17: 1.7 | I17: =((1-$N17)*(I$8/$L$8)+$N17*(H17/$K17))*'global path'!$C16 -> 2.846588323 | J17: 1.67446372 | K17: 6.9 | L17: 30.8042484 | M17: 4.464383826 | N17: 0.2903225806
A18: 2029 | B18: 1.2 | C18: =((1-$N18)*(C$8/$L$8)+$N18*(B18/$K18))*'global path'!$C17 -> 11.62418507 | D18: 9.686820894 | E18: 4 | F18: =((1-$N18)*(F$8/$L$8)+$N18*(E18/$K18))*'global path'!$C17 -> 14.74383781 | G18: 3.685959452 | H18: 1.7 | I18: =((1-$N18)*(I$8/$L$8)+$N18*(H18/$K18))*'global path'!$C17 -> 2.91050501 | J18: 1.712061771 | K18: 6.9 | L18: 29.27852789 | M18: 4.243264912 | N18: 0.3225806452
A19: 2030 | B19: 1.2 | C19: =((1-$N19)*(C$8/$L$8)+$N19*(B19/$K19))*'global path'!$C18 -> 10.71567172 | D19: 8.929726434 | E19: 4 | F19: =((1-$N19)*(F$8/$L$8)+$N19*(E19/$K19))*'global path'!$C18 -> 14.06575414 | G19: 3.516438536 | H19: 1.7 | I19: =((1-$N19)*(I$8/$L$8)+$N19*(H19/$K19))*'global path'!$C18 -> 2.950885129 | J19: 1.735814782 | K19: 6.9 | L19: 27.73231099 | M19: 4.019175506 | N19: 0.3548387097
A20: 2031 | B20: 1.2 | C20: =((1-$N20)*(C$8/$L$8)+$N20*(B20/$K20))*'global path'!$C19 -> 9.836505202 | D20: 8.197087668 | E20: 4 | F20: =((1-$N20)*(F$8/$L$8)+$N20*(E20/$K20))*'global path'!$C19 -> 13.37169002 | G20: 3.342922506 | H20: 1.7 | I20: =((1-$N20)*(I$8/$L$8)+$N20*(H20/$K20))*'global path'!$C19 -> 2.968564126 | J20: 1.746214192 | K20: 6.9 | L20: 26.17675935 | M20: 3.79373324 | N20: 0.3870967742
A21: 2032 | B21: 1.2 | C21: =((1-$N21)*(C$8/$L$8)+$N21*(B21/$K21))*'global path'!$C20 -> 8.990890376 | D21: 7.492408646 | E21: 4 | F21: =((1-$N21)*(F$8/$L$8)+$N21*(E21/$K21))*'global path'!$C20 -> 12.66704887 | G21: 3.166762218 | H21: 1.7 | I21: =((1-$N21)*(I$8/$L$8)+$N21*(H21/$K21))*'global path'!$C20 -> 2.96463441 | J21: 1.743902594 | K21: 6.9 | L21: 24.62257366 | M21: 3.568488936 | N21: 0.4193548387
A22: 2033 | B22: 1.2 | C22: =((1-$N22)*(C$8/$L$8)+$N22*(B22/$K22))*'global path'!$C21 -> 8.182372249 | D22: 6.818643541 | E22: 4 | F22: =((1-$N22)*(F$8/$L$8)+$N22*(E22/$K22))*'global path'!$C21 -> 11.95708956 | G22: 2.989272391 | H22: 1.7 | I22: =((1-$N22)*(I$8/$L$8)+$N22*(H22/$K22))*'global path'!$C21 -> 2.940414236 | J22: 1.729655433 | K22: 6.9 | L22: 23.07987605 | M22: 3.344909572 | N22: 0.4516129032
A23: 2034 | B23: 1.2 | C23: =((1-$N23)*(C$8/$L$8)+$N23*(B23/$K23))*'global path'!$C22 -> 7.413831526 | D23: 6.178192938 | E23: 4 | F23: =((1-$N23)*(F$8/$L$8)+$N23*(E23/$K23))*'global path'!$C22 -> 11.24686257 | G23: 2.811715643 | H23: 1.7 | I23: =((1-$N23)*(I$8/$L$8)+$N23*(H23/$K23))*'global path'!$C22 -> 2.897413715 | J23: 1.704361009 | K23: 6.9 | L23: 21.55810781 | M23: 3.124363451 | N23: 0.4838709677
A24: 2035 | B24: 1.2 | C24: =((1-$N24)*(C$8/$L$8)+$N24*(B24/$K24))*'global path'!$C23 -> 6.68749221 | D24: 5.572910175 | E24: 4 | F24: =((1-$N24)*(F$8/$L$8)+$N24*(E24/$K24))*'global path'!$C23 -> 10.5411526 | G24: 2.635288151 | H24: 1.7 | I24: =((1-$N24)*(I$8/$L$8)+$N24*(H24/$K24))*'global path'!$C23 -> 2.837298867 | J24: 1.668999334 | K24: 6.9 | L24: 20.06594368 | M24: 2.90810778 | N24: 0.5161290323
A25: 2036 | B25: 1.2 | C25: =((1-$N25)*(C$8/$L$8)+$N25*(B25/$K25))*'global path'!$C24 -> 6.004940273 | D25: 5.004116894 | E25: 4 | F25: =((1-$N25)*(F$8/$L$8)+$N25*(E25/$K25))*'global path'!$C24 -> 9.844428536 | G25: 2.461107134 | H25: 1.7 | I25: =((1-$N25)*(I$8/$L$8)+$N25*(H25/$K25))*'global path'!$C24 -> 2.761854657 | J25: 1.624620387 | K25: 6.9 | L25: 18.61122347 | M25: 2.697278763 | N25: 0.5483870968
A26: 2037 | B26: 1.2 | C26: =((1-$N26)*(C$8/$L$8)+$N26*(B26/$K26))*'global path'!$C25 -> 5.367152225 | D26: 4.472626854 | E26: 4 | F26: =((1-$N26)*(F$8/$L$8)+$N26*(E26/$K26))*'global path'!$C25 -> 9.160801366 | G26: 2.290200341 | H26: 1.7 | I26: =((1-$N26)*(I$8/$L$8)+$N26*(H26/$K26))*'global path'!$C25 -> 2.672947917 | J26: 1.572322304 | K26: 6.9 | L26: 17.20090151 | M26: 2.492884277 | N26: 0.5806451613
A27: 2038 | B27: 1.2 | C27: =((1-$N27)*(C$8/$L$8)+$N27*(B27/$K27))*'global path'!$C26 -> 4.774532242 | D27: 3.978776868 | E27: 4 | F27: =((1-$N27)*(F$8/$L$8)+$N27*(E27/$K27))*'global path'!$C26 -> 8.493990508 | G27: 2.123497627 | H27: 1.7 | I27: =((1-$N27)*(I$8/$L$8)+$N27*(H27/$K27))*'global path'!$C26 -> 2.572491023 | J27: 1.513230013 | K27: 6.9 | L27: 15.84101377 | M27: 2.295799097 | N27: 0.6129032258
A28: 2039 | B28: 1.2 | C28: =((1-$N28)*(C$8/$L$8)+$N28*(B28/$K28))*'global path'!$C27 -> 4.226956393 | D28: 3.522463661 | E28: 4 | F28: =((1-$N28)*(F$8/$L$8)+$N28*(E28/$K28))*'global path'!$C27 -> 7.847298704 | G28: 1.961824676 | H28: 1.7 | I28: =((1-$N28)*(I$8/$L$8)+$N28*(H28/$K28))*'global path'!$C27 -> 2.462407105 | J28: 1.448474767 | K28: 6.9 | L28: 14.5366622 | M28: 2.106762638 | N28: 0.6451612903
A29: 2040 | B29: 1.2 | C29: =((1-$N29)*(C$8/$L$8)+$N29*(B29/$K29))*'global path'!$C28 -> 3.723822475 | D29: 3.103185395 | E29: 4 | F29: =((1-$N29)*(F$8/$L$8)+$N29*(E29/$K29))*'global path'!$C28 -> 7.223595499 | G29: 1.805898875 | H29: 1.7 | I29: =((1-$N29)*(I$8/$L$8)+$N29*(H29/$K29))*'global path'!$C28 -> 2.344597497 | J29: 1.379174998 | K29: 6.9 | L29: 13.29201547 | M29: 1.926379054 | N29: 0.6774193548
A30: 2041 | B30: 1.2 | C30: =((1-$N30)*(C$8/$L$8)+$N30*(B30/$K30))*'global path'!$C29 -> 3.264103899 | D30: 2.720086583 | E30: 4 | F30: =((1-$N30)*(F$8/$L$8)+$N30*(E30/$K30))*'global path'!$C29 -> 6.625309079 | G30: 1.65632727 | H30: 1.7 | I30: =((1-$N30)*(I$8/$L$8)+$N30*(H30/$K30))*'global path'!$C29 -> 2.220912018 | J30: 1.306418834 | K30: 6.9 | L30: 12.110325 | M30: 1.755119565 | N30: 0.7096774194
A31: 2042 | B31: 1.2 | C31: =((1-$N31)*(C$8/$L$8)+$N31*(B31/$K31))*'global path'!$C30 -> 2.846406147 | D31: 2.372005122 | E31: 4 | F31: =((1-$N31)*(F$8/$L$8)+$N31*(E31/$K31))*'global path'!$C30 -> 6.054426087 | G31: 1.513606522 | H31: 1.7 | I31: =((1-$N31)*(I$8/$L$8)+$N31*(H31/$K31))*'global path'!$C30 -> 2.093122551 | J31: 1.23124856 | K31: 6.9 | L31: 10.99395478 | M31: 1.59332678 | N31: 0.7419354839
A32: 2043 | B32: 1.2 | C32: =((1-$N32)*(C$8/$L$8)+$N32*(B32/$K32))*'global path'!$C31 -> 2.469024346 | D32: 2.057520288 | E32: 4 | F32: =((1-$N32)*(F$8/$L$8)+$N32*(E32/$K32))*'global path'!$C31 -> 5.512498831 | G32: 1.378124708 | H32: 1.7 | I32: =((1-$N32)*(I$8/$L$8)+$N32*(H32/$K32))*'global path'!$C31 -> 1.962900296 | J32: 1.154647233 | K32: 6.9 | L32: 9.944423473 | M32: 1.441220793 | N32: 0.7741935484
A33: 2044 | B33: 1.2 | C33: =((1-$N33)*(C$8/$L$8)+$N33*(B33/$K33))*'global path'!$C32 -> 2.130000644 | D33: 1.775000537 | E33: 4 | F33: =((1-$N33)*(F$8/$L$8)+$N33*(E33/$K33))*'global path'!$C32 -> 5.000659233 | G33: 1.250164808 | H33: 1.7 | I33: =((1-$N33)*(I$8/$L$8)+$N33*(H33/$K33))*'global path'!$C32 -> 1.831796903 | J33: 1.07752759 | K33: 6.9 | L33: 8.96245678 | M33: 1.29890678 | N33: 0.8064516129
A34: 2045 | B34: 1.2 | C34: =((1-$N34)*(C$8/$L$8)+$N34*(B34/$K34))*'global path'!$C33 -> 1.827180171 | D34: 1.522650142 | E34: 4 | F34: =((1-$N34)*(F$8/$L$8)+$N34*(E34/$K34))*'global path'!$C33 -> 4.51963869 | G34: 1.129909672 | H34: 1.7 | I34: =((1-$N34)*(I$8/$L$8)+$N34*(H34/$K34))*'global path'!$C33 -> 1.701229615 | J34: 1.000723303 | K34: 6.9 | L34: 8.048048476 | M34: 1.166383837 | N34: 0.8387096774
A35: 2046 | B35: 1.2 | C35: =((1-$N35)*(C$8/$L$8)+$N35*(B35/$K35))*'global path'!$C34 -> 1.558264539 | D35: 1.298553782 | E35: 4 | F35: =((1-$N35)*(F$8/$L$8)+$N35*(E35/$K35))*'global path'!$C34 -> 4.069792985 | G35: 1.017448246 | H35: 1.7 | I35: =((1-$N35)*(I$8/$L$8)+$N35*(H35/$K35))*'global path'!$C34 -> 1.57247041 | J35: 0.9249825943 | K35: 6.9 | L35: 7.200527934 | M35: 1.043554773 | N35: 0.8709677419
A36: 2047 | B36: 1.2 | C36: =((1-$N36)*(C$8/$L$8)+$N36*(B36/$K36))*'global path'!$C35 -> 1.320862 | D36: 1.100718333 | E36: 4 | F36: =((1-$N36)*(F$8/$L$8)+$N36*(E36/$K36))*'global path'!$C35 -> 3.651131334 | G36: 0.9127828334 | H36: 1.7 | I36: =((1-$N36)*(I$8/$L$8)+$N36*(H36/$K36))*'global path'!$C35 -> 1.446639028 | J36: 0.8509641343 | K36: 6.9 | L36: 6.418632362 | M36: 0.9302365742 | N36: 0.9032258065
A37: 2048 | B37: 1.2 | C37: =((1-$N37)*(C$8/$L$8)+$N37*(B37/$K37))*'global path'!$C36 -> 1.112533551 | D37: 0.9271112921 | E37: 4 | F37: =((1-$N37)*(F$8/$L$8)+$N37*(E37/$K37))*'global path'!$C36 -> 3.263348606 | G37: 0.8158371515 | H37: 1.7 | I37: =((1-$N37)*(I$8/$L$8)+$N37*(H37/$K37))*'global path'!$C36 -> 1.32469969 | J37: 0.7792351119 | K37: 6.9 | L37: 5.700581847 | M37: 0.8261712822 | N37: 0.935483871
A38: 2049 | B38: 1.2 | C38: =((1-$N38)*(C$8/$L$8)+$N38*(B38/$K38))*'global path'!$C37 -> 0.9308344448 | D38: 0.7756953707 | E38: 4 | F38: =((1-$N38)*(F$8/$L$8)+$N38*(E38/$K38))*'global path'!$C37 -> 2.905859807 | G38: 0.7264649517 | H38: 1.7 | I38: =((1-$N38)*(I$8/$L$8)+$N38*(H38/$K38))*'global path'!$C37 -> 1.207461224 | J38: 0.7102713083 | K38: 6.9 | L38: 5.044155476 | M38: 0.7310370255 | N38: 0.9677419355
A39: 2050 | B39: =RF!B40 -> 1.2 | C39: =((1-$N39)*(C$8/$L$8)+$N39*(B39/$K39))*'global path'!$C38 -> 0.7733507692 | D39: 0.6444589743 | E39: =RF!E40 -> 4 | F39: =((1-$N39)*(F$8/$L$8)+$N39*(E39/$K39))*'global path'!$C38 -> 2.577835897 | G39: 0.6444589743 | H39: =K39-E39-B39 -> 1.7 | I39: =((1-$N39)*(I$8/$L$8)+$N39*(H39/$K39))*'global path'!$C38 -> 1.095580256 | J39: 0.6444589743 | K39: =RF!K40 -> 6.9 | L39: 4.446766923 | M39: 0.6444589743 | N39: 1
A40: ∑ | C40: =SUM(C9:C39) -> 253.2899156 | F40: =SUM(F9:F39) -> 333.2730358 | I40: =SUM(I9:I39) -> 70.20069496 | L40: =SUM(L9:L39) -> 656.7636464
J42: global path: | L42: ='global path'!C90 -> 656.7636464
L43: =L40-L42 -> 0

Sheet GQWF
A1: General Quadratic Weigthing Formula | H1: convergence period: 2020 - 2050
A2: GQWF | V2: Input value
A3: Sargl/Wolfsteiner/Wittmann | G3: input value | V3: C2020 | W3: weighting of per capita in 2020
A5: Determination of Ct | V5: convex quadratic | Y5: =(1/(2050-2019))^2 -> 0.001040582726
F6: a | G6: b | H6: c | I6: Ct | V6: conkave quadratic | Y6: =-(1/(2050-2019))^2+2/(2050-2019) -> 0.06555671176
A7: Constraint 1 in 2019: | D7: t=2019 | F7: 0 | G7: 0 | H7: 1 | I7: 0 | V7: linear | Y7: =1/(2050-2019) -> 0.03225806452
A8: Constraint 2 in 2050: | D8: t=2050 | F8: =31^2 -> 961 | G8: 31 | H8: 1 | I8: 1 | V8: other value | Y8: 0.04
A9: Constraint 3 in 2020: | D9: t=2020 | F9: 1 | G9: 1 | H9: 1 | I9: =Y9 -> 0.04 | V9: other value | Y9: =VLOOKUP(V9,V5:Y8,4,FALSE) -> 0.04
A11: Remodeled constraint 1 | F11: =MMULT(MINVERSE(F7:H9),F7:I9) -> 1 | G11: 6.938893904e-18 | H11: 0 | I11: -0.0002580645161
A12: Remodeled constraint 2 | F12: -2.220446049e-16 | G12: 1 | H12: 0 | I12: 0.04025806452
A13: Remodeled constraint 3 | F13: 0 | G13: 0 | H13: 1 | I13: 0
A15: parameter of the parabola: | F15: =I11 -> -0.0002580645161 | G15: =I12 -> 0.04025806452 | H15: =I13 -> 0
B17: Country A | E17: Country B | H17: Country C | K17: Global
A19: Year t | B19: Popu-lation Pit | C19: Eit | D19: Per capita | E19: Popu-lation Pit | F19: Eit | G19: Per capita | H19: Popu-lation Pit | I19: Eit | J19: Per capita | K19: Popu-lation Pt | L19: Et | M19: Per capita | N19: Ct
B20: bn | C20: Gt | D20: t | E20: bn | F20: Gt | G20: t | H20: bn | I20: Gt | J20: t | K20: bn | L20: Gt | M20: t
A21: 2019 | B21: =RF!B9 -> 1.2 | C21: =RF!C9 -> 21 | D21: =C21/B21 -> 17.5 | E21: =RF!E9 -> 4 | F21: =RF!F9 -> 19.5 | G21: =F21/E21 -> 4.875 | H21: =K21-E21-B21 -> 1.7 | I21: ='global path'!$C$7-C21-F21 -> 1.227717101 | J21: =I21/H21 -> 0.7221865302 | K21: =RF!K9 -> 6.9 | L21: =I21+F21+C21 -> 41.7277171 | M21: =L21/K21 -> 6.047495232 | N21: =$F$15*(A21-2019)^2+$G$15*(A21-2019)+$H$15 -> 0
A22: =A21+1 -> 2020 | B22: =B$21*(B$52/B$21)^(($A22-2019)/31) -> 1.2 | C22: =((1-$N22)*(C$21/$L$21)+$N22*(B22/$K22))*'global path'!$C8 -> 20.04127418 | D22: =C22/B22 -> 16.70106181 | E22: =E$21*(E$52/E$21)^(($A22-2019)/31) -> 4 | F22: =((1-$N22)*(F$21/$L$21)+$N22*(E22/$K22))*'global path'!$C8 -> 19.29384725 | G22: =F22/E22 -> 4.823461813 | H22: =H$21*(H$52/H$21)^(($A22-2019)/31) -> 1.7 | I22: =((1-$N22)*(I$21/$L$21)+$N22*(H22/$K22))*'global path'!$C8 -> 1.558041331 | J22: =I22/H22 -> 0.9164949007 | K22: =B22+E22+H22 -> 6.9 | L22: =I22+F22+C22 -> 40.89316276 | M22: =L22/K22 -> 5.926545327 | N22: =$F$15*(A22-2019)^2+$G$15*(A22-2019)+$H$15 -> 0.04
A23: =A22+1 -> 2021 | B23: =B$21*(B$52/B$21)^(($A23-2019)/31) -> 1.2 | C23: =((1-$N23)*(C$21/$L$21)+$N23*(B23/$K23))*'global path'!C9 -> 19.0552978 | D23: 15.87941484 | E23: =E$21*(E$52/E$21)^(($A23-2019)/31) -> 4 | F23: =((1-$N23)*(F$21/$L$21)+$N23*(E23/$K23))*'global path'!$C9 -> 19.02191612 | G23: 4.755479029 | H23: =H$21*(H$52/H$21)^(($A23-2019)/31) -> 1.7 | I23: =((1-$N23)*(I$21/$L$21)+$N23*(H23/$K23))*'global path'!$C9 -> 1.863912626 | J23: 1.096419192 | K23: =B23+E23+H23 -> 6.9 | L23: =I23+F23+C23 -> 39.94112655 | M23: 5.788569065 | N23: 0.07948387097
A24: 2022 | B24: 1.2 | C24: =((1-$N24)*(C$21/$L$21)+$N24*(B24/$K24))*'global path'!C10 -> 18.05015975 | D24: 15.04179979 | E24: 4 | F24: =((1-$N24)*(F$21/$L$21)+$N24*(E24/$K24))*'global path'!$C10 -> 18.68694017 | G24: 4.671735043 | H24: 1.7 | I24: =((1-$N24)*(I$21/$L$21)+$N24*(H24/$K24))*'global path'!$C10 -> 2.143105552 | J24: 1.260650325 | K24: 6.9 | L24: 38.88020548 | M24: 5.634812388 | N24: 0.1184516129
A25: 2023 | B25: 1.2 | C25: =((1-$N25)*(C$21/$L$21)+$N25*(B25/$K25))*'global path'!C11 -> 17.03379993 | D25: 14.19483327 | E25: 4 | F25: =((1-$N25)*(F$21/$L$21)+$N25*(E25/$K25))*'global path'!$C11 -> 18.29227888 | G25: 4.57306972 | H25: 1.7 | I25: =((1-$N25)*(I$21/$L$21)+$N25*(H25/$K25))*'global path'!$C11 -> 2.39381759 | J25: 1.408127994 | K25: 6.9 | L25: 37.7198964 | M25: 5.466651652 | N25: 0.1569032258
A26: 2024 | B26: 1.2 | C26: =((1-$N26)*(C$21/$L$21)+$N26*(B26/$K26))*'global path'!C12 -> 16.01390505 | D26: 13.34492088 | E26: 4 | F26: =((1-$N26)*(F$21/$L$21)+$N26*(E26/$K26))*'global path'!$C12 -> 17.841862 | G26: 4.460465499 | H26: 1.7 | I26: =((1-$N26)*(I$21/$L$21)+$N26*(H26/$K26))*'global path'!$C12 -> 2.614686306 | J26: 1.538050768 | K26: 6.9 | L26: 36.47045336 | M26: 5.28557295 | N26: 0.1948387097
A27: 2025 | B27: 1.2 | C27: =((1-$N27)*(C$21/$L$21)+$N27*(B27/$K27))*'global path'!C13 -> 14.99781319 | D27: 12.49817766 | E27: 4 | F27: =((1-$N27)*(F$21/$L$21)+$N27*(E27/$K27))*'global path'!$C13 -> 17.34012489 | G27: 4.335031223 | H27: 1.7 | I27: =((1-$N27)*(I$21/$L$21)+$N27*(H27/$K27))*'global path'!$C13 -> 2.80479731 | J27: 1.64988077 | K27: 6.9 | L27: 35.14273539 | M27: 5.093150057 | N27: 0.2322580645
A28: 2026 | B28: 1.2 | C28: =((1-$N28)*(C$21/$L$21)+$N28*(B28/$K28))*'global path'!C14 -> 13.99242864 | D28: 11.6603572 | E28: 4 | F28: =((1-$N28)*(F$21/$L$21)+$N28*(E28/$K28))*'global path'!$C14 -> 16.79193625 | G28: 4.197984062 | H28: 1.7 | I28: =((1-$N28)*(I$21/$L$21)+$N28*(H28/$K28))*'global path'!$C14 -> 2.963683062 | J28: 1.743342978 | K28: 6.9 | L28: 33.74804795 | M28: 4.891021442 | N28: 0.2691612903
A29: 2027 | B29: 1.2 | C29: =((1-$N29)*(C$21/$L$21)+$N29*(B29/$K29))*'global path'!C15 -> 13.00414857 | D29: 10.83679048 | E29: 4 | F29: =((1-$N29)*(F$21/$L$21)+$N29*(E29/$K29))*'global path'!$C15 -> 16.20251975 | G29: 4.050629936 | H29: 1.7 | I29: =((1-$N29)*(I$21/$L$21)+$N29*(H29/$K29))*'global path'!$C15 -> 3.091312862 | J29: 1.818419331 | K29: 6.9 | L29: 32.29798118 | M29: 4.680866837 | N29: 0.3055483871
A30: 2028 | B30: 1.2 | C30: =((1-$N30)*(C$21/$L$21)+$N30*(B30/$K30))*'global path'!C16 -> 12.03880227 | D30: 10.03233523 | E30: 4 | F30: =((1-$N30)*(F$21/$L$21)+$N30*(E30/$K30))*'global path'!$C16 -> 15.57737159 | G30: 3.894342896 | H30: 1.7 | I30: =((1-$N30)*(I$21/$L$21)+$N30*(H30/$K30))*'global path'!$C16 -> 3.188074544 | J30: 1.875337967 | K30: 6.9 | L30: 30.8042484 | M30: 4.464383826 | N30: 0.3414193548
A31: 2029 | B31: 1.2 | C31: =((1-$N31)*(C$21/$L$21)+$N31*(B31/$K31))*'global path'!C17 -> 11.1016037 | D31: 9.251336416 | E31: 4 | F31: =((1-$N31)*(F$21/$L$21)+$N31*(E31/$K31))*'global path'!$C17 -> 14.92217556 | G31: 3.730543889 | H31: 1.7 | I31: =((1-$N31)*(I$21/$L$21)+$N31*(H31/$K31))*'global path'!$C17 -> 3.254748637 | J31: 1.914558022 | K31: 6.9 | L31: 29.27852789 | M31: 4.243264912 | N31: 0.3767741935
A32: 2030 | B32: 1.2 | C32: =((1-$N32)*(C$21/$L$21)+$N32*(B32/$K32))*'global path'!C18 -> 10.19711754 | D32: 8.497597953 | E32: 4 | F32: =((1-$N32)*(F$21/$L$21)+$N32*(E32/$K32))*'global path'!$C18 -> 14.24271756 | G32: 3.56067939 | H32: 1.7 | I32: =((1-$N32)*(I$21/$L$21)+$N32*(H32/$K32))*'global path'!$C18 -> 3.292475893 | J32: 1.936750525 | K32: 6.9 | L32: 27.73231099 | M32: 4.019175506 | N32: 0.4116129032
A33: 2031 | B33: 1.2 | C33: =((1-$N33)*(C$21/$L$21)+$N33*(B33/$K33))*'global path'!C19 -> 9.329238771 | D33: 7.774365643 | E33: 4 | F33: =((1-$N33)*(F$21/$L$21)+$N33*(E33/$K33))*'global path'!$C19 -> 13.54480135 | G33: 3.386200337 | H33: 1.7 | I33: =((1-$N33)*(I$21/$L$21)+$N33*(H33/$K33))*'global path'!$C19 -> 3.302719235 | J33: 1.94277602 | K33: 6.9 | L33: 26.17675935 | M33: 3.79373324 | N33: 0.4459354839
A34: 2032 | B34: 1.2 | C34: =((1-$N34)*(C$21/$L$21)+$N34*(B34/$K34))*'global path'!C20 -> 8.501185196 | D34: 7.084320997 | E34: 4 | F34: =((1-$N34)*(F$21/$L$21)+$N34*(E34/$K34))*'global path'!$C20 -> 12.83416719 | G34: 3.208541797 | H34: 1.7 | I34: =((1-$N34)*(I$21/$L$21)+$N34*(H34/$K34))*'global path'!$C20 -> 3.287221275 | J34: 1.933659574 | K34: 6.9 | L34: 24.62257366 | M34: 3.568488936 | N34: 0.4797419355
A35: 2033 | B35: 1.2 | C35: =((1-$N35)*(C$21/$L$21)+$N35*(B35/$K35))*'global path'!C21 -> 7.715502404 | D35: 6.429585336 | E35: 4 | F35: =((1-$N35)*(F$21/$L$21)+$N35*(E35/$K35))*'global path'!$C21 -> 12.11641502 | G35: 3.029103755 | H35: 1.7 | I35: =((1-$N35)*(I$21/$L$21)+$N35*(H35/$K35))*'global path'!$C21 -> 3.247958624 | J35: 1.910563897 | K35: 6.9 | L35: 23.07987605 | M35: 3.344909572 | N35: 0.5130322581
A36: 2034 | B36: 1.2 | C36: =((1-$N36)*(C$21/$L$21)+$N36*(B36/$K36))*'global path'!C22 -> 6.97408008 | D36: 5.8117334 | E36: 4 | F36: =((1-$N36)*(F$21/$L$21)+$N36*(E36/$K36))*'global path'!$C22 -> 11.39693352 | G36: 2.84923338 | H36: 1.7 | I36: =((1-$N36)*(I$21/$L$21)+$N36*(H36/$K36))*'global path'!$C22 -> 3.187094213 | J36: 1.874761302 | K36: 6.9 | L36: 21.55810781 | M36: 3.124363451 | N36: 0.5458064516
A37: 2035 | B37: 1.2 | C37: =((1-$N37)*(C$21/$L$21)+$N37*(B37/$K37))*'global path'!C23 -> 6.278178562 | D37: 5.231815468 | E37: 4 | F37: =((1-$N37)*(F$21/$L$21)+$N37*(E37/$K37))*'global path'!$C23 -> 10.68083625 | G37: 2.670209063 | H37: 1.7 | I37: =((1-$N37)*(I$21/$L$21)+$N37*(H37/$K37))*'global path'!$C23 -> 3.106928865 | J37: 1.827605215 | K37: 6.9 | L37: 20.06594368 | M37: 2.90810778 | N37: 0.5780645161
A38: 2036 | B38: 1.2 | C38: =((1-$N38)*(C$21/$L$21)+$N38*(B38/$K38))*'global path'!C24 -> 5.62846429 | D38: 4.690386908 | E38: 4 | F38: =((1-$N38)*(F$21/$L$21)+$N38*(E38/$K38))*'global path'!$C24 -> 9.972905902 | G38: 2.493226475 | H38: 1.7 | I38: =((1-$N38)*(I$21/$L$21)+$N38*(H38/$K38))*'global path'!$C24 -> 3.009853274 | J38: 1.770501926 | K38: 6.9 | L38: 18.61122347 | M38: 2.697278763 | N38: 0.6098064516
A39: 2037 | B39: 1.2 | C39: =((1-$N39)*(C$21/$L$21)+$N39*(B39/$K39))*'global path'!C25 -> 5.025052708 | D39: 4.187543923 | E39: 4 | F39: =((1-$N39)*(F$21/$L$21)+$N39*(E39/$K39))*'global path'!$C25 -> 9.277547312 | G39: 2.319386828 | H39: 1.7 | I39: =((1-$N39)*(I$21/$L$21)+$N39*(H39/$K39))*'global path'!$C25 -> 2.898301488 | J39: 1.704883228 | K39: 6.9 | L39: 17.20090151 | M39: 2.492884277 | N39: 0.6410322581
A40: 2038 | B40: 1.2 | C40: =((1-$N40)*(C$21/$L$21)+$N40*(B40/$K40))*'global path'!C26 -> 4.467557096 | D40: 3.722964247 | E40: 4 | F40: =((1-$N40)*(F$21/$L$21)+$N40*(E40/$K40))*'global path'!$C26 -> 8.598749802 | G40: 2.149687451 | H40: 1.7 | I40: =((1-$N40)*(I$21/$L$21)+$N40*(H40/$K40))*'global path'!$C26 -> 2.774706874 | J40: 1.632180514 | K40: 6.9 | L40: 15.84101377 | M40: 2.295799097 | N40: 0.6717419355
A41: 2039 | B41: 1.2 | C41: =((1-$N41)*(C$21/$L$21)+$N41*(B41/$K41))*'global path'!C27 -> 3.955141796 | D41: 3.295951497 | E41: 4 | F41: =((1-$N41)*(F$21/$L$21)+$N41*(E41/$K41))*'global path'!$C27 -> 7.940059 | G41: 1.98501475 | H41: 1.7 | I41: =((1-$N41)*(I$21/$L$21)+$N41*(H41/$K41))*'global path'!$C27 -> 2.641461405 | J41: 1.553800827 | K41: 6.9 | L41: 14.5366622 | M41: 2.106762638 | N41: 0.7019354839
A42: 2040 | B42: 1.2 | C42: =((1-$N42)*(C$21/$L$21)+$N42*(B42/$K42))*'global path'!C28 -> 3.486578316 | D42: 2.90548193 | E42: 4 | F42: =((1-$N42)*(F$21/$L$21)+$N42*(E42/$K42))*'global path'!$C28 -> 7.304558179 | G42: 1.826139545 | H42: 1.7 | I42: =((1-$N42)*(I$21/$L$21)+$N42*(H42/$K42))*'global path'!$C28 -> 2.500878975 | J42: 1.47110528 | K42: 6.9 | L42: 13.29201547 | M42: 1.926379054 | N42: 0.7316129032
A43: 2041 | B43: 1.2 | C43: =((1-$N43)*(C$21/$L$21)+$N43*(B43/$K43))*'global path'!C29 -> 3.060302865 | D43: 2.550252387 | E43: 4 | F43: =((1-$N43)*(F$21/$L$21)+$N43*(E43/$K43))*'global path'!$C29 -> 6.694858855 | G43: 1.673714714 | H43: 1.7 | I43: =((1-$N43)*(I$21/$L$21)+$N43*(H43/$K43))*'global path'!$C29 -> 2.355163276 | J43: 1.385390163 | K43: 6.9 | L43: 12.110325 | M43: 1.755119565 | N43: 0.7607741935
A44: 2042 | B44: 1.2 | C44: =((1-$N44)*(C$21/$L$21)+$N44*(B44/$K44))*'global path'!C30 -> 2.674473969 | D44: 2.228728308 | E44: 4 | F44: =((1-$N44)*(F$21/$L$21)+$N44*(E44/$K44))*'global path'!$C30 -> 6.113100197 | G44: 1.528275049 | H44: 1.7 | I44: =((1-$N44)*(I$21/$L$21)+$N44*(H44/$K44))*'global path'!$C30 -> 2.206380619 | J44: 1.297870952 | K44: 6.9 | L44: 10.99395478 | M44: 1.59332678 | N44: 0.7894193548
A45: 2043 | B45: 1.2 | C45: =((1-$N45)*(C$21/$L$21)+$N45*(B45/$K45))*'global path'!C31 -> 2.327028942 | D45: 1.939190785 | E45: 4 | F45: =((1-$N45)*(F$21/$L$21)+$N45*(E45/$K45))*'global path'!$C31 -> 5.560956624 | G45: 1.390239156 | H45: 1.7 | I45: =((1-$N45)*(I$21/$L$21)+$N45*(H45/$K45))*'global path'!$C31 -> 2.056437906 | J45: 1.209669356 | K45: 6.9 | L45: 9.944423473 | M45: 1.441220793 | N45: 0.8175483871
A46: 2044 | B46: 1.2 | C46: =((1-$N46)*(C$21/$L$21)+$N46*(B46/$K46))*'global path'!C32 -> 2.015738143 | D46: 1.679781786 | E46: 4 | F46: =((1-$N46)*(F$21/$L$21)+$N46*(E46/$K46))*'global path'!$C32 -> 5.03965281 | G46: 1.259913203 | H46: 1.7 | I46: =((1-$N46)*(I$21/$L$21)+$N46*(H46/$K46))*'global path'!$C32 -> 1.907065827 | J46: 1.121803428 | K46: 6.9 | L46: 8.96245678 | M46: 1.29890678 | N46: 0.8451612903
A47: 2045 | B47: 1.2 | C47: =((1-$N47)*(C$21/$L$21)+$N47*(B47/$K47))*'global path'!C33 -> 1.738256101 | D47: 1.448546751 | E47: 4 | F47: =((1-$N47)*(F$21/$L$21)+$N47*(E47/$K47))*'global path'!$C33 -> 4.549985195 | G47: 1.137496299 | H47: 1.7 | I47: =((1-$N47)*(I$21/$L$21)+$N47*(H47/$K47))*'global path'!$C33 -> 1.75980718 | J47: 1.035180694 | K47: 6.9 | L47: 8.048048476 | M47: 1.166383837 | N47: 0.8722580645
A48: 2046 | B48: 1.2 | C48: =((1-$N48)*(C$21/$L$21)+$N48*(B48/$K48))*'global path'!C34 -> 1.492168795 | D48: 1.243473996 | E48: 4 | F48: =((1-$N48)*(F$21/$L$21)+$N48*(E48/$K48))*'global path'!$C34 -> 4.092349024 | G48: 1.023087256 | H48: 1.7 | I48: =((1-$N48)*(I$21/$L$21)+$N48*(H48/$K48))*'global path'!$C34 -> 1.616010114 | J48: 0.9505941849 | K48: 6.9 | L48: 7.200527934 | M48: 1.043554773 | N48: 0.8988387097
A49: 2047 | B49: 1.2 | C49: =((1-$N49)*(C$21/$L$21)+$N49*(B49/$K49))*'global path'!C35 -> 1.275036503 | D49: 1.062530419 | E49: 4 | F49: =((1-$N49)*(F$21/$L$21)+$N49*(E49/$K49))*'global path'!$C35 -> 3.666769885 | G49: 0.9166924713 | H49: 1.7 | I49: =((1-$N49)*(I$21/$L$21)+$N49*(H49/$K49))*'global path'!$C35 -> 1.476825973 | J49: 0.8687211609 | K49: 6.9 | L49: 6.418632362 | M49: 0.9302365742 | N49: 0.9249032258
A50: 2048 | B50: 1.2 | C50: =((1-$N50)*(C$21/$L$21)+$N50*(B50/$K50))*'global path'!C36 -> 1.084431852 | D50: 0.9036932098 | E50: 4 | F50: =((1-$N50)*(F$21/$L$21)+$N50*(E50/$K50))*'global path'!$C36 -> 3.272938679 | G50: 0.8182346699 | H50: 1.7 | I50: =((1-$N50)*(I$21/$L$21)+$N50*(H50/$K50))*'global path'!$C36 -> 1.343211316 | J50: 0.7901243034 | K50: 6.9 | L50: 5.700581847 | M50: 0.8261712822 | N50: 0.9504516129
A51: 2049 | B51: 1.2 | C51: =((1-$N51)*(C$21/$L$21)+$N51*(B51/$K51))*'global path'!C37 -> 0.9179728414 | D51: 0.7649773678 | E51: 4 | F51: =((1-$N51)*(F$21/$L$21)+$N51*(E51/$K51))*'global path'!$C37 -> 2.910248998 | G51: 0.7275622494 | H51: 1.7 | I51: =((1-$N51)*(I$21/$L$21)+$N51*(H51/$K51))*'global path'!$C37 -> 1.215933637 | J51: 0.7152550804 | K51: 6.9 | L51: 5.044155476 | M51: 0.7310370255 | N51: 0.975483871
A52: 2050 | B52: =RF!B40 -> 1.2 | C52: =((1-$N52)*(C$21/$L$21)+$N52*(B52/$K52))*'global path'!C38 -> 0.7733507692 | D52: 0.6444589743 | E52: =RF!E40 -> 4 | F52: =((1-$N52)*(F$21/$L$21)+$N52*(E52/$K52))*'global path'!$C38 -> 2.577835897 | G52: 0.6444589743 | H52: =K52-E52-B52 -> 1.7 | I52: =((1-$N52)*(I$21/$L$21)+$N52*(H52/$K52))*'global path'!$C38 -> 1.095580256 | J52: 0.6444589743 | K52: =RF!K40 -> 6.9 | L52: 4.446766923 | M52: 0.6444589743 | N52: 1
A53: ∑ | C53: =SUM(C22:C52) -> 244.2460906 | F53: =SUM(F22:F52) -> 336.3593597 | I53: =SUM(I22:I52) -> 76.15819605 | L53: =SUM(L22:L52) -> 656.7636464
J55: global path: | L55: ='global path'!C90 -> 656.7636464
L56: =L53-L55 -> 0

Sheet SPF-eq
A1: Smooth Pathways Formula - equity (spk = 100%)
A2: SPF-eq | B2: Smooth Pathways Formula; based on: Raupach et al. (2014) / Sharing a quota on cumulative carbon emissions / nature climate change DOI: 10.1038/NCLIMATE2384
B4: Country A | E4: Country B | H4: Country C | K4: Global | S4: Description
B5: RBA: | C5: =W8*'global path'!C89/K11*B11+(1-W8)*'global path'!C89*C11/L11 -> 118.9506444 | D5: Gt | E5: RBB: | F5: =W8*'global path'!C89/K11*E11+(1-W8)*'global path'!C89*F11/L11 -> 396.5021481 | G5: Gt | H5: RBC: | I5: =W8*'global path'!C89/K11*H11+(1-W8)*'global path'!C89*I11/L11 -> 168.5134129 | J5: Gt | K5: RB: | L5: =C5+F5+I5 -> 683.9662054 | M5: Gt | S5: Raupach et al. have developed a formula to convert a budget of a country or global into a smooth emission pathway.
B6: TA | C6: =C5/C11 -> 5.664316401 | E6: TB | F6: =F5/F11 -> 20.33344349 | H6: TC | I6: =I5/I11 -> 137.2575268 | K6: Global path ist different to the path in sheet "global path".
B7: rA | C7: 0 | E7: rB | F7: 0.03 | H7: rC | I7: 0.02 | P7: input values
B8: mA | C8: =(1+SQRT(1+C7*C6))/C6 -> 0.3530876206 | E8: mB | F8: =(1+SQRT(1+F7*F6))/F6 -> 0.1115826278 | H8: mC | I8: =(1+SQRT(1+I7*I6))/I6 -> 0.02138490479 | S8: share population key: | W8: 1
A9: Year t | B9: Popu-lation Pit | C9: Eit | D9: Per capita | E9: Popu-lation Pit | F9: Eit | G9: Per capita | H9: Popu-lation Pit | I9: Eit | J9: Per capita | K9: Popu-lation Pt | L9: Et | M9: Per capita | S9: Limitations
B10: bn | C10: Gt | D10: t | E10: bn | F10: Gt | G10: t | H10: bn | I10: Gt | J10: t | K10: bn | L10: Gt | M10: t | O10: A | P10: B | Q10: C | S10: - | T10: The resulting global pathway ist different to the pathway in sheet "global path". So this model is comparable with the other models to a limited extent only.
A11: 2019 | B11: =RF!B9 -> 1.2 | C11: =RF!C9 -> 21 | D11: =C11/B11 -> 17.5 | E11: =RF!E9 -> 4 | F11: =RF!F9 -> 19.5 | G11: =F11/E11 -> 4.875 | H11: =K11-E11-B11 -> 1.7 | I11: ='global path'!$C$7-C11-F11 -> 1.227717101 | J11: =I11/H11 -> 0.7221865302 | K11: =RF!K9 -> 6.9 | L11: =I11+F11+C11 -> 41.7277171 | M11: =L11/K11 -> 6.047495232 | N11: annual change rates | S11: - | T11: The per capita emissions converge far into the future; as you can see on the remaining budgets as of 2051. So this model is comparable with the other models to a limited extent only.
A12: =A11+1 -> 2020 | B12: =B$11*(B$42/B$11)^(($A12-2019)/31) -> 1.2 | C12: =-C$11*EXP(-C$8*($A12-$A$11))/C$8^2*((C$7*C$8+C$8^2)*($A12-$A$11)+2*C$8+C$7) +C$11*EXP(-C$8*($A11-$A$11))/C$8^2*((C$7*C$8+C$8^2)*($A11-$A$11)+2*C$8+C$7) -> 20.63312846 | D12: =C12/B12 -> 17.19427372 | E12: =E$11*(E$42/E$11)^(($A12-2019)/31) -> 4 | F12: =-F$11*EXP(-F$8*($A12-$A$11))/F$8^2*((F$7*F$8+F$8^2)*($A12-$A$11)+2*F$8+F$7) +F$11*EXP(-F$8*($A11-$A$11))/F$8^2*((F$7*F$8+F$8^2)*($A11-$A$11)+2*F$8+F$7) -> 19.7333445 | G12: =F12/E12 -> 4.933336124 | H12: =H$11*(H$42/H$11)^(($A12-2019)/31) -> 1.7 | I12: =-I$11*EXP(-I$8*($A12-$A$11))/I$8^2*((I$7*I$8+I$8^2)*($A12-$A$11)+2*I$8+I$7) +I$11*EXP(-I$8*($A11-$A$11))/I$8^2*((I$7*I$8+I$8^2)*($A11-$A$11)+2*I$8+I$7) -> 1.239728056 | J12: =I12/H12 -> 0.7292517976 | K12: =B12+E12+H12 -> 6.9 | L12: =I12+F12+C12 -> 41.60620102 | M12: =L12/K12 -> 6.029884205 | N12: =L12/L11-1 -> -0.002912119183 | O12: =C12/C11-1 -> -0.01747007317 | P12: =F12/F11-1 -> 0.01196638444 | Q12: =I12/I11-1 -> 0.009783161502
A13: =A12+1 -> 2021 | B13: 1.2 | C13: =-C$11*EXP(-C$8*($A13-$A$11))/C$8^2*((C$7*C$8+C$8^2)*($A13-$A$11)+2*C$8+C$7) +C$11*EXP(-C$8*($A12-$A$11))/C$8^2*((C$7*C$8+C$8^2)*($A12-$A$11)+2*C$8+C$7) -> 18.88383112 | D13: 15.73652594 | E13: 4 | F13: =-F$11*EXP(-F$8*($A13-$A$11))/F$8^2*((F$7*F$8+F$8^2)*($A13-$A$11)+2*F$8+F$7) +F$11*EXP(-F$8*($A12-$A$11))/F$8^2*((F$7*F$8+F$8^2)*($A12-$A$11)+2*F$8+F$7) -> 19.98642633 | G13: 4.996606582 | H13: 1.7 | I13: =-I$11*EXP(-I$8*($A13-$A$11))/I$8^2*((I$7*I$8+I$8^2)*($A13-$A$11)+2*I$8+I$7) +I$11*EXP(-I$8*($A12-$A$11))/I$8^2*((I$7*I$8+I$8^2)*($A12-$A$11)+2*I$8+I$7) -> 1.262703991 | J13: 0.7427670535 | K13: =B13+E13+H13 -> 6.9 | L13: =I13+F13+C13 -> 40.13296144 | M13: 5.816371224 | N13: =L13/L12-1 -> -0.03540913458 | O13: =C13/C12-1 -> -0.08478100363 | P13: =F13/F12-1 -> 0.01282508564 | Q13: =I13/I12-1 -> 0.01853304431 | S13: Simplification
A14: 2022 | B14: 1.2 | C14: 16.34934212 | D14: 13.62445177 | E14: 4 | F14: 19.96608537 | G14: 4.991521341 | H14: 1.7 | I14: 1.284152711 | J14: 0.7553839479 | K14: 6.9 | L14: 37.5995802 | M14: 5.449214522 | N14: -0.0631247023 | O14: -0.1342147673 | P14: -0.001017738929 | Q14: 0.01698634084 | T14: We assumed that the emission power at the end of the base year are the emissions in the base year divided by one year.
A15: 2023 | B15: 1.2 | C15: 13.65163342 | D15: 11.37636118 | E15: 4 | F15: 19.72723767 | G15: 4.931809416 | H15: 1.7 | I15: =-I$11*EXP(-I$8*($A15-$A$11))/I$8^2*((I$7*I$8+I$8^2)*($A15-$A$11)+2*I$8+I$7) +I$11*EXP(-I$8*($A14-$A$11))/I$8^2*((I$7*I$8+I$8^2)*($A14-$A$11)+2*I$8+I$7) -> 1.304128557 | J15: 0.7671344453 | K15: 6.9 | L15: 34.68299964 | M15: 5.026521687 | N15: -0.0775694979 | O15: -0.1650041135 | P15: -0.01196267049 | Q15: 0.01555566209
A16: 2024 | B16: 1.2 | C16: 11.11211017 | D16: 9.26009181 | E16: 4 | F16: 19.31625097 | G16: 4.829062741 | H16: 1.7 | I16: 1.322684252 | J16: 0.7780495601 | K16: 6.9 | L16: 31.75104539 | M16: 4.601600781 | N16: -0.08453577499 | O16: -0.1860233988 | P16: -0.02083346422 | Q16: 0.01422842479 | S16: Input values
A17: 2025 | B17: 1.2 | C17: 8.875395963 | D17: 7.396163303 | E17: 4 | F17: 18.7721376 | G17: 4.693034399 | H17: 1.7 | I17: 1.339870949 | J17: 0.7881593818 | K17: 6.9 | L17: 28.98740451 | M17: 4.201073117 | N17: -0.08704094137 | O17: -0.2012861801 | P17: -0.02816868393 | Q17: 0.01299380174 | S17: - | T17: reduction rate at the beginnging of 2020 for each country
A18: 2026 | B18: 1.2 | C18: 6.986068939 | D18: 5.821724116 | E18: 4 | F18: 18.1275908 | G18: 4.5318977 | H18: 1.7 | I18: 1.355738271 | J18: 0.7974931008 | K18: 6.9 | L18: 26.46939801 | M18: 3.836144639 | N18: -0.08686553836 | O18: -0.2128724208 | P18: -0.03433529042 | Q18: 0.01184242588 | S18: - | T18: Share that is distributed over the population key
A19: 2027 | B19: 1.2 | C19: 5.435386966 | D19: 4.529489139 | E19: 4 | F19: 17.4098842 | G19: 4.35247105 | H19: 1.7 | I19: 1.370334356 | J19: 0.8060790329 | K19: 6.9 | L19: 24.21560552 | M19: 3.509508047 | N19: -0.08514710039 | O19: -0.2219677456 | P19: -0.03959194629 | Q19: 0.01076615211
A20: 2028 | B20: 1.2 | C20: 4.189066503 | D20: 3.490888752 | E20: 4 | F20: 16.64165178 | G20: 4.160412945 | H20: 1.7 | I20: 1.383705893 | J20: 0.8139446427 | K20: 6.9 | L20: 22.21442417 | M20: 3.219481764 | N20: -0.08264015308 | O20: -0.229297467 | P20: -0.04412622231 | Q20: 0.009757864368
A21: 2029 | B21: 1.2 | C21: 3.203252589 | D21: 2.669377157 | E21: 4 | F21: 15.84156358 | G21: 3.960390895 | H21: 1.7 | I21: 1.395898165 | J21: 0.8211165679 | K21: 6.9 | L21: 20.44071433 | M21: 2.962422367 | N21: -0.07984496138 | O21: -0.2353302134 | P21: -0.04807745107 | Q21: 0.008811318071
A22: 2030 | B22: 1.2 | C22: 2.43324753 | D22: 2.027706275 | E22: 4 | F22: 15.02491043 | G22: 3.756227607 | H22: 1.7 | I22: 1.40695509 | J22: 0.827620641 | K22: 6.9 | L22: 18.86511305 | M22: 2.734074355 | N22: -0.07708151783 | O22: -0.2403822483 | P22: -0.05155129715 | Q22: 0.00792101068
A23: 2031 | B23: 1.2 | C23: 1.837893327 | D23: 1.531577772 | E23: 4 | F23: 14.20410938 | G23: 3.551027345 | H23: 1.7 | I23: 1.416919251 | J23: 0.8334819122 | K23: 6.9 | L23: 17.45892196 | M23: 2.530278545 | N23: -0.07453923472 | O23: -0.2446747383 | P23: -0.05462934717 | Q23: 0.00708207466
A24: 2032 | B24: 1.2 | C24: 1.38142128 | D24: 1.1511844 | E24: 4 | F24: 13.3891401 | G24: 3.347285026 | H24: 1.7 | I24: 1.42583194 | J24: 0.8387246705 | K24: 6.9 | L24: 16.19639332 | M24: 2.34730338 | N24: -0.07231423779 | O24: -0.2483669974 | P24: -0.05737559843 | Q24: 0.006290188441
A25: 2033 | B25: 1.2 | C25: 1.033887878 | D25: 0.8615732314 | E25: 4 | F25: 12.58792115 | G25: 3.146980288 | H25: 1.7 | I25: 1.43373319 | J25: 0.8433724649 | K25: 6.9 | L25: 15.05554222 | M25: 2.181962641 | N25: -0.07043858973 | O25: -0.2515766965 | P25: -0.05984095668 | Q25: 0.005541501964
A26: 2034 | B26: 1.2 | C26: 0.7708744163 | D26: 0.6423953469 | E26: 4 | F26: 11.80663394 | G26: 2.951658485 | H26: 1.7 | I26: 1.440661812 | J26: 0.8474481248 | K26: 6.9 | L26: 14.01817017 | M26: 2.031618865 | N26: -0.06890300165 | O26: -0.2543926349 | P26: -0.06206642077 | Q26: 0.004832574081
A27: 2035 | B27: 1.2 | C27: 0.5728498189 | D27: 0.4773748491 | E27: 4 | F27: 11.05000131 | G27: 2.762500327 | H27: 1.7 | I27: 1.446655426 | J27: 0.8509737799 | K27: 6.9 | L27: 13.06950655 | M27: 1.894131384 | N27: -0.0676738551 | O27: -0.2568830839 | P27: -0.06408538089 | Q27: 0.00416031967
A28: 2036 | B28: 1.2 | C28: 0.4244236321 | D28: 0.3536863601 | E28: 4 | F28: 10.3215266 | G28: 2.580381649 | H28: 1.7 | I28: 1.451750495 | J28: 0.8539708795 | K28: 6.9 | L28: 12.19770073 | M28: 1.767782714 | N28: -0.06670533611 | O28: -0.2591013943 | P28: -0.06592530532 | Q28: 0.003521964755
A29: 2037 | B29: 1.2 | C29: 0.3136109249 | D29: 0.2613424374 | E29: 4 | F29: 9.623698531 | G29: 2.405924633 | H29: 1.7 | I29: 1.45598236 | J29: 0.8564602117 | K29: 6.9 | L29: 11.39329182 | M29: 1.651201712 | N29: -0.0659475853 | O29: -0.2610898612 | P29: -0.06760899755 | Q29: 0.002915008242
A30: 2038 | B30: 1.2 | C30: 0.2311681176 | D30: 0.192640098 | E30: 4 | F30: 8.958166403 | G30: 2.239541601 | H30: 1.7 | I30: 1.459385266 | J30: 0.8584619212 | K30: 6.9 | L30: 10.64871979 | M30: 1.543292723 | N30: -0.06535179136 | O30: -0.262882447 | P30: -0.06915554621 | Q30: 0.002337189172
A31: 2039 | B31: 1.2 | C31: 0.1700225931 | D31: 0.1416854942 | E31: 4 | F31: 8.325889595 | G31: 2.081472399 | H31: 1.7 | I31: 1.461992397 | J31: 0.8599955279 | K31: 6.9 | L31: 9.957904585 | M31: 1.443174578 | N31: -0.06487307535 | O31: -0.264506737 | P31: -0.07058105192 | Q31: 0.001786458576
A32: 2040 | B32: 1.2 | C32: 0.1247990709 | D32: 0.1039992258 | E32: 4 | F32: 7.727264877 | G32: 1.931816219 | H32: 1.7 | I32: 1.463835904 | J32: 0.8610799437 | K32: 6.9 | L32: 9.315899853 | M32: 1.350130413 | N32: -0.06447187027 | O32: -0.2659853691 | P32: -0.07189918993 | Q32: 0.001260955199
A33: 2041 | B33: 1.2 | C33: 0.09143564983 | D33: 0.07619637486 | E33: 4 | F33: 7.162234518 | G33: 1.790558629 | H33: 1.7 | I33: 1.464946933 | J33: 0.86173349 | K33: 6.9 | L33: 8.718617101 | M33: 1.263567696 | N33: -0.06411433802 | O33: -0.2673370951 | P33: -0.07312165025 | Q33: 0.0007589844849
A34: 2042 | B34: 1.2 | C34: 0.0668780842 | D34: 0.05573173683 | E34: 4 | F34: 6.630377831 | G34: 1.657594458 | H34: 1.7 | I34: 1.465355654 | J34: 0.861973914 | K34: 6.9 | L34: 8.162611569 | M34: 1.182987184 | N34: -0.06377221582 | O34: -0.2685775808 | P34: -0.07425848527 | Q34: 0.00027900032
A35: 2043 | B35: 1.2 | C35: 0.04883972632 | D35: 0.04069977193 | E35: 4 | F35: 6.130988469 | G35: 1.532747117 | H35: 1.7 | I35: 1.465091288 | J35: 0.8618184045 | K35: 6.9 | L35: 7.644919483 | M35: 1.107959345 | N35: -0.0634223596 | O35: -0.2697200151 | P35: -0.07531838681 | Q35: -0.0001804108691
A36: 2044 | B36: 1.2 | C36: 0.03561512102 | D36: 0.02967926751 | E36: 4 | F36: 5.663139429 | G36: 1.415784857 | H36: 1.7 | I36: 1.464182134 | J36: 0.8612836082 | K36: 6.9 | L36: 7.162936684 | M36: 1.038106766 | N36: -0.06304615765 | O36: -0.2707755816 | P36: -0.07630890881 | Q36: -0.0006205440223
A37: 2045 | B37: 1.2 | C37: 0.02593657565 | D37: 0.02161381304 | E37: 4 | F37: 5.225737525 | G37: 1.306434381 | H37: 1.7 | I37: 1.462655596 | J37: 0.8603856446 | K37: 6.9 | L37: 6.714329696 | M37: 0.9730912603 | N37: -0.0626289199 | O37: -0.2717538251 | P37: -0.07723664758 | Q37: -0.001042587635
A38: 2046 | B38: 1.2 | C38: 0.01886463263 | D38: 0.0157205272 | E38: 4 | F38: 4.817568811 | G38: 1.204392203 | H38: 1.7 | I38: 1.460538205 | J38: 0.8591401207 | K38: 6.9 | L38: 6.296971649 | M38: 0.9126045868 | N38: -0.06215930196 | O38: -0.2726629417 | P38: -0.07810738895 | Q38: -0.001447634475
A39: 2047 | B39: 1.2 | C39: 0.0137049668 | D39: 0.01142080567 | E39: 4 | F39: 4.437336272 | G39: 1.109334068 | H39: 1.7 | I39: 1.457855648 | J39: 0.8575621457 | K39: 6.9 | L39: 5.908896887 | M39: 0.8563618677 | N39: -0.06162879301 | O39: -0.2735100084 | P39: -0.07892622898 | Q39: -0.001836691031
A40: 2048 | B40: 1.2 | C40: 0.009945678399 | D40: 0.008288065332 | E40: 4 | F40: 4.083690893 | G40: 1.020922723 | H40: 1.7 | I40: 1.454632787 | J40: 0.8556663452 | K40: 6.9 | L40: 5.548269359 | M40: 0.8040970085 | N40: -0.06103127792 | O40: -0.2743011683 | P40: -0.07969767381 | Q40: -0.002210685861
A41: 2049 | B41: 1.2 | C41: 0.007210201315 | D41: 0.006008501096 | E41: 4 | F41: 3.755257102 | G41: 0.9388142756 | H41: 1.7 | I41: 1.450893687 | J41: 0.8534668746 | K41: 6.9 | L41: 5.21336099 | M41: 0.7555595638 | N41: -0.06036267287 | O41: -0.2750417793 | P41: -0.08042572263 | Q41: -0.002570476993
A42: =A41+1 -> 2050 | B42: =RF!B40 -> 1.2 | C42: 0.00522208538 | D42: 0.004351737817 | E42: =RF!E40 -> 4 | F42: 3.450653414 | G42: 0.8626633536 | H42: =K42-E42-B42 -> 1.7 | I42: 1.446661635 | J42: 0.8509774324 | K42: =RF!K40 -> 6.9 | L42: 4.902537135 | M42: 0.7105126282 | N42: -0.05962062786 | O42: -0.2757365361 | P42: -0.08111393699 | Q42: -0.0029168585
A43: ∑ | C43: =SUM(C12:C42) -> 118.9370676 | F43: =SUM(F12:F42) -> 359.8984194 | I43: =SUM(I12:I42) -> 43.7154619 | L43: =SUM(L12:L42) -> 522.5509488
A44: Rest | C44: =C$11*EXP(-C$8*($A42-$A$11))/C$8^2*((C$7*C$8+C$8^2)*($A42-$A$11)+2*C$8+C$7) -> 0.01357684077 | F44: =F$11*EXP(-F$8*($A42-$A$11))/F$8^2*((F$7*F$8+F$8^2)*($A42-$A$11)+2*F$8+F$7) -> 36.60372869 | I44: =I$11*EXP(-I$8*($A42-$A$11))/I$8^2*((I$7*I$8+I$8^2)*($A42-$A$11)+2*I$8+I$7) -> 124.797951 | L44: 161.4152566
A45: ∑ | C45: =SUM(C43:C44) -> 118.9506444 | F45: =SUM(F43:F44) -> 396.5021481 | I45: =SUM(I43:I44) -> 168.5134129 | L45: =SUM(L43:L44) -> 683.9662054
F47: global path 2020 - 2100 sheet "global path": | L47: ='global path'!C89 -> 683.9662054
L48: =L45-L47 -> 0
A51: =A42+1 -> 2051 | B51: =B42 -> 1.2 | C51: =-C$11*EXP(-C$8*($A51-$A$11))/C$8^2*((C$7*C$8+C$8^2)*($A51-$A$11)+2*C$8+C$7) +C$11*EXP(-C$8*($A42-$A$11))/C$8^2*((C$7*C$8+C$8^2)*($A42-$A$11)+2*C$8+C$7) -> 0.003778755452 | D51: =C51/B51 -> 0.003148962877 | E51: =E42 -> 4 | F51: =-F$11*EXP(-F$8*($A51-$A$11))/F$8^2*((F$7*F$8+F$8^2)*($A51-$A$11)+2*F$8+F$7) +F$11*EXP(-F$8*($A42-$A$11))/F$8^2*((F$7*F$8+F$8^2)*($A42-$A$11)+2*F$8+F$7) -> 3.168509016 | G51: =F51/E51 -> 0.7921272539 | H51: =H42 -> 1.7 | I51: =-I$11*EXP(-I$8*($A51-$A$11))/I$8^2*((I$7*I$8+I$8^2)*($A51-$A$11)+2*I$8+I$7) +I$11*EXP(-I$8*($A42-$A$11))/I$8^2*((I$7*I$8+I$8^2)*($A42-$A$11)+2*I$8+I$7) -> 1.441959166 | J51: =I51/H51 -> 0.8482112738 | K51: =B51+E51+H51 -> 6.9 | L51: =I51+F51+C51 -> 4.614246937 | M51: =L51/K51 -> 0.6687314401 | N51: =L51/L42-1 -> -0.05880428648 | O51: =C51/C42-1 -> -0.2763895692 | P51: =F51/F42-1 -> -0.08176549909 | Q51: =I51/I42-1 -> -0.003250566341
A52: =A51+1 -> 2052 | B52: =B51 -> 1.2 | C52: =-C$11*EXP(-C$8*($A52-$A$11))/C$8^2*((C$7*C$8+C$8^2)*($A52-$A$11)+2*C$8+C$7) +C$11*EXP(-C$8*($A51-$A$11))/C$8^2*((C$7*C$8+C$8^2)*($A51-$A$11)+2*C$8+C$7) -> 0.002732023083 | D52: 0.002276685902 | E52: =E51 -> 4 | F52: =-F$11*EXP(-F$8*($A52-$A$11))/F$8^2*((F$7*F$8+F$8^2)*($A52-$A$11)+2*F$8+F$7) +F$11*EXP(-F$8*($A51-$A$11))/F$8^2*((F$7*F$8+F$8^2)*($A51-$A$11)+2*F$8+F$7) -> 2.907476911 | G52: 0.7268692277 | H52: =H51 -> 1.7 | I52: =-I$11*EXP(-I$8*($A52-$A$11))/I$8^2*((I$7*I$8+I$8^2)*($A52-$A$11)+2*I$8+I$7) +I$11*EXP(-I$8*($A51-$A$11))/I$8^2*((I$7*I$8+I$8^2)*($A51-$A$11)+2*I$8+I$7) -> 1.436808078 | J52: 0.8451812226 | K52: 6.9 | L52: 4.347017012 | M52: 0.6300024655 | N52: =L52/L51-1 -> -0.05791409263 | O52: =C52/C51-1 -> -0.2770045277 | P52: =F52/F51-1 -> -0.08238326096 | Q52: =I52/I51-1 -> -0.003572283592
A53: =A52+1 -> 2053 | B53: =B52 -> 1.2 | C53: 0.00197365542 | D53: 0.00164471285 | E53: =E52 -> 4 | F53: 2.666244173 | G53: 0.6665610432 | H53: =H52 -> 1.7 | I53: 1.431229463 | J53: 0.8418996839 | K53: 6.9 | L53: 4.099447291 | M53: 0.5941227958 | N53: -0.05695163386 | O53: -0.2775846471 | P53: -0.08296978623 | Q53: -0.003882645104
A54: 2054 | B54: 1.2 | C54: 0.001424717099 | D54: 0.001187264249 | E54: 4 | F54: 2.443539768 | G54: 0.6108849419 | H54: 1.7 | I54: 1.425243715 | J54: 0.8383786559 | K54: 6.9 | L54: 3.8702082 | M54: 0.5608997391 | N54: -0.05591951179 | O54: -0.2781328064 | P54: -0.08352738565 | Q54: -0.004182241691
A55: 2055 | B55: 1.2 | C55: 0.001027717434 | D55: 0.0008564311948 | E55: 4 | F55: 2.238140341 | G55: 0.5595350853 | H55: 1.7 | I55: 1.418870561 | J55: 0.8346297419 | K55: 6.9 | L55: 3.65803862 | M55: 0.5301505246 | N55: -0.05482123154 | O55: -0.2786515761 | P55: -0.08405814755 | Q55: -0.004471623879
A56: 2056 | B56: 1.2 | C56: 0.0007408370411 | D56: 0.0006173642009 | E56: 4 | F56: 2.048874322 | G56: 0.5122185805 | H56: 1.7 | I56: 1.412129074 | J56: 0.8306641612 | K56: 6.9 | L56: 3.461744233 | M56: 0.5017020628 | N56: -0.05366110288 | O56: -0.2791432579 | P56: -0.08456396395 | Q56: -0.004751305284
A57: 2057 | B57: 1.2 | C57: 0.0005336916557 | D57: 0.0004447430464 | E57: 4 | F57: 1.874624623 | G57: 0.4686561558 | H57: 1.7 | I57: 1.405037693 | J57: 0.8264927605 | K57: 6.9 | L57: 3.280196008 | M57: 0.4753907258 | N57: -0.0524441476 | O57: -0.2796099195 | P57: -0.08504655311 | Q57: -0.005021765656
A58: 2058 | B58: 1.2 | C58: 0.0003842294805 | D58: 0.0003201912337 | E58: 4 | F58: 1.714330198 | G58: 0.4285825494 | H58: 1.7 | I58: 1.397614241 | J58: 0.8221260243 | K58: 6.9 | L58: 3.112328668 | M58: 0.4510621259 | N58: -0.05117600866 | O58: -0.2800534234 | P58: -0.08550747902 | Q58: -0.005283453622
A59: 2059 | B59: 1.2 | C59: 0.0002764625435 | D59: 0.0002303854529 | E59: 4 | F59: 1.566986657 | G59: 0.3917466643 | H59: 1.7 | I59: 1.389875946 | J59: 0.8175740858 | K59: 6.9 | L59: 2.957139066 | M59: 0.4285708791 | N59: -0.0498628581 | O59: -0.2804754515 | P59: -0.08594816833 | Q59: -0.005536789171
A60: 2060 | B60: 1.2 | C60: 0.000198810428 | D60: 0.0001656753567 | E60: 4 | F60: 1.431646137 | G60: 0.3579115342 | H60: 1.7 | I60: 1.381839453 | J60: 0.8128467368 | K60: 6.9 | L60: 2.8136844 | M60: 0.4077803478 | N60: -0.04851130181 | O60: -0.2808775269 | P60: -0.08636992514 | Q60: -0.005782165905
A61: 2061 | B61: 1.2 | C61: 0.0001428928019 | D61: 0.0001190773349 | E61: 4 | F61: 1.307416555 | G61: 0.3268541389 | H61: 1.7 | I61: 1.373520844 | J61: 0.8079534376 | K61: 6.9 | L61: 2.681080292 | M61: 0.3885623612 | N61: -0.04712828054 | O61: -0.2812610318 | P61: -0.08677394383 | Q61: -0.006019953074
A62: 2062 | B62: 1.2 | C62: 0.0001026502988 | D62: 8.554191565e-05 | E62: 4 | F62: 1.193460402 | G62: 0.2983651006 | H62: 1.7 | I62: 1.364935655 | J62: 0.8029033267 | K62: 6.9 | L62: 2.558498708 | M62: 0.3707969142 | N62: -0.04572096727 | O62: -0.2816272239 | P62: -0.08716132038 | Q62: -0.006250497438
A63: 2063 | B63: 1.2 | C63: 7.370524986e-05 | D63: 6.142104155e-05 | E63: 4 | F63: 1.088993158 | G63: 0.2722482896 | H63: 1.7 | I63: 1.356098891 | J63: 0.7977052303 | K63: 6.9 | L63: 2.445165755 | M63: 0.3543718486 | N63: -0.04429666212 | O63: -0.2819772495 | P63: -0.08753306233 | Q63: -0.006474124947
A64: 2064 | B64: 1.2 | C64: 5.289736185e-05 | D64: 4.408113487e-05 | E64: 4 | F64: 0.9932814436 | G64: 0.2483203609 | H64: 1.7 | I64: 1.347025041 | J64: 0.7923676711 | K64: 6.9 | L64: 2.340359382 | M64: 0.3391825191 | N64: -0.04286268656 | O64: -0.2823121562 | P64: -0.08789009746 | Q64: -0.006691142283
A65: 2065 | B65: 1.2 | C65: 3.794682692e-05 | D65: 3.162235577e-05 | E65: 4 | F65: 0.9056409623 | G65: 0.2264102406 | H65: 1.7 | I65: 1.337728092 | J65: 0.7868988775 | K65: 6.9 | L65: 2.243407001 | M65: 0.3251314494 | N65: -0.04142627905 | O65: -0.2826329027 | P65: -0.0882332816 | Q65: -0.006901838261
A66: 2066 | B66: 1.2 | C66: 2.721013772e-05 | D66: 2.267511477e-05 | E66: 4 | F66: 0.8254343146 | G66: 0.2063585786 | H66: 1.7 | I66: 1.328221547 | J66: 0.7813067924 | K66: 6.9 | L66: 2.153683072 | M66: 0.3121279814 | N66: -0.03999449459 | O66: -0.2829403686 | P66: -0.08856340542 | Q66: -0.007106485112
A67: 2067 | B67: 1.2 | C67: 1.950326452e-05 | D67: 1.625272043e-05 | E67: 4 | F67: 0.7520687217 | G67: 0.1880171804 | H67: 1.7 | I67: 1.318518438 | J67: 0.7755990809 | K67: 6.9 | L67: 2.070606663 | M67: 0.3000879221 | N67: -0.03857411072 | O67: -0.283235362 | P67: -0.08888120054 | Q67: -0.007305339657
A68: 2068 | B68: 1.2 | C68: 1.397372575e-05 | D68: 1.164477146e-05 | E68: 4 | F68: 0.6849937092 | G68: 0.1712484273 | H68: 1.7 | I68: 1.308631337 | J68: 0.7697831392 | K68: 6.9 | L68: 1.99363902 | M68: 0.2889331912 | N68: -0.03717154219 | O68: -0.2835186266 | P68: -0.08918734494 | Q68: -0.007498644382
A69: 2069 | B69: 1.2 | C69: 1.000811026e-05 | D69: 8.340091886e-06 | E69: 4 | F69: 0.6236987817 | G69: 0.1559246954 | H69: 1.7 | I69: 1.298572374 | J69: 0.7638661022 | K69: 6.9 | L69: 1.922281164 | M69: 0.278591473 | N69: -0.03579276652 | O69: -0.2837908483 | P69: -0.08948246778 | Q69: -0.007686628424
A70: 2070 | B70: 1.2 | C70: 7.165279915e-06 | D70: 5.971066596e-06 | E70: 4 | F70: 0.5677111173 | G70: 0.1419277793 | H70: 1.7 | I70: 1.288353248 | J70: 0.7578548515 | K70: 6.9 | L70: 1.85607153 | M70: 0.2689958739 | N70: -0.03444326189 | O70: -0.2840526607 | P70: -0.08976715371 | Q70: -0.007869508477
A71: 2071 | B71: 1.2 | C71: 5.128157521e-06 | D71: 4.273464601e-06 | E71: 4 | F71: 0.5165933031 | G71: 0.1291483258 | H71: 1.7 | I71: 1.277985238 | J71: 0.7517560224 | K71: 6.9 | L71: 1.794583669 | M71: 0.2600845898 | N71: -0.03312795855 | O71: -0.2843046494 | P71: -0.09004194677 | Q71: -0.008047489626
A72: 2072 | B72: 1.2 | C72: 3.668953851e-06 | D72: 3.057461542e-06 | E72: 4 | F72: 0.4699411289 | G72: 0.1174852822 | H72: 1.7 | I72: 1.26747922 | J72: 0.745576012 | K72: 6.9 | L72: 1.737424018 | M72: 0.2518005824 | N72: -0.03185120433 | O72: -0.2845473572 | P72: -0.0903073538 | Q72: -0.008220766113
A73: 2073 | B73: 1.2 | C73: 2.624104449e-06 | D73: 2.186753707e-06 | E73: 4 | F73: 0.4273814521 | G73: 0.106845363 | H73: 1.7 | I73: 1.256845676 | J73: 0.7393209856 | K73: 6.9 | L73: 1.684229752 | M73: 0.2440912684 | N73: -0.03061674407 | O73: -0.2847812877 | P73: -0.09056384765 | Q73: -0.008389522047
A74: 2074 | B74: 1.2 | C74: 1.876216553e-06 | D74: 1.563513794e-06 | E74: 4 | F74: 0.3885701433 | G74: 0.09714253582 | H74: 1.7 | I74: 1.246094703 | J74: 0.7329968841 | K74: 6.9 | L74: 1.634666723 | M74: 0.2369082207 | N74: -0.02942771267 | O74: -0.2850069084 | P74: -0.09081186987 | Q74: -0.008553932051
A75: 2075 | B75: 1.2 | C75: 1.341073335e-06 | D75: 1.117561112e-06 | E75: 4 | F75: 0.3531901193 | G75: 0.08829752984 | H75: 1.7 | I75: 1.235236032 | J75: 0.7266094306 | K75: 6.9 | L75: 1.588427492 | M75: 0.230206883 | N75: -0.02828664057 | O75: -0.2852246544 | P75: -0.09105183338 | Q75: -0.008714161872
A76: 2076 | B76: 1.2 | C76: 9.582841601e-07 | D76: 7.985701334e-07 | E76: 4 | F76: 0.3209494685 | G76: 0.08023736712 | H76: 1.7 | I76: 1.224279033 | J76: 0.7201641369 | K76: 6.9 | L76: 1.545229459 | M76: 0.2239462985 | N76: -0.02719547048 | O76: -0.2854349309 | P76: -0.09128412464 | Q76: -0.008870368932
A77: 2077 | B77: 1.2 | C77: 6.845616782e-07 | D77: 5.704680652e-07 | E77: 4 | F77: 0.2915796696 | G77: 0.0728949174 | H77: 1.7 | I77: 1.213232727 | J77: 0.7136663099 | K77: 6.9 | L77: 1.504813081 | M77: 0.2180888523 | N77: -0.02615558373 | O77: -0.2856381158 | P77: -0.09150910583 | Q77: -0.009022702847
A78: 2078 | B78: 1.2 | C78: 4.888902908e-07 | D78: 4.074085757e-07 | E78: 4 | F78: 0.2648339072 | G78: 0.06620847681 | H78: 1.7 | I78: 1.202105798 | J78: 0.7071210579 | K78: 6.9 | L78: 1.466940194 | M78: 0.2126000282 | N78: -0.02516783446 | O78: -0.2858345619 | P78: -0.09172711666 | Q78: -0.009171305905
A79: 2079 | B79: 1.2 | C79: 3.490556414e-07 | D79: 2.908797012e-07 | E79: 4 | F79: 0.2404854814 | G79: 0.06012137034 | H79: 1.7 | I79: 1.190906604 | J79: 0.7005332964 | K79: 6.9 | L79: 1.431392434 | M79: 0.2074481789 | N79: -0.02423258993 | O79: -0.286024599 | P79: -0.09193847613 | Q79: -0.009316313509
A80: 2080 | B80: 1.2 | C80: 2.491529375e-07 | D80: 2.076274479e-07 | E80: 4 | F80: 0.2183263112 | G80: 0.05458157781 | H80: 1.7 | I80: 1.179643182 | J80: 0.6939077543 | K80: 6.9 | L80: 1.397969743 | M80: 0.2026043105 | N80: -0.02334977516 | O80: -0.2862085356 | P80: -0.09214348405 | Q80: -0.009457854585
A81: 2081 | B81: 1.2 | C81: 1.777988596e-07 | D81: 1.481657164e-07 | E81: 4 | F81: 0.1981655308 | G81: 0.04954138269 | H81: 1.7 | I81: 1.168323265 | J81: 0.6872489795 | K81: 6.9 | L81: 1.366488974 | M81: 0.1980418802 | N81: -0.02251892023 | O81: -0.2863866609 | P81: -0.0923424225 | Q81: -0.009596051973
A82: 2082 | B82: 1.2 | C82: 1.268489525e-07 | D82: 1.057074604e-07 | E82: 4 | F82: 0.179828173 | G82: 0.04495704325 | H82: 1.7 | I82: 1.156954285 | J82: 0.680561344 | K82: 6.9 | L82: 1.336782585 | M82: 0.1937366065 | N82: -0.02173920873 | O82: -0.286559246 | P82: -0.09253555707 | Q82: -0.009731022772
A83: 2083 | B83: 1.2 | C83: 9.047799056e-08 | D83: 7.539832547e-08 | E83: 4 | F83: 0.1631539405 | G83: 0.04078848512 | H83: 1.7 | I83: 1.145543385 | J83: 0.67384905 | K83: 6.9 | L83: 1.308697416 | M83: 0.1896662922 | N83: -0.02100952613 | O83: -0.2867265454 | P83: -0.09272313811 | Q83: -0.009862878679
A84: 2084 | B84: 1.2 | C84: 6.452086858e-08 | D84: 5.376739049e-08 | E84: 4 | F84: 0.1479960581 | G84: 0.03699901452 | H84: 1.7 | I84: 1.134097429 | J84: 0.6671161348 | K84: 6.9 | L84: 1.282093552 | M84: 0.1858106597 | N84: -0.02032850679 | O84: -0.2868887982 | P84: -0.09290540175 | Q84: -0.009991726293
A85: 2085 | B85: 1.2 | C85: 4.600039653e-08 | D85: 3.833366378e-08 | E85: 4 | F85: 0.1342202045 | G85: 0.03355505113 | H85: 1.7 | I85: 1.122623008 | J85: 0.6603664756 | K85: 6.9 | L85: 1.256843259 | M85: 0.182151197 | N85: -0.01969457896 | O85: -0.2870462295 | P85: -0.09308257093 | Q85: -0.0101176674
A86: 2086 | B86: 1.2 | C86: 3.27891263e-08 | D86: 2.732427192e-08 | E86: 4 | F86: 0.1217035186 | G86: 0.03042587966 | H86: 1.7 | I86: 1.111126452 | J86: 0.6536037951 | K86: 6.9 | L86: 1.232830003 | M86: 0.1786710149 | N86: -0.0191060069 | O86: -0.287199051 | P86: -0.09325485631 | Q86: -0.01024079926
A87: 2087 | B87: 1.2 | C87: 2.336725407e-08 | D87: 1.947271173e-08 | E87: 4 | F87: 0.1103336769 | G87: 0.02758341922 | H87: 1.7 | I87: 1.099613832 | J87: 0.6468316657 | K87: 6.9 | L87: 1.209947532 | M87: 0.1753547148 | N87: -0.01856092971 | O87: -0.2873474622 | P87: -0.09342245707 | Q87: -0.01036121482
A88: 2088 | B88: 1.2 | C88: 1.664936361e-08 | D88: 1.387446967e-08 | E88: 4 | F88: 0.1000080378 | G88: 0.02500200944 | H88: 1.7 | I88: 1.088090975 | J88: 0.6400535148 | K88: 6.9 | L88: 1.18809903 | M88: 0.1721882651 | N88: -0.01805739663 | O88: -0.2874916514 | P88: -0.09358556173 | Q88: -0.01047900299
A89: 2089 | B89: 1.2 | C89: 1.186047725e-08 | D89: 9.883731041e-09 | E89: 4 | F89: 0.09063284938 | G89: 0.02265821234 | H89: 1.7 | I89: 1.076563469 | J89: 0.6332726286 | K89: 6.9 | L89: 1.16719633 | M89: 0.1691588884 | N89: -0.01759339852 | O89: -0.2876317962 | P89: -0.0937443488 | Q89: -0.01059424883
A90: 2090 | B90: 1.2 | C90: 8.447410669e-09 | D90: 7.039508891e-09 | E90: 4 | F90: 0.08212251659 | G90: 0.02053062915 | H90: 1.7 | I90: 1.065036667 | J90: 0.6264921572 | K90: 6.9 | L90: 1.147159192 | M90: 0.1662549554 | N90: -0.01716689567 | O90: -0.2877680643 | P90: -0.09389898749 | Q90: -0.01070703378
A91: 2091 | B91: 1.2 | C91: 6.015395947e-09 | D91: 5.012829956e-09 | E91: 4 | F91: 0.07439892361 | G91: 0.0185997309 | H91: 1.7 | I91: 1.053515701 | J91: 0.6197151185 | K91: 6.9 | L91: 1.127914631 | M91: 0.1634658886 | N91: -0.01677584186 | O91: -0.2879006145 | P91: -0.09404963827 | Q91: -0.01081743581
A92: 2092 | B92: 1.2 | C92: 4.282783877e-09 | D92: 3.568986564e-09 | E92: 4 | F92: 0.06739080887 | G92: 0.01684770222 | H92: 1.7 | I92: 1.042005484 | J92: 0.6129444025 | K92: 6.9 | L92: 1.109396297 | M92: 0.1607820721 | N92: -0.0164182049 | O92: -0.2880295969 | P92: -0.09419645344 | Q92: -0.01092552967
A93: 2093 | B93: 1.2 | C93: 3.048677632e-09 | D93: 2.540564693e-09 | E93: 4 | F93: 0.06103318842 | G93: 0.01525829711 | H93: 1.7 | I93: 1.030510719 | J93: 0.6061827756 | K93: 6.9 | L93: 1.09154391 | M93: 0.1581947696 | N93: -0.01609198395 | O93: -0.2881551535 | P93: -0.09433957764 | Q93: -0.01103138698
A94: 2094 | B94: 1.2 | C94: 2.169812712e-09 | D94: 1.80817726e-09 | E94: 4 | F94: 0.05526682476 | G94: 0.01381670619 | H94: 1.7 | I94: 1.019035903 | J94: 0.5994328841 | K94: 6.9 | L94: 1.07430273 | M94: 0.1556960478 | N94: -0.01579522365 | O94: -0.2882774192 | P94: -0.09447914833 | Q94: -0.01113507646
A95: 2095 | B95: 1.2 | C95: 1.544046274e-09 | D95: 1.286705228e-09 | E95: 4 | F95: 0.05003773776 | G95: 0.01250943444 | H95: 1.7 | I95: 1.007585339 | J95: 0.5926972582 | K95: 6.9 | L95: 1.057623078 | M95: 0.153278707 | N95: -0.01552602559 | O95: -0.2883965215 | P95: -0.09461529622 | Q95: -0.01123666401
A96: 2096 | B96: 1.2 | C96: 1.098569497e-09 | D96: 9.154745807e-10 | E96: 4 | F96: 0.04529675489 | G96: 0.01132418872 | H96: 1.7 | I96: 0.996163137 | J96: 0.5859783159 | K96: 6.9 | L96: 1.041459893 | M96: 0.1509362164 | N96: -0.01528255726 | O96: -0.2885125818 | P96: -0.09474814571 | Q96: -0.01133621292
A97: 2097 | B97: 1.2 | C97: 7.814940903e-10 | D97: 6.512450752e-10 | E97: 4 | F97: 0.04099909775 | G97: 0.01024977444 | H97: 1.7 | I97: 0.9847732229 | J97: 0.5792783664 | K97: 6.9 | L97: 1.025772321 | M97: 0.1486626553 | N97: -0.01506305872 | O97: -0.288625715 | P97: -0.09487781523 | Q97: -0.01143378393
A98: 2098 | B98: 1.2 | C98: 5.558485887e-10 | D98: 4.632071573e-10 | E98: 4 | F98: 0.03710400235 | G98: 0.009276000587 | H98: 1.7 | I98: 0.9734193436 | J98: 0.5725996139 | K98: 6.9 | L98: 1.010523347 | M98: 0.1464526589 | N98: -0.01486584751 | O98: -0.2887360306 | P98: -0.09500441759 | Q98: -0.01152943542
A99: 2099 | B99: 1.2 | C99: 3.952952633e-10 | D99: 3.294127194e-10 | E99: 4 | F99: 0.03357437057 | G99: 0.008393592644 | H99: 1.7 | I99: 0.962105073 | J99: 0.5659441606 | K99: 6.9 | L99: 0.995679444 | M99: 0.1443013687 | N99: -0.01468932168 | O99: -0.2888436325 | P99: -0.09512806035 | Q99: -0.01162322348
A100: 2100 | B100: 1.2 | C100: 2.810752426e-10 | D100: 2.342293688e-10 | E100: 4 | F100: 0.03037645052 | G100: 0.00759411263 | H100: 1.7 | I100: 0.9508338177 | J100: 0.5593140104 | K100: 6.9 | L100: 0.9812102685 | M100: 0.1422043867 | N100: -0.01453196163 | O100: -0.2889486196 | P100: -0.09524884609 | Q100: -0.01171520203
A101: ∑ | C101: =SUM(C51:C100) -> 0.01357684008 | F101: =SUM(F51:F100) -> 36.31856496 | I101: =SUM(I51:I100) -> 60.94394158 | L101: =SUM(L51:L100) -> 97.27608338
A102: Rest | C102: =C$11*EXP(-C$8*($A100-$A$11))/C$8^2*((C$7*C$8+C$8^2)*($A100-$A$11)+2*C$8+C$7) -> 6.905500904e-10 | F102: =F$11*EXP(-F$8*($A100-$A$11))/F$8^2*((F$7*F$8+F$8^2)*($A100-$A$11)+2*F$8+F$7) -> 0.2851637287 | I102: =I$11*EXP(-I$8*($A100-$A$11))/I$8^2*((I$7*I$8+I$8^2)*($A100-$A$11)+2*I$8+I$7) -> 63.85400945 | L102: =I102+F102+C102 -> 64.13917318
A103: ∑ | C103: =SUM(C101:C102) -> 0.01357684077 | F103: =SUM(F101:F102) -> 36.60372869 | I103: =SUM(I101:I102) -> 124.797951 | L103: =SUM(L101:L102) -> 161.4152566
A105: ∑ | C105: =C103+C43 -> 118.9506444 | F105: =F103+F43 -> 396.5021481 | I105: =I103+I43 -> 168.5134129 | L105: =SUM(C105:I105) -> 683.9662054
J107: global path: | L107: ='global path'!C89 -> 683.9662054
L108: =L105-L107 -> 0

Sheet SPF-in
A1: Smooth Pathways Formula - inertia (spk = 0%)
A2: SPF-in | B2: ='SPF-eq'!B2 -> Smooth Pathways Formula; based on: Raupach et al. (2014) / Sharing a quota on cumulative carbon emissions / nature climate change DOI: 10.1038/NCLIMATE2384
B4: Country A | E4: Country B | H4: Country C | K4: Global | S4: Description
B5: RBA: | C5: =W8*'global path'!C89/K11*B11+(1-W8)*'global path'!C89*C11/L11 -> 344.2146207 | D5: Gt | E5: RBB: | F5: =W8*'global path'!C89/K11*E11+(1-W8)*'global path'!C89*F11/L11 -> 319.627862 | G5: Gt | H5: RBC: | I5: =W8*'global path'!C89/K11*H11+(1-W8)*'global path'!C89*I11/L11 -> 20.12372268 | J5: Gt | K5: RB: | L5: =C5+F5+I5 -> 683.9662054 | M5: Gt | S5: Raupach et al. have developed a formula to convert a budget of a country or global into a smooth emission pathway.
B6: TA | C6: =C5/C11 -> 16.39117241 | E6: TB | F6: =F5/F11 -> 16.39117241 | H6: TC | I6: =I5/I11 -> 16.39117241 | K6: Global path ist different to the path in sheet "global path".
B7: rA | C7: ='SPF-eq'!C7 -> 0 | E7: rB | F7: ='SPF-eq'!F7 -> 0.03 | H7: rC | I7: ='SPF-eq'!I7 -> 0.02
B8: mA | C8: =(1+SQRT(1+C7*C6))/C6 -> 0.1220168972 | E8: mB | F8: =(1+SQRT(1+F7*F6))/F6 -> 0.1355221001 | H8: mC | I8: =(1+SQRT(1+I7*I6))/I6 -> 0.1313092294 | S8: share population key: | W8: 0
A9: Year t | B9: Popu-lation Pit | C9: Eit | D9: Per capita | E9: Popu-lation Pit | F9: Eit | G9: Per capita | H9: Popu-lation Pit | I9: Eit | J9: Per capita | K9: Popu-lation Pt | L9: Et | M9: Per capita | S9: Limitations
B10: bn | C10: Gt | D10: t | E10: bn | F10: Gt | G10: t | H10: bn | I10: Gt | J10: t | K10: bn | L10: Gt | M10: t | O10: A | P10: B | Q10: C | S10: - | T10: The resulting global pathway ist different to the pathway in sheet "global path". So this model is comparable with the other models to a limited extent only.
A11: 2019 | B11: =RF!B9 -> 1.2 | C11: =RF!C9 -> 21 | D11: =C11/B11 -> 17.5 | E11: =RF!E9 -> 4 | F11: =RF!F9 -> 19.5 | G11: =F11/E11 -> 4.875 | H11: =K11-E11-B11 -> 1.7 | I11: ='global path'!$C$7-C11-F11 -> 1.227717101 | J11: =I11/H11 -> 0.7221865302 | K11: =RF!K9 -> 6.9 | L11: =I11+F11+C11 -> 41.7277171 | M11: =L11/K11 -> 6.047495232 | N11: annual change rates | S11: - | T11: The per capita emissions converge far into the future; as you can see on the remaining budgets as of 2051. So this model is comparable with the other models to a limited extent only.
A12: =A11+1 -> 2020 | B12: =B$11*(B$42/B$11)^(($A12-2019)/31) -> 1.2 | C12: =-C$11*EXP(-C$8*($A12-$A$11))/C$8^2*((C$7*C$8+C$8^2)*($A12-$A$11)+2*C$8+C$7) +C$11*EXP(-C$8*($A11-$A$11))/C$8^2*((C$7*C$8+C$8^2)*($A11-$A$11)+2*C$8+C$7) -> 20.95095734 | D12: =C12/B12 -> 17.45913112 | E12: =E$11*(E$42/E$11)^(($A12-2019)/31) -> 4 | F12: =-F$11*EXP(-F$8*($A12-$A$11))/F$8^2*((F$7*F$8+F$8^2)*($A12-$A$11)+2*F$8+F$7) +F$11*EXP(-F$8*($A11-$A$11))/F$8^2*((F$7*F$8+F$8^2)*($A11-$A$11)+2*F$8+F$7) -> 19.71156381 | G12: =F12/E12 -> 4.927890953 | H12: =H$11*(H$42/H$11)^(($A12-2019)/31) -> 1.7 | I12: =-I$11*EXP(-I$8*($A12-$A$11))/I$8^2*((I$7*I$8+I$8^2)*($A12-$A$11)+2*I$8+I$7) +I$11*EXP(-I$8*($A11-$A$11))/I$8^2*((I$7*I$8+I$8^2)*($A11-$A$11)+2*I$8+I$7) -> 1.235665349 | J12: =I12/H12 -> 0.7268619702 | K12: =B12+E12+H12 -> 6.9 | L12: =I12+F12+C12 -> 41.8981865 | M12: =L12/K12 -> 6.072200943 | N12: =L12/L11-1 -> 0.004085279893 | O12: =C12/C11-1 -> -0.002335364685 | P12: =F12/F11-1 -> 0.01084942636 | Q12: =I12/I11-1 -> 0.006474006159
A13: =A12+1 -> 2021 | B13: 1.2 | C13: =-C$11*EXP(-C$8*($A13-$A$11))/C$8^2*((C$7*C$8+C$8^2)*($A13-$A$11)+2*C$8+C$7) +C$11*EXP(-C$8*($A12-$A$11))/C$8^2*((C$7*C$8+C$8^2)*($A12-$A$11)+2*C$8+C$7) -> 20.67950971 | D13: 17.23292476 | E13: 4 | F13: =-F$11*EXP(-F$8*($A13-$A$11))/F$8^2*((F$7*F$8+F$8^2)*($A13-$A$11)+2*F$8+F$7) +F$11*EXP(-F$8*($A12-$A$11))/F$8^2*((F$7*F$8+F$8^2)*($A12-$A$11)+2*F$8+F$7) -> 19.84927346 | G13: 4.962318366 | H13: 1.7 | I13: =-I$11*EXP(-I$8*($A13-$A$11))/I$8^2*((I$7*I$8+I$8^2)*($A13-$A$11)+2*I$8+I$7) +I$11*EXP(-I$8*($A12-$A$11))/I$8^2*((I$7*I$8+I$8^2)*($A12-$A$11)+2*I$8+I$7) -> 1.236276028 | J13: 0.7272211927 | K13: =B13+E13+H13 -> 6.9 | L13: =I13+F13+C13 -> 41.7650592 | M13: 6.052907131 | N13: =L13/L12-1 -> -0.003177400114 | O13: =C13/C12-1 -> -0.01295633542 | P13: =F13/F12-1 -> 0.006986236668 | Q13: =I13/I12-1 -> 0.0004942100308 | S13: Simplification
A14: 2022 | B14: 1.2 | C14: 20.1939887 | D14: 16.82832392 | E14: 4 | F14: 19.63544836 | G14: 4.90886209 | H14: 1.7 | I14: 1.218025783 | J14: 0.7164857548 | K14: 6.9 | L14: 41.04746284 | M14: 5.948907658 | N14: -0.01718173938 | O14: -0.02347836189 | P14: -0.01077243988 | Q14: -0.01476227317 | T14: We assumed that the emission power at the end of the base year are the emissions in the base year divided by one year.
A15: 2023 | B15: 1.2 | C15: 19.54715563 | D15: 16.28929636 | E15: 4 | F15: 19.15698359 | G15: 4.789245896 | H15: 1.7 | I15: =-I$11*EXP(-I$8*($A15-$A$11))/I$8^2*((I$7*I$8+I$8^2)*($A15-$A$11)+2*I$8+I$7) +I$11*EXP(-I$8*($A14-$A$11))/I$8^2*((I$7*I$8+I$8^2)*($A14-$A$11)+2*I$8+I$7) -> 1.185547172 | J15: 0.6973806895 | K15: 6.9 | L15: 39.88968639 | M15: 5.781113969 | N15: -0.02820579813 | O15: -0.03203097101 | P15: -0.02436739739 | Q15: -0.02666496185
A16: 2024 | B16: 1.2 | C16: 18.78247537 | D16: 15.65206281 | E16: 4 | F16: 18.48439477 | G16: 4.621098691 | H16: 1.7 | I16: 1.142618241 | J16: 0.6721283773 | K16: 6.9 | L16: 38.40948838 | M16: 5.566592518 | N16: -0.03710728633 | O16: -0.0391197716 | P16: -0.03510932798 | Q16: -0.03621022566 | S16: Input values
A17: 2025 | B17: 1.2 | C17: 17.93555585 | D17: 14.94629654 | E17: 4 | F17: 17.67457412 | G17: 4.418643531 | H17: 1.7 | I17: 1.092302683 | J17: 0.6425309899 | K17: 6.9 | L17: 36.70243266 | M17: 5.319193139 | N17: -0.04444359431 | O17: -0.04509094264 | P17: -0.04381104446 | Q17: -0.04403531883 | S17: - | T17: reduction rate at the beginnging of 2020 for each country
A18: 2026 | B18: 1.2 | C18: 17.0353796 | D18: 14.19614967 | E18: 4 | F18: 16.77311106 | G18: 4.193277765 | H18: 1.7 | I18: 1.037068433 | J18: 0.6100402546 | K18: 6.9 | L18: 34.8455591 | M18: 5.050081028 | N18: -0.05059265628 | O18: -0.05018948123 | P18: -0.05100338261 | Q18: -0.05056679893 | S18: - | T18: Share that is distributed over the population key
A19: 2027 | B19: 1.2 | C19: 16.10535601 | D19: 13.42113001 | E19: 4 | F19: 15.81624331 | G19: 3.954060828 | H19: 1.7 | I19: 0.9788879007 | J19: 0.5758164122 | K19: 6.9 | L19: 32.90048723 | M19: 4.768186554 | N19: -0.05581979229 | O19: -0.05459365243 | P19: -0.05704772015 | Q19: -0.0561009575
A20: 2028 | B20: 1.2 | C20: 15.16421922 | D20: 12.63684935 | E20: 4 | F20: 14.83249514 | G20: 3.708123785 | H20: 1.7 | I20: 0.9193225523 | J20: 0.5407779719 | K20: 6.9 | L20: 30.91603691 | M20: 4.48058506 | N20: -0.06031674547 | O20: -0.05843626123 | P20: -0.06219859893 | Q20: -0.06085002007
A21: 2029 | B21: 1.2 | C21: 14.22679334 | D21: 11.85566112 | E21: 4 | F21: 13.84405042 | G21: 3.461012605 | H21: 1.7 | I21: 0.8595941788 | J21: 0.5056436346 | K21: 6.9 | L21: 28.93043794 | M21: 4.192817093 | N21: -0.06422553368 | O21: -0.06181827526 | P21: -0.06664048829 | Q21: -0.06496998618
A22: 2030 | B22: 1.2 | C22: 13.30464353 | D22: 11.08720294 | E22: 4 | F22: 12.86790165 | G22: 3.216975412 | H22: 1.7 | I22: 0.8006448492 | J22: 0.4709675584 | K22: 6.9 | L22: 26.97319003 | M22: 3.909157975 | N22: -0.06765358752 | O22: -0.06481782578 | P22: -0.07051034515 | Q22: -0.06857809305
A23: 2031 | B23: 1.2 | C23: 12.40662907 | D23: 10.33885756 | E23: 4 | F23: 11.91680949 | G23: 2.979202372 | H23: 1.7 | I23: 0.7431872515 | J23: 0.4371689715 | K23: 6.9 | L23: 25.06662581 | M23: 3.632844321 | N23: -0.07068367557 | O23: -0.06749631844 | P23: -0.07391198541 | Q23: -0.0717641508
A24: 2032 | B24: 1.2 | C24: 11.53937243 | D24: 9.616143694 | E24: 4 | F24: 11.00010252 | G24: 2.750025631 | H24: 1.7 | I24: 0.6877468798 | J24: 0.4045569881 | K24: 6.9 | L24: 23.22722184 | M24: 3.366264034 | N24: -0.07338059735 | O24: -0.06990268152 | P24: -0.07692553649 | Q24: -0.07459811991
A25: 2033 | B25: 1.2 | C25: 10.70765622 | D25: 8.923046849 | E25: 4 | F25: 10.12434224 | G25: 2.53108556 | H25: 1.7 | I25: 0.6346973125 | J25: 0.3733513603 | K25: 6.9 | L25: 21.46669577 | M25: 3.111115329 | N25: -0.0757958088 | O25: -0.07207638189 | P25: -0.07961382922 | Q25: -0.07713530791
A26: 2034 | B26: 1.2 | C26: 9.914758489 | D26: 8.262298741 | E26: 4 | F26: 9.293874582 | G26: 2.323468645 | H26: 1.7 | I26: 0.5842896425 | J26: 0.3436997897 | K26: 6.9 | L26: 19.79292271 | M26: 2.868539524 | N26: -0.07797068894 | O26: -0.07404960651 | P26: -0.08202682597 | Q26: -0.07942001481
A27: 2035 | B27: 1.2 | C27: 9.162735291 | D27: 7.635612743 | E27: 4 | F27: 8.511286153 | G27: 2.127821538 | H27: 1.7 | I27: 0.5366769653 | J27: 0.3156923325 | K27: 6.9 | L27: 18.21069841 | M27: 2.639231653 | N27: -0.07993889167 | O27: -0.07584886702 | P27: -0.08420475468 | Q27: -0.08148814173
A28: 2036 | B28: 1.2 | C28: 8.452658145 | D28: 7.043881788 | E28: 4 | F28: 7.777780367 | G28: 1.944445092 | H28: 1.7 | I28: 0.4919346944 | J28: 0.2893733497 | K28: 6.9 | L28: 16.72237321 | M28: 2.423532349 | N28: -0.08172806827 | O28: -0.07749619773 | P28: -0.08618036955 | Q28: -0.08336909126
A29: 2037 | B29: 1.2 | C29: 7.784813096 | D29: 6.487344247 | E29: 4 | F29: 7.093486509 | G29: 1.773371627 | H29: 1.7 | I29: 0.4500773614 | J29: 0.264751389 | K29: 6.9 | L29: 15.32837697 | M29: 2.221503908 | N29: -0.08336114872 | O29: -0.07901006257 | P29: -0.08798060959 | Q29: -0.08508717422
A30: 2038 | B30: 1.2 | C30: 7.158867025 | D30: 5.965722521 | E30: 4 | F30: 6.457712675 | G30: 1.614428169 | H30: 1.7 | I30: 0.4110724573 | J30: 0.2418073278 | K30: 6.9 | L30: 14.02765216 | M30: 2.032993066 | N30: -0.08485730825 | O30: -0.08040605003 | P30: -0.08962783435 | Q30: -0.08666266611
A31: 2039 | B31: 1.2 | C31: 6.574006116 | D31: 5.47833843 | E31: 4 | F31: 5.869151851 | G31: 1.467287963 | H31: 1.7 | I31: 0.3748517898 | J31: 0.2205010528 | K31: 6.9 | L31: 12.81800976 | M31: 1.857682573 | N31: -0.08623270571 | O31: -0.08169741202 | P31: -0.09114075733 | Q31: -0.088112611
A32: 2040 | B32: 1.2 | C32: 6.029050685 | D32: 5.024208905 | E32: 4 | F32: 5.326048945 | G32: 1.331512236 | H32: 1.7 | I32: 0.3413207571 | J32: 0.200776916 | K32: 6.9 | L32: 11.69642039 | M32: 1.69513339 | N32: -0.0875010544 | O32: -0.08289548578 | P32: -0.09253516004 | Q32: -0.08945144067
A33: 2041 | B33: 1.2 | C33: 5.522549971 | D33: 4.602124976 | E33: 4 | F33: 4.826335361 | G33: 1.20658384 | H33: 1.7 | I33: 0.3103658805 | J33: 0.182568165 | K33: 6.9 | L33: 10.65925121 | M33: 1.544819016 | N33: -0.0886740679 | O33: -0.08401002764 | P33: -0.09382444461 | Q33: -0.09069145659
A34: 2042 | B34: 1.2 | C34: 5.052859971 | D34: 4.210716643 | E34: 4 | F34: 4.367736657 | G34: 1.091934164 | H34: 1.7 | I34: 0.2818608821 | J34: 0.1658005189 | K34: 6.9 | L34: 9.70245751 | M34: 1.406153262 | N34: -0.08976181186 | O34: -0.08504947932 | P34: -0.09502006588 | Q34: -0.091843209
A35: 2043 | B35: 1.2 | C35: 4.618206983 | D35: 3.84850582 | E35: 4 | F35: 3.947857953 | G35: 0.9869644882 | H35: 1.7 | I35: 0.2556715533 | J35: 0.1503950314 | K35: 6.9 | L35: 8.82173649 | M35: 1.278512535 | N35: -0.09077298405 | O35: -0.0860211821 | P35: -0.09613187271 | Q35: -0.09291579784
A36: 2044 | B36: 1.2 | C36: 4.21673909 | D36: 3.513949242 | E36: 4 | F36: 3.564250991 | G36: 0.8910627479 | H36: 1.7 | I36: 0.231659619 | J36: 0.1362703641 | K36: 6.9 | L36: 8.0126497 | M36: 1.16125358 | N36: -0.09171513911 | O36: -0.08693155051 | P36: -0.0971683799 | Q36: -0.09391711369
A37: 2045 | B37: 1.2 | C37: 3.84656753 | D37: 3.205472941 | E37: 4 | F37: 3.21446614 | G37: 0.8036165349 | H37: 1.7 | I37: 0.20968577 | J37: 0.1233445706 | K37: 6.9 | L37: 7.270719439 | M37: 1.053727455 | N37: -0.09259487048 | O37: -0.08778621405 | P37: -0.09813698663 | Q37: -0.09485403218
A38: 2046 | B38: 1.2 | C38: 3.505799598 | D38: 2.921499665 | E38: 4 | F38: 2.896092062 | G38: 0.7240230155 | H38: 1.7 | I38: 0.1896120119 | J38: 0.1115364776 | K38: 6.9 | L38: 6.591503671 | M38: 0.9552903872 | N38: -0.09341795861 | O38: -0.08859013377 | P38: -0.09904415343 | Q38: -0.09573257213
A39: 2047 | B39: 1.2 | C39: 3.192564472 | D39: 2.660470393 | E39: 4 | F39: 2.606785363 | G39: 0.6516963408 | H39: 1.7 | I39: 0.1713034506 | J39: 0.1007667356 | K39: 6.9 | L39: 5.970653285 | M39: 0.8653120703 | N39: -0.09418949257 | O39: -0.08934769858 | P39: -0.0998955464 | Q39: -0.09655802496
A40: 2048 | B40: 1.2 | C40: 2.905033159 | D40: 2.420860966 | E40: 4 | F40: 2.344292098 | G40: 0.5860730246 | H40: 1.7 | I40: 0.1546296187 | J40: 0.09095859922 | K40: 6.9 | L40: 5.403954876 | M40: 0.7831818661 | N40: -0.09491397047 | O40: -0.09006280545 | P40: -0.1006961557 | Q40: -0.09733506135
A41: 2049 | B41: 1.2 | C41: 2.641433569 | D41: 2.201194641 | E41: 4 | F41: 2.106462742 | G41: 0.5266156856 | H41: 1.7 | I41: 0.1394654291 | J41: 0.08203848772 | K41: 6.9 | L41: 4.88736174 | M41: 0.7083132957 | N41: -0.09559538289 | O41: -0.09073892643 | P41: -0.1014503935 | Q41: -0.0980678197
A42: =A41+1 -> 2050 | B42: =RF!B40 -> 1.2 | C42: 2.400061575 | D42: 2.000051312 | E42: =RF!E40 -> 4 | F42: 1.891261927 | G42: 0.4728154817 | H42: =K42-E42-B42 -> 1.7 | I42: 0.1256918262 | J42: 0.07393636832 | K42: =RF!K40 -> 6.9 | L42: 4.417015328 | M42: 0.640147149 | N42: -0.09623728252 | O42: -0.09137916504 | P42: -0.1021621751 | Q42: -0.09875997981
A43: ∑ | C43: =SUM(C12:C42) -> 321.5583968 | F43: =SUM(F12:F42) -> 303.7821763 | I43: =SUM(I12:I42) -> 19.03175432 | L43: =SUM(L12:L42) -> 644.3723274
A44: Rest | C44: =C$11*EXP(-C$8*($A42-$A$11))/C$8^2*((C$7*C$8+C$8^2)*($A42-$A$11)+2*C$8+C$7) -> 22.65622386 | F44: =F$11*EXP(-F$8*($A42-$A$11))/F$8^2*((F$7*F$8+F$8^2)*($A42-$A$11)+2*F$8+F$7) -> 15.84568573 | I44: =I$11*EXP(-I$8*($A42-$A$11))/I$8^2*((I$7*I$8+I$8^2)*($A42-$A$11)+2*I$8+I$7) -> 1.091968358 | L44: 39.59387795
A45: ∑ | C45: =SUM(C43:C44) -> 344.2146207 | F45: =SUM(F43:F44) -> 319.627862 | I45: =SUM(I43:I44) -> 20.12372268 | L45: =SUM(L43:L44) -> 683.9662054
F47: global path 2020 - 2100 sheet "global path": | L47: ='global path'!C89 -> 683.9662054
L48: =L45-L47 -> 0
A51: =A42+1 -> 2051 | B51: =B42 -> 1.2 | C51: =-C$11*EXP(-C$8*($A51-$A$11))/C$8^2*((C$7*C$8+C$8^2)*($A51-$A$11)+2*C$8+C$7) +C$11*EXP(-C$8*($A42-$A$11))/C$8^2*((C$7*C$8+C$8^2)*($A42-$A$11)+2*C$8+C$7) -> 2.179288781 | D51: =C51/B51 -> 1.816073984 | E51: =E42 -> 4 | F51: =-F$11*EXP(-F$8*($A51-$A$11))/F$8^2*((F$7*F$8+F$8^2)*($A51-$A$11)+2*F$8+F$7) +F$11*EXP(-F$8*($A42-$A$11))/F$8^2*((F$7*F$8+F$8^2)*($A42-$A$11)+2*F$8+F$7) -> 1.696774031 | G51: =F51/E51 -> 0.4241935077 | H51: =H42 -> 1.7 | I51: =-I$11*EXP(-I$8*($A51-$A$11))/I$8^2*((I$7*I$8+I$8^2)*($A51-$A$11)+2*I$8+I$7) +I$11*EXP(-I$8*($A42-$A$11))/I$8^2*((I$7*I$8+I$8^2)*($A42-$A$11)+2*I$8+I$7) -> 0.1131961953 | J51: =I51/H51 -> 0.06658599723 | K51: =B51+E51+H51 -> 6.9 | L51: =I51+F51+C51 -> 3.989259007 | M51: =L51/K51 -> 0.5781534793 | N51: =L51/L42-1 -> -0.09684284267 | O51: =C51/C42-1 -> -0.09198630392 | P51: =F51/F42-1 -> -0.1028349873 | Q51: =I51/I42-1 -> -0.09941482474
A52: =A51+1 -> 2052 | B52: =B51 -> 1.2 | C52: =-C$11*EXP(-C$8*($A52-$A$11))/C$8^2*((C$7*C$8+C$8^2)*($A52-$A$11)+2*C$8+C$7) +C$11*EXP(-C$8*($A51-$A$11))/C$8^2*((C$7*C$8+C$8^2)*($A51-$A$11)+2*C$8+C$7) -> 1.977567611 | D52: =C52/B52 -> 1.647973009 | E52: =E51 -> 4 | F52: =-F$11*EXP(-F$8*($A52-$A$11))/F$8^2*((F$7*F$8+F$8^2)*($A52-$A$11)+2*F$8+F$7) +F$11*EXP(-F$8*($A51-$A$11))/F$8^2*((F$7*F$8+F$8^2)*($A51-$A$11)+2*F$8+F$7) -> 1.521205522 | G52: =F52/E52 -> 0.3803013804 | H52: =H51 -> 1.7 | I52: =-I$11*EXP(-I$8*($A52-$A$11))/I$8^2*((I$7*I$8+I$8^2)*($A52-$A$11)+2*I$8+I$7) +I$11*EXP(-I$8*($A51-$A$11))/I$8^2*((I$7*I$8+I$8^2)*($A51-$A$11)+2*I$8+I$7) -> 0.1018725807 | J52: =I52/H52 -> 0.05992504749 | K52: =B52+E52+H52 -> 6.9 | L52: =I52+F52+C52 -> 3.600645714 | M52: =L52/K52 -> 0.5218327121 | N52: =L52/L51-1 -> -0.09741490665 | O52: =C52/C51-1 -> -0.09256284522 | P52: =F52/F51-1 -> -0.1034719449 | Q52: =I52/I51-1 -> -0.1000352928
A53: =A52+1 -> 2053 | B53: =B52 -> 1.2 | C53: 1.793434224 | D53: =C53/B53 -> 1.49452852 | E53: =E52 -> 4 | F53: 1.362884779 | G53: =F53/E53 -> 0.3407211948 | H53: =H52 -> 1.7 | I53: 0.09162175195 | J53: =I53/H53 -> 0.0538951482 | K53: =B53+E53+H53 -> 6.9 | L53: =I53+F53+C53 -> 3.247940755 | M53: =L53/K53 -> 0.4707160515 | N53: =L53/L52-1 -> -0.0979560296 | O53: =C53/C52-1 -> -0.0931110451 | P53: =F53/F52-1 -> -0.1040758399 | Q53: =I53/I52-1 -> -0.1006240219
A54: 2054 | B54: 1.2 | C54: 1.625509699 | D54: =C54/B54 -> 1.354591416 | E54: 4 | F54: 1.220260003 | G54: =F54/E54 -> 0.3050650008 | H54: 1.7 | I54: 0.08235115282 | J54: =I54/H54 -> 0.0484418546 | K54: =B54+E54+H54 -> 6.9 | L54: =I54+F54+C54 -> 2.928120855 | M54: =L54/K54 -> 0.4243653413 | N54: =L54/L53-1 -> -0.09846851415 | O54: =C54/C53-1 -> -0.09363294322 | P54: =F54/F53-1 -> -0.1046491812 | Q54: =I54/I53-1 -> -0.1011833864
A55: 2055 | B55: 1.2 | C55: 1.47249984 | D55: 1.2270832 | E55: 4 | F55: 1.091895691 | G55: 0.2729739228 | H55: 1.7 | I55: 0.07397476166 | J55: 0.04351456569 | K55: 6.9 | L55: 2.638370293 | M55: 0.3823725063 | N55: -0.09895444087 | O55: -0.09413038812 | P55: -0.1051942304 | Q55: -0.10171553
A56: 2056 | B56: 1.2 | C56: 1.333193906 | D56: 1.110994922 | E56: 4 | F56: 0.9764680877 | G56: 0.2441170219 | H56: 1.7 | I56: 0.06641288455 | J56: 0.03906640268 | K56: 6.9 | L56: 2.376074878 | M56: 0.344358678 | N56: -0.09941569446 | O56: -0.09460505906 | P56: -0.1057130314 | Q56: -0.1022223924
A57: 2057 | B57: 1.2 | C57: 1.206462513 | D57: 1.005385428 | E57: 4 | F57: 0.8727599163 | G57: 0.2181899791 | H57: 1.7 | I57: 0.05959190054 | J57: 0.03505405914 | K57: 6.9 | L57: 2.13881433 | M57: 0.3099730913 | N57: -0.09985398631 | O57: -0.095058485 | P57: -0.1062074355 | Q57: -0.1027057334
A58: 2058 | B58: 1.2 | C58: 1.091254921 | D58: 0.909379101 | E58: 4 | F58: 0.7796546528 | G58: 0.1949136632 | H58: 1.7 | I58: 0.0534439738 | J58: 0.03143763165 | K58: 6.9 | L58: 1.924353548 | M58: 0.2788918185 | N58: -0.100270874 | O58: -0.09549206103 | P58: -0.1066791241 | Q58: -0.1031671532
A59: 2059 | B59: 1.2 | C59: 0.986595867 | D59: 0.8221632225 | E59: 4 | F59: 0.6961305401 | G59: 0.174032635 | H59: 1.7 | I59: 0.04790674468 | J59: 0.02818043805 | K59: 6.9 | L59: 1.730633152 | M59: 0.2508163988 | N59: -0.1006677781 | O59: -0.09590706268 | P59: -0.1071296277 | Q59: -0.1036081101
A60: 2060 | B60: 1.2 | C60: 0.891582089 | D60: 0.7429850741 | E60: 4 | F60: 0.6212545012 | G60: 0.1553136253 | H60: 1.7 | I60: 0.04292300911 | J60: 0.02524882889 | K60: 6.9 | L60: 1.555759599 | M60: 0.2254724057 | N60: -0.1010459972 | O60: -0.09630465853 | P60: -0.107560342 | Q60: -0.1040299357
A61: 2061 | B61: 1.2 | C61: 0.8053786534 | D61: 0.6711488779 | E61: 4 | F61: 0.5541760728 | G61: 0.1385440182 | H61: 1.7 | I61: 0.03844039407 | J61: 0.02261199651 | K61: 6.9 | L61: 1.39799512 | M61: 0.2026079885 | N61: -0.1014067205 | O61: -0.09668592112 | P61: -0.107972543 | Q61: -0.1044338487
A62: 2062 | B62: 1.2 | C62: 0.7272151759 | D62: 0.6060126466 | E62: 4 | F62: 0.4941214531 | G62: 0.1235303633 | H62: 1.7 | I62: 0.03441103482 | J62: 0.02024178519 | K62: 6.9 | L62: 1.255747664 | M62: 0.1819924151 | N62: -0.1017510393 | O62: -0.09705183664 | P62: -0.1083673992 | Q62: -0.1048209662
A63: 2063 | B63: 1.2 | C63: 0.6563820082 | D63: 0.5469850068 | E63: 4 | F63: 0.4403877301 | G63: 0.1100969325 | H63: 1.7 | I63: 0.03079125842 | J63: 0.01811250495 | K63: 6.9 | L63: 1.127560997 | M63: 0.1634146372 | N63: -0.1020799567 | O63: -0.09740331348 | P63: -0.1087459828 | Q63: -0.1051923146
A64: 2064 | B64: 1.2 | C64: 0.5922264498 | D64: 0.4935220415 | E64: 4 | F64: 0.3923373422 | G64: 0.09808433556 | H64: 1.7 | I64: 0.02754127687 | J64: 0.0162007511 | K64: 6.9 | L64: 1.012105069 | M64: 0.146681894 | N64: -0.1023943965 | O64: -0.0977411897 | P64: -0.1091092794 | Q64: -0.1055488381
A65: 2065 | B65: 1.2 | C65: 0.5341490288 | D65: 0.4451241907 | E65: 4 | F65: 0.3493928043 | G65: 0.08734820107 | H65: 1.7 | I65: 0.02462489231 | J65: 0.01448523077 | K65: 6.9 | L65: 0.9081667254 | M65: 0.131618366 | N65: -0.1026952109 | O65: -0.09806623974 | P65: -0.1094581966 | Q65: -0.1058914072
A66: 2066 | B66: 1.2 | C66: 0.4815998852 | D66: 0.4013332376 | E66: 4 | F66: 0.3110317204 | G66: 0.0777579301 | H66: 1.7 | I66: 0.02200921592 | J66: 0.0129465976 | K66: 6.9 | L66: 0.8146408215 | M66: 0.1180638872 | N66: -0.1029831872 | O66: -0.09837918035 | P66: -0.1097935716 | Q66: -0.1062208253
A67: 2067 | B67: 1.2 | C67: 0.434075283 | D67: 0.3617294025 | E67: 4 | F67: 0.2767820962 | G67: 0.06919552405 | H67: 1.7 | I67: 0.0196644017 | J67: 0.01156729512 | K67: 6.9 | L67: 0.7305217809 | M67: 0.1058727219 | N67: -0.103259054 | O67: -0.09868067584 | P67: -0.1101161777 | Q67: -0.1065378354
A68: 2068 | B68: 1.2 | C68: 0.3911142694 | D68: 0.3259285578 | E68: 4 | F68: 0.2462179542 | G68: 0.06155448856 | H68: 1.7 | I68: 0.01756339556 | J68: 0.01033140915 | K68: 6.9 | L68: 0.6548956192 | M68: 0.09491240857 | N68: -0.1035234866 | O68: -0.0989713428 | P68: -0.1104267306 | Q68: -0.1068431258
A69: 2069 | B69: 1.2 | C69: 0.352295492 | D69: 0.2935795767 | E69: 4 | F69: 0.2189552513 | G69: 0.05473881282 | H69: 1.7 | I69: 0.01568170017 | J69: 0.009224529514 | K69: 6.9 | L69: 0.5869324434 | M69: 0.08506267296 | N69: -0.1037771115 | O69: -0.09925175432 | P69: -0.1107258934 | Q69: -0.1071373344
A70: 2070 | B70: 1.2 | C70: 0.3172341837 | D70: 0.2643618198 | E70: 4 | F70: 0.1946480914 | G70: 0.04866202285 | H70: 1.7 | I70: 0.01399715541 | J70: 0.008233620831 | K70: 6.9 | L70: 0.5258794305 | M70: 0.07621441022 | N70: -0.1040205114 | O70: -0.09952244375 | P70: -0.1110142814 | Q70: -0.1074210539
A71: 2071 | B71: 1.2 | C71: 0.2855793171 | D71: 0.2379827642 | E71: 4 | F71: 0.1729852252 | G71: 0.0432463063 | H71: 1.7 | I71: 0.01248973406 | J71: 0.007346902391 | K71: 6.9 | L71: 0.4710542764 | M71: 0.0682687357 | N71: -0.1042542282 | O71: -0.09978390808 | P71: -0.1112924664 | Q71: -0.1076948355
A72: 2072 | B72: 1.2 | C72: 0.25701093 | D72: 0.214175775 | E72: 4 | F72: 0.1536868239 | G72: 0.03842170597 | H72: 1.7 | I72: 0.01114135246 | J72: 0.006553736743 | K72: 6.9 | L72: 0.4218391064 | M72: 0.06113610237 | N72: -0.104478767 | O72: -0.100036611 | P72: -0.1115609805 | Q72: -0.1079591922
A73: 2073 | B73: 1.2 | C73: 0.2312376207 | D73: 0.1926980172 | E73: 4 | F73: 0.1365015141 | G73: 0.03412537853 | H73: 1.7 | I73: 0.009935695434 | J73: 0.005844526726 | K73: 6.9 | L73: 0.3776748302 | M73: 0.05473548264 | N73: -0.1046945991 | O73: -0.1002809856 | P73: -0.1118203194 | Q73: -0.1082146026
A74: 2074 | B74: 1.2 | C74: 0.2079942077 | D74: 0.1733285064 | E74: 4 | F74: 0.1212036604 | G74: 0.0303009151 | H74: 1.7 | I74: 0.008858054872 | J74: 0.005210620513 | K74: 6.9 | L74: 0.3380559229 | M74: 0.04899361202 | N74: -0.1049021648 | O74: -0.100517437 | P74: -0.1120709454 | Q74: -0.1084615132
A75: 2075 | B75: 1.2 | C75: 0.1870395516 | D75: 0.155866293 | E75: 4 | F75: 0.1075908785 | G75: 0.02689771962 | H75: 1.7 | I75: 0.007895181284 | J75: 0.004644224285 | K75: 6.9 | L75: 0.3025256114 | M75: 0.0438442915 | N75: -0.1051018756 | O75: -0.1007463443 | P75: -0.1123132904 | Q75: -0.1087003413
A76: 2076 | B76: 1.2 | C76: 0.1681545304 | D76: 0.1401287753 | E76: 4 | F76: 0.0954817663 | G76: 0.02387044158 | H76: 1.7 | I76: 0.007035147522 | J76: 0.004138322072 | K76: 6.9 | L76: 0.2706714442 | M76: 0.03922774554 | N76: -0.1052941171 | O76: -0.1009680629 | P76: -0.1125477582 | Q76: -0.1089314775
A77: 2077 | B77: 1.2 | C77: 0.151140163 | D77: 0.1259501358 | E77: 4 | F77: 0.08471383622 | G77: 0.02117845905 | H77: 1.7 | I77: 0.006267223972 | J77: 0.003686602336 | K77: 6.9 | L77: 0.2421212231 | M77: 0.03509003234 | N77: -0.1054792506 | O77: -0.1011829263 | P77: -0.1127747266 | Q77: -0.1091552874
A78: 2078 | B78: 1.2 | C78: 0.1358158733 | D78: 0.1131798944 | E78: 4 | F78: 0.07514163444 | G78: 0.01878540861 | H78: 1.7 | I78: 0.005581764437 | J78: 0.003283390846 | K78: 6.9 | L78: 0.2165392722 | M78: 0.03138250321 | N78: -0.105657615 | O78: -0.1013912474 | P78: -0.1129945497 | Q78: -0.109372114
A79: 2079 | B79: 1.2 | C79: 0.1220178877 | D79: 0.1016815731 | E79: 4 | F79: 0.06663503336 | G79: 0.01665875834 | H79: 1.7 | I79: 0.00497010197 | J79: 0.002923589394 | K79: 6.9 | L79: 0.1936230231 | M79: 0.02806130769 | N79: -0.1058295287 | O79: -0.1015933207 | P79: -0.1132075599 | Q79: -0.109582279
A80: 2080 | B80: 1.2 | C80: 0.1095977574 | D80: 0.09133146446 | E80: 4 | F80: 0.0590776831 | G80: 0.01476942077 | H80: 1.7 | I80: 0.004424453933 | J80: 0.002602619961 | K80: 6.9 | L80: 0.1730998944 | M80: 0.02508694121 | N80: -0.105995291 | O80: -0.101789423 | P80: -0.1134140689 | Q80: -0.1097860848
A81: 2081 | B81: 1.2 | C81: 0.09842099832 | D81: 0.0820174986 | E81: 4 | F81: 0.05236560936 | G81: 0.01309140234 | H81: 1.7 | I81: 0.003937835607 | J81: 0.002316373886 | K81: 6.9 | L81: 0.1547244433 | M81: 0.02242383236 | N81: -0.1061551838 | O81: -0.1019798151 | P81: -0.1136143699 | Q81: -0.1099838158
A82: 2082 | B82: 1.2 | C82: 0.08836584233 | D82: 0.07363820194 | E82: 4 | F82: 0.0464059454 | G82: 0.01160148635 | H82: 1.7 | I82: 0.003503981657 | J82: 0.002061165681 | K82: 6.9 | L82: 0.1382757694 | M82: 0.02003996658 | N82: -0.1063094722 | O82: -0.1021647429 | P82: -0.1138087387 | Q82: -0.1101757395
A83: 2083 | B83: 1.2 | C83: 0.07932208983 | D83: 0.06610174152 | E83: 4 | F83: 0.04111578665 | G83: 0.01027894666 | H83: 1.7 | I83: 0.003117274855 | J83: 0.001833691091 | K83: 6.9 | L83: 0.1235551513 | M83: 0.01790654367 | N83: -0.1064584064 | O83: -0.1023444383 | P83: -0.1139974351 | Q83: -0.1103621081
A84: 2084 | B84: 1.2 | C84: 0.07119005896 | D84: 0.05932504913 | E84: 4 | F84: 0.0364211572 | G84: 0.0091052893 | H84: 1.7 | I84: 0.002772681444 | J84: 0.001630989085 | K84: 6.9 | L84: 0.1103838976 | M84: 0.01599766632 | N84: -0.1066022225 | O84: -0.1025191203 | P84: -0.1141807037 | Q84: -0.1105431593
A85: 2085 | B85: 1.2 | C85: 0.0638796233 | D85: 0.05323301941 | E85: 4 | F85: 0.03225607827 | G85: 0.008064019566 | H85: 1.7 | I85: 0.002465692601 | J85: 0.001450407412 | K85: 6.9 | L85: 0.09860139416 | M85: 0.01429005712 | N85: -0.1067411434 | O85: -0.1026889957 | P85: -0.1143587754 | Q85: -0.1107191176
A86: 2086 | B86: 1.2 | C86: 0.05730933189 | D86: 0.04775777658 | E86: 4 | F86: 0.02856172936 | G86: 0.007140432341 | H86: 1.7 | I86: 0.002192271468 | J86: 0.001289571452 | K86: 6.9 | L86: 0.08806333272 | M86: 0.01276280184 | N86: -0.1068753797 | O86: -0.1028542603 | P86: -0.1145318682 | Q86: -0.1108901947
A87: 2087 | B87: 1.2 | C87: 0.05140560537 | D87: 0.04283800448 | E87: 4 | F87: 0.02528569364 | G87: 0.006321423409 | H87: 1.7 | I87: 0.001948805272 | J87: 0.001146356043 | K87: 6.9 | L87: 0.07864010428 | M87: 0.01139711656 | N87: -0.1070051308 | O87: -0.1030150993 | P87: -0.114700188 | Q87: -0.1110565911
A88: 2088 | B88: 1.2 | C88: 0.04610200229 | D88: 0.03841833524 | E88: 4 | F88: 0.0223812795 | G88: 0.005595319876 | H88: 1.7 | I88: 0.001732062081 | J88: 0.001018860047 | K88: 6.9 | L88: 0.07021534387 | M88: 0.01017613679 | N88: -0.1071305854 | O88: -0.1031716881 | P88: -0.1148639295 | Q88: -0.1112184962
A89: 2089 | B89: 1.2 | C89: 0.04133855011 | D89: 0.03444879176 | E89: 4 | F89: 0.01980691139 | G89: 0.004951727848 | H89: 1.7 | I89: 0.001539151779 | J89: 0.0009053833995 | K89: 6.9 | L89: 0.06268461328 | M89: 0.009084726562 | N89: -0.1072519222 | O89: -0.103324193 | P89: -0.1150232771 | Q89: -0.1113760895
A90: 2090 | B90: 1.2 | C90: 0.03706113575 | D90: 0.03088427979 | E90: 4 | F90: 0.01752558292 | G90: 0.004381395731 | H90: 1.7 | I90: 0.001367490888 | J90: 0.0008044064045 | K90: 6.9 | L90: 0.05595420956 | M90: 0.008109305734 | N90: -0.1073693106 | O90: -0.1034727716 | P90: -0.1151784052 | Q90: -0.111529541
A91: 2091 | B91: 1.2 | C91: 0.03322095078 | D91: 0.02768412565 | E91: 4 | F91: 0.01550436657 | G91: 0.003876091643 | H91: 1.7 | I91: 0.001214770857 | J91: 0.0007145710922 | K91: 6.9 | L91: 0.04994008821 | M91: 0.007237693944 | N91: -0.1074829115 | O91: -0.1036175738 | P91: -0.1153294793 | Q91: -0.1116790118
A92: 2092 | B92: 1.2 | C92: 0.02977398674 | D92: 0.02481165561 | E92: 4 | F92: 0.01371397416 | G92: 0.003428493541 | H92: 1.7 | I92: 0.001078929525 | J92: 0.0006346644265 | K92: 6.9 | L92: 0.04456689042 | M92: 0.006458969627 | N92: -0.1075928774 | O92: -0.1037587416 | P92: -0.1154766563 | Q92: -0.1118246548
A93: 2093 | B93: 1.2 | C93: 0.0266805764 | D93: 0.02223381367 | E93: 4 | F93: 0.01212836331 | G93: 0.003032090826 | H93: 1.7 | I93: 0.0009581254381 | J93: 0.0005636031989 | K93: 6.9 | L93: 0.03976706514 | M93: 0.005763342774 | N93: -0.1076993534 | O93: -0.1038964101 | P93: -0.1156200849 | Q93: -0.1119666152
A94: 2094 | B94: 1.2 | C94: 0.02390497715 | D94: 0.01992081429 | E94: 4 | F94: 0.0107243851 | G94: 0.002681096275 | H94: 1.7 | I94: 0.0008507147562 | J94: 0.0005004204448 | K94: 6.9 | L94: 0.03548007701 | M94: 0.005142040146 | N94: -0.1078024773 | O94: -0.104030708 | P94: -0.1157599067 | Q94: -0.1121050309
A95: 2095 | B95: 1.2 | C95: 0.02141499272 | D95: 0.01784582726 | E95: 4 | F95: 0.009481469021 | G95: 0.002370367255 | H95: 1.7 | I95: 0.0007552305038 | J95: 0.0004442532375 | K95: 6.9 | L95: 0.03165169224 | M95: 0.004587201774 | N95: -0.1079023803 | O95: -0.1041617575 | P95: -0.1158962559 | Q95: -0.1122400331
A96: 2096 | B96: 1.2 | C96: 0.01918163009 | D96: 0.01598469174 | E96: 4 | F96: 0.008381341184 | G96: 0.002095335296 | H96: 1.7 | I96: 0.0006703639331 | J96: 0.0003943317253 | K96: 6.9 | L96: 0.0282333352 | M96: 0.004091787711 | N96: -0.1079991873 | O96: -0.104289675 | P96: -0.1160292603 | Q96: -0.1123717465
A97: 2097 | B97: 1.2 | C97: 0.0171787884 | D97: 0.014315657 | E97: 4 | F97: 0.007407772624 | G97: 0.001851943156 | H97: 1.7 | I97: 0.0005949477963 | J97: 0.0003499692919 | K97: 6.9 | L97: 0.02518150882 | M97: 0.003649494032 | N97: -0.108093017 | O97: -0.1044145715 | P97: -0.1161590416 | Q97: -0.1125002898
A98: 2098 | B98: 1.2 | C98: 0.01538297708 | D98: 0.01281914757 | E98: 4 | F98: 0.006546354484 | G98: 0.001636588621 | H98: 1.7 | I98: 0.000527941339 | J98: 0.0003105537288 | K98: 6.9 | L98: 0.0224572729 | M98: 0.003254677233 | N98: -0.1081839828 | O98: -0.1045365527 | P98: -0.1162857155 | Q98: -0.1126257762
A99: 2099 | B99: 1.2 | C99: 0.01377306054 | D99: 0.01147755045 | E99: 4 | F99: 0.005784297337 | G99: 0.001446074334 | H99: 1.7 | I99: 0.0004684168435 | J99: 0.0002755393197 | K99: 6.9 | L99: 0.02002577473 | M99: 0.002902286192 | N99: -0.1082721927 | O99: -0.1046557197 | P99: -0.1164093923 | Q99: -0.1127483133
A100: 2100 | B100: 1.2 | C100: 0.01233002712 | D100: 0.0102750226 | E100: 4 | F100: 0.005110252145 | G100: 0.001277563036 | H100: 1.7 | I100: 0.0004155475693 | J100: 0.0002444397467 | K100: 6.9 | L100: 0.01785582684 | M100: 0.002587800991 | N100: -0.1083577498 | O100: -0.1047721685 | P100: -0.116530177 | Q100: -0.112868004
A101: ∑ | C101: =SUM(C51:C100) -> 22.55188493 | F101: =SUM(F51:F100) -> 15.80726465 | I101: =SUM(I51:I100) -> 1.088730627 | L101: =SUM(L51:L100) -> 39.4478802
A102: Rest | C102: =C$11*EXP(-C$8*($A100-$A$11))/C$8^2*((C$7*C$8+C$8^2)*($A100-$A$11)+2*C$8+C$7) -> 0.1043389375 | F102: =F$11*EXP(-F$8*($A100-$A$11))/F$8^2*((F$7*F$8+F$8^2)*($A100-$A$11)+2*F$8+F$7) -> 0.03842108322 | I102: =I$11*EXP(-I$8*($A100-$A$11))/I$8^2*((I$7*I$8+I$8^2)*($A100-$A$11)+2*I$8+I$7) -> 0.003237731454 | L102: =I102+F102+C102 -> 0.1459977521
A103: ∑ | C103: =SUM(C101:C102) -> 22.65622386 | F103: =SUM(F101:F102) -> 15.84568573 | I103: =SUM(I101:I102) -> 1.091968358 | L103: =SUM(L101:L102) -> 39.59387795
A105: ∑ | C105: =C103+C43 -> 344.2146207 | F105: =F103+F43 -> 319.627862 | I105: =I103+I43 -> 20.12372268 | L105: =SUM(C105:I105) -> 683.9662054
J107: global path: | L107: ='global path'!C89 -> 683.9662054
L108: =L105-L107 -> 0

Sheet SPF-spk
A1: Smooth Pathways Formula - equity (spk variabel); free input weighting population
A2: =CONCATENATE("SPF-",ROUND(W8*100,0)) -> SPF-50 | B2: ='SPF-eq'!B2 -> Smooth Pathways Formula; based on: Raupach et al. (2014) / Sharing a quota on cumulative carbon emissions / nature climate change DOI: 10.1038/NCLIMATE2384
B4: Country A | E4: Country B | H4: Country C | K4: Global | S4: Description | W4: input value
B5: RBA: | C5: =W8*'global path'!C89/K11*B11+(1-W8)*'global path'!C89*C11/L11 -> 231.5826325 | D5: Gt | E5: RBB: | F5: =W8*'global path'!C89/K11*E11+(1-W8)*'global path'!C89*F11/L11 -> 358.065005 | G5: Gt | H5: RBC: | I5: =W8*'global path'!C89/K11*H11+(1-W8)*'global path'!C89*I11/L11 -> 94.3185678 | J5: Gt | K5: RB: | L5: =C5+F5+I5 -> 683.9662054 | M5: Gt | S5: Raupach et al. have developed a formula to convert a budget of a country or global into a smooth emission pathway.
B6: TA | C6: =C5/C11 -> 11.02774441 | E6: TB | F6: =F5/F11 -> 18.36230795 | H6: TC | I6: =I5/I11 -> 76.8243496 | K6: Global path ist different to the path in sheet "global path".
B7: rA | C7: ='SPF-eq'!C7 -> 0 | E7: rB | F7: ='SPF-eq'!F7 -> 0.03 | H7: rC | I7: ='SPF-eq'!I7 -> 0.02
B8: mA | C8: =(1+SQRT(1+C7*C6))/C6 -> 0.1813607503 | E8: mB | F8: =(1+SQRT(1+F7*F6))/F6 -> 0.1222797816 | H8: mC | I8: =(1+SQRT(1+I7*I6))/I6 -> 0.03374757155 | S8: share population key: | W8: 0.5 | Y8: =B11/K11 -> 0.1739130435 | Z8: =C11/L11 -> 0.5032626144
A9: Year t | B9: Popu-lation Pit | C9: Eit | D9: Per capita | E9: Popu-lation Pit | F9: Eit | G9: Per capita | H9: Popu-lation Pit | I9: Eit | J9: Per capita | K9: Popu-lation Pt | L9: Et | M9: Per capita | S9: Limitations
B10: bn | C10: Gt | D10: t | E10: bn | F10: Gt | G10: t | H10: bn | I10: Gt | J10: t | K10: bn | L10: Gt | M10: t | O10: A | P10: B | Q10: C | S10: - | T10: The resulting global pathway ist different to the pathway in sheet "global path". So this model is comparable with the other models to a limited extent only.
A11: 2019 | B11: =RF!B9 -> 1.2 | C11: =RF!C9 -> 21 | D11: =C11/B11 -> 17.5 | E11: =RF!E9 -> 4 | F11: =RF!F9 -> 19.5 | G11: =F11/E11 -> 4.875 | H11: =K11-E11-B11 -> 1.7 | I11: ='global path'!$C$7-C11-F11 -> 1.227717101 | J11: =I11/H11 -> 0.7221865302 | K11: =RF!K9 -> 6.9 | L11: =I11+F11+C11 -> 41.7277171 | M11: =L11/K11 -> 6.047495232 | N11: annual change rates | S11: - | T11: The per capita emissions converge far into the future; as you can see on the remaining budgets as of 2051. So this model is comparable with the other models to a limited extent only.
A12: =A11+1 -> 2020 | B12: =B$11*(B$42/B$11)^(($A12-2019)/31) -> 1.2 | C12: =-C$11*EXP(-C$8*($A12-$A$11))/C$8^2*((C$7*C$8+C$8^2)*($A12-$A$11)+2*C$8+C$7) +C$11*EXP(-C$8*($A11-$A$11))/C$8^2*((C$7*C$8+C$8^2)*($A11-$A$11)+2*C$8+C$7) -> 20.89477238 | D12: =C12/B12 -> 17.41231032 | E12: =E$11*(E$42/E$11)^(($A12-2019)/31) -> 4 | F12: =-F$11*EXP(-F$8*($A12-$A$11))/F$8^2*((F$7*F$8+F$8^2)*($A12-$A$11)+2*F$8+F$7) +F$11*EXP(-F$8*($A11-$A$11))/F$8^2*((F$7*F$8+F$8^2)*($A11-$A$11)+2*F$8+F$7) -> 19.72398395 | G12: =F12/E12 -> 4.930995989 | H12: =H$11*(H$42/H$11)^(($A12-2019)/31) -> 1.7 | I12: =-I$11*EXP(-I$8*($A12-$A$11))/I$8^2*((I$7*I$8+I$8^2)*($A12-$A$11)+2*I$8+I$7) +I$11*EXP(-I$8*($A11-$A$11))/I$8^2*((I$7*I$8+I$8^2)*($A11-$A$11)+2*I$8+I$7) -> 1.239492372 | J12: =I12/H12 -> 0.7291131601 | K12: =B12+E12+H12 -> 6.9 | L12: =I12+F12+C12 -> 41.85824871 | M12: =L12/K12 -> 6.066412856 | N12: =L12/L11-1 -> 0.003128175142 | O12: =C12/C11-1 -> -0.005010838969 | P12: =F12/F11-1 -> 0.01148635666 | Q12: =I12/I11-1 -> 0.009591192297
A13: =A12+1 -> 2021 | B13: 1.2 | C13: =-C$11*EXP(-C$8*($A13-$A$11))/C$8^2*((C$7*C$8+C$8^2)*($A13-$A$11)+2*C$8+C$7) +C$11*EXP(-C$8*($A12-$A$11))/C$8^2*((C$7*C$8+C$8^2)*($A12-$A$11)+2*C$8+C$7) -> 20.33448661 | D13: 16.94540551 | E13: 4 | F13: =-F$11*EXP(-F$8*($A13-$A$11))/F$8^2*((F$7*F$8+F$8^2)*($A13-$A$11)+2*F$8+F$7) +F$11*EXP(-F$8*($A12-$A$11))/F$8^2*((F$7*F$8+F$8^2)*($A12-$A$11)+2*F$8+F$7) -> 19.92713917 | G13: 4.981784792 | H13: 1.7 | I13: =-I$11*EXP(-I$8*($A13-$A$11))/I$8^2*((I$7*I$8+I$8^2)*($A13-$A$11)+2*I$8+I$7) +I$11*EXP(-I$8*($A12-$A$11))/I$8^2*((I$7*I$8+I$8^2)*($A12-$A$11)+2*I$8+I$7) -> 1.261093054 | J13: 0.7418194437 | K13: =B13+E13+H13 -> 6.9 | L13: =I13+F13+C13 -> 41.52271884 | M13: 6.017785339 | N13: =L13/L12-1 -> -0.00801586022 | O13: =C13/C12-1 -> -0.0268146385 | P13: =F13/F12-1 -> 0.01029990774 | Q13: =I13/I12-1 -> 0.01742703924 | S13: Simplification
A14: 2022 | B14: 1.2 | C14: 19.38522067 | D14: 16.15435056 | E14: 4 | F14: 19.82222825 | G14: 4.955557063 | H14: 1.7 | I14: 1.279895181 | J14: 0.7528795185 | K14: 6.9 | L14: 40.48734411 | M14: 5.86773103 | N14: -0.02493513812 | O14: -0.04668256233 | P14: -0.005264725493 | Q14: 0.01490938911 | T14: We assumed that the emission power at the end of the base year are the emissions in the base year divided by one year.
A15: 2023 | B15: 1.2 | C15: 18.19142568 | D15: 15.1595214 | E15: 4 | F15: 19.47747619 | G15: 4.869369048 | H15: 1.7 | I15: =-I$11*EXP(-I$8*($A15-$A$11))/I$8^2*((I$7*I$8+I$8^2)*($A15-$A$11)+2*I$8+I$7) +I$11*EXP(-I$8*($A14-$A$11))/I$8^2*((I$7*I$8+I$8^2)*($A14-$A$11)+2*I$8+I$7) -> 1.296060704 | J15: 0.7623886492 | K15: 6.9 | L15: 38.96496258 | M15: 5.647096025 | N15: -0.0376014176 | O15: -0.0615827396 | P15: -0.01739219498 | Q15: 0.01263034851
A16: 2024 | B16: 1.2 | C16: 16.86033518 | D16: 14.05027932 | E16: 4 | F16: 18.94948391 | G16: 4.737370976 | H16: 1.7 | I16: 1.309743905 | J16: 0.7704375909 | K16: 6.9 | L16: 37.11956299 | M16: 5.37964681 | N16: -0.04736048651 | O16: -0.0731713127 | P16: -0.02710783899 | Q16: 0.01055753091 | S16: Input values
A17: 2025 | B17: 1.2 | C17: 15.47033736 | D17: 12.8919478 | E17: 4 | F17: 18.28500023 | G17: 4.571250057 | H17: 1.7 | I17: 1.321091732 | J17: 0.7771127833 | K17: 6.9 | L17: 35.07642932 | M17: 5.083540481 | N17: -0.05504196452 | O17: -0.0824418854 | P17: -0.03506605661 | Q17: 0.008664157235 | S17: - | T17: reduction rate at the beginnging of 2020 for each country
A18: 2026 | B18: 1.2 | C18: 14.07759378 | D18: 11.73132815 | E18: 4 | F18: 17.52244003 | G18: 4.380610008 | H18: 1.7 | I18: 1.330244113 | J18: 0.7824965372 | K18: 6.9 | L18: 32.93027792 | M18: 4.772504047 | N18: -0.06118500196 | O18: -0.09002671048 | P18: -0.04170413925 | Q18: 0.006927892534 | S18: - | T18: Share that is distributed over the population key
A19: 2027 | B19: 1.2 | C19: 12.72125608 | D19: 10.60104673 | E19: 4 | F19: 16.69318336 | G19: 4.173295839 | H19: 1.7 | I19: 1.337334262 | J19: 0.7866672131 | K19: 6.9 | L19: 30.75177369 | M19: 4.456778796 | N19: -0.06615505149 | O19: -0.09634726815 | P19: -0.04732541111 | Q19: 0.00532996085
A20: 2028 | B20: 1.2 | C20: 11.42756361 | D20: 9.522969677 | E20: 4 | F20: 15.8226859 | G20: 3.955671474 | H20: 1.7 | I20: 1.342488968 | J20: 0.7896993931 | K20: 6.9 | L20: 28.59273848 | M20: 4.143875142 | N20: -0.07020847764 | O20: -0.1016953401 | P20: -0.05214688176 | Q20: 0.003854463469
A21: 2029 | B21: 1.2 | C21: 10.21304976 | D21: 8.510874797 | E21: 4 | F21: 14.93142708 | G21: 3.73285677 | H21: 1.7 | I21: 1.345828877 | J21: 0.7916640453 | K21: 6.9 | L21: 26.49030571 | M21: 3.839174741 | N21: -0.0735303044 | O21: -0.1062793345 | P21: -0.05632790936 | Q21: 0.002487848118
A22: 2030 | B22: 1.2 | C22: 9.087039784 | D22: 7.572533153 | E22: 4 | F22: 14.03571835 | G22: 3.508929586 | H22: 1.7 | I22: 1.347468758 | J22: 0.7926286812 | K22: 6.9 | L22: 24.47022689 | M22: 3.546409694 | N22: -0.07625728625 | O22: -0.1102520794 | P22: -0.05998815314 | Q22: 0.001218491489
A23: 2031 | B23: 1.2 | C23: 8.053587171 | D23: 6.711322642 | E23: 4 | F23: 13.14839131 | G23: 3.287097827 | H23: 1.7 | I23: 1.347517762 | J23: 0.7926575073 | K23: 6.9 | L23: 22.54949624 | M23: 3.268042934 | N23: -0.07849255563 | O23: -0.1137281929 | P23: -0.06321921077 | Q23: 3.636783372e-05
A24: 2032 | B24: 1.2 | C24: 7.112965862 | D24: 5.927471552 | E24: 4 | F24: 12.27938272 | G24: 3.06984568 | H24: 1.7 | I24: 1.346079669 | J24: 0.7918115703 | K24: 6.9 | L24: 20.73842825 | M24: 3.005569312 | N24: -0.08031523065 | O24: -0.1167953222 | P24: -0.06609238877 | Q24: -0.001067216391
A25: 2033 | B25: 1.2 | C25: 6.262812545 | D25: 5.219010454 | E25: 4 | F25: 11.43623086 | G25: 2.859057715 | H25: 1.7 | I25: 1.343253122 | J25: 0.7901488953 | K25: 6.9 | L25: 19.04229653 | M25: 2.75975312 | N25: -0.08178689838 | O25: -0.119521636 | P25: -0.06866402641 | Q25: -0.002099836684
A26: 2034 | B26: 1.2 | C26: 5.498993972 | D26: 4.582494977 | E26: 4 | F26: 10.62449603 | G26: 2.656124009 | H26: 1.7 | I26: 1.339131854 | J26: 0.78772462 | K26: 6.9 | L26: 17.46262186 | M26: 2.530814762 | N26: -0.08295610061 | O26: -0.1219609509 | P26: -0.07097922693 | Q26: -0.003068124634
A27: 2035 | B27: 1.2 | C27: 4.816259122 | D27: 4.013549268 | E27: 4 | F27: 9.848116027 | G27: 2.462029007 | H27: 1.7 | I27: 1.333804907 | J27: 0.784591122 | K27: 6.9 | L27: 15.99818006 | M27: 2.31857682 | N27: -0.08386150811 | O27: -0.1241563191 | P27: -0.07307452561 | Q27: -0.003977910495
A28: 2036 | B28: 1.2 | C28: 4.20872371 | D28: 3.507269758 | E28: 4 | F28: 9.109705941 | G28: 2.277426485 | H28: 1.7 | I28: 1.32735684 | J28: 0.7807981412 | K28: 6.9 | L28: 14.64578649 | M28: 2.122577752 | N28: -0.08453421324 | O28: -0.1261425925 | P28: -0.07497983202 | Q28: -0.004834340673
A29: 2037 | B29: 1.2 | C29: 3.670224728 | D29: 3.058520607 | E29: 4 | F29: 8.410810515 | G29: 2.102702629 | H29: 1.7 | I29: 1.319867926 | J29: 0.7763928975 | K29: 6.9 | L29: 13.40090317 | M29: 1.942159879 | N29: -0.08499941768 | O29: -0.1279482853 | P29: -0.07671986684 | Q29: -0.005641975137
A30: 2038 | B30: 1.2 | C30: 3.194574786 | D30: 2.662145655 | E30: 4 | F30: 7.752115868 | G30: 1.938028967 | H30: 1.7 | I30: 1.311414345 | J30: 0.771420203 | K30: 6.9 | L30: 12.258105 | M30: 1.776536956 | N30: -0.08527769771 | O30: -0.129596953 | P30: -0.07831524036 | Q30: -0.00640486863
A31: 2039 | B31: 1.2 | C31: 2.775739757 | D31: 2.313116464 | E31: 4 | F31: 7.133626694 | G31: 1.783406673 | H31: 1.7 | I31: 1.302068369 | J31: 0.7659225699 | K31: 6.9 | L31: 11.21143482 | M31: 1.624845626 | N31: -0.08538596947 | O31: -0.1311082247 | P31: -0.07978327266 | Q31: -0.007126638759
A32: 2040 | B32: 1.2 | C32: 2.407958157 | D32: 2.006631797 | E32: 4 | F32: 6.554814032 | G32: 1.638703508 | H32: 1.7 | I32: 1.291898533 | J32: 0.7599403137 | K32: 6.9 | L32: 10.25467072 | M32: 1.486184163 | N32: -0.08533823837 | O32: -0.1324985887 | P32: -0.08113862501 | Q32: -0.007810523357
A33: 2041 | B33: 1.2 | C33: 2.085816707 | D33: 1.738180589 | E33: 4 | F33: 6.014738054 | G33: 1.503684513 | H33: 1.7 | I33: 1.280969809 | J33: 0.7535116526 | K33: 6.9 | L33: 9.38152457 | M33: 1.359641242 | N33: -0.08514619104 | O33: -0.1337819965 | P33: -0.08239379119 | Q33: -0.008459429042
A34: 2042 | B34: 1.2 | C34: 1.804293332 | D34: 1.503577777 | E34: 4 | F34: 5.512149647 | G34: 1.378037412 | H34: 1.7 | I34: 1.269343763 | J34: 0.7466728015 | K34: 6.9 | L34: 8.585786742 | M34: 1.244316919 | N34: -0.08481967109 | O34: -0.1349703328 | P34: -0.08355948373 | Q34: -0.009075972517
A35: 2043 | B35: 1.2 | C35: 1.558776311 | D35: 1.298980259 | E35: 4 | F35: 5.045574068 | G35: 1.261393517 | H35: 1.7 | I35: 1.257078708 | J35: 0.7394580638 | K35: 6.9 | L35: 7.861429088 | M35: 1.139337549 | N35: -0.08436706805 | O35: -0.1360737841 | P35: -0.08464494048 | Q35: -0.009662515832
A36: 2044 | B36: 1.2 | C36: 1.345066314 | D36: 1.120888595 | E36: 4 | F36: 4.613379428 | G36: 1.153344857 | H36: 1.7 | I36: 1.24422986 | J36: 0.7318999175 | K36: 6.9 | L36: 7.202675601 | M36: 1.043866029 | N36: -0.08379564058 | O36: -0.1371011321 | P36: -0.08565816989 | Q36: -0.01022119663
A37: 2045 | B37: 1.2 | C37: 1.159366475 | D37: 0.9661387295 | E37: 4 | F37: 4.213832402 | G37: 1.0534581 | H37: 1.7 | I37: 1.230849469 | J37: 0.7240290993 | K37: 6.9 | L37: 6.604048346 | M37: 0.957108456 | N37: -0.08311178905 | O37: -0.1380599874 | P37: -0.08660614895 | Q37: -0.01075395418
A38: 2046 | B38: 1.2 | C38: 0.9982644128 | D38: 0.8318870107 | E38: 4 | F38: 3.845143203 | G38: 0.9612858008 | H38: 1.7 | I38: 1.216986963 | J38: 0.715874684 | K38: 6.9 | L38: 6.060394579 | M38: 0.8783180549 | N38: -0.08232128823 | O38: -0.1389569787 | P38: -0.08749498406 | Q38: -0.01126255185
A39: 2047 | B39: 1.2 | C39: 0.8587091385 | D39: 0.7155909487 | E39: 4 | F39: 3.50550154 | G39: 0.8763753849 | H39: 1.7 | I39: 1.202689074 | J39: 0.7074641611 | K39: 6.9 | L39: 5.566899752 | M39: 0.8067970655 | N39: -0.08142948785 | O39: -0.1397979058 | P39: -0.08833004273 | Q39: -0.01174859664
A40: 2048 | B40: 1.2 | C40: 0.7379850534 | D40: 0.6149875445 | E40: 4 | F40: 3.193105047 | G40: 0.7982762617 | H40: 1.7 | I40: 1.187999963 | J40: 0.6988235079 | K40: 6.9 | L40: 5.119090064 | M40: 0.7418971107 | N40: -0.08044148596 | O40: -0.1405878657 | P40: -0.08911606204 | Q40: -0.01221355612
A41: 2049 | B41: 1.2 | C41: 0.6336846253 | D41: 0.5280705211 | E41: 4 | F41: 2.906181445 | G41: 0.7265453612 | H41: 1.7 | I41: 1.172961341 | J41: 0.6899772596 | K41: 6.9 | L41: 4.712827411 | M41: 0.6830184654 | N41: -0.07936227868 | O41: -0.1413313558 | P41: -0.08985723858 | Q41: -0.01265877322
A42: =A41+1 -> 2050 | B42: =RF!B40 -> 1.2 | C42: 0.543680903 | D42: 0.4530674192 | E42: =RF!E40 -> 4 | F42: 2.64300549 | G42: 0.6607513725 | H42: =K42-E42-B42 -> 1.7 | I42: 1.15761258 | J42: 0.6809485765 | K42: =RF!K40 -> 6.9 | L42: 4.344298973 | M42: 0.6296085468 | N42: -0.07819688821 | O42: -0.1420323591 | P42: -0.09055730336 | Q42: -0.0130854792
A43: ∑ | C43: =SUM(C12:C42) -> 228.390564 | F43: =SUM(F12:F42) -> 332.9810667 | I43: =SUM(I12:I42) -> 39.89385678 | L43: =SUM(L12:L42) -> 601.2654875
A44: Rest | C44: =C$11*EXP(-C$8*($A42-$A$11))/C$8^2*((C$7*C$8+C$8^2)*($A42-$A$11)+2*C$8+C$7) -> 3.192068563 | F44: =F$11*EXP(-F$8*($A42-$A$11))/F$8^2*((F$7*F$8+F$8^2)*($A42-$A$11)+2*F$8+F$7) -> 25.08393831 | I44: =I$11*EXP(-I$8*($A42-$A$11))/I$8^2*((I$7*I$8+I$8^2)*($A42-$A$11)+2*I$8+I$7) -> 54.42471102 | L44: 82.70071789
A45: ∑ | C45: =SUM(C43:C44) -> 231.5826325 | F45: =SUM(F43:F44) -> 358.065005 | I45: =SUM(I43:I44) -> 94.3185678 | L45: =SUM(L43:L44) -> 683.9662054
F47: global path 2020 - 2100 sheet "global path": | L47: ='global path'!C89 -> 683.9662054
L48: =L45-L47 -> 0
A51: =A42+1 -> 2051 | B51: =B42 -> 1.2 | C51: =-C$11*EXP(-C$8*($A51-$A$11))/C$8^2*((C$7*C$8+C$8^2)*($A51-$A$11)+2*C$8+C$7) +C$11*EXP(-C$8*($A42-$A$11))/C$8^2*((C$7*C$8+C$8^2)*($A42-$A$11)+2*C$8+C$7) -> 0.4661006738 | D51: =C51/B51 -> 0.3884172281 | E51: =E42 -> 4 | F51: =-F$11*EXP(-F$8*($A51-$A$11))/F$8^2*((F$7*F$8+F$8^2)*($A51-$A$11)+2*F$8+F$7) +F$11*EXP(-F$8*($A42-$A$11))/F$8^2*((F$7*F$8+F$8^2)*($A42-$A$11)+2*F$8+F$7) -> 2.401911627 | G51: =F51/E51 -> 0.6004779068 | H51: =H42 -> 1.7 | I51: =-I$11*EXP(-I$8*($A51-$A$11))/I$8^2*((I$7*I$8+I$8^2)*($A51-$A$11)+2*I$8+I$7) +I$11*EXP(-I$8*($A42-$A$11))/I$8^2*((I$7*I$8+I$8^2)*($A42-$A$11)+2*I$8+I$7) -> 1.141990824 | J51: =I51/H51 -> 0.6717593082 | K51: =B51+E51+H51 -> 6.9 | L51: =I51+F51+C51 -> 4.010003125 | M51: =L51/K51 -> 0.5811598732 | N51: =L51/L42-1 -> -0.07695047014 | O51: =C51/C42-1 -> -0.1426944166 | P51: =F51/F42-1 -> -0.09121958467 | Q51: =I51/I42-1 -> -0.01349480504
A52: =A51+1 -> 2052 | B52: =B51 -> 1.2 | C52: =-C$11*EXP(-C$8*($A52-$A$11))/C$8^2*((C$7*C$8+C$8^2)*($A52-$A$11)+2*C$8+C$7) +C$11*EXP(-C$8*($A51-$A$11))/C$8^2*((C$7*C$8+C$8^2)*($A51-$A$11)+2*C$8+C$7) -> 0.3992988055 | D52: 0.3327490046 | E52: =E51 -> 4 | F52: =-F$11*EXP(-F$8*($A52-$A$11))/F$8^2*((F$7*F$8+F$8^2)*($A52-$A$11)+2*F$8+F$7) +F$11*EXP(-F$8*($A51-$A$11))/F$8^2*((F$7*F$8+F$8^2)*($A51-$A$11)+2*F$8+F$7) -> 2.181303103 | G52: 0.5453257759 | H52: =H51 -> 1.7 | I52: =-I$11*EXP(-I$8*($A52-$A$11))/I$8^2*((I$7*I$8+I$8^2)*($A52-$A$11)+2*I$8+I$7) +I$11*EXP(-I$8*($A51-$A$11))/I$8^2*((I$7*I$8+I$8^2)*($A51-$A$11)+2*I$8+I$7) -> 1.126131094 | J52: 0.6624300551 | K52: 6.9 | L52: 3.706733003 | M52: 0.5372076815 | N52: =L52/L51-1 -> -0.07562840048 | O52: =C52/C51-1 -> -0.1433206859 | P52: =F52/F51-1 -> -0.09184706098 | Q52: =I52/I51-1 -> -0.01388779139
A53: =A52+1 -> 2053 | B53: =B52 -> 1.2 | C53: 0.3418341202 | D53: 0.2848617668 | E53: =E52 -> 4 | F53: 1.979658197 | G53: 0.4949145492 | H53: =H52 -> 1.7 | I53: 1.110066386 | J53: 0.652980227 | K53: 6.9 | L53: 3.431558703 | M53: 0.4973273483 | N53: -0.07423634216 | O53: -0.1439139926 | P53: -0.0924424057 | Q53: -0.01426539748
A54: 2054 | B54: 1.2 | C54: 0.2924469956 | D54: 0.2437058297 | E54: 4 | F54: 1.795534097 | G54: 0.4488835243 | H54: 1.7 | I54: 1.09382777 | J54: 0.6434281 | K54: 6.9 | L54: 3.181808863 | M54: 0.4611317193 | N54: -0.07278029078 | O54: -0.1444768724 | P54: -0.09300802531 | Q54: -0.01462850888
A55: 2055 | B55: 1.2 | C55: 0.2500387867 | D55: 0.2083656556 | E55: 4 | F55: 1.6275689 | G55: 0.4068922249 | H55: 1.7 | I55: 1.077444478 | J55: 0.6337908696 | K55: 6.9 | L55: 2.955052165 | M55: 0.4282684297 | N55: -0.07126659952 | O55: -0.1450116073 | P55: -0.0935460918 | Q55: -0.01497794446
A56: 2056 | B56: 1.2 | C56: 0.2136530783 | D56: 0.1780442319 | E56: 4 | F56: 1.474482096 | G56: 0.3686205239 | H56: 1.7 | I56: 1.060943995 | J56: 0.6240847031 | K56: 6.9 | L56: 2.749079169 | M56: 0.3984172709 | N56: -0.06970198303 | O56: -0.1455202568 | P56: -0.09405857061 | Q56: -0.01531446254
A57: 2057 | B57: 1.2 | C57: 0.182458728 | D57: 0.15204894 | E57: 4 | F57: 1.335073876 | G57: 0.3337684691 | H57: 1.7 | I57: 1.04435214 | J57: 0.6143247882 | K57: 6.9 | L57: 2.561884744 | M57: 0.3712876441 | N57: -0.06809350088 | O57: -0.1460046842 | P57: -0.09454724456 | Q57: -0.01563876641
A58: 2058 | B58: 1.2 | C58: 0.1557346223 | D58: 0.1297788519 | E58: 4 | F58: 1.208223521 | G58: 0.3020558803 | H58: 1.7 | I58: 1.027693147 | J58: 0.6045253807 | K58: 6.9 | L58: 2.391651291 | M58: 0.3466161291 | N58: -0.06644852151 | O58: -0.1464665794 | P58: -0.09501373464 | Q58: -0.01595150919
A59: 2059 | B59: 1.2 | C59: 0.1328560415 | D59: 0.1107133679 | E59: 4 | F59: 1.092887086 | G59: 0.2732217716 | H59: 1.7 | I59: 1.010989744 | J59: 0.5946998494 | K59: 6.9 | L59: 2.236732872 | M59: 0.3241641843 | N59: -0.06477466821 | O59: -0.1469074788 | P59: -0.0954595179 | Q59: -0.01625329827
A60: 2060 | B60: 1.2 | C60: 0.1132825227 | D60: 0.09440210227 | E60: 4 | F60: 0.9880945774 | G60: 0.2470236443 | H60: 1.7 | I60: 0.9942632227 | J60: 0.5848607193 | K60: 6.9 | L60: 2.095640323 | M60: 0.3037159888 | N60: -0.06307974941 | O60: -0.1473287822 | P60: -0.09588594313 | Q60: -0.01654469922
A61: 2061 | B61: 1.2 | C61: 0.09654709542 | D61: 0.08045591285 | E61: 4 | F61: 0.8929467566 | G61: 0.2232366891 | H61: 1.7 | I61: 0.9775335118 | J61: 0.5750197128 | K61: 6.9 | L61: 1.967027364 | M61: 0.2850764295 | N61: -0.06137167607 | O61: -0.1477317675 | P61: -0.09629424446 | Q61: -0.01682623934
A62: 2062 | B62: 1.2 | C62: 0.08224677096 | D62: 0.0685389758 | E62: 4 | F62: 0.8066117054 | G62: 0.2016529263 | H62: 1.7 | I62: 0.9608192422 | J62: 0.5651877895 | K62: 6.9 | L62: 1.849677719 | M62: 0.2680692346 | N62: -0.05965836948 | O62: -0.1481176041 | P62: -0.0966855533 | Q62: -0.01709841082
A63: 2063 | B63: 1.2 | C63: 0.07003416477 | D63: 0.05836180398 | E63: 4 | F63: 0.7283212402 | G63: 0.18208031 | H63: 1.7 | I63: 0.9441378121 | J63: 0.5553751836 | K63: 6.9 | L63: 1.742493217 | M63: 0.2525352488 | N63: -0.0579476632 | O63: -0.1484873637 | P63: -0.09706090879 | Q63: -0.01736167363
A64: 2064 | B64: 1.2 | C64: 0.05961013747 | D64: 0.04967511456 | E64: 4 | F64: 0.6573672621 | G64: 0.1643418155 | H64: 1.7 | I64: 0.9275054479 | J64: 0.5455914399 | K64: 6.9 | L64: 1.644482847 | M64: 0.2383308475 | N64: -0.05624720294 | O64: -0.1488420307 | P64: -0.09742126707 | Q64: -0.01761645814
A65: 2065 | B65: 1.2 | C65: 0.0507173475 | D65: 0.04226445625 | E65: 4 | F65: 0.5930981022 | G65: 0.1482745255 | H65: 1.7 | I65: 0.9109372628 | J65: 0.5358454487 | K65: 6.9 | L65: 1.554752712 | M65: 0.2253264801 | N65: -0.05456434839 | O65: -0.1491825107 | P65: -0.09776750934 | Q65: -0.01786316742
A66: 2066 | B66: 1.2 | C66: 0.04313461523 | D66: 0.03594551269 | E66: 4 | F66: 0.534914912 | G66: 0.133728728 | H66: 1.7 | I66: 0.894447313 | J66: 0.5261454782 | K66: 6.9 | L66: 1.47249684 | M66: 0.2134053392 | N66: -0.05290608051 | O66: -0.1495096382 | P66: -0.09810044909 | Q66: -0.01810217938
A67: 2067 | B67: 1.2 | C67: 0.03667200672 | D67: 0.0305600056 | E67: 4 | F67: 0.4822681378 | G67: 0.1205670345 | H67: 1.7 | I67: 0.8780486513 | J67: 0.5164992066 | K67: 6.9 | L67: 1.396988796 | M67: 0.2024621443 | N67: -0.05127891778 | O67: -0.1498241835 | P67: -0.0984208385 | Q67: -0.01833384872
A68: 2068 | B68: 1.2 | C68: 0.03116655354 | D68: 0.02597212795 | E68: 4 | F68: 0.4346541065 | G68: 0.1086635266 | H68: 1.7 | I68: 0.8617533778 | J68: 0.5069137516 | K68: 6.9 | L68: 1.327574038 | M68: 0.1924020345 | N68: -0.04968884382 | O68: -0.150126859 | P68: -0.09872937408 | Q68: -0.01855850869
A69: 2069 | B69: 1.2 | C69: 0.02647853279 | D69: 0.02206544399 | E69: 4 | F69: 0.3916117439 | G69: 0.09790293598 | H69: 1.7 | I69: 0.8455726891 | J69: 0.4973956994 | K69: 6.9 | L69: 1.263662966 | M69: 0.1831395603 | N69: -0.04814124878 | O69: -0.150418324 | P69: -0.09902670172 | Q69: -0.01877647265
A70: 2070 | B70: 1.2 | C70: 0.02248823935 | D70: 0.01874019945 | E70: 4 | F70: 0.3527194418 | G70: 0.08817986045 | H70: 1.7 | I70: 0.8295169248 | J70: 0.4879511322 | K70: 6.9 | L70: 1.204724606 | M70: 0.174597769 | N70: -0.04664088561 | O70: -0.15069919 | P70: -0.09931342126 | Q70: -0.01898803557
A71: 2071 | B71: 1.2 | C71: 0.01909318929 | D71: 0.01591099108 | E71: 4 | F71: 0.3175920807 | G71: 0.07939802017 | H71: 1.7 | I71: 0.8135956121 | J71: 0.4785856542 | K71: 6.9 | L71: 1.150280882 | M71: 0.1667073742 | N71: -0.04519184181 | O71: -0.1509700249 | P71: -0.09959009046 | Q71: -0.01919347534
A72: 2072 | B72: 1.2 | C72: 0.01620570037 | D72: 0.01350475031 | E72: 4 | F72: 0.2858782157 | G72: 0.07146955392 | H72: 1.7 | I72: 0.7978175085 | J72: 0.4693044167 | K72: 6.9 | L72: 1.099901425 | M72: 0.1594060036 | N72: -0.04379752664 | O72: -0.1512313566 | P72: -0.09985722865 | Q72: -0.019393054
A73: 2073 | B73: 1.2 | C73: 0.0137508013 | D73: 0.01145900108 | E73: 4 | F73: 0.2572574266 | G73: 0.06431435666 | H73: 1.7 | I73: 0.7821906419 | J73: 0.4601121423 | K73: 6.9 | L73: 1.05319887 | M73: 0.1526375174 | N73: -0.04246067298 | O73: -0.1514836767 | P73: -0.10011532 | Q73: -0.01958701885
A74: 2074 | B74: 1.2 | C74: 0.01166442737 | D74: 0.009720356142 | E74: 4 | F74: 0.2314378322 | G74: 0.05785945806 | H74: 1.7 | I74: 0.7667223499 | J74: 0.451013147 | K74: 6.9 | L74: 1.00982461 | M74: 0.1463513927 | N74: -0.04118335248 | O74: -0.1517274434 | P74: -0.1003648164 | Q74: -0.01977560346
A75: 2075 | B75: 1.2 | C75: 0.009891865011 | D75: 0.008243220842 | E75: 4 | F75: 0.2081537652 | G75: 0.05203844131 | H75: 1.7 | I75: 0.7514193166 | J75: 0.4420113627 | K75: 6.9 | L75: 0.9694649468 | M75: 0.1405021662 | N75: -0.0399670025 | O75: -0.1519630843 | P75: -0.1006061402 | Q75: -0.01995902862
A76: 2076 | B76: 1.2 | C76: 0.008386412191 | D76: 0.006988676826 | E76: 4 | F76: 0.1871636048 | G76: 0.0467909012 | H76: 1.7 | I76: 0.7362876077 | J76: 0.4331103575 | K76: 6.9 | L76: 0.9318376247 | M76: 0.1350489311 | N76: -0.03881246277 | O76: -0.1521909992 | P76: -0.1008396865 | Q76: -0.02013750322
A77: 2077 | B77: 1.2 | C77: 0.007108226011 | D77: 0.005923521676 | E77: 4 | F77: 0.1682477606 | G77: 0.04206194015 | H77: 1.7 | I77: 0.7213327044 | J77: 0.4243133555 | K77: 6.9 | L77: 0.8966886911 | M77: 0.1299548828 | N77: -0.03772001977 | O77: -0.1524115618 | P77: -0.1010658253 | Q77: -0.020311225
A78: 2078 | B78: 1.2 | C78: 0.006023332146 | D78: 0.005019443455 | E78: 4 | F78: 0.1512068024 | G78: 0.0378017006 | H78: 1.7 | I78: 0.7065595356 | J78: 0.4156232562 | K78: 6.9 | L78: 0.8637896701 | M78: 0.1251869087 | N78: -0.0366894567 | O78: -0.1526251223 | P78: -0.1012849035 | Q78: -0.02048038132
A79: 2079 | B79: 1.2 | C79: 0.005102774194 | D79: 0.004252311828 | E79: 4 | F79: 0.1358597283 | G79: 0.03396493207 | H79: 1.7 | I79: 0.6919725081 | J79: 0.4070426518 | K79: 6.9 | L79: 0.8329350106 | M79: 0.1207152189 | N79: -0.03572010712 | O79: -0.1528320089 | P79: -0.1014972467 | Q79: -0.02064514983
A80: 2080 | B80: 1.2 | C80: 0.004321883751 | D80: 0.003601569792 | E80: 4 | F80: 0.1220423645 | G80: 0.03051059113 | H80: 1.7 | I80: 0.6775755364 | J80: 0.3985738449 | K80: 6.9 | L80: 0.8039397846 | M80: 0.1165130123 | N80: -0.03481091035 | O80: -0.1530325297 | P80: -0.1017031607 | Q80: -0.02080569905
A81: 2081 | B81: 1.2 | C81: 0.003659654582 | D81: 0.003049712152 | E81: 4 | F81: 0.1096058896 | G81: 0.02740147239 | H81: 1.7 | I81: 0.6633720699 | J81: 0.3902188646 | K81: 6.9 | L81: 0.7766376141 | M81: 0.1125561759 | N81: -0.03396046705 | O81: -0.1532269739 | P81: -0.1019029333 | Q81: -0.02096218901
A82: 2082 | B82: 1.2 | C82: 0.003098206429 | D82: 0.00258183869 | E82: 4 | F82: 0.09841547514 | G82: 0.02460386879 | H82: 1.7 | I82: 0.6493651201 | J82: 0.3819794824 | K82: 6.9 | L82: 0.7508788016 | M82: 0.1088230147 | N82: -0.03316709358 | O82: -0.1534156137 | P82: -0.1020968351 | Q82: -0.02111477174
A83: 2083 | B83: 1.2 | C83: 0.002622325933 | D83: 0.002185271611 | E83: 4 | F83: 0.08834903634 | G83: 0.02208725908 | H83: 1.7 | I83: 0.6355572852 | J83: 0.3738572266 | K83: 6.9 | L83: 0.7265286475 | M83: 0.1052940069 | N83: -0.03242887409 | O83: -0.1535987052 | P83: -0.1022851212 | Q83: -0.02126359177
A84: 2084 | B84: 1.2 | C84: 0.002219073856 | D84: 0.001849228213 | E84: 4 | F84: 0.07929608445 | G84: 0.01982402111 | H84: 1.7 | I84: 0.621950775 | J84: 0.365853397 | K84: 6.9 | L84: 0.7034659333 | M84: 0.1019515845 | N84: -0.03174370937 | O84: -0.1537764896 | P84: -0.102468032 | Q84: -0.02140878657
A85: 2085 | B85: 1.2 | C85: 0.001877449224 | D85: 0.00156454102 | E85: 4 | F85: 0.07115667486 | G85: 0.01778916871 | H85: 1.7 | I85: 0.6085474329 | J85: 0.3579690781 | K85: 6.9 | L85: 0.6815815569 | M85: 0.09877993579 | N85: -0.03110936195 | O85: -0.1539491944 | P85: -0.1026457945 | Q85: -0.02155048703
A86: 2086 | B86: 1.2 | C86: 0.001588102318 | D86: 0.001323418598 | E86: 4 | F86: 0.06384044353 | G86: 0.01596011088 | H86: 1.7 | I86: 0.5953487585 | J86: 0.350205152 | K86: 6.9 | L86: 0.6607773043 | M86: 0.09576482671 | N86: -0.03052349703 | O86: -0.1541170341 | P86: -0.1028186231 | Q86: -0.02168881779
A87: 2087 | B87: 1.2 | C87: 0.001343089556 | D87: 0.001119241297 | E87: 4 | F87: 0.05726572563 | G87: 0.01431643141 | H87: 1.7 | I87: 0.5823559281 | J87: 0.3425623107 | K87: 6.9 | L87: 0.6409647433 | M87: 0.09289344106 | N87: -0.02998371901 | O87: -0.1542802116 | P87: -0.1029867203 | Q87: -0.02182389763
A88: 2088 | B88: 1.2 | C88: 0.001135664258 | D88: 0.0009463868814 | E88: 4 | F88: 0.05135875012 | G88: 0.01283968753 | H88: 1.7 | I88: 0.5695698146 | J88: 0.3350410674 | K88: 6.9 | L88: 0.622064229 | M88: 0.09015423609 | N88: -0.02948760362 | O88: -0.1544389184 | P88: -0.1031502778 | Q88: -0.02195583983
A89: 2089 | B89: 1.2 | C89: 0.0009600981319 | D89: 0.0008000817766 | E89: 4 | F89: 0.0460529045 | G89: 0.01151322613 | H89: 1.7 | I89: 0.5569910063 | J89: 0.3276417684 | K89: 6.9 | L89: 0.6040040089 | M89: 0.08753681288 | N89: -0.02903272566 | O89: -0.1545933357 | P89: -0.1033094771 | Q89: -0.02208475245
A90: 2090 | B90: 1.2 | C90: 0.0008115290569 | D90: 0.000676274214 | E90: 4 | F90: 0.04128806422 | G90: 0.01032201606 | H90: 1.7 | I90: 0.5446198246 | J90: 0.3203646027 | K90: 6.9 | L90: 0.5867194179 | M90: 0.08503179969 | N90: -0.02861668262 | O90: -0.1547436351 | P90: -0.10346449 | Q90: -0.02221073865
A91: 2091 | B91: 1.2 | C91: 0.000685831338 | D91: 0.000571526115 | E91: 4 | F91: 0.03700998165 | G91: 0.009252495412 | H91: 1.7 | I91: 0.5324563415 | J91: 0.3132096127 | K91: 6.9 | L91: 0.5701521545 | M91: 0.08263074703 | N91: -0.02823711443 | O91: -0.1548899793 | P91: -0.1036154796 | Q91: -0.02233389697
A92: 2092 | B92: 1.2 | C92: 0.0005795051759 | D92: 0.0004829209799 | E92: 4 | F92: 0.03316972971 | G92: 0.008292432427 | H92: 1.7 | I92: 0.5205003956 | J92: 0.3061767033 | K92: 6.9 | L92: 0.5542496305 | M92: 0.08032603341 | N92: -0.02789171956 | O92: -0.1550325222 | P92: -0.1037626005 | Q92: -0.02245432155
A93: 2093 | B93: 1.2 | C93: 0.0004895825406 | D93: 0.0004079854505 | E93: 4 | F93: 0.02972319579 | G93: 0.007430798948 | H93: 1.7 | I93: 0.5087516074 | J93: 0.2992656514 | K93: 6.9 | L93: 0.5389643857 | M93: 0.07811078054 | N93: -0.02757826789 | O93: -0.1551714102 | P93: -0.1039059994 | Q93: -0.02257210242
A94: 2094 | B94: 1.2 | C94: 0.0004135470517 | D94: 0.0003446225431 | E94: 4 | F94: 0.02663062163 | G94: 0.006657655408 | H94: 1.7 | I94: 0.497209394 | J94: 0.2924761141 | K94: 6.9 | L94: 0.5242535627 | M94: 0.0759787772 | N94: -0.02729461064 | O94: -0.1553067819 | P94: -0.1040458159 | Q94: -0.02268732569
A95: 2095 | B95: 1.2 | C95: 0.000349265807 | D95: 0.0002910548391 | E95: 4 | F95: 0.02385618535 | G95: 0.005964046337 | H95: 1.7 | I95: 0.4858729831 | J95: 0.2858076371 | K95: 6.9 | L95: 0.5100784343 | M95: 0.07392441077 | N95: -0.02703868777 | O95: -0.1554387693 | P95: -0.1041821826 | Q95: -0.02280007377
A96: 2096 | B96: 1.2 | C96: 0.0002949313993 | D96: 0.0002457761661 | E96: 4 | F96: 0.02136762199 | G96: 0.005341905498 | H96: 1.7 | I96: 0.4747414263 | J96: 0.2792596625 | K96: 6.9 | L96: 0.4964039797 | M96: 0.07194260575 | N96: -0.02680853309 | O96: -0.1555674977 | P96: -0.1043152256 | Q96: -0.02291042558
A97: 2097 | B97: 1.2 | C97: 0.0002490126195 | D97: 0.0002075105163 | E97: 4 | F97: 0.01913587933 | G97: 0.004783969832 | H97: 1.7 | I97: 0.4638136113 | J97: 0.2728315361 | K97: 6.9 | L97: 0.4831985033 | M97: 0.07002876859 | N97: -0.02660227748 | O97: -0.1556930863 | P97: -0.1044450649 | Q97: -0.0230184567
A98: 2098 | B98: 1.2 | C98: 0.0002102125567 | D98: 0.0001751771306 | E98: 4 | F98: 0.0171348057 | G98: 0.004283701424 | H98: 1.7 | I98: 0.4530882743 | J98: 0.2665225143 | K98: 6.9 | L98: 0.4704332925 | M98: 0.06817873805 | N98: -0.02641815045 | O98: -0.1558156486 | P98: -0.1045718148 | Q98: -0.02312423957
A99: 2099 | B99: 1.2 | C99: 0.0001774330001 | D99: 0.0001478608334 | E99: 4 | F99: 0.0153408672 | G99: 0.0038352168 | H99: 1.7 | I99: 0.4425640107 | J99: 0.260331771 | K99: 6.9 | L99: 0.4580823109 | M99: 0.06638874071 | N99: -0.02625448039 | O99: -0.1559352928 | P99: -0.1046955844 | Q99: -0.02322784366
A100: 2100 | B100: 1.2 | C100: 0.000149744204 | D100: 0.0001247868367 | E100: 4 | F100: 0.01373289154 | G100: 0.003433222884 | H100: 1.7 | I100: 0.4322392864 | J100: 0.2542584037 | K100: 6.9 | L100: 0.4461219221 | M100: 0.06465535103 | N100: -0.02610969361 | O100: -0.1560521217 | P100: -0.1048164776 | Q100: -0.0233293356
A101: ∑ | C101: =SUM(C51:C100) -> 3.191262709 | F101: =SUM(F51:F100) -> 24.9678209 | I101: =SUM(I51:I100) -> 38.0023637 | L101: =SUM(L51:L100) -> 66.16144731
A102: Rest | C102: =C$11*EXP(-C$8*($A100-$A$11))/C$8^2*((C$7*C$8+C$8^2)*($A100-$A$11)+2*C$8+C$7) -> 0.0008058537871 | F102: =F$11*EXP(-F$8*($A100-$A$11))/F$8^2*((F$7*F$8+F$8^2)*($A100-$A$11)+2*F$8+F$7) -> 0.1161174086 | I102: =I$11*EXP(-I$8*($A100-$A$11))/I$8^2*((I$7*I$8+I$8^2)*($A100-$A$11)+2*I$8+I$7) -> 16.42234732 | L102: =I102+F102+C102 -> 16.53927058
A103: ∑ | C103: =SUM(C101:C102) -> 3.192068563 | F103: =SUM(F101:F102) -> 25.08393831 | I103: =SUM(I101:I102) -> 54.42471102 | L103: =SUM(L101:L102) -> 82.70071789
A105: ∑ | C105: =C103+C43 -> 231.5826325 | F105: =F103+F43 -> 358.065005 | I105: =I103+I43 -> 94.3185678 | L105: =SUM(C105:I105) -> 683.9662054
J107: global path: | L107: ='global path'!C89 -> 683.9662054
L108: =L105-L107 -> 0

Sheet ESPM
B2: Extended Smooth Pathway Model
B3: ESPM | C3: Wirtschaftsdienst 2021/2: Calculation of Paris-Compatible Emission Paths with the ESPM Using the Example of the EU | K3: Zenodo | L3: Wirtschafsdienst
C4: inspired by: | D4: ='SPF-eq'!B2 -> Smooth Pathways Formula; based on: Raupach et al. (2014) / Sharing a quota on cumulative carbon emissions / nature climate change DOI: 10.1038/NCLIMATE2384
B10: For a comprehensive mathematical description, we refer to: | F10: https://doi.org/10.5281/zenodo.4540475
C12: complete ESPM | D12: web app EU | E12: use of RM Scenario Types with a known budget | F12: calculation of global paths
B13: published Tools: | C13: here | D13: here | E13: here | F13: here
B15: The following figures show the relationship between SPFR and ESPM with the same framework data:
B31: The course of the reduction rates for SPFR corresponds to scenario type RM-5-rad.
B33: An iterative solution method, which is not integrated here, must be used to calculate the paths. For this we refer to the tools above.

Sheet EPM
B2: Cap Model | D2: input values | G2: solver | J2: original scenario global path: | M2: 3 | O2: choosen scenario global path: | R2: ='global path'!C2 -> 3
B3: EPM | C3: cap model; based on: Chakravartya et al. / Sharing global CO2 emission reductions among one billion high emitters / 11884–11888 PNAS July 21, 2009 vol. 106 no. 29 / doi 10.1073 pnas.0905232106 | X3: Description
B4: source data: | C4: http://data.worldbank.org/indicator/SI.DST.04TH.20/countries?display=default | X4: Chakravarty et al. insinuate that the income and emissions distribution correlated. Each person is attributed his emissions or a cap, whatever is the least. The cap is calculated for each year such that the emissions of the global pathway are met.
B6: Country A | I6: Country B | P6: Country C
B7: Data of the probability density functions | I7: Data of the probability density functions | P7: Data of the probability density functions
X8: If you change the quantile values of countries, you have to do the following optimization with the help of the Excel solver:
C9: G income | D9: G emissions | J9: G income | K9: G emissions | Q9: G income | R9: G emissions | X9: - For each country: minimize the target value by adjusting the parameter a (variable)
B10: a | C10: 1.566714008 | D10: =C10 -> 1.566714008 | I10: a | J10: 0.7810206882 | K10: =J10 -> 0.7810206882 | P10: a | Q10: 2.786040658 | R10: =Q10 -> 2.786040658 | X10: - Redefine caps for each year. Target = 0 by adjusting the caps of the individual years (variables).
B11: b | C11: =C12/C10 -> 34866.14284 | D11: =D12/D10 -> 11.16987524 | I11: b | J11: =J12/J10 -> 15014.71863 | K11: =K12/K10 -> 6.241832097 | P11: b | Q11: =Q12/Q10 -> 153.427988 | R11: =R12/R10 -> 0.2592160771
B12: E | C12: =17420000/318.9 -> 54625.27438 | D12: =AC19 -> 17.5 | I12: E | J12: =2416635506076/206077898 -> 11726.80588 | K12: =AF19 -> 4.875 | P12: E | Q12: =8168695870/19110000 -> 427.4566128 | R12: =AI19 -> 0.7221865302 | X12: Limitations
X13: - The per capita emissions converge far into the future. So is it comparable with the models with converging per capita emissions upto 2050 to a limited extent only.
B14: Data of the Lorenz curve | I14: Data of the Lorenz curve | P14: Data of the Lorenz curve | X14: - Actual correlation between emission and income distribution?
D15: ≈ USA | K15: ≈ Brazil | R15: ≈ Niger | Y15: Global | AC15: Country A | AF15: Country B | AI15: Country C | AL15: Global
B16: population share | C16: income share | D16: quantiles | E16: squares | F16: population share | G16: emission share | I16: population share | J16: income share | K16: quantiles | L16: squares | M16: population share | N16: emission share | P16: population share | Q16: income share | R16: quantiles | S16: squares | T16: population share | U16: emission share
B17: 0 | C17: 0 | F17: =B17 -> 0 | G17: 0 | I17: 0 | J17: 0 | M17: =I17 -> 0 | N17: 0 | P17: 0 | Q17: 0 | T17: =P17 -> 0 | U17: 0 | X17: Year t | Y17: Popu-lation Pt | Z17: Et | AA17: Per capita | AB17: Cap | AC17: Per capita | AD17: Popu-lation Pit | AE17: Eit | AF17: Per capita | AG17: Popu-lation Pit | AH17: Eit | AI17: Per capita | AJ17: Popu-lation Pit | AK17: Eit | AL17: Et | AM17: square
B18: =B17+0.05 -> 0.05 | C18: =_xlfn.GAMMA.DIST(_xlfn.GAMMA.INV(B18,C$10,C$11),C$10+1,C$11,1) -> 0.003757031202 | F18: =B18 -> 0.05 | G18: =_xlfn.GAMMA.DIST(_xlfn.GAMMA.INV(F18,D$10,D$11),D$10+1,D$11,1) -> 0.003757031202 | I18: =I17+0.05 -> 0.05 | J18: =_xlfn.GAMMA.DIST(_xlfn.GAMMA.INV(I18,J$10,J$11),J$10+1,J$11,1) -> 0.0005534934275 | M18: =I18 -> 0.05 | N18: =_xlfn.GAMMA.DIST(_xlfn.GAMMA.INV(M18,K$10,K$11),K$10+1,K$11,1) -> 0.0005534934275 | P18: =P17+0.05 -> 0.05 | Q18: =_xlfn.GAMMA.DIST(_xlfn.GAMMA.INV(P18,Q$10,Q$11),Q$10+1,Q$11,1) -> 0.008987807856 | T18: =P18 -> 0.05 | U18: =_xlfn.GAMMA.DIST(_xlfn.GAMMA.INV(T18,R$10,R$11),R$10+1,R$11,1) -> 0.008987807856 | Y18: bn | Z18: Gt | AA18: t | AC18: t | AD18: bn | AE18: Gt | AF18: t | AG18: bn | AH18: Gt | AI18: t | AJ18: bn | AK18: Gt | AL18: Gt
B19: =B18+0.05 -> 0.1 | C19: =_xlfn.GAMMA.DIST(_xlfn.GAMMA.INV(B19,C$10,C$11),C$10+1,C$11,1) -> 0.01208533628 | D19: 0.017 | E19: =(C19-D19)^2 -> 2.41539195e-05 | F19: 0.1 | G19: =_xlfn.GAMMA.DIST(_xlfn.GAMMA.INV(F19,D$10,D$11),D$10+1,D$11,1) -> 0.01208533628 | I19: =I18+0.05 -> 0.1 | J19: =_xlfn.GAMMA.DIST(_xlfn.GAMMA.INV(I19,J$10,J$11),J$10+1,J$11,1) -> 0.00271677184 | K19: 0.01 | L19: =(J19-K19)^2 -> 5.304541243e-05 | M19: 0.1 | N19: =_xlfn.GAMMA.DIST(_xlfn.GAMMA.INV(M19,K$10,K$11),K$10+1,K$11,1) -> 0.00271677184 | P19: =P18+0.05 -> 0.1 | Q19: =_xlfn.GAMMA.DIST(_xlfn.GAMMA.INV(P19,Q$10,Q$11),Q$10+1,Q$11,1) -> 0.02420191893 | R19: 0.038 | S19: =(Q19-R19)^2 -> 0.0001903870413 | T19: 0.1 | U19: =_xlfn.GAMMA.DIST(_xlfn.GAMMA.INV(T19,R$10,R$11),R$10+1,R$11,1) -> 0.02420191893 | X19: 2019 | Y19: =AD19+AG19+AJ19 -> 6.9 | Z19: ='global path'!C7 -> 41.7277171 | AA19: =Z19/Y19 -> 6.047495232 | AC19: =AE19/AD19 -> 17.5 | AD19: =RF!B9 -> 1.2 | AE19: =RF!C9 -> 21 | AF19: =AH19/AG19 -> 4.875 | AG19: =RF!E9 -> 4 | AH19: =RF!F9 -> 19.5 | AI19: =AK19/AJ19 -> 0.7221865302 | AJ19: =RF!H9 -> 1.7 | AK19: =RF!I9 -> 1.227717101 | AL19: =AK19+AH19+AE19 -> 41.7277171
B20: 0.15 | C20: 0.02417031141 | F20: 0.15 | G20: 0.02417031141 | I20: 0.15 | J20: 0.006932829903 | M20: 0.15 | N20: 0.006932829903 | P20: 0.15 | Q20: 0.04361404383 | T20: 0.15 | U20: 0.04361404383 | X20: =X19+1 -> 2020 | Y20: 6.9 | Z20: ='global path'!C8 -> 40.89316276 | AA20: =Z20/Y20 -> 5.926545327 | AB20: 43.64012021 | AC20: =$D$12*_xlfn.GAMMA.DIST($AB20,$D$10+1,$D$11,TRUE)+AB20*(1-_xlfn.GAMMA.DIST(AB20,$D$10,$D$11,TRUE)) -> 16.81425098 | AD20: =AD$19*(AD$50/AD$19)^(($X20-2019)/31) -> 1.2 | AE20: =AC20*AD20 -> 20.17710117 | AF20: =$K$12*_xlfn.GAMMA.DIST(AB20,$K$10+1,$K$11,TRUE)+AB20*(1-_xlfn.GAMMA.DIST(AB20,$K$10,$K$11,TRUE)) -> 4.871999755 | AG20: =AG$19*(AG$50/AG$19)^(($X20-2019)/31) -> 4 | AH20: =AF20*AG20 -> 19.48799902 | AI20: =$R$12*_xlfn.GAMMA.DIST(AB20,$R$10+1,$R$11,TRUE)+AB20*(1-_xlfn.GAMMA.DIST(AB20,$R$10,$R$11,TRUE)) -> 0.7221865302 | AJ20: =AJ$19*(AJ$50/AJ$19)^(($X20-2019)/31) -> 1.7 | AK20: =AI20*AJ20 -> 1.227717101 | AL20: 40.8928173 | AM20: =(AL20-Z20)^2 -> 1.193442677e-07
B21: 0.2 | C21: 0.03978483934 | D21: 0.051 | E21: =(C21-D21)^2 -> 0.0001257798285 | F21: 0.2 | G21: 0.03978483934 | I21: 0.2 | J21: 0.01354592711 | K21: 0.033 | L21: =(J21-K21)^2 -> 0.0003784609519 | M21: 0.2 | N21: 0.01354592711 | P21: 0.2 | Q21: 0.06663816298 | R21: 0.089 | S21: =(Q21-R21)^2 -> 0.000500051755 | T21: 0.2 | U21: 0.06663816298 | X21: =X20+1 -> 2021 | Y21: 6.9 | Z21: ='global path'!C9 -> 39.94112655 | AA21: 5.788569065 | AB21: 34.30179451 | AC21: =$D$12*_xlfn.GAMMA.DIST($AB21,$D$10+1,$D$11,TRUE)+AB21*(1-_xlfn.GAMMA.DIST(AB21,$D$10,$D$11,TRUE)) -> 16.05214579 | AD21: 1.2 | AE21: 19.26257494 | AF21: =$K$12*_xlfn.GAMMA.DIST(AB21,$K$10+1,$K$11,TRUE)+AB21*(1-_xlfn.GAMMA.DIST(AB21,$K$10,$K$11,TRUE)) -> 4.861044434 | AG21: 4 | AH21: 19.44417774 | AI21: =$R$12*_xlfn.GAMMA.DIST(AB21,$R$10+1,$R$11,TRUE)+AB21*(1-_xlfn.GAMMA.DIST(AB21,$R$10,$R$11,TRUE)) -> 0.7221865302 | AJ21: 1.7 | AK21: 1.227717101 | AL21: 39.93446978 | AM21: =(AL21-Z21)^2 -> 4.431252812e-05
B22: 0.25 | C22: 0.0588616933 | F22: 0.25 | G22: 0.0588616933 | I22: 0.25 | J22: 0.02287854344 | M22: 0.25 | N22: 0.02287854344 | P22: 0.25 | Q22: 0.09300028267 | T22: 0.25 | U22: 0.09300028267 | X22: 2022 | Y22: 6.9 | Z22: ='global path'!C10 -> 38.88020548 | AA22: 5.634812388 | AB22: 28.69033909 | AC22: 15.24898784 | AD22: 1.2 | AE22: 18.29878541 | AF22: 4.839694334 | AG22: 4 | AH22: 19.35877734 | AI22: 0.7221865302 | AJ22: 1.7 | AK22: 1.227717101 | AL22: 38.88527985 | AM22: 2.574926316e-05
B23: 0.3 | C23: 0.0814175785 | F23: 0.3 | G23: 0.0814175785 | I23: 0.3 | J23: 0.03525699374 | M23: 0.3 | N23: 0.03525699374 | P23: 0.3 | Q23: 0.1225672895 | T23: 0.3 | U23: 0.1225672895 | X23: 2023 | Y23: 6.9 | Z23: ='global path'!C11 -> 37.7198964 | AA23: 5.466651652 | AB23: 24.52304333 | AC23: 14.39114224 | AD23: 1.2 | AE23: 17.26937069 | AF23: 4.80445228 | AG23: 4 | AH23: 19.21780912 | AI23: 0.7221865302 | AJ23: 1.7 | AK23: 1.227717101 | AL23: 37.71489691 | AM23: 2.499483093e-05
B24: 0.35 | C24: 0.1075278056 | F24: 0.35 | G24: 0.1075278056 | I24: 0.35 | J24: 0.05102703683 | M24: 0.35 | N24: 0.05102703683 | P24: 0.35 | Q24: 0.1552895805 | T24: 0.35 | U24: 0.1552895805 | X24: 2024 | Y24: 6.9 | Z24: ='global path'!C12 -> 36.47045336 | AA24: 5.28557295 | AB24: 21.2919504 | AC24: 13.52056136 | AD24: 1.2 | AE24: 16.22467363 | AF24: 4.754066844 | AG24: 4 | AH24: 19.01626737 | AI24: 0.7221865302 | AJ24: 1.7 | AK24: 1.227717101 | AL24: 36.46865811 | AM24: 3.222914555e-06
B25: 0.4 | C25: 0.1373175341 | D25: =0.103+D21 -> 0.154 | E25: =(C25-D25)^2 -> 0.0002783046682 | F25: 0.4 | G25: 0.1373175341 | I25: 0.4 | J25: 0.0705671845 | K25: =0.076+K21 -> 0.109 | L25: =(J25-K25)^2 -> 0.001477081307 | M25: 0.4 | N25: 0.0705671845 | P25: 0.4 | Q25: 0.1911773223 | R25: =0.127+R21 -> 0.216 | S25: =(Q25-R25)^2 -> 0.00061616533 | T25: 0.4 | U25: 0.1911773223 | X25: 2025 | Y25: 6.9 | Z25: ='global path'!C13 -> 35.14273539 | AA25: 5.093150057 | AB25: 18.64966805 | AC25: 12.64316122 | AD25: 1.2 | AE25: 15.17179347 | AF25: 4.686751241 | AG25: 4 | AH25: 18.74700497 | AI25: 0.7221865302 | AJ25: 1.7 | AK25: 1.227717101 | AL25: 35.14651553 | AM25: 1.428946991e-05
B26: 0.45 | C26: 0.1709609607 | F26: 0.45 | G26: 0.1709609607 | I26: 0.45 | J26: 0.09430281552 | M26: 0.45 | N26: 0.09430281552 | P26: 0.45 | Q26: 0.2302906489 | T26: 0.45 | U26: 0.2302906489 | X26: 2026 | Y26: 6.9 | Z26: ='global path'!C14 -> 33.74804795 | AA26: 4.891021442 | AB26: 16.41557787 | AC26: 11.76434741 | AD26: 1.2 | AE26: 14.11721689 | AF26: 4.600908855 | AG26: 4 | AH26: 18.40363542 | AI26: 0.7221865302 | AJ26: 1.7 | AK26: 1.227717101 | AL26: 33.74856941 | AM26: 2.719234417e-07
B27: 0.5 | C27: 0.2086859438 | F27: 0.5 | G27: 0.2086859438 | I27: 0.5 | J27: 0.1227233071 | M27: 0.5 | N27: 0.1227233071 | P27: 0.5 | Q27: 0.272737422 | T27: 0.5 | U27: 0.272737422 | X27: 2027 | Y27: 6.9 | Z27: ='global path'!C15 -> 32.29798118 | AA27: 4.680866837 | AB27: 14.51361247 | AC27: 10.90366005 | AD27: 1.2 | AE27: 13.08439206 | AF27: 4.497096922 | AG27: 4 | AH27: 17.98838769 | AI27: 0.7221865302 | AJ27: 1.7 | AK27: 1.227717101 | AL27: 32.30049685 | AM27: 6.328630576e-06
B28: 0.55 | C28: 0.2507838806 | F28: 0.55 | G28: 0.2507838806 | I28: 0.55 | J28: 0.1564046858 | M28: 0.55 | N28: 0.1564046858 | P28: 0.55 | Q28: 0.3186765025 | T28: 0.55 | U28: 0.3186765025 | X28: 2028 | Y28: 6.9 | Z28: ='global path'!C16 -> 30.8042484 | AA28: 4.464383826 | AB28: 12.85918953 | AC28: 10.06179231 | AD28: 1.2 | AE28: 12.07415078 | AF28: 4.37470346 | AG28: 4 | AH28: 17.49881384 | AI28: 0.7221865302 | AJ28: 1.7 | AK28: 1.227717101 | AL28: 30.80068172 | AM28: 1.27212415e-05
B29: 0.6 | C29: 0.2976261906 | D29: =0.154+D25 -> 0.308 | E29: =(C29-D29)^2 -> 0.0001076159218 | F29: 0.6 | G29: 0.2976261906 | I29: 0.6 | J29: 0.1960414846 | K29: =0.124+K25 -> 0.233 | L29: =(J29-K29)^2 -> 0.001365931863 | M29: 0.6 | N29: 0.1960414846 | P29: 0.6 | Q29: 0.3683265226 | R29: =0.162+R25 -> 0.378 | S29: =(Q29-R29)^2 -> 9.357616407e-05 | T29: 0.6 | U29: 0.3683265226 | X29: 2029 | Y29: 6.9 | Z29: ='global path'!C17 -> 29.27852789 | AA29: 4.243264912 | AB29: 11.42373127 | AC29: 9.255227392 | AD29: 1.2 | AE29: 11.10627287 | AF29: 4.236137286 | AG29: 4 | AH29: 16.94454914 | AI29: 0.7221865302 | AJ29: 1.7 | AK29: 1.227717101 | AL29: 29.27853912 | AM29: 1.259892364e-10
B30: 0.65 | C30: 0.3496906172 | F30: 0.65 | G30: 0.3496906172 | I30: 0.65 | J30: 0.2424940236 | M30: 0.65 | N30: 0.2424940236 | P30: 0.65 | Q30: 0.4219818065 | T30: 0.65 | U30: 0.4219818065 | X30: 2030 | Y30: 6.9 | Z30: ='global path'!C18 -> 27.73231099 | AA30: 4.019175506 | AB30: 10.15789252 | AC30: 8.481511255 | AD30: 1.2 | AE30: 10.17781351 | AF30: 4.081664272 | AG30: 4 | AH30: 16.32665709 | AI30: 0.7221865302 | AJ30: 1.7 | AK30: 1.227717101 | AL30: 27.73218769 | AM30: 1.520289064e-08
B31: 0.7 | C31: 0.4076038178 | F31: 0.7 | G31: 0.4076038178 | I31: 0.7 | J31: 0.296862606 | M31: 0.7 | N31: 0.296862606 | P31: 0.7 | Q31: 0.480039414 | T31: 0.7 | U31: 0.480039414 | X31: 2031 | Y31: 6.9 | Z31: ='global path'!C19 -> 26.17675935 | AA31: 3.79373324 | AB31: 9.039610739 | AC31: 7.746930066 | AD31: 1.2 | AE31: 9.296316079 | AF31: 3.9135601 | AG31: 4 | AH31: 15.6542404 | AI31: 0.7221865302 | AJ31: 1.7 | AK31: 1.227717101 | AL31: 26.17827358 | AM31: 2.292881108e-06
B32: 0.75 | C32: 0.4722135889 | F32: 0.75 | G32: 0.4722135889 | I32: 0.75 | J32: 0.3606117948 | M32: 0.75 | N32: 0.3606117948 | P32: 0.75 | Q32: 0.543045874 | T32: 0.75 | U32: 0.543045874 | X32: 2032 | Y32: 6.9 | Z32: ='global path'!C20 -> 24.62257366 | AA32: 3.568488936 | AB32: 8.043524469 | AC32: 7.050869022 | AD32: 1.2 | AE32: 8.461042827 | AF32: 3.733134443 | AG32: 4 | AH32: 14.93253777 | AI32: 0.7221865302 | AJ32: 1.7 | AK32: 1.227717101 | AL32: 24.6212977 | AM32: 1.628069847e-06
B33: 0.8 | C33: 0.5447207364 | D33: =1-0.464 -> 0.536 | E33: =(C33-D33)^2 -> 7.605124283e-05 | F33: 0.8 | G33: 0.5447207364 | I33: 0.8 | J33: 0.4357966347 | K33: =1-0.574 -> 0.426 | L33: =(J33-K33)^2 -> 9.597405049e-05 | M33: 0.8 | N33: 0.4357966347 | P33: 0.8 | Q33: 0.6117830411 | R33: =0.214+R29 -> 0.592 | S33: =(Q33-R33)^2 -> 0.0003913687163 | T33: 0.8 | U33: 0.6117830411 | X33: 2033 | Y33: 6.9 | Z33: ='global path'!C21 -> 23.07987605 | AA33: 3.344909572 | AB33: 7.153142742 | AC33: 6.394590468 | AD33: 1.2 | AE33: 7.673508561 | AF33: 3.542390324 | AG33: 4 | AH33: 14.1695613 | AI33: 0.7221865301 | AJ33: 1.7 | AK33: 1.227717101 | AL33: 23.07078696 | AM33: 8.261155925e-05
B34: 0.85 | C34: 0.6269477009 | F34: 0.85 | G34: 0.6269477009 | I34: 0.85 | J34: 0.5255243809 | M34: 0.85 | N34: 0.5255243809 | P34: 0.85 | Q34: 0.6874430346 | T34: 0.85 | U34: 0.6874430346 | X34: 2034 | Y34: 6.9 | Z34: ='global path'!C22 -> 21.55810781 | AA34: 3.124363451 | AB34: 6.368089597 | AC34: 5.788894051 | AD34: 1.2 | AE34: 6.946672862 | AF34: 3.346922539 | AG34: 4 | AH34: 13.38769015 | AI34: 0.722186529 | AJ34: 1.7 | AK34: 1.227717099 | AL34: 21.56208012 | AM34: 1.577917831e-05
B35: 0.9 | C35: 0.7219870169 | D35: =1-0.302 -> 0.698 | E35: =(C35-D35)^2 -> 0.0005753769788 | F35: 0.9 | G35: 0.7219870169 | I35: 0.9 | J35: 0.6350747699 | K35: =1-0.418 -> 0.582 | L35: =(J35-K35)^2 -> 0.002816931202 | M35: 0.9 | N35: 0.6350747699 | P35: 0.9 | Q35: 0.7720492452 | R35: =1-0.264 -> 0.736 | S35: =(Q35-R35)^2 -> 0.00129954808 | T35: 0.9 | U35: 0.7720492452 | X35: 2035 | Y35: 6.9 | Z35: ='global path'!C23 -> 20.06594368 | AA35: 2.90810778 | AB35: 5.656134136 | AC35: 5.21756968 | AD35: 1.2 | AE35: 6.261083616 | AF35: 3.143892263 | AG35: 4 | AH35: 12.57556905 | AI35: 0.7221865151 | AJ35: 1.7 | AK35: 1.227717076 | AL35: 20.06436975 | AM35: 2.477266856e-06
B36: 0.95 | C36: 0.8363229925 | F36: 0.95 | G36: 0.8363229925 | I36: 0.95 | J36: 0.7755951332 | M36: 0.95 | N36: 0.7755951332 | P36: 0.95 | Q36: 0.8698258962 | T36: 0.95 | U36: 0.8698258962 | X36: 2036 | Y36: 6.9 | Z36: ='global path'!C24 -> 18.61122347 | AA36: 2.697278763 | AB36: 5.021328294 | AC36: 4.690544113 | AD36: 1.2 | AE36: 5.628652935 | AF36: 2.939106491 | AG36: 4 | AH36: 11.75642597 | AI36: 0.7221863863 | AJ36: 1.7 | AK36: 1.227716857 | AL36: 18.61279576 | AM36: 2.472102725e-06
B37: 1 | C37: 1 | F37: 1 | G37: 1 | I37: 1 | J37: 1 | M37: 1 | N37: 1 | P37: 1 | Q37: 1 | T37: 1 | U37: 1 | X37: 2037 | Y37: 6.9 | Z37: ='global path'!C25 -> 17.20090151 | AA37: 2.492884277 | AB37: 4.449656928 | AC37: 4.201872979 | AD37: 1.2 | AE37: 5.042247575 | AF37: 2.732897277 | AG37: 4 | AH37: 10.93158911 | AI37: 0.7221854547 | AJ37: 1.7 | AK37: 1.227715273 | AL37: 17.20155195 | AM37: 4.230804631e-07
D38: target | E38: =SUM(E19:E35) -> 0.00118728256 | I38: 0 | K38: target | L38: =SUM(L19:L35) -> 0.006187424787 | R38: target | S38: =SUM(S19:S35) -> 0.003091097086 | X38: 2038 | Y38: 6.9 | Z38: ='global path'!C26 -> 15.84101377 | AA38: 2.295799097 | AB38: 3.938741477 | AC38: 3.75405121 | AD38: 1.2 | AE38: 4.504861452 | AF38: 2.528941711 | AG38: 4 | AH38: 10.11576684 | AI38: 0.7221801648 | AJ38: 1.7 | AK38: 1.22770628 | AL38: 15.84833458 | AM38: 5.359416639e-05
X39: 2039 | Y39: 6.9 | Z39: ='global path'!C27 -> 14.5366622 | AA39: 2.106762638 | AB39: 3.476555732 | AC39: 3.340134704 | AD39: 1.2 | AE39: 4.008161645 | AF39: 2.32660725 | AG39: 4 | AH39: 9.306429002 | AI39: 0.7221553587 | AJ39: 1.7 | AK39: 1.22766411 | AL39: 14.54225476 | AM39: 3.127666971e-05
X40: 2040 | Y40: 6.9 | Z40: ='global path'!C28 -> 13.29201547 | AA40: 1.926379054 | AB40: 3.06097974 | AC40: 2.961022275 | AD40: 1.2 | AE40: 3.553226729 | AF40: 2.128673 | AG40: 4 | AH40: 8.514692 | AI40: 0.7220590514 | AJ40: 1.7 | AK40: 1.227500387 | AL40: 13.29541912 | AM40: 1.158480682e-05
X41: 2041 | Y41: 6.9 | Z41: ='global path'!C29 -> 12.110325 | AA41: 1.755119565 | AB41: 2.687913642 | AC41: 2.615284967 | AD41: 1.2 | AE41: 3.13834196 | AF41: 1.936797048 | AG41: 4 | AH41: 7.74718819 | AI41: 0.7217440708 | AJ41: 1.7 | AK41: 1.22696492 | AL41: 12.11249507 | AM41: 4.709224113e-06
X42: 2042 | Y42: 6.9 | Z42: ='global path'!C30 -> 10.99395478 | AA42: 1.59332678 | AB42: 2.352341403 | AC42: 2.300098147 | AD42: 1.2 | AE42: 2.760117776 | AF42: 1.751676797 | AG42: 4 | AH42: 7.00670719 | AI42: 0.7208581968 | AJ42: 1.7 | AK42: 1.225458935 | AL42: 10.9922839 | AM42: 2.791852558e-06
X43: 2043 | Y43: 6.9 | Z43: ='global path'!C31 -> 9.944423473 | AA43: 1.441220793 | AB43: 2.050078758 | AC43: 2.01294586 | AD43: 1.2 | AE43: 2.415535032 | AF43: 1.573894473 | AG43: 4 | AH43: 6.295577893 | AI43: 0.7186820127 | AJ43: 1.7 | AK43: 1.221759422 | AL43: 9.932872347 | AM43: 0.0001334285085
X44: 2044 | Y44: 6.9 | Z44: ='global path'!C32 -> 8.96245678 | AA44: 1.29890678 | AB44: 1.784182066 | AC44: 1.757918643 | AD44: 1.2 | AE44: 2.109502372 | AF44: 1.408150411 | AG44: 4 | AH44: 5.632601643 | AI44: 0.7141176044 | AJ44: 1.7 | AK44: 1.213999927 | AL44: 8.956103942 | AM44: 4.035855789e-05
X45: 2045 | Y45: 6.9 | Z45: ='global path'!C33 -> 8.048048476 | AA45: 1.166383837 | AB45: 1.551332671 | AC45: 1.532824305 | AD45: 1.2 | AE45: 1.839389166 | AF45: 1.255272558 | AG45: 4 | AH45: 5.021090233 | AI45: 0.705742573 | AJ45: 1.7 | AK45: 1.199762374 | AL45: 8.060241773 | AM45: 0.0001486764955
X46: 2046 | Y46: 6.9 | Z46: ='global path'!C34 -> 7.200527934 | AA46: 1.043554773 | AB46: 1.337745251 | AC46: 1.324985638 | AD46: 1.2 | AE46: 1.589982765 | AF46: 1.108237215 | AG46: 4 | AH46: 4.432948859 | AI46: 0.6911698936 | AJ46: 1.7 | AK46: 1.174988819 | AL46: 7.197920444 | AM46: 6.799006303e-06
X47: 2047 | Y47: 6.9 | Z47: ='global path'!C35 -> 6.418632362 | AA47: 0.9302365742 | AB47: 1.1512624 | AC47: 1.142519983 | AD47: 1.2 | AE47: 1.371023979 | AF47: 0.9741759891 | AG47: 4 | AH47: 3.896703957 | AI47: 0.6691514464 | AJ47: 1.7 | AK47: 1.137557459 | AL47: 6.405285394 | AM47: 0.0001781415447
X48: 2048 | Y48: 6.9 | Z48: ='global path'!C36 -> 5.700581847 | AA48: 0.8261712822 | AB48: 0.9930382226 | AC48: 0.9870195942 | AD48: 1.2 | AE48: 1.184423513 | AF48: 0.8560064872 | AG48: 4 | AH48: 3.424025949 | AI48: 0.6398723335 | AJ48: 1.7 | AK48: 1.087782967 | AL48: 5.696232429 | AM48: 1.891744012e-05
X49: 2049 | Y49: 6.9 | Z49: ='global path'!C37 -> 5.044155476 | AA49: 0.7310370255 | AB49: 0.855094296 | AC49: 0.8509722156 | AD49: 1.2 | AE49: 1.021166659 | AF49: 0.749470693 | AG49: 4 | AH49: 2.997882772 | AI49: 0.6030954954 | AJ49: 1.7 | AK49: 1.025262342 | AL49: 5.044311773 | AM49: 2.442879132e-08
X50: 2050 | Y50: =AD50+AG50+AJ50 -> 6.9 | Z50: ='global path'!C38 -> 4.446766923 | AA50: =Z50/Y50 -> 0.6444589743 | AB50: 0.7357450622 | AC50: =$D$12*_xlfn.GAMMA.DIST($AB50,$D$10+1,$D$11,TRUE)+AB50*(1-_xlfn.GAMMA.DIST(AB50,$D$10,$D$11,TRUE)) -> 0.7329295018 | AD50: ='input data'!C18 -> 1.2 | AE50: =AC50*AD50 -> 0.8795154021 | AF50: =$K$12*_xlfn.GAMMA.DIST(AB50,$K$10+1,$K$11,TRUE)+AB50*(1-_xlfn.GAMMA.DIST(AB50,$K$10,$K$11,TRUE)) -> 0.6545068511 | AG50: ='input data'!D18 -> 4 | AH50: =AF50*AG50 -> 2.618027404 | AI50: =$R$12*_xlfn.GAMMA.DIST(AB50,$R$10+1,$R$11,TRUE)+AB50*(1-_xlfn.GAMMA.DIST(AB50,$R$10,$R$11,TRUE)) -> 0.5602592459 | AJ50: ='input data'!E18 -> 1.7 | AK50: =AI50*AJ50 -> 0.952440718 | AL50: =AK50+AH50+AE50 -> 4.449983525 | AM50: =(AL50-Z50)^2 -> 1.034652659e-05
X51: 2051 | Y51: 6.9 | Z51: ='global path'!C39 -> 3.905538075 | AA51: 0.5660200109 | AB51: 0.6330737736 | AC51: 0.6311517091 | AD51: =AD50 -> 1.2 | AE51: 0.7573820509 | AF51: 0.5706323876 | AG51: =AG50 -> 4 | AH51: 2.282529551 | AI51: 0.5134927808 | AJ51: =AJ50 -> 1.7 | AK51: 0.8729377274 | AL51: 3.912849329 | AM51: 5.345443118e-05
X52: 2052 | Y52: 6.9 | Z52: ='global path'!C40 -> 3.417369445 | AA52: 0.4952709341 | AB52: 0.5424483369 | AC52: 0.5411508898 | AD52: =AD51 -> 1.2 | AE52: 0.6493810678 | AF52: 0.4948367474 | AG52: =AG51 -> 4 | AH52: 1.97934699 | AI52: 0.4635341492 | AJ52: =AJ51 -> 1.7 | AK52: 0.7880080537 | AL52: 3.416736111 | AM52: 4.011123247e-07
X53: 2053 | Y53: 6.9 | Z53: ='global path'!C41 -> 2.979006344 | AA53: 0.4317400498 | AB53: 0.4656601052 | AC53: 0.4647805805 | AD53: 1.2 | AE53: 0.5577366966 | AF53: 0.4292579109 | AG53: 4 | AH53: 1.717031643 | AI53: 0.414341748 | AJ53: 1.7 | AK53: 0.7043809716 | AL53: 2.979149312 | AM53: 2.043986352e-08
X54: 2054 | Y54: 6.9 | Z54: ='global path'!C42 -> 2.587099972 | AA54: 0.3749420249 | AB54: 0.4005955685 | AC54: 0.3999963488 | AD54: 1.2 | AE54: 0.4799956185 | AF54: 0.3726720843 | AG54: 4 | AH54: 1.490688337 | AI54: 0.3676035243 | AJ54: 1.7 | AK54: 0.6249259912 | AL54: 2.595609947 | AM54: 7.241967343e-05
X55: 2055 | Y55: 6.9 | Z55: ='global path'!C43 -> 2.23826283 | AA55: 0.3243859174 | AB55: 0.3403639138 | AC55: 0.3399685625 | AD55: 1.2 | AE55: 0.407962275 | AF55: 0.319417792 | AG55: 4 | AH55: 1.277671168 | AI55: 0.320271403 | AJ55: 1.7 | AK55: 0.544461385 | AL55: 2.230094828 | AM55: 6.671626388e-05
X56: 2056 | Y56: 6.9 | Z56: ='global path'!C44 -> 1.929118012 | AA56: 0.2795823206 | AB56: 0.29279104 | AC56: 0.2925219073 | AD56: 1.2 | AE56: 0.3510262888 | AF56: 0.2767374948 | AG56: 4 | AH56: 1.106949979 | AI56: 0.2802683694 | AJ56: 1.7 | AK56: 0.476456228 | AL56: 1.934432496 | AM56: 2.824374195e-05
X57: 2057 | Y57: 6.9 | Z57: ='global path'!C45 -> 1.656342164 | AA57: 0.2400495889 | AB57: 0.2492083944 | AC57: 0.2490301356 | AD57: 1.2 | AE57: 0.2988361627 | AF57: 0.2371371285 | AG57: 4 | AH57: 0.9485485138 | AI57: 0.2417623468 | AJ57: 1.7 | AK57: 0.4109959896 | AL57: 1.658380666 | AM57: 4.155492397e-06
X58: 2058 | Y58: 6.9 | Z58: ='global path'!C46 -> 1.416702057 | AA58: 0.2053191387 | AB58: 0.2098662394 | AC58: 0.209751373 | AD58: 1.2 | AE58: 0.2517016476 | AF58: 0.2009616008 | AG58: 4 | AH58: 0.8038464031 | AI58: 0.2056465112 | AJ58: 1.7 | AK58: 0.349599069 | AL58: 1.40514712 | AM58: 0.00013351658
X59: 2059 | Y59: 6.9 | Z59: ='global path'!C47 -> 1.207084871 | AA59: 0.1749398364 | AB59: 0.1805194488 | AC59: 0.1804413252 | AD59: 1.2 | AE59: 0.2165295903 | AF59: 0.1737011741 | AG59: 4 | AH59: 0.6948046966 | AI59: 0.1779805335 | AJ59: 1.7 | AK59: 0.3025669069 | AL59: 1.213901194 | AM59: 4.646225231e-05
X60: 2060 | Y60: 6.9 | Z60: ='global path'!C48 -> 1.024522414 | AA60: 0.1484815092 | AB60: 0.1521120084 | AC60: 0.1520616115 | AD60: 1.2 | AE60: 0.1824739338 | AF60: 0.1470794458 | AG60: 4 | AH60: 0.5883177831 | AI60: 0.1507010289 | AJ60: 1.7 | AK60: 0.2561917491 | AL60: 1.026983466 | AM60: 6.056779543e-06
X61: 2061 | Y61: 6.9 | Z61: ='global path'!C49 -> 0.8662096264 | AA61: 0.125537627 | AB61: 0.1307386812 | AC61: 0.1307044846 | AD61: 1.2 | AE61: 0.1568453815 | AF61: 0.1268920001 | AG61: 4 | AH61: 0.5075680006 | AI61: 0.1299058306 | AJ61: 1.7 | AK61: 0.220839912 | AL61: 0.8852532941 | AM61: 0.0003626612798
X62: 2062 | Y62: 6.9 | Z62: ='global path'!C50 -> 0.7295177983 | AA62: 0.1057272171 | AB62: 0.1052953332 | AC62: 0.1052756924 | AD62: 1.2 | AE62: 0.1263308309 | AF62: 0.1026760976 | AG62: 4 | AH62: 0.4107043904 | AI62: 0.1049074609 | AJ62: 1.7 | AK62: 0.1783426835 | AL62: 0.7153779048 | AM62: 0.0001999365902
X63: 2063 | Y63: 6.9 | Z63: ='global path'!C51 -> 0.6120029716 | AA63: 0.08869608284 | AB63: 0.08888814148 | AC63: 0.08887541765 | AD63: 1.2 | AE63: 0.1066505012 | AF63: 0.08694960978 | AG63: 4 | AH63: 0.3477984391 | AI63: 0.08867643562 | AJ63: 1.7 | AK63: 0.1507499405 | AL63: 0.6051988809 | AM63: 4.629565037e-05
X64: 2064 | Y64: 6.9 | Z64: ='global path'!C52 -> 0.5114100745 | AA64: 0.0741174021 | AB64: 0.07513798565 | AC64: 0.07512971533 | AD64: 1.2 | AE64: 0.09015565839 | AF64: 0.07370000048 | AG64: 4 | AH64: 0.2948000019 | AI64: 0.07502250395 | AJ64: 1.7 | AK64: 0.1275382567 | AL64: 0.512493917 | AM64: 1.174714633e-06
X65: 2065 | Y65: 6.9 | Z65: ='global path'!C53 -> 0.4256733304 | AA65: 0.06169178702 | AB65: 0.06246497293 | AC65: 0.06245982267 | AD65: 1.2 | AE65: 0.0749517872 | AF65: 0.06142953823 | AG65: 4 | AH65: 0.2457181529 | AI65: 0.06240596544 | AJ65: 1.7 | AK65: 0.1060901412 | AL65: 0.4267600814 | AM65: 1.181027652e-06
X66: 2066 | Y66: 6.9 | Z66: ='global path'!C54 -> 0.3529134977 | AA66: 0.05114688373 | AB66: 0.05434174968 | AC66: 0.05433814659 | AD66: 1.2 | AE66: 0.06520577591 | AF66: 0.05353353975 | AG66: 4 | AH66: 0.214134159 | AI66: 0.05430629827 | AJ66: 1.7 | AK66: 0.09232070706 | AL66: 0.371660642 | AM66: 0.0003514554182
X67: 2067 | Y67: 6.9 | Z67: ='global path'!C55 -> 0.2914324854 | AA67: 0.04223659209 | AB67: 0.04491127332 | AC67: 0.04490906345 | AD67: 1.2 | AE67: 0.05389087614 | AF67: 0.04433546439 | AG67: 4 | AH67: 0.1773418576 | AI67: 0.04489368188 | AJ67: 1.7 | AK67: 0.0763192592 | AL67: 0.3075519929 | AM67: 0.0002598385212
X68: 2068 | Y68: 6.9 | Z68: ='global path'!C56 -> 0.2397058642 | AA68: 0.03473998031 | AB68: 0.03285874008 | AC68: 0.03285774866 | AD68: 1.2 | AE68: 0.03942929839 | AF68: 0.03252850654 | AG68: 4 | AH68: 0.1301140262 | AI68: 0.03285320472 | AJ68: 1.7 | AK68: 0.05585044803 | AL68: 0.2253937726 | AM68: 0.0002048359648
X69: 2069 | Y69: 6.9 | Z69: ='global path'!C57 -> 0.1963737592 | AA69: 0.0284599651 | AB69: 0.02347717057 | AC69: 0.0234767521 | AD69: 1.2 | AE69: 0.02817210252 | AF69: 0.02329563316 | AG69: 4 | AH69: 0.09318253263 | AI69: 0.02347558771 | AJ69: 1.7 | AK69: 0.03990849911 | AL69: 0.1612631343 | AM69: 0.001232755981
X70: 2070 | Y70: 6.9 | Z70: ='global path'!C58 -> 0.1602305706 | AA70: 0.02322182182 | AB70: 0.01931317527 | AC70: 0.0193129217 | AD70: 1.2 | AE70: 0.02317550604 | AF70: 0.01918493305 | AG70: 4 | AH70: 0.07673973221 | AI70: 0.0193124124 | AJ70: 1.7 | AK70: 0.03283110107 | AL70: 0.1327463393 | AM70: 0.0007553829674
X71: 2071 | Y71: 6.9 | Z71: ='global path'!C59 -> 0.1302139197 | AA71: 0.01887158256 | AB71: 0.01808111766 | AC71: 0.01808090355 | AD71: 1.2 | AE71: 0.02169708426 | AF71: 0.01796707501 | AG71: 4 | AH71: 0.07186830005 | AI71: 0.01808052164 | AJ71: 1.7 | AK71: 0.03073688679 | AL71: 0.1243022711 | AM71: 3.494758885e-05
X72: 2072 | Y72: 6.9 | Z72: ='global path'!C60 -> 0.1053931715 | AA72: 0.01527437268 | AB72: 0.01666459518 | AC72: 0.01666442151 | AD72: 1.2 | AE72: 0.01999730581 | AF72: 0.01656596893 | AG72: 4 | AH72: 0.06626387573 | AI72: 0.01666415615 | AJ72: 1.7 | AK72: 0.02832906545 | AL72: 0.114590247 | AM72: 8.458619818e-05
X73: 2073 | Y73: 6.9 | Z73: ='global path'!C61 -> 0.08495783294 | AA73: 0.01231272941 | AB73: 0.01389826129 | AC73: 0.01389815229 | AD73: 1.2 | AE73: 0.01667778274 | AF73: 0.01382687069 | AG73: 4 | AH73: 0.05530748276 | AI73: 0.0138980391 | AJ73: 1.7 | AK73: 0.02362666648 | AL73: 0.09561193198 | AM73: 0.0001135098263
X74: 2074 | Y74: 6.9 | Z74: ='global path'!C62 -> 0.06452249442 | AA74: 0.009351086147 | AB74: 0.009890345944 | AC74: 0.009890300418 | AD74: 1.2 | AE74: 0.0118683605 | AF74: 0.00985138986 | AG74: 4 | AH74: 0.03940555944 | AI74: 0.009890284111 | AJ74: 1.7 | AK74: 0.01681348299 | AL74: 0.06808740293 | AM74: 1.270857272e-05
X75: 2075 | Y75: 6.9 | Z75: ='global path'!C63 -> 0.04408715589 | AA75: 0.006389442883 | AB75: 0.005842581432 | AC75: 0.005842569641 | AD75: 1.2 | AE75: 0.007011083569 | AF75: 0.00582732331 | AG75: 4 | AH75: 0.02330929324 | AI75: 0.005842572928 | AJ75: 1.7 | AK75: 0.009932373977 | AL75: 0.04025275079 | AM75: 1.470266251e-05
X76: 2076 | Y76: 6.9 | Z76: ='global path'!C64 -> 0.02365181737 | AA76: 0.003427799618 | AB76: 0.002450141789 | AC76: 0.002450140522 | AD76: 1.2 | AE76: 0.002940168626 | AF76: 0.002446895509 | AG76: 4 | AH76: 0.009787582036 | AI76: 0.00245014147 | AJ76: 1.7 | AK76: 0.004165240499 | AL76: 0.01689299116 | AM76: 4.568173166e-05
X77: 2077 | Y77: 6.9 | Z77: ='global path'!C65 -> 0.00321647884 | AA77: 0.0004661563536 | AB77: 0.000353978318 | AC77: 0.0003539783091 | AD77: 1.2 | AE77: 0.000424773971 | AF77: 0.0003538748068 | AG77: 4 | AH77: 0.001415499227 | AI77: 0.0003539783178 | AJ77: 1.7 | AK77: 0.0006017631402 | AL77: 0.002442036338 | AM77: 5.997611886e-07
X78: 2078 | Y78: 6.9 | Z78: ='global path'!C66 -> 0 | AA78: 0 | AB78: 0.001704638415 | AC78: 0.001704637915 | AD78: 1.2 | AE78: 0.002045565499 | AF78: 0.001702937099 | AG78: 4 | AH78: 0.006811748398 | AI78: 0.001704638334 | AJ78: 1.7 | AK78: 0.002897885168 | AL78: 0.01175519906 | AM78: 0.000138184705
X79: 2079 | Y79: 6.9 | Z79: ='global path'!C67 -> 0 | AA79: 0 | AB79: 0.00389509529 | AC79: 0.003895091125 | AD79: 1.2 | AE79: 0.00467410935 | AF79: 0.003887683466 | AG79: 4 | AH79: 0.01555073386 | AI79: 0.00389509345 | AJ79: 1.7 | AK79: 0.006621658865 | AL79: 0.02684650208 | AM79: 0.0007207346738
X80: 2080 | Y80: 6.9 | Z80: ='global path'!C68 -> 0 | AA80: 0 | AB80: 0.00603296875 | AC80: 0.006032955947 | AD80: 1.2 | AE80: 0.007239547136 | AF80: 0.006016813994 | AG80: 4 | AH80: 0.02406725598 | AI80: 0.006032959152 | AJ80: 1.7 | AK80: 0.01025603056 | AL80: 0.04156283367 | AM80: 0.001727469143
X81: 2081 | Y81: 6.9 | Z81: ='global path'!C69 -> 0 | AA81: 0 | AB81: 0.007844098804 | AC81: 0.00784407369 | AD81: 1.2 | AE81: 0.009412888428 | AF81: 0.007818316441 | AG81: 4 | AH81: 0.03127326577 | AI81: 0.007844072977 | AJ81: 1.7 | AK81: 0.01333492406 | AL81: 0.05402107825 | AM81: 0.002918276896
X82: 2082 | Y82: 6.9 | Z82: ='global path'!C70 -> 0 | AA82: 0 | AB82: 0.009200030299 | AC82: 0.009199992487 | AD82: 1.2 | AE82: 0.01103999098 | AF82: 0.009165783093 | AG82: 4 | AH82: 0.03666313237 | AI82: 0.009199983209 | AJ82: 1.7 | AK82: 0.01563997146 | AL82: 0.06334309481 | AM82: 0.00401234766
X83: 2083 | Y83: 6.9 | Z83: ='global path'!C71 -> 0 | AA83: 0 | AB83: 0.01007921624 | AC83: 0.01007916845 | AD83: 1.2 | AE83: 0.01209500214 | AF83: 0.0100389257 | AG83: 4 | AH83: 0.04015570278 | AI83: 0.01007914985 | AJ83: 1.7 | AK83: 0.01713455474 | AL83: 0.06938525967 | AM83: 0.004814314259
X84: 2084 | Y84: 6.9 | Z84: ='global path'!C72 -> 0 | AA84: 0 | AB84: 0.01052480487 | AC84: 0.01052475147 | AD84: 1.2 | AE84: 0.01262970176 | AF84: 0.01048128826 | AG84: 4 | AH84: 0.04192515305 | AI84: 0.01052472674 | AJ84: 1.7 | AK84: 0.01789203545 | AL84: 0.07244689027 | AM84: 0.00524855191
X85: =X84+1 -> 2085 | Y85: 6.9 | Z85: ='global path'!C73 -> 0 | AA85: 0 | AB85: 0.01061067252 | AC85: 0.01061061799 | AD85: 1.2 | AE85: 0.01273274159 | AF85: 0.01056652174 | AG85: 4 | AH85: 0.04226608698 | AI85: 0.01061059196 | AJ85: 1.7 | AK85: 0.01803800633 | AL85: 0.0730368349 | AM85: 0.005334379253
B86: Data of the probability density functions | I86: Data of the probability density functions | P86: Data of the probability density functions | X86: 2086 | Y86: 6.9 | Z86: ='global path'!C74 -> 0 | AA86: 0 | AB86: 0.01041883808 | AC86: 0.01041878605 | AD86: 1.2 | AE86: 0.01250254326 | AF86: 0.01037609854 | AG86: 4 | AH86: 0.04150439414 | AI86: 0.01041876287 | AJ86: 1.7 | AK86: 0.01771189688 | AL86: 0.07171883428 | AM86: 0.005143591191
X87: 2087 | Y87: 6.9 | Z87: ='global path'!C75 -> 0 | AA87: 0 | AB87: 0.01002644727 | AC87: 0.01002640012 | AD87: 1.2 | AE87: 0.01203168014 | AF87: 0.009986531543 | AG87: 4 | AH87: 0.03994612617 | AI87: 0.01002638217 | AJ87: 1.7 | AK87: 0.01704484969 | AL87: 0.06902265601 | AM87: 0.004764127042
B88: income | C88: probability | D88: cumulative | E88: emissions | F88: probability | G88: cumulative | I88: income | J88: probability | K88: cumulative | L88: emissions | M88: probability | N88: cumulative | P88: income | Q88: probability | R88: cumulative | S88: emissions | T88: probability | U88: cumulative | X88: 2088 | Y88: 6.9 | Z88: ='global path'!C76 -> 0 | AA88: 0 | AB88: 0.009499780048 | AC88: 0.009499738994 | AD88: 1.2 | AE88: 0.01139968679 | AF88: 0.009463520805 | AG88: 4 | AH88: 0.03785408322 | AI88: 0.009499726916 | AJ88: 1.7 | AK88: 0.01614953576 | AL88: 0.06540330577 | AM88: 0.004277592405
B89: =$C$12*2/20*(ROW()-ROW($B$89)) -> 0 | C89: 0 | D89: 0 | E89: =$D$12*2/20*(ROW()-ROW($B$89)) -> 0 | F89: 0 | G89: 0 | I89: =$C$12*2/20*(ROW()-ROW($B$89)) -> 0 | J89: 0 | K89: 0 | L89: =$D$12*2/20*(ROW()-ROW($B$89)) -> 0 | M89: 0 | N89: 0 | P89: =$C$12*2/20*(ROW()-ROW($B$89)) -> 0 | Q89: 0 | R89: 0 | S89: =$D$12*2/20*(ROW()-ROW($B$89)) -> 0 | T89: 0 | U89: 0 | X89: 2089 | Y89: 6.9 | Z89: ='global path'!C77 -> 0 | AA89: 0 | AB89: 0.008891879026 | AC89: 0.00889184438 | AD89: 1.2 | AE89: 0.01067021326 | AF89: 0.008859647587 | AG89: 4 | AH89: 0.03543859035 | AI89: 0.008891837606 | AJ89: 1.7 | AK89: 0.01511612393 | AL89: 0.06122492754 | AM89: 0.003748491752
